Workbook

Sheet Fast-Track YP
B2: =CELL("filename") -> Q:\RIIO T 201204 Fast Track FP\[Financial model 20120419 for Fast Track FP.xlsm]User input
B3: =MID(CELL("filename"),SEARCH("[",CELL("filename"))+1,SEARCH("]",CELL("filename"))-SEARCH("[",CELL("filename"))-1) -> Financial model 20120419 for Fast Track FP.xlsm
B4: =UserInterface!G32 -> Base Case
B5: =CHOOSE(UserInterface!$B$51,"SHETL","SPTL","NGET_TO","NGET_SO","NGGT_TO","NGGT_SO","East","London","North_West","West_Midlands","Northern","Scotland","Southern","Wales_&_West") -> SPTL | C5: Rollover | D5: RIIO-T1
B6: £m 2009-10 prices | C6: 2012-13 | D6: 2013-14 | E6: 2014-15 | F6: 2015-16 | G6: 2016-17 | H6: 2017-18 | I6: 2018-19 | J6: 2019-20 | K6: 2020-21 | L6: RIIO T1 Total | M6: 8-year Average
B7: Totex
A8: 1 | B8: Slow pot | C8: =C15 -> 198.251725 | D8: =D15 -> 291.0728131 | E8: 310.1277785 | F8: 218.7668685 | G8: 125.0951326 | H8: 114.7868039 | I8: 119.5257702 | J8: 134.2359675 | K8: 106.9179913 | L8: =SUM(D8:K8) -> 1420.529126 | M8: =AVERAGE(D8:K8) -> 177.5661407
A9: 2 | B9: Fast pot | C9: =C19 -> 24.6 | D9: =D19 -> 32.34142368 | E9: 34.45864205 | F9: 24.30742984 | G9: 13.89945917 | H9: 12.75408932 | I9: 13.28064114 | J9: 14.91510751 | K9: 11.87977682 | L9: =SUM(D9:K9) -> 157.8365695 | M9: =AVERAGE(D9:K9) -> 19.72957119
A10: 3 | B10: Totex | C10: =C8+C9 -> 222.851725 | D10: =D8+D9 -> 323.4142368 | E10: 344.5864205 | F10: 243.0742984 | G10: 138.9945917 | H10: 127.5408932 | I10: 132.8064114 | J10: 149.1510751 | K10: 118.7977682 | L10: 1578.365695 | M10: 197.2957119
B11: Regulatory Asset Value (RAV)
A12: 4 | B12: Opening RAV | C12: =RealRAV!M7 -> 956.4395354 | D12: =RealRAV!N7 -> 1122.588798 | E12: =RealRAV!O7 -> 1348.37356 | F12: =RealRAV!P7 -> 1564.372798 | G12: =RealRAV!Q7 -> 1677.990922 | H12: =RealRAV!R7 -> 1755.37781 | I12: =RealRAV!S7 -> 1758.092388 | J12: =RealRAV!T7 -> 1755.955209 | K12: =RealRAV!U7 -> 1767.775236 | M12: =AVERAGE(D12:K12) -> 1593.81584
A13: 5 | B13: Transfers from 'shadow RAV' | C13: =RealRAV!M6 -> 41.83301104 | D13: =RealRAV!N6 -> 17.99722857 | E13: =RealRAV!O6 -> 0 | F13: =RealRAV!P6 -> 0 | G13: =RealRAV!Q6 -> 68.52162605 | H13: =RealRAV!R6 -> 7.7137818 | I13: =RealRAV!S6 -> 0 | J13: =RealRAV!T6 -> 0 | K13: =RealRAV!U6 -> 0 | L13: =SUM(D13:K13) -> 94.23263642 | M13: =AVERAGE(D13:K13) -> 11.77907955
A14: 6 | B14: Restated opening RAV including transfers | C14: =CHOOSE(UserInterface!$B$51,RealRAV!M8,RealRAV!M8,RealRAV!M8,RealRAV!M8,RealRAV!M8,RealRAV!M8,#REF!,#REF!,#REF!,#REF!,#REF!,#REF!,#REF!,#REF!) -> 998.2725464 | D14: =RealRAV!N8 -> 1140.586027 | E14: =RealRAV!O8 -> 1348.37356 | F14: =RealRAV!P8 -> 1564.372798 | G14: =RealRAV!Q8 -> 1746.512548 | H14: =RealRAV!R8 -> 1763.091592 | I14: =RealRAV!S8 -> 1758.092388 | J14: =RealRAV!T8 -> 1755.955209 | K14: =RealRAV!U8 -> 1767.775236 | M14: =AVERAGE(D14:K14) -> 1605.59492
A15: 7 | B15: RAV additions (totex slow pot) | C15: =CHOOSE(UserInterface!$B$51,+RealRAV!M10,+RealRAV!M10,+RealRAV!M10,+RealRAV!M10,+RealRAV!M10,+RealRAV!M10,#REF!+#REF!,#REF!+#REF!,#REF!+#REF!,#REF!+#REF!,#REF!+#REF!,#REF!+#REF!,#REF!+#REF!,#REF!+#REF!) -> 198.251725 | D15: =+RealRAV!N10 -> 291.0728131 | E15: =+RealRAV!O10 -> 310.1277785 | F15: =+RealRAV!P10 -> 218.7668685 | G15: =+RealRAV!Q10 -> 125.0951326 | H15: =+RealRAV!R10 -> 114.7868039 | I15: =+RealRAV!S10 -> 119.5257702 | J15: =+RealRAV!T10 -> 134.2359675 | K15: =+RealRAV!U10 -> 106.9179913 | L15: =SUM(D15:K15) -> 1420.529126 | M15: =AVERAGE(D15:K15) -> 177.5661407
A16: 8 | B16: Depreciation | C16: =CHOOSE(UserInterface!$B$51,RealRAV!M9,RealRAV!M9,RealRAV!M9,RealRAV!M9,RealRAV!M9,RealRAV!M9,-#REF!,-#REF!,-#REF!,-#REF!,-#REF!,-#REF!,-#REF!,-#REF!) -> -73.93547321 | D16: =RealRAV!N9 -> -83.28527941 | E16: =RealRAV!O9 -> -94.12854084 | F16: =RealRAV!P9 -> -105.1487448 | G16: =RealRAV!Q9 -> -116.22987 | H16: =RealRAV!R9 -> -119.7860084 | I16: =RealRAV!S9 -> -121.6629492 | J16: =RealRAV!T9 -> -122.4159407 | K16: =RealRAV!U9 -> -124.3819713 | L16: -887.0393046 | M16: -110.8799131
A17: 9 | B17: Closing RAV | C17: =CHOOSE(UserInterface!$B$51,+C14+C15+C16,+C14+C15+C16,+C14+C15+C16,+C14+C15+C16,+C14+C15+C16,+C14+C15+C16,#REF!,#REF!,#REF!,#REF!,#REF!,#REF!,#REF!,#REF!) -> 1122.588798 | D17: =+D14+D15+D16 -> 1348.37356 | E17: 1564.372798 | F17: 1677.990922 | G17: 1755.37781 | H17: 1758.092388 | I17: 1755.955209 | J17: 1767.775236 | K17: 1750.311256 | M17: 1672.281147
B18: Allowed Costs
A19: 10 | B19: =[2]RevCalcs!C11 -> Fast pot expenditure | C19: =CHOOSE(UserInterface!$B$51,RevCalcs!M11,RevCalcs!M11,RevCalcs!M11,RevCalcs!M11,RevCalcs!M11,RevCalcs!M11,#REF!,#REF!,#REF!,#REF!,#REF!,#REF!,#REF!,#REF!) -> 24.6 | D19: =RevCalcs!N11 -> 32.34142368 | E19: =RevCalcs!O11 -> 34.45864205 | F19: =RevCalcs!P11 -> 24.30742984 | G19: =RevCalcs!Q11 -> 13.89945917 | H19: =RevCalcs!R11 -> 12.75408932 | I19: =RevCalcs!S11 -> 13.28064114 | J19: =RevCalcs!T11 -> 14.91510751 | K19: =RevCalcs!U11 -> 11.87977682 | L19: =SUM(D19:K19) -> 157.8365695 | M19: =AVERAGE(D19:K19) -> 19.72957119
A20: 11 | B20: Depreciation | C20: =IF(UserInterface!$B$51=2,73.1840397821645,-C16) -> 73.18403978 | D20: =-D16 -> 83.28527941 | E20: =-E16 -> 94.12854084 | F20: 105.1487448 | G20: 116.22987 | H20: 119.7860084 | I20: 121.6629492 | J20: 122.4159407 | K20: 124.3819713 | L20: =SUM(D20:K20) -> 887.0393046 | M20: 110.8799131
A21: 12 | B21: IQI additional income | D21: =RevCalcs!N14 -> 8.650528485 | E21: =RevCalcs!O14 -> 9.216831874 | F21: =RevCalcs!P14 -> 6.501634446 | G21: =RevCalcs!Q14 -> 3.717760501 | H21: =RevCalcs!R14 -> 3.411402481 | I21: =RevCalcs!S14 -> 3.552242029 | J21: =RevCalcs!T14 -> 3.989421233 | K21: =RevCalcs!U14 -> 3.177545576 | L21: =SUM(D21:K21) -> 42.21736663 | M21: =AVERAGE(D21:K21) -> 5.277170828
A22: 13 | B22: Capex and other incentives | C22: =CHOOSE(UserInterface!$B$51,RevCalcs!M15,RevCalcs!M15,RevCalcs!M15,RevCalcs!M15,RevCalcs!M15,RevCalcs!M15,#REF!,#REF!,#REF!,#REF!,#REF!,#REF!,#REF!,#REF!) + RevCalcs!M16 -> 4.508140488 | D22: =RevCalcs!N15 + RevCalcs!N16 -> 0 | E22: =RevCalcs!O15 + RevCalcs!O16 -> 0 | F22: =RevCalcs!P15 + RevCalcs!P16 -> 0 | G22: =RevCalcs!Q15 + RevCalcs!Q16 -> 0 | H22: =RevCalcs!R15 + RevCalcs!R16 -> 0 | I22: =RevCalcs!S15 + RevCalcs!S16 -> 0 | J22: =RevCalcs!T15 + RevCalcs!T16 -> 0 | K22: =RevCalcs!U15 + RevCalcs!U16 -> 0 | L22: 0 | M22: 0
A23: 14 | B23: =[2]RevCalcs!C23 -> Tax allowance | C23: =CHOOSE(UserInterface!$B$51,5.49147321488117,RevCalcs!M23,RevCalcs!M23,RevCalcs!M23,RevCalcs!M23,RevCalcs!M23,#REF!,#REF!,#REF!,#REF!,#REF!,#REF!,#REF!,#REF!) -> 10.70052528 | D23: =RevCalcs!N23 -> 16.18716558 | E23: =RevCalcs!O23 -> 12.10699376 | F23: =RevCalcs!P23 -> 14.0711217 | G23: =RevCalcs!Q23 -> 11.2022887 | H23: =RevCalcs!R23 -> 12.74029397 | I23: =RevCalcs!S23 -> 14.48646032 | J23: =RevCalcs!T23 -> 15.39437247 | K23: =RevCalcs!U23 -> 16.04874826 | L23: 112.2374448 | M23: 14.0296806
A24: 15 | B24: Pension deficit costs | C24: =CHOOSE(UserInterface!$B$51,RevCalcs!M19+RevCalcs!M20,RevCalcs!M19+RevCalcs!M20,RevCalcs!M19+RevCalcs!M20,RevCalcs!M19+RevCalcs!M20,RevCalcs!M19+RevCalcs!M20,RevCalcs!M19+RevCalcs!M20,#REF!,#REF!,#REF!,#REF!,#REF!,#REF!,#REF!,#REF!) -> 3.054018149 | D24: =RevCalcs!N19+RevCalcs!N20 -> 0.7151078484 | E24: =RevCalcs!O19+RevCalcs!O20 -> 0.7151078484 | F24: =RevCalcs!P19+RevCalcs!P20 -> 0.7151078484 | G24: =RevCalcs!Q19+RevCalcs!Q20 -> 0.7151078484 | H24: =RevCalcs!R19+RevCalcs!R20 -> 0.7151078484 | I24: =RevCalcs!S19+RevCalcs!S20 -> 0.7151078484 | J24: =RevCalcs!T19+RevCalcs!T20 -> 0.7151078484 | K24: =RevCalcs!U19+RevCalcs!U20 -> 0.7151078484 | L24: 5.720862787 | M24: 0.7151078484
A25: 16 | B25: Notional equity issuance/gearing costs | C25: =RevCalcs!M21 -> 0 | D25: =RevCalcs!N21 -> 3.620365851 | E25: =RevCalcs!O21 -> 0 | F25: =RevCalcs!P21 -> 7.398038149 | G25: =RevCalcs!Q21 -> 0 | H25: =RevCalcs!R21 -> 0 | I25: =RevCalcs!S21 -> 0 | J25: =RevCalcs!T21 -> 0 | K25: =RevCalcs!U21 -> 0 | L25: 11.018404 | M25: =AVERAGE(D25:K25) -> 1.3773005
A26: 17 | B26: Return | C26: =CHOOSE(UserInterface!$B$51,RevCalcs!M39+RevCalcs!M18,RevCalcs!M39+RevCalcs!M18,RevCalcs!M39+RevCalcs!M18,RevCalcs!M39+RevCalcs!M18,RevCalcs!M39+RevCalcs!M18,RevCalcs!M39+RevCalcs!M18) -> 48.61525459 | D26: =RevCalcs!N39+RevCalcs!N18 -> 68.02881056 | E26: =RevCalcs!O39+RevCalcs!O18 -> 68.51559129 | F26: =RevCalcs!P39+RevCalcs!P18 -> 76.26907396 | G26: =RevCalcs!Q39+RevCalcs!Q18 -> 82.3738352 | H26: =RevCalcs!R39+RevCalcs!R18 -> 82.82767283 | I26: =RevCalcs!S39+RevCalcs!S18 -> 82.65980599 | J26: =RevCalcs!T39+RevCalcs!T18 -> 82.88757249 | K26: =RevCalcs!U39+RevCalcs!U18 -> 82.75481161 | L26: 626.3171739 | M26: 78.28964674
A27: 18 | B27: Total controllable costs | C27: =SUM(C19:C26) -> 164.6619783 | D27: 212.8286814 | E27: 219.1417077 | F27: 234.4111508 | G27: 228.1383214 | H27: 232.2345748 | I27: 236.3572066 | J27: 240.3175222 | K27: 238.9579614 | L27: 1842.387126 | M27: =AVERAGE(D27:K27) -> 230.2983908
A28: 19 | B28: =[2]RevCalcs!C12 -> Non-controllable operating costs | C28: =CHOOSE(UserInterface!$B$51,RevCalcs!M12,RevCalcs!M12,RevCalcs!M12,RevCalcs!M12,RevCalcs!M12,RevCalcs!M12,#REF!+#REF!,#REF!+#REF!,#REF!+#REF!,#REF!+#REF!,#REF!+#REF!,#REF!+#REF!,#REF!+#REF!,#REF!+#REF!) -> 24.1 | D28: =+RevCalcs!N12 -> 24.1 | E28: =+RevCalcs!O12 -> 24.1 | F28: =+RevCalcs!P12 -> 24.1 | G28: =+RevCalcs!Q12 -> 24.1 | H28: =+RevCalcs!R12 -> 24.1 | I28: =+RevCalcs!S12 -> 24.1 | J28: =+RevCalcs!T12 -> 24.1 | K28: =+RevCalcs!U12 -> 24.1 | L28: =SUM(D28:K28) -> 192.8 | M28: =AVERAGE(D28:K28) -> 24.1
B29: Price Control Revenue
A30: 20 | B30: Base revenue | C30: =SUM(C27:C29)-C31 -> 183.8116124 | D30: 231.5611237 | E30: 237.3756821 | F30: 252.3041045 | G30: 245.7397858 | H30: 249.5461495 | I30: 253.2604861 | J30: 256.9795264 | K30: 255.4425127 | L30: =SUM(D30:K30) -> 1982.209371 | M30: =AVERAGE(D30:K30) -> 247.7761713
A31: 21 | B31: Excluded services | C31: =Input!M217 -> 4.950365901 | D31: =Input!N217 -> 5.367557756 | E31: =Input!O217 -> 5.866025552 | F31: =Input!P217 -> 6.207046221 | G31: =Input!Q217 -> 6.498535594 | H31: =Input!R217 -> 6.788425335 | I31: =Input!S217 -> 7.19672046 | J31: =Input!T217 -> 7.437995851 | K31: =Input!U217 -> 7.615448702 | L31: =SUM(D31:K31) -> 52.97775547 | M31: =AVERAGE(D31:K31) -> 6.622219434
A32: 22 | B32: =[2]RevCalcs!C17 -> Transmission Investment Renewable Generation | C32: =RevCalcs!M17 -> 15.91159763 | D32: =RevCalcs!N17 -> 24.27849798 | E32: =RevCalcs!O17 -> 24.81475387 | F32: =RevCalcs!P17 -> 23.9697848 | G32: =RevCalcs!Q17 -> 12.46496422 | H32: =RevCalcs!R17 -> 19.9006324 | I32: =RevCalcs!S17 -> 19.25100454 | J32: =RevCalcs!T17 -> 18.60137668 | K32: =RevCalcs!U17 -> 17.95174882 | L32: =SUM(D32:K32) -> 161.2327633 | M32: =AVERAGE(D32:K32) -> 20.15409541
A33: 23 | B33: Total revenue | C33: =SUM(C30:C32) -> 204.6735759 | D33: 261.2071794 | E33: 268.0564615 | F33: 282.4809356 | G33: 264.7032856 | H33: 276.2352072 | I33: 279.7082111 | J33: 283.0188989 | K33: 281.0097102 | L33: =SUM(D33:K33) -> 2196.41989 | M33: =AVERAGE(D33:K33) -> 274.5524862
A34: 24 | B34: Annual change | D34: =D33/C33-1 -> 0.2762134937 | E34: 0.02622164576 | F34: 0.05381132746 | G34: -0.0629339813 | H34: 0.04356546446 | I34: 0.01257263303 | J34: 0.01183621958 | K34: -0.007099132732 | M34: =POWER(K33/C33,1/8)-1 -> 0.04041700942

Sheet Cover
B1: =MID(CELL("filename"),SEARCH("[",CELL("filename"))+1,SEARCH("]",CELL("filename"))-SEARCH("[",CELL("filename"))-1) -> Financial model 20120419 for Fast Track FP.xlsm
B2: DISCLAIMER: Ofgem does not accept any liability or responsibility whatsoever to any person who uses this model.
B3: Any person who operates this model does so entirely at their own risk.
B4: Ofgem reserves the right to make changes to the model.
B11: Diagrammatic overview of model
B12: Note: colour coding broadly as follows:
C13: input
C14: calculations
C15: output

Sheet UserInterface
B1: =MID(CELL("filename"),SEARCH("[",CELL("filename"))+1,SEARCH("]",CELL("filename"))-SEARCH("[",CELL("filename"))-1) -> Financial model 20120419 for Fast Track FP.xlsm | J1: This selects the company to be modelled and drives the choose functions later in the model
A2: Selection box for picking company | G2: =CHOOSE(UserInterface!$B$51,"SHETL","SPTL","NGET_TO","NGET_SO","NGGT_TO","NGGT_SO","East","London","North_West","West_Midlands","Northern","Scotland","Southern","Wales_&_West") -> SPTL | I2: =CHOOSE(UserInterface!$B$51,"E","E","E","E","GT","GT","GD","GD","GD","GD","GD","GD","GD","GD") -> E | J2: This is the 'live' company for the Results tab. A macro is set up to run all companies sequentially through the model and pasting a results sheet for each company to run the macro [CTRL R]
A4: Selection box for gearing scenarios | G4: =IF($B$62=1,B53,IF($B$62=2,B54,IF($B$62=3,B55,IF($B$62=4,B56,IF($B$62=5,B57,IF($B$62=6,B58,IF($B$62=7,B59,IF($B$62=8,B60,B61)))))))) -> gearing - user defined - annual change | I4: SHETL - | J4: ET new at 45, 16 years transition | L4: SHETL 55%, SPTL 55%
A6: Selection box for depreciation life ET | G6: =CHOOSE(UserInterface!$B$84,"ET at 20","ET all at 45","ET new at 45","SP 1 PC","user defined","ET new at 45 SOD") -> user defined | I6: SPTL - | J6: ET new at 45, 8 years transition | K6: This input changes the lives used in all "ET longer" depreciation sheets
A8: Selection box for depreciation life GD | G8: =CHOOSE(UserInterface!$B$91,"G straight line","G all at 45 SOD","G new at 45 SOD") -> G all at 45 SOD | I8: NGET_TO - | J8: ET new at 45, 16 years transition | K8: This changes the years at the top of the non-project GD accelerated sheet
A10: Selection box for backlog depreciation GD | I10: NGET_SO - | J10: 7 years throughout
A12: Selection box for step change Repex
A14: Selection box for cost of equity | G14: =IF($B$71=1,B66,IF($B$71=2,B67,IF($B$71=3,B68,IF($B$71=4,B69,IF($B$71=5,B70,"???"))))) -> user defined - annual change | J14: 7% for both
A16: Totex - capitalisation % | J16: SHETL 90%, SPTL 90%
A18: Allocation to tax pools | J18: different in detail - see next sheet
A20: Dividends
A22: Equity issue | J22: different in detail - see next sheet
A24: Cost of debt profile | J24: different choice set, but same value used
A26: Select input data
A28: Include TIRG in RAV
A30: Model TOI with separate life
A32: Base or Best? | G32: =IF(B138=1,"Base Case","Best Case") -> Base Case
B35: Source for company selection box
B37: SHETL
B38: SPTL
B39: NGET_TO
B40: NGET_SO
B41: NGGT_TO
B42: NGGT_SO
B43: East
B44: London
B45: North_West
B46: West_Midlands
B47: Northern
B48: Scotland
B49: Southern
B50: Wales_&_West
B51: 2
B52: Gearing
B53: TPCR4/GDPCR 60%/62.5% gearing
B54: Scenario 1: gearing 60:50:70:70:70%
B55: Scenario 2: gearing 40:40:70:80:80%
B56: Scenario 3: gearing 60:50:70:80:80%
B57: 0.5
B58: 0.6
B59: 0.7
B60: user defined
B61: gearing - user defined - annual change
B62: 9
B65: Source for cost of equity scenario
B66: TPCR4/GDPCR 7.0%/7.25% CoE
B67: Scenario A: 6.0% CoE
B68: Scenario B: 7.2% CoE
B69: user defined
B70: user defined - annual change
B71: 5
B72: Source for repex
B73: Immediate change-over
B74: 1 PC change-over
B75: 2 PC change-over
B76: 1
B77: Source for ET asset life
B78: ET at 20
B79: ET all at 45
B80: ET new at 45
B81: SP 1 PC
B82: user defined
B83: ET new at 45 SOD
B84: 5
B85: Source for GD asset life
B86: GD straight line
B87: GD all at 45 SOD
B88: GD new at 45 SOD
B91: 2
B92: GD backlog depreciation
B93: Exclude backlog depreciation
B94: Include backlog depreciation
B95: 2
B96: Totex Capitalisation %
B97: based on short term forecasts
B98: user defined
B99: 2
B100: Allocation to tax pools
B101: Ofgem working assumptions
B102: user defined
B103: 2
B104: Dividends
B105: Ofgem working assumptions
B106: user defined
B107: 1
B108: Equity issue
B109: Ofgem working assumptions
B110: user defined
B111: 2
B112: Cost of debt profile
B113: Index latest value
B114: TPCR4RO/GDPCR
B115: User scenario 1
B116: User scenario 2
B117: User scenario 3
B118: 1
B119: Select input data
B120: Operator view
B121: Ofgem view
B123: 2
B124: Include TIRG in RAV
B125: exclude TIRG
B126: include TIRG
B128: 2
B129: Model TOI with separate life
B130: TOI normal life
B131: TOI own life
B133: 1
B134: Base or Best?
B135: Base
B136: Best
B138: 1

Sheet User input
A1: User interface tab | D1: Selections are detailed on this tab with the options for each selection
D2: The drop down selections are scenarios - additional scenarios can be added by Ofgem with prior agreement
A3: User input tab | D3: Things to tweak for transition
A5: 1 | B5: ET | C5: Asset life transition | L5: Selection box for depreciation life ET | P5: User interface tab
B6: option 1 | C6: ET at 20
B7: option 2 | C7: ET all at 45
B8: option 3 | C8: ET new at 45 | J8: TOI Depreciation lives | M8: 20 | N8: =N12 -> 23.125 | O8: =O12 -> 26.25 | P8: 29.375 | Q8: 32.5 | R8: 35.625 | S8: 38.75 | T8: 41.875 | U8: 45 | V8: 45
B9: option 4 | C9: SP 1 PC | D9: Allows an equal percentage change to the deprecation rate per year to transition from 20 to 45 years in 1 Price Control
B10: option 5 | C10: user defined as below
C11: Year ending 31 March | E11: 2005-03-31 | F11: 2006-03-31 | G11: 2007-03-31 | H11: 2008-03-31 | I11: 2009-03-31 | J11: 2010-03-31 | K11: 2011-03-31 | L11: 2012-03-31 | M11: 2013-03-31 | N11: 2014-03-31 | O11: 2015-03-31 | P11: 2016-03-31 | Q11: 2017-03-31 | R11: 2018-03-31 | S11: 2019-03-31 | T11: 2020-03-31 | U11: 2021-03-31 | V11: 2022-03-31 | W11: 2023-03-31 | X11: 2024-03-31 | Y11: 2025-03-31 | Z11: 2026-03-31 | AA11: 2027-03-31 | AB11: 2028-03-31 | AC11: 2029-03-31 | AD11: 2030-03-31 | AE11: 2031-03-31 | AF11: 2032-03-31 | AG11: 2033-03-31 | AH11: 2034-03-31 | AI11: 2035-03-31 | AJ11: 2036-03-31 | AK11: 2037-03-31 | AL11: 2038-03-31 | AM11: 2039-03-31 | AN11: 2040-03-31 | AO11: 2041-03-31 | AP11: 2042-03-31 | AQ11: 2043-03-31 | AR11: 2044-03-31 | AS11: 2045-03-31 | AT11: 2046-03-31 | AU11: 2047-03-31 | AV11: 2048-03-31 | AW11: 2049-03-31 | AX11: 2050-03-31
M12: 20 | N12: =CHOOSE(UserInterface!$B$51,N13,N14,N15,45,45,45,45,45,45,45,45,45,45,45) -> 23.125 | O12: =CHOOSE(UserInterface!$B$51,O13,O14,O15,45,45,45,45,45,45,45,45,45,45,45) -> 26.25 | P12: =CHOOSE(UserInterface!$B$51,P13,P14,P15,45,45,45,45,45,45,45,45,45,45,45) -> 29.375 | Q12: =CHOOSE(UserInterface!$B$51,Q13,Q14,Q15,45,45,45,45,45,45,45,45,45,45,45) -> 32.5 | R12: =CHOOSE(UserInterface!$B$51,R13,R14,R15,45,45,45,45,45,45,45,45,45,45,45) -> 35.625 | S12: =CHOOSE(UserInterface!$B$51,S13,S14,S15,45,45,45,45,45,45,45,45,45,45,45) -> 38.75 | T12: =CHOOSE(UserInterface!$B$51,T13,T14,T15,45,45,45,45,45,45,45,45,45,45,45) -> 41.875 | U12: =CHOOSE(UserInterface!$B$51,U13,U14,U15,45,45,45,45,45,45,45,45,45,45,45) -> 45 | V12: =CHOOSE(UserInterface!$B$51,V13,V14,V15,45,45,45,45,45,45,45,45,45,45,45) -> 45 | W12: =CHOOSE(UserInterface!$B$51,W13,W14,W15,45,45,45,45,45,45,45,45,45,45,45) -> 45 | X12: =CHOOSE(UserInterface!$B$51,X13,X14,X15,45,45,45,45,45,45,45,45,45,45,45) -> 45 | Y12: =CHOOSE(UserInterface!$B$51,Y13,Y14,Y15,45,45,45,45,45,45,45,45,45,45,45) -> 45 | Z12: =CHOOSE(UserInterface!$B$51,Z13,Z14,Z15,45,45,45,45,45,45,45,45,45,45,45) -> 45 | AA12: =CHOOSE(UserInterface!$B$51,AA13,AA14,AA15,45,45,45,45,45,45,45,45,45,45,45) -> 45 | AB12: =CHOOSE(UserInterface!$B$51,AB13,AB14,AB15,45,45,45,45,45,45,45,45,45,45,45) -> 45 | AC12: =CHOOSE(UserInterface!$B$51,AC13,AC14,AC15,45,45,45,45,45,45,45,45,45,45,45) -> 45 | AD12: =CHOOSE(UserInterface!$B$51,AD13,AD14,AD15,45,45,45,45,45,45,45,45,45,45,45) -> 45 | AE12: =CHOOSE(UserInterface!$B$51,AE13,AE14,AE15,45,45,45,45,45,45,45,45,45,45,45) -> 45 | AF12: =CHOOSE(UserInterface!$B$51,AF13,AF14,AF15,45,45,45,45,45,45,45,45,45,45,45) -> 45 | AG12: =CHOOSE(UserInterface!$B$51,AG13,AG14,AG15,45,45,45,45,45,45,45,45,45,45,45) -> 45 | AH12: =CHOOSE(UserInterface!$B$51,AH13,AH14,AH15,45,45,45,45,45,45,45,45,45,45,45) -> 45 | AI12: =CHOOSE(UserInterface!$B$51,AI13,AI14,AI15,45,45,45,45,45,45,45,45,45,45,45) -> 45 | AJ12: =CHOOSE(UserInterface!$B$51,AJ13,AJ14,AJ15,45,45,45,45,45,45,45,45,45,45,45) -> 45 | AK12: =CHOOSE(UserInterface!$B$51,AK13,AK14,AK15,45,45,45,45,45,45,45,45,45,45,45) -> 45 | AL12: =CHOOSE(UserInterface!$B$51,AL13,AL14,AL15,45,45,45,45,45,45,45,45,45,45,45) -> 45 | AM12: =CHOOSE(UserInterface!$B$51,AM13,AM14,AM15,45,45,45,45,45,45,45,45,45,45,45) -> 45 | AN12: =CHOOSE(UserInterface!$B$51,AN13,AN14,AN15,45,45,45,45,45,45,45,45,45,45,45) -> 45 | AO12: =CHOOSE(UserInterface!$B$51,AO13,AO14,AO15,45,45,45,45,45,45,45,45,45,45,45) -> 45 | AP12: =CHOOSE(UserInterface!$B$51,AP13,AP14,AP15,45,45,45,45,45,45,45,45,45,45,45) -> 45 | AQ12: =CHOOSE(UserInterface!$B$51,AQ13,AQ14,AQ15,45,45,45,45,45,45,45,45,45,45,45) -> 45 | AR12: =CHOOSE(UserInterface!$B$51,AR13,AR14,AR15,45,45,45,45,45,45,45,45,45,45,45) -> 45 | AS12: =CHOOSE(UserInterface!$B$51,AS13,AS14,AS15,45,45,45,45,45,45,45,45,45,45,45) -> 45 | AT12: =CHOOSE(UserInterface!$B$51,AT13,AT14,AT15,45,45,45,45,45,45,45,45,45,45,45) -> 45 | AU12: =CHOOSE(UserInterface!$B$51,AU13,AU14,AU15,45,45,45,45,45,45,45,45,45,45,45) -> 45 | AV12: =CHOOSE(UserInterface!$B$51,AV13,AV14,AV15,45,45,45,45,45,45,45,45,45,45,45) -> 45 | AW12: =CHOOSE(UserInterface!$B$51,AW13,AW14,AW15,45,45,45,45,45,45,45,45,45,45,45) -> 45 | AX12: =CHOOSE(UserInterface!$B$51,AX13,AX14,AX15,45,45,45,45,45,45,45,45,45,45,45) -> 45
L13: SHETL | N13: 21.5625 | O13: 23.125 | P13: 24.6875 | Q13: 26.25 | R13: 27.8125 | S13: 29.375 | T13: 30.9375 | U13: 32.5 | V13: 34.0625 | W13: 35.625 | X13: 37.1875 | Y13: 38.75 | Z13: 40.3125 | AA13: 41.875 | AB13: 43.4375 | AC13: 45 | AD13: ='[3]User input'!AD12 -> 45 | AE13: ='[3]User input'!AE12 -> 45 | AF13: ='[3]User input'!AF12 -> 45 | AG13: ='[3]User input'!AG12 -> 45 | AH13: ='[3]User input'!AH12 -> 45 | AI13: ='[3]User input'!AI12 -> 45 | AJ13: ='[3]User input'!AJ12 -> 45 | AK13: ='[3]User input'!AK12 -> 45 | AL13: ='[3]User input'!AL12 -> 45 | AM13: ='[3]User input'!AM12 -> 45 | AN13: ='[3]User input'!AN12 -> 45 | AO13: ='[3]User input'!AO12 -> 45 | AP13: ='[3]User input'!AP12 -> 45 | AQ13: ='[3]User input'!AQ12 -> 45 | AR13: ='[3]User input'!AR12 -> 45 | AS13: ='[3]User input'!AS12 -> 45 | AT13: ='[3]User input'!AT12 -> 45 | AU13: ='[3]User input'!AU12 -> 45 | AV13: ='[3]User input'!AV12 -> 45 | AW13: ='[3]User input'!AW12 -> 45 | AX13: ='[3]User input'!AX12 -> 45 | AY13: ='[3]User input'!AY12 -> 0
L14: SPTL | N14: =+'[4]User input'!N12 -> 23.125 | O14: =+'[4]User input'!O12 -> 26.25 | P14: =+'[4]User input'!P12 -> 29.375 | Q14: =+'[4]User input'!Q12 -> 32.5 | R14: =+'[4]User input'!R12 -> 35.625 | S14: =+'[4]User input'!S12 -> 38.75 | T14: =+'[4]User input'!T12 -> 41.875 | U14: =+'[4]User input'!U12 -> 45 | V14: =U14 -> 45 | W14: =V14 -> 45 | X14: 45 | Y14: 45 | Z14: 45 | AA14: 45 | AB14: 45 | AC14: 45 | AD14: 45 | AE14: 45 | AF14: 45 | AG14: 45 | AH14: 45 | AI14: 45 | AJ14: 45 | AK14: 45 | AL14: 45 | AM14: 45 | AN14: 45 | AO14: 45 | AP14: 45 | AQ14: 45 | AR14: 45 | AS14: 45 | AT14: 45 | AU14: 45 | AV14: 45 | AW14: 45 | AX14: 45
L15: NGET_TO | N15: ='[5]Alternative Depreciation'!AB10 -> 21.5625 | O15: ='[5]Alternative Depreciation'!AC10 -> 23.125 | P15: ='[5]Alternative Depreciation'!AD10 -> 24.6875 | Q15: ='[5]Alternative Depreciation'!AE10 -> 26.25 | R15: ='[5]Alternative Depreciation'!AF10 -> 27.8125 | S15: ='[5]Alternative Depreciation'!AG10 -> 29.375 | T15: ='[5]Alternative Depreciation'!AH10 -> 30.9375 | U15: ='[5]Alternative Depreciation'!AI10 -> 32.5 | V15: ='[5]Alternative Depreciation'!AJ10 -> 34.0625 | W15: ='[5]Alternative Depreciation'!AK10 -> 35.625 | X15: ='[5]Alternative Depreciation'!AL10 -> 37.1875 | Y15: ='[5]Alternative Depreciation'!AM10 -> 38.75 | Z15: ='[5]Alternative Depreciation'!AN10 -> 40.3125 | AA15: ='[5]Alternative Depreciation'!AO10 -> 41.875 | AB15: ='[5]Alternative Depreciation'!AP10 -> 43.4375 | AC15: ='[5]Alternative Depreciation'!AQ10 -> 45 | AD15: =AC15 -> 45 | AE15: 45 | AF15: 45 | AG15: 45 | AH15: 45 | AI15: 45 | AJ15: 45 | AK15: 45 | AL15: 45 | AM15: 45 | AN15: 45 | AO15: 45 | AP15: 45 | AQ15: 45 | AR15: 45 | AS15: 45 | AT15: 45 | AU15: 45 | AV15: 45 | AW15: 45 | AX15: 45
L16: NGET_SO | N16: ='[5]ESO RAV'!AB12 -> 7 | O16: ='[5]ESO RAV'!AC12 -> 7 | P16: ='[5]ESO RAV'!AD12 -> 7 | Q16: ='[5]ESO RAV'!AE12 -> 7 | R16: ='[5]ESO RAV'!AF12 -> 7 | S16: ='[5]ESO RAV'!AG12 -> 7 | T16: ='[5]ESO RAV'!AH12 -> 7 | U16: ='[5]ESO RAV'!AI12 -> 7 | V16: ='[5]ESO RAV'!AJ12 -> 7 | W16: ='[5]ESO RAV'!AK12 -> 7 | X16: ='[5]ESO RAV'!AL12 -> 7 | Y16: ='[5]ESO RAV'!AM12 -> 7 | Z16: ='[5]ESO RAV'!AN12 -> 7 | AA16: ='[5]ESO RAV'!AO12 -> 7 | AB16: ='[5]ESO RAV'!AP12 -> 7 | AC16: ='[5]ESO RAV'!AQ12 -> 7 | AD16: =AC16 -> 7 | AE16: =AD16 -> 7 | AF16: 7 | AG16: 7 | AH16: 7 | AI16: 7 | AJ16: 7 | AK16: 7 | AL16: 7 | AM16: 7 | AN16: 7 | AO16: 7 | AP16: 7 | AQ16: 7 | AR16: 7 | AS16: 7 | AT16: 7 | AU16: 7 | AV16: 7 | AW16: 7 | AX16: 7
A19: 2 | B19: GD | C19: Depreciation catch up - the additional depreciation on asset additions 2002-2013 | L19: Selection box for depreciation life GD | P19: User interface tab
C20: option 1 | D20: leave in RAV (add back in) and allow to work out in normal way
C21: option 2 | D21: leave in RAV and release over a shorter period
A22: 3 | B22: GD | C22: Repex - Transition to 100% capitalisation | L22: Selection box for step change Repex | P22: User interface tab
C23: option 1 | D23: immediate change
C24: option 2 | D24: 1 PC change-over | F24: Allows an equal percentage change to the capitalisation rate rate per year to transition from 50% to 100% years in 1 Price Control
C25: option 3 | D25: 2 PC change-over | F25: Allows an equal percentage change to the capitalisation rate rate per year to transition from 50% to 100% years in 2 Price Controls
A26: 4 | B26: All | C26: Totex - capitalisation % | L26: Totex - capitalisation % | P26: User interface tab
C27: option 1 | D27: based on short term forecasts
C28: option 2 | D28: user defined - enter appropriate values
C29: Year ending 31 March | E29: 2005-03-31 | F29: 2006-03-31 | G29: 2007-03-31 | H29: 2008-03-31 | I29: 2009-03-31 | J29: 2010-03-31 | K29: 2011-03-31 | L29: 2012-03-31 | M29: 2013-03-31 | N29: 2014-03-31 | O29: 2015-03-31 | P29: 2016-03-31 | Q29: 2017-03-31 | R29: 2018-03-31 | S29: 2019-03-31 | T29: 2020-03-31 | U29: 2021-03-31 | V29: 2022-03-31 | W29: 2023-03-31 | X29: 2024-03-31 | Y29: 2025-03-31 | Z29: 2026-03-31 | AA29: 2027-03-31 | AB29: 2028-03-31 | AC29: 2029-03-31 | AD29: 2030-03-31 | AE29: 2031-03-31 | AF29: 2032-03-31 | AG29: 2033-03-31 | AH29: 2034-03-31 | AI29: 2035-03-31 | AJ29: 2036-03-31 | AK29: 2037-03-31 | AL29: 2038-03-31 | AM29: 2039-03-31 | AN29: 2040-03-31 | AO29: 2041-03-31 | AP29: 2042-03-31 | AQ29: 2043-03-31 | AR29: 2044-03-31 | AS29: 2045-03-31 | AT29: 2046-03-31 | AU29: 2047-03-31 | AV29: 2048-03-31 | AW29: 2049-03-31 | AX29: 2050-03-31
B30: user defined | N30: =CHOOSE(UserInterface!$B$51,N31,N32,N33,N34,N35,N36,N37,N38,N39,N40,N41,N42,N43,N44) -> 0.9 | O30: =CHOOSE(UserInterface!$B$51,O31,O32,O33,O34,O35,O36,O37,O38,O39,O40,O41,O42,O43,O44) -> 0.9 | P30: =CHOOSE(UserInterface!$B$51,P31,P32,P33,P34,P35,P36,P37,P38,P39,P40,P41,P42,P43,P44) -> 0.9 | Q30: =CHOOSE(UserInterface!$B$51,Q31,Q32,Q33,Q34,Q35,Q36,Q37,Q38,Q39,Q40,Q41,Q42,Q43,Q44) -> 0.9 | R30: =CHOOSE(UserInterface!$B$51,R31,R32,R33,R34,R35,R36,R37,R38,R39,R40,R41,R42,R43,R44) -> 0.9 | S30: =CHOOSE(UserInterface!$B$51,S31,S32,S33,S34,S35,S36,S37,S38,S39,S40,S41,S42,S43,S44) -> 0.9 | T30: =CHOOSE(UserInterface!$B$51,T31,T32,T33,T34,T35,T36,T37,T38,T39,T40,T41,T42,T43,T44) -> 0.9 | U30: =CHOOSE(UserInterface!$B$51,U31,U32,U33,U34,U35,U36,U37,U38,U39,U40,U41,U42,U43,U44) -> 0.9 | V30: =U30 -> 0.9 | W30: =V30 -> 0.9 | X30: 0.9 | Y30: 0.9 | Z30: 0.9 | AA30: 0.9 | AB30: 0.9 | AC30: 0.9 | AD30: 0.9 | AE30: 0.9 | AF30: 0.9 | AG30: 0.9 | AH30: 0.9 | AI30: 0.9 | AJ30: 0.9 | AK30: 0.9 | AL30: 0.9 | AM30: 0.9 | AN30: 0.9 | AO30: 0.9 | AP30: 0.9 | AQ30: 0.9 | AR30: 0.9 | AS30: 0.9 | AT30: 0.9 | AU30: 0.9 | AV30: 0.9 | AW30: 0.9 | AX30: 0.9
A31: Things to tweak from common assumptions | L31: SHETL | N31: 0.9 | O31: =N31 -> 0.9 | P31: =O31 -> 0.9 | Q31: 0.9 | R31: 0.9 | S31: 0.9 | T31: 0.9 | U31: 0.9
L32: SPTL | N32: 0.9 | O32: =N32 -> 0.9 | P32: 0.9 | Q32: 0.9 | R32: 0.9 | S32: 0.9 | T32: 0.9 | U32: 0.9
L33: NGET_TO | N33: 0.8624707235 | O33: 0.8624707235 | P33: 0.8624707235 | Q33: 0.8624707235 | R33: 0.8624707235 | S33: 0.8624707235 | T33: 0.8624707235 | U33: 0.8624707235
L34: NGET_SO | N34: 0.2995702476 | O34: 0.2995702476 | P34: 0.2995702476 | Q34: 0.2995702476 | R34: 0.2995702476 | S34: 0.2995702476 | T34: 0.2995702476 | U34: 0.2995702476
L35: NGGT_TO | N35: 0.7194 | O35: 0.7194 | P35: 0.7194 | Q35: 0.7194 | R35: 0.7194 | S35: 0.7194 | T35: 0.7194 | U35: 0.7194
L36: NGGT_SO | N36: 0.4253710601 | O36: 0.4253710601 | P36: 0.4253710601 | Q36: 0.4253710601 | R36: 0.4253710601 | S36: 0.4253710601 | T36: 0.4253710601 | U36: 0.4253710601
B37: Derived from: | D37: East of England - RIIO-GD1 - Financial Model Submission 30112011.xlsm\User input | L37: East | N37: 0.5764161212 | O37: 0.5764161212 | P37: 0.5764161212 | Q37: 0.5764161212 | R37: 0.5764161212 | S37: 0.5764161212 | T37: 0.5764161212 | U37: 0.5764161212
D38: London - RIIO-GD1 - Financial Model Submission 30112011.xlsm\User input | L38: London | N38: 0.5491349281 | O38: 0.5491349281 | P38: 0.5491349281 | Q38: 0.5491349281 | R38: 0.5491349281 | S38: 0.5491349281 | T38: 0.5491349281 | U38: 0.5491349281
D39: North West - RIIO-GD1 - Financial Model Submission 30112011.xlsm\User input | L39: North_West | N39: 0.5485780327 | O39: 0.5485780327 | P39: 0.5485780327 | Q39: 0.5485780327 | R39: 0.5485780327 | S39: 0.5485780327 | T39: 0.5485780327 | U39: 0.5485780327
D40: West Midlands - RIIO-GD1 - Financial Model Submission 30112011.xlsm\User input | L40: West_Midlands | N40: 0.5588546606 | O40: 0.5588546606 | P40: 0.5588546606 | Q40: 0.5588546606 | R40: 0.5588546606 | S40: 0.5588546606 | T40: 0.5588546606 | U40: 0.5588546606
D41: Northern Gas Networks - RIIO-GD1 - Financial Model Submission - 17112011.xlsm\User input | L41: Northern | N41: 0.4534274988 | O41: 0.5662483591 | P41: 0.5339596529 | Q41: 0.5492308929 | R41: 0.5230679995 | S41: 0.5371452514 | T41: 0.5362240303 | U41: 0.5463971342
D42: Scotland Gas Netowrks - RIIO-GD1 - Financial Model Submission 30112011.xlsm\User input | L42: Scotland | N42: 0.64 | O42: 0.64 | P42: 0.64 | Q42: 0.64 | R42: 0.64 | S42: 0.64 | T42: 0.64 | U42: 0.64
D43: Southern Gas Netowrks - RIIO-GD1 - Financial Model Submission 30112011.xlsm\User input | L43: Southern | N43: 0.64 | O43: 0.64 | P43: 0.64 | Q43: 0.64 | R43: 0.64 | S43: 0.64 | T43: 0.64 | U43: 0.64
D44: Wales and west Utilities - RIIO-GD1 - Financial Model Submission 30112011.xlsm\User input | L44: Wales_&_West | N44: 0.4573049301 | O44: 0.4744043064 | P44: 0.4674915362 | Q44: 0.5012767458 | R44: 0.5293973793 | S44: 0.546517734 | T44: 0.5676293211 | U44: 0.6010263603
A45: 5 | B45: All | C45: Cost of equity | L45: Selection box for equity risk premium | P45: User interface tab
B46: option 1 | C46: TPCR4/GDPCR 4.5%/4.75% ERP
B47: option 2 | C47: Scenario A: ERP 4.0%
B48: option 3 | C48: Scenario B: ERP -0.25%
B49: option 4 | C49: user defined - enter appropriate values | I49: option 5 | J49: user defined - annual change | M49: 2013-03-31 | N49: 2014-03-31 | O49: 2015-03-31 | P49: 2016-03-31 | Q49: 2017-03-31 | R49: 2018-03-31 | S49: 2019-03-31 | T49: 2020-03-31 | U49: 2021-03-31
N50: =CHOOSE(UserInterface!$B$51,N51,N52,N53,N54,N55,N56,N57,N58,N59,N60,N61,N62,N63,N64,N65) -> 0.07 | O50: =CHOOSE(UserInterface!$B$51,O51,O52,O53,O54,O55,O56,O57,O58,O59,O60,O61,O62,O63,O64,O65) -> 0.07 | P50: =CHOOSE(UserInterface!$B$51,P51,P52,P53,P54,P55,P56,P57,P58,P59,P60,P61,P62,P63,P64,P65) -> 0.07 | Q50: =CHOOSE(UserInterface!$B$51,Q51,Q52,Q53,Q54,Q55,Q56,Q57,Q58,Q59,Q60,Q61,Q62,Q63,Q64,Q65) -> 0.07 | R50: =CHOOSE(UserInterface!$B$51,R51,R52,R53,R54,R55,R56,R57,R58,R59,R60,R61,R62,R63,R64,R65) -> 0.07 | S50: =CHOOSE(UserInterface!$B$51,S51,S52,S53,S54,S55,S56,S57,S58,S59,S60,S61,S62,S63,S64,S65) -> 0.07 | T50: =CHOOSE(UserInterface!$B$51,T51,T52,T53,T54,T55,T56,T57,T58,T59,T60,T61,T62,T63,T64,T65) -> 0.07 | U50: =CHOOSE(UserInterface!$B$51,U51,U52,U53,U54,U55,U56,U57,U58,U59,U60,U61,U62,U63,U64,U65) -> 0.07
C51: SHETL | D51: 0.07 | L51: SHETL | N51: 0.07 | O51: =N51 -> 0.07 | P51: 0.07 | Q51: 0.07 | R51: =Q51 -> 0.07 | S51: =R51 -> 0.07 | T51: 0.07 | U51: 0.07
C52: SPTL | D52: 0.07 | L52: SPTL | N52: =D52 -> 0.07 | O52: =N52 -> 0.07 | P52: 0.07 | Q52: 0.07 | R52: 0.07 | S52: 0.07 | T52: 0.07 | U52: 0.07
C53: NGET_TO | D53: 0.07 | L53: NGET_TO | N53: 0.075 | O53: 0.075 | P53: 0.075 | Q53: 0.075 | R53: 0.075 | S53: 0.075 | T53: 0.075 | U53: 0.075
C54: NGET_SO | D54: 0.07 | L54: NGET_SO | N54: 0.075 | O54: 0.075 | P54: 0.075 | Q54: 0.075 | R54: 0.075 | S54: 0.075 | T54: 0.075 | U54: 0.075
C55: NGGT_TO | D55: =[6]Scenarios!$E$11 -> 0.075 | L55: NGGT_TO | N55: =[6]Scenarios!$E$11 -> 0.075 | O55: =[6]Scenarios!$E$11 -> 0.075 | P55: =[6]Scenarios!$E$11 -> 0.075 | Q55: =[6]Scenarios!$E$11 -> 0.075 | R55: =[6]Scenarios!$E$11 -> 0.075 | S55: =[6]Scenarios!$E$11 -> 0.075 | T55: =[6]Scenarios!$E$11 -> 0.075 | U55: =[6]Scenarios!$E$11 -> 0.075
C56: NGGT_SO | D56: =[6]Scenarios!$E$11 -> 0.075 | L56: NGGT_SO | N56: =[6]Scenarios!$E$11 -> 0.075 | O56: =[6]Scenarios!$E$11 -> 0.075 | P56: =[6]Scenarios!$E$11 -> 0.075 | Q56: =[6]Scenarios!$E$11 -> 0.075 | R56: =[6]Scenarios!$E$11 -> 0.075 | S56: =[6]Scenarios!$E$11 -> 0.075 | T56: =[6]Scenarios!$E$11 -> 0.075 | U56: =[6]Scenarios!$E$11 -> 0.075
C57: East | D57: 0.072 | L57: East | N57: 0.072 | O57: 0.072 | P57: 0.072 | Q57: 0.072 | R57: 0.072 | S57: 0.072 | T57: 0.072 | U57: 0.072
C58: London | D58: 0.072 | L58: London | N58: 0.072 | O58: 0.072 | P58: 0.072 | Q58: 0.072 | R58: 0.072 | S58: 0.072 | T58: 0.072 | U58: 0.072
C59: North_West | D59: 0.072 | L59: North_West | N59: 0.072 | O59: 0.072 | P59: 0.072 | Q59: 0.072 | R59: 0.072 | S59: 0.072 | T59: 0.072 | U59: 0.072
C60: West_Midlands | D60: 0.072 | L60: West_Midlands | N60: 0.072 | O60: 0.072 | P60: 0.072 | Q60: 0.072 | R60: 0.072 | S60: 0.072 | T60: 0.072 | U60: 0.072
C61: Northern | D61: 0.072 | L61: Northern | N61: 0.072 | O61: 0.072 | P61: 0.072 | Q61: 0.072 | R61: 0.072 | S61: 0.072 | T61: 0.072 | U61: 0.072
C62: Scotland | D62: 0.075 | L62: Scotland | N62: 0.075 | O62: 0.075 | P62: 0.075 | Q62: 0.075 | R62: 0.075 | S62: 0.075 | T62: 0.075 | U62: 0.075
C63: Southern | D63: 0.075 | L63: Southern | N63: 0.075 | O63: 0.075 | P63: 0.075 | Q63: 0.075 | R63: 0.075 | S63: 0.075 | T63: 0.075 | U63: 0.075
C64: Wales_&_West | D64: 0.075 | L64: Wales_&_West | N64: 0.075 | O64: 0.075 | P64: 0.075 | Q64: 0.075 | R64: 0.075 | S64: 0.075 | T64: 0.075 | U64: 0.075
L65: default | N65: 0.07 | O65: 0.07 | P65: 0.07 | Q65: 0.07 | R65: 0.07 | S65: 0.07 | T65: 0.07 | U65: 0.07
A67: 6 | B67: All | C67: Notional Gearing | L67: Selection box for gearing scenarios | P67: User interface tab
B68: option 1 | C68: TPCR4/GDPCR 60%/62.5% gearing
B69: option 2 | C69: Scenario 1: gearing 60:50:70:70:70%
B70: option 3 | C70: Scenario 2: gearing 40:40:70:80:80%
B71: option 4 | C71: Scenario 3: gearing 60:50:70:80:80%
B72: option 5 | C72: 0.5
B73: option 6 | C73: 0.6
B74: option 7 | C74: 0.7
B75: option 8 | C75: user defined - enter appropriate values | I75: option 9 | J75: user defined - annual change | N75: 2014-03-31 | O75: 2015-03-31 | P75: 2016-03-31 | Q75: 2017-03-31 | R75: 2018-03-31 | S75: 2019-03-31 | T75: 2020-03-31 | U75: 2021-03-31
N76: =CHOOSE(UserInterface!$B$51,N77,N78,N79,N80,N81,N82,N83,N84,N85,N86,N87,N88,N89,N90,N91) -> 0.55 | O76: =CHOOSE(UserInterface!$B$51,O77,O78,O79,O80,O81,O82,O83,O84,O85,O86,O87,O88,O89,O90,O91) -> 0.55 | P76: =CHOOSE(UserInterface!$B$51,P77,P78,P79,P80,P81,P82,P83,P84,P85,P86,P87,P88,P89,P90,P91) -> 0.55 | Q76: =CHOOSE(UserInterface!$B$51,Q77,Q78,Q79,Q80,Q81,Q82,Q83,Q84,Q85,Q86,Q87,Q88,Q89,Q90,Q91) -> 0.55 | R76: =CHOOSE(UserInterface!$B$51,R77,R78,R79,R80,R81,R82,R83,R84,R85,R86,R87,R88,R89,R90,R91) -> 0.55 | S76: =CHOOSE(UserInterface!$B$51,S77,S78,S79,S80,S81,S82,S83,S84,S85,S86,S87,S88,S89,S90,S91) -> 0.55 | T76: =CHOOSE(UserInterface!$B$51,T77,T78,T79,T80,T81,T82,T83,T84,T85,T86,T87,T88,T89,T90,T91) -> 0.55 | U76: =CHOOSE(UserInterface!$B$51,U77,U78,U79,U80,U81,U82,U83,U84,U85,U86,U87,U88,U89,U90,U91) -> 0.55
C77: SHETL | D77: 0.6 | M77: SHETL | N77: 0.55 | O77: =N77 -> 0.55 | P77: =O77 -> 0.55 | Q77: 0.55 | R77: 0.55 | S77: 0.55 | T77: 0.55 | U77: 0.55
C78: SPTL | D78: ='[4]User input'!$D$48 -> 0.5 | M78: SPTL | N78: 0.55 | O78: =N78 -> 0.55 | P78: =O78 -> 0.55 | Q78: 0.55 | R78: 0.55 | S78: 0.55 | T78: 0.55 | U78: 0.55
C79: NGET_TO | D79: 0.6 | M79: NGET_TO | N79: 0.55 | O79: 0.55 | P79: 0.55 | Q79: 0.55 | R79: 0.55 | S79: 0.55 | T79: 0.55 | U79: 0.55
C80: NGET_SO | D80: 0.6 | M80: NGET_SO | N80: 0.55 | O80: 0.55 | P80: 0.55 | Q80: 0.55 | R80: 0.55 | S80: 0.55 | T80: 0.55 | U80: 0.55
C81: NGGT_TO | D81: 0.6 | M81: NGGT_TO | N81: =[6]Scenarios!$E$7 -> 0.55 | O81: =[6]Scenarios!$E$7 -> 0.55 | P81: =[6]Scenarios!$E$7 -> 0.55 | Q81: =[6]Scenarios!$E$7 -> 0.55 | R81: =[6]Scenarios!$E$7 -> 0.55 | S81: =[6]Scenarios!$E$7 -> 0.55 | T81: =[6]Scenarios!$E$7 -> 0.55 | U81: =[6]Scenarios!$E$7 -> 0.55
C82: NGGT_SO | D82: 0.6 | M82: NGGT_SO | N82: 0.55 | O82: 0.55 | P82: 0.55 | Q82: 0.55 | R82: 0.55 | S82: 0.55 | T82: 0.55 | U82: 0.55
C83: East | D83: 0.53 | M83: East | N83: 0.53 | O83: 0.53 | P83: 0.53 | Q83: 0.53 | R83: 0.53 | S83: 0.53 | T83: 0.53 | U83: 0.53
C84: London | D84: 0.53 | M84: London | N84: 0.53 | O84: 0.53 | P84: 0.53 | Q84: 0.53 | R84: 0.53 | S84: 0.53 | T84: 0.53 | U84: 0.53
C85: North_West | D85: 0.53 | M85: North_West | N85: 0.53 | O85: 0.53 | P85: 0.53 | Q85: 0.53 | R85: 0.53 | S85: 0.53 | T85: 0.53 | U85: 0.53
C86: West_Midlands | D86: 0.53 | M86: West_Midlands | N86: 0.53 | O86: 0.53 | P86: 0.53 | Q86: 0.53 | R86: 0.53 | S86: 0.53 | T86: 0.53 | U86: 0.53
C87: Northern | D87: 0.625 | M87: Northern | N87: 0.625 | O87: 0.625 | P87: 0.625 | Q87: 0.625 | R87: 0.625 | S87: 0.625 | T87: 0.625 | U87: 0.625
C88: Scotland | D88: 0.625 | M88: Scotland | N88: 0.625 | O88: 0.625 | P88: 0.625 | Q88: 0.625 | R88: 0.625 | S88: 0.625 | T88: 0.625 | U88: 0.625
C89: Southern | D89: 0.625 | M89: Southern | N89: 0.625 | O89: 0.625 | P89: 0.625 | Q89: 0.625 | R89: 0.625 | S89: 0.625 | T89: 0.625 | U89: 0.625
C90: Wales_&_West | D90: 0.625 | M90: Wales_&_West | N90: 0.625 | O90: 0.625 | P90: 0.625 | Q90: 0.625 | R90: 0.625 | S90: 0.625 | T90: 0.625 | U90: 0.625
M91: default | N91: 0.6 | O91: 0.6 | P91: 0.6 | Q91: 0.6 | R91: 0.6 | S91: 0.6 | T91: 0.6 | U91: 0.6
A93: 7 | B93: All | C93: Tax pool allocations | L93: Allocation to tax pools | P93: User interface tab
B94: option 1 | C94: Ofgem working assumptions
B95: option 2 | C95: user defined
E96: live | F96: Plant pool | G96: Longlife | H96: IBA | I96: Deferred Revenue | J96: Revenue | K96: NQ | L96: total | N96: Plant pool | O96: Longlife | P96: IBA | Q96: Deferred Revenue | R96: Revenue | S96: NQ | T96: total | V96: Plant pool | W96: Longlife | X96: IBA | Y96: Deferred Revenue | Z96: Revenue | AA96: NQ | AB96: total | AD96: Plant pool | AE96: Longlife | AF96: IBA | AG96: Deferred Revenue | AH96: Revenue | AI96: NQ | AJ96: total | AL96: Plant pool | AM96: Longlife | AN96: IBA | AO96: Deferred Revenue | AP96: Revenue | AQ96: NQ | AR96: total | AT96: Plant pool | AU96: Longlife | AV96: IBA | AW96: Deferred Revenue | AX96: Revenue | AY96: NQ | AZ96: total | BB96: Plant pool | BC96: Longlife | BD96: IBA | BE96: Deferred Revenue | BF96: Revenue | BG96: NQ | BH96: total | BJ96: Plant pool | BK96: Longlife | BL96: IBA | BM96: Deferred Revenue | BN96: Revenue | BO96: NQ | BP96: total | BR96: Plant pool | BS96: Longlife | BT96: IBA | BU96: Deferred Revenue | BV96: Revenue | BW96: NQ | BX96: total | BZ96: Plant pool | CA96: Longlife | CB96: IBA | CC96: Deferred Revenue | CD96: Revenue | CE96: NQ | CF96: total | CH96: Plant pool | CI96: Longlife | CJ96: IBA | CK96: Deferred Revenue | CL96: Revenue | CM96: NQ | CN96: total | CP96: Plant pool | CQ96: Longlife | CR96: IBA | CS96: Deferred Revenue | CT96: Revenue | CU96: NQ | CV96: total | CX96: Plant pool | CY96: Longlife | CZ96: IBA | DA96: Deferred Revenue | DB96: Revenue | DC96: NQ | DD96: total | DF96: Plant pool | DG96: Longlife | DH96: IBA | DI96: Deferred Revenue | DJ96: Revenue | DK96: NQ | DL96: total | DN96: Plant pool | DO96: Longlife | DP96: IBA | DQ96: Deferred Revenue | DR96: Revenue | DS96: NQ | DT96: total
B97: Allocation of costs to tax pools | N97: Source | O97: email Bob Davey (Ofgem) to Steve Kennedy (SSE) 20/12/11 | BI97: Derived from: | BK97: East of England - RIIO-GD1 - Financial Model Submission 30112011.xlsm\CommonInputs | BS97: London - RIIO-GD1 - Financial Model Submission 30112011.xlsm\CommonInputs | CA97: North West - RIIO-GD1 - Financial Model Submission 30112011.xlsm\CommonInputs | CI97: West Midlands - RIIO-GD1 - Financial Model Submission 30112011.xlsm\CommonInputs | CQ97: Northern Gas Networks - RIIO-GD1 - Financial Model Submission - 17112011.xlsm\User input | CY97: Scotland Gas Netowrks - RIIO-GD1 - Financial Model Submission 30112011.xlsm\User input | DG97: Southern Gas Netowrks - RIIO-GD1 - Financial Model Submission 30112011.xlsm\User input | DO97: Wales and west Utilities - RIIO-GD1 - Financial Model Submission 30112011.xlsm\User input
B98: Load Related | F98: =CHOOSE(UserInterface!$B$51,N98,V98,AD98,AL98,AT98,BB98,BJ98,BR98,BZ98,CH98,CP98,CX98,DF98,DN98) -> 0.00544238963 | G98: =CHOOSE(UserInterface!$B$51,O98,W98,AE98,AM98,AU98,BC98,BK98,BS98,CA98,CI98,CQ98,CY98,DG98,DO98) -> 0.9813260278 | H98: =CHOOSE(UserInterface!$B$51,P98,X98,AF98,AN98,AV98,BD98,BL98,BT98,CB98,CJ98,CR98,CZ98,DH98,DP98) -> 0.01323158261 | I98: =CHOOSE(UserInterface!$B$51,Q98,Y98,AG98,AO98,AW98,BE98,BM98,BU98,CC98,CK98,CS98,DA98,DI98,DQ98) -> 0 | J98: =CHOOSE(UserInterface!$B$51,R98,Z98,AH98,AP98,AX98,BF98,BN98,BV98,CD98,CL98,CT98,DB98,DJ98,DR98) -> 0 | K98: =CHOOSE(UserInterface!$B$51,S98,AA98,AI98,AQ98,AY98,BG98,BO98,BW98,CE98,CM98,CU98,DC98,DK98,DS98) -> 0 | L98: =SUM(F98:K98) -> 1 | M98: SHETL | N98: 0.042 | O98: 0.891 | P98: 0.05 | Q98: 0 | R98: 0 | S98: 0.017 | T98: 1 | U98: SPTL | V98: ='[4]User input'!F59 -> 0.00544238963 | W98: ='[4]User input'!G59 -> 0.9813260278 | X98: ='[4]User input'!H59 -> 0.01323158261 | Y98: ='[4]User input'!I59 -> 0 | Z98: ='[4]User input'!J59 -> 0 | AA98: ='[4]User input'!K59 -> 0 | AB98: =SUM(V98:AA98) -> 1 | AC98: NGET_TO | AD98: ='[5]Capital Allowances Calc'!E24 -> 0.0846 | AE98: ='[5]Capital Allowances Calc'!F24 -> 0.9052 | AF98: ='[5]Capital Allowances Calc'!G24 -> 0 | AG98: ='[5]Capital Allowances Calc'!H24 -> -0.0129 | AH98: ='[5]Capital Allowances Calc'!I24 -> 0 | AI98: ='[5]Capital Allowances Calc'!J24 -> 0.0231 | AJ98: =SUM(AD98:AI98) -> 1 | AK98: NGET_SO | AL98: ='[5]ESO Tax'!$AB$11 -> 0.43 | AM98: ='[5]ESO Tax'!$AB$10 -> 0.57 | AN98: ='[5]ESO Tax'!$AB$12 -> 0 | AO98: ='[5]ESO Tax'!$AB$9 -> 0 | AP98: 0 | AQ98: ='[5]ESO Tax'!$AB$13 -> 0 | AR98: =SUM(AL98:AQ98) -> 1 | AS98: NGGT_TO | AT98: ='[6]Capital Allowances'!Y15 -> 0 | AU98: ='[6]Capital Allowances'!Z15 -> 0.9 | AV98: ='[6]Capital Allowances'!AA15 -> 0 | AW98: ='[6]Capital Allowances'!AB15 -> 0 | AX98: ='[6]Capital Allowances'!AC15 -> 0 | AY98: ='[6]Capital Allowances'!AD15 -> 0.1 | AZ98: =SUM(AT98:AY98) -> 1 | BA98: NGGT_SO | BB98: ='[6]GSO Tax'!$AB$9 -> 0 | BC98: ='[6]GSO Tax'!$AB$10 -> 0 | BD98: ='[6]GSO Tax'!$AB$12 -> 0 | BE98: ='[6]GSO Tax'!$AB$9 -> 0 | BF98: 0 | BG98: ='[6]GSO Tax'!$AB$13 -> 0 | BH98: =SUM(BB98:BG98) -> 0 | BI98: East | BJ98: 0.5929389979 | BK98: 0.3279641131 | BL98: 0 | BM98: 0 | BN98: 0.01427423901 | BO98: 0.06482264998 | BP98: =SUM(BJ98:BO98) -> 1 | BQ98: London | BR98: 0.4619249594 | BS98: 0.4530842092 | BT98: 0 | BU98: 0 | BV98: 0.01834978116 | BW98: 0.06664105024 | BX98: =SUM(BR98:BW98) -> 1 | BY98: North_West | BZ98: 0.5122320798 | CA98: 0.4049435597 | CB98: 0 | CC98: 0 | CD98: 0.01522696335 | CE98: 0.06759739723 | CF98: =SUM(BZ98:CE98) -> 1 | CG98: West_Midlands | CH98: 0.5711554774 | CI98: 0.2891503382 | CJ98: 0 | CK98: 0 | CL98: 0.01594799867 | CM98: 0.1237461858 | CN98: =SUM(CH98:CM98) -> 1 | CO98: Northern | CP98: 0.2128315591 | CQ98: 0.7871684409 | CR98: 0 | CS98: 0 | CT98: 0 | CU98: 0 | CV98: =SUM(CP98:CU98) -> 1 | CW98: Scotland | CX98: 0.00544238963 | CY98: 0.9813260278 | CZ98: 0.01323158261 | DA98: 0 | DB98: 0 | DC98: 0 | DD98: =SUM(CX98:DC98) -> 1 | DE98: Southern | DF98: 0.00544238963 | DG98: 0.9813260278 | DH98: 0.01323158261 | DI98: 0 | DJ98: 0 | DK98: 0 | DL98: =SUM(DF98:DK98) -> 1 | DM98: Wales_&_West | DN98: 0.2925035806 | DO98: 0.6866801064 | DP98: 0.006776655901 | DQ98: 0 | DR98: 0 | DS98: 0.01403965709 | DT98: =SUM(DN98:DS98) -> 1
B99: Non-Load Related - asset replacement | F99: =CHOOSE(UserInterface!$B$51,N99,V99,AD99,AL99,AT99,BB99,BJ99,BR99,BZ99,CH99,CP99,CX99,DF99,DN99) -> 0 | G99: =CHOOSE(UserInterface!$B$51,O99,W99,AE99,AM99,AU99,BC99,BK99,BS99,CA99,CI99,CQ99,CY99,DG99,DO99) -> 0 | H99: =CHOOSE(UserInterface!$B$51,P99,X99,AF99,AN99,AV99,BD99,BL99,BT99,CB99,CJ99,CR99,CZ99,DH99,DP99) -> 0 | I99: =CHOOSE(UserInterface!$B$51,Q99,Y99,AG99,AO99,AW99,BE99,BM99,BU99,CC99,CK99,CS99,DA99,DI99,DQ99) -> 1 | J99: =CHOOSE(UserInterface!$B$51,R99,Z99,AH99,AP99,AX99,BF99,BN99,BV99,CD99,CL99,CT99,DB99,DJ99,DR99) -> 0 | K99: =CHOOSE(UserInterface!$B$51,S99,AA99,AI99,AQ99,AY99,BG99,BO99,BW99,CE99,CM99,CU99,DC99,DK99,DS99) -> 0 | L99: =SUM(F99:K99) -> 1 | M99: SHETL | N99: 0.099 | O99: 0.082 | P99: 0.017 | Q99: 0.802 | R99: 0 | S99: 0 | T99: 1 | U99: SPTL | V99: ='[4]User input'!F60 -> 0 | W99: ='[4]User input'!G60 -> 0 | X99: ='[4]User input'!H60 -> 0 | Y99: 1 | Z99: ='[4]User input'!J60 -> 0 | AA99: ='[4]User input'!K60 -> 0 | AB99: =SUM(V99:AA99) -> 1 | AC99: NGET_TO | AD99: ='[5]Capital Allowances Calc'!E25 -> 0.0222 | AE99: ='[5]Capital Allowances Calc'!F25 -> 0.4635 | AF99: ='[5]Capital Allowances Calc'!G25 -> 0.0025 | AG99: ='[5]Capital Allowances Calc'!H25 -> 0.5053 | AH99: ='[5]Capital Allowances Calc'!I25 -> 0 | AI99: ='[5]Capital Allowances Calc'!J25 -> 0.0065 | AJ99: =SUM(AD99:AI99) -> 1 | AK99: NGET_SO | AL99: ='[5]ESO Tax'!$AB$11 -> 0.43 | AM99: ='[5]ESO Tax'!$AB$10 -> 0.57 | AN99: ='[5]ESO Tax'!$AB$12 -> 0 | AO99: ='[5]ESO Tax'!$AB$9 -> 0 | AP99: 0 | AQ99: ='[5]ESO Tax'!$AB$13 -> 0 | AR99: =SUM(AL99:AQ99) -> 1 | AS99: NGGT_TO | AT99: ='[6]Capital Allowances'!Y16 -> 0.6411 | AU99: ='[6]Capital Allowances'!Z16 -> 0.3321 | AV99: ='[6]Capital Allowances'!AA16 -> 0 | AW99: ='[6]Capital Allowances'!AB16 -> 0 | AX99: ='[6]Capital Allowances'!AC16 -> 0.0268 | AY99: ='[6]Capital Allowances'!AD16 -> 0 | AZ99: =SUM(AT99:AY99) -> 1 | BA99: NGGT_SO | BB99: ='[6]GSO Tax'!$AB$11 -> 1 | BC99: ='[6]GSO Tax'!$AB$10 -> 0 | BD99: ='[6]GSO Tax'!$AB$12 -> 0 | BE99: ='[6]GSO Tax'!$AB$9 -> 0 | BF99: 0 | BG99: ='[6]GSO Tax'!$AB$13 -> 0 | BH99: =SUM(BB99:BG99) -> 1 | BI99: East | BJ99: 0.5929389979 | BK99: 0.3279641131 | BL99: 0 | BM99: 0 | BN99: 0.01427423901 | BO99: 0.06482264998 | BP99: =SUM(BJ99:BO99) -> 1 | BQ99: London | BR99: 0.4619249594 | BS99: 0.4530842092 | BT99: 0 | BU99: 0 | BV99: 0.01834978116 | BW99: 0.06664105024 | BX99: =SUM(BR99:BW99) -> 1 | BY99: North_West | BZ99: 0.5122320798 | CA99: 0.4049435597 | CB99: 0 | CC99: 0 | CD99: 0.01522696335 | CE99: 0.06759739723 | CF99: =SUM(BZ99:CE99) -> 1 | CG99: West_Midlands | CH99: 0.5711554774 | CI99: 0.2891503382 | CJ99: 0 | CK99: 0 | CL99: 0.01594799867 | CM99: 0.1237461858 | CN99: =SUM(CH99:CM99) -> 1 | CO99: Northern | CP99: 0.2128315591 | CQ99: 0.7871684409 | CR99: 0 | CS99: 0 | CT99: 0 | CU99: 0 | CV99: =SUM(CP99:CU99) -> 1 | CW99: Scotland | CX99: 0 | CY99: 0 | CZ99: 0 | DA99: 1 | DB99: 0 | DC99: 0 | DD99: =SUM(CX99:DC99) -> 1 | DE99: Southern | DF99: 0 | DG99: 0 | DH99: 0 | DI99: 1 | DJ99: 0 | DK99: 0 | DL99: =SUM(DF99:DK99) -> 1 | DM99: Wales_&_West | DN99: 0 | DO99: 1 | DP99: 0 | DQ99: 0 | DR99: 0 | DS99: 0 | DT99: =SUM(DN99:DS99) -> 1
B100: Non-Load Related - other | F100: =CHOOSE(UserInterface!$B$51,N100,V100,AD100,AL100,AT100,BB100,BJ100,BR100,BZ100,CH100,CP100,CX100,DF100,DN100) -> 0.1095487594 | G100: =CHOOSE(UserInterface!$B$51,O100,W100,AE100,AM100,AU100,BC100,BK100,BS100,CA100,CI100,CQ100,CY100,DG100,DO100) -> 0.8083689891 | H100: =CHOOSE(UserInterface!$B$51,P100,X100,AF100,AN100,AV100,BD100,BL100,BT100,CB100,CJ100,CR100,CZ100,DH100,DP100) -> 0.07619708799 | I100: =CHOOSE(UserInterface!$B$51,Q100,Y100,AG100,AO100,AW100,BE100,BM100,BU100,CC100,CK100,CS100,DA100,DI100,DQ100) -> 0 | J100: =CHOOSE(UserInterface!$B$51,R100,Z100,AH100,AP100,AX100,BF100,BN100,BV100,CD100,CL100,CT100,DB100,DJ100,DR100) -> 0 | K100: =CHOOSE(UserInterface!$B$51,S100,AA100,AI100,AQ100,AY100,BG100,BO100,BW100,CE100,CM100,CU100,DC100,DK100,DS100) -> 0.005885163553 | L100: =SUM(F100:K100) -> 1 | M100: SHETL | N100: 0.099 | O100: 0.082 | P100: 0.017 | Q100: 0.802 | R100: 0 | S100: 0 | T100: 1 | U100: SPTL | V100: ='[4]User input'!F61 -> 0.1095487594 | W100: ='[4]User input'!G61 -> 0.8083689891 | X100: ='[4]User input'!H61 -> 0.07619708799 | Y100: ='[4]User input'!I61 -> 0 | Z100: ='[4]User input'!J61 -> 0 | AA100: ='[4]User input'!K61 -> 0.005885163553 | AB100: =SUM(V100:AA100) -> 1 | AC100: NGET_TO | AD100: ='[5]Capital Allowances Calc'!E24 -> 0.0846 | AE100: ='[5]Capital Allowances Calc'!F24 -> 0.9052 | AF100: ='[5]Capital Allowances Calc'!G24 -> 0 | AG100: ='[5]Capital Allowances Calc'!H24 -> -0.0129 | AH100: ='[5]Capital Allowances Calc'!I24 -> 0 | AI100: ='[5]Capital Allowances Calc'!J24 -> 0.0231 | AJ100: =SUM(AD100:AI100) -> 1 | AK100: NGET_SO | AL100: ='[5]ESO Tax'!$AB$11 -> 0.43 | AM100: ='[5]ESO Tax'!$AB$10 -> 0.57 | AN100: ='[5]ESO Tax'!$AB$12 -> 0 | AO100: ='[5]ESO Tax'!$AB$9 -> 0 | AP100: 0 | AQ100: ='[5]ESO Tax'!$AB$13 -> 0 | AR100: =SUM(AL100:AQ100) -> 1 | AS100: NGGT_TO | AT100: ='[6]Capital Allowances'!Y16 -> 0.6411 | AU100: ='[6]Capital Allowances'!Z16 -> 0.3321 | AV100: ='[6]Capital Allowances'!AA16 -> 0 | AW100: ='[6]Capital Allowances'!AB16 -> 0 | AX100: ='[6]Capital Allowances'!AC16 -> 0.0268 | AY100: ='[6]Capital Allowances'!AD16 -> 0 | AZ100: =SUM(AT100:AY100) -> 1 | BA100: NGGT_SO | BB100: ='[6]GSO Tax'!$AB$11 -> 1 | BC100: ='[6]GSO Tax'!$AB$10 -> 0 | BD100: ='[6]GSO Tax'!$AB$12 -> 0 | BE100: ='[6]GSO Tax'!$AB$9 -> 0 | BF100: 0 | BG100: ='[6]GSO Tax'!$AB$13 -> 0 | BH100: =SUM(BB100:BG100) -> 1 | BI100: East | BJ100: 0.5929389979 | BK100: 0.3279641131 | BL100: 0 | BM100: 0 | BN100: 0.01427423901 | BO100: 0.06482264998 | BP100: =SUM(BJ100:BO100) -> 1 | BQ100: London | BR100: 0.4619249594 | BS100: 0.4530842092 | BT100: 0 | BU100: 0 | BV100: 0.01834978116 | BW100: 0.06664105024 | BX100: =SUM(BR100:BW100) -> 1 | BY100: North_West | BZ100: 0.5122320798 | CA100: 0.4049435597 | CB100: 0 | CC100: 0 | CD100: 0.01522696335 | CE100: 0.06759739723 | CF100: =SUM(BZ100:CE100) -> 1 | CG100: West_Midlands | CH100: 0.5711554774 | CI100: 0.2891503382 | CJ100: 0 | CK100: 0 | CL100: 0.01594799867 | CM100: 0.1237461858 | CN100: =SUM(CH100:CM100) -> 1 | CO100: Northern | CP100: 0.2128315591 | CQ100: 0.7871684409 | CR100: 0 | CS100: 0 | CT100: 0 | CU100: 0 | CV100: =SUM(CP100:CU100) -> 1 | CW100: Scotland | CX100: 0.1095487594 | CY100: 0.8083689891 | CZ100: 0.07619708799 | DA100: 0 | DB100: 0 | DC100: 0.005885163553 | DD100: =SUM(CX100:DC100) -> 1 | DE100: Southern | DF100: 0.1095487594 | DG100: 0.8083689891 | DH100: 0.07619708799 | DI100: 0 | DJ100: 0 | DK100: 0.005885163553 | DL100: =SUM(DF100:DK100) -> 1 | DM100: Wales_&_West | DN100: 0.2925035806 | DO100: 0.6866801064 | DP100: 0.006776655901 | DQ100: 0 | DR100: 0 | DS100: 0.01403965709 | DT100: =SUM(DN100:DS100) -> 1
B101: Network operating costs | F101: =CHOOSE(UserInterface!$B$51,N101,V101,AD101,AL101,AT101,BB101,BJ101,BR101,BZ101,CH101,CP101,CX101,DF101,DN101) -> 0 | G101: =CHOOSE(UserInterface!$B$51,O101,W101,AE101,AM101,AU101,BC101,BK101,BS101,CA101,CI101,CQ101,CY101,DG101,DO101) -> 0 | H101: =CHOOSE(UserInterface!$B$51,P101,X101,AF101,AN101,AV101,BD101,BL101,BT101,CB101,CJ101,CR101,CZ101,DH101,DP101) -> 0 | I101: =CHOOSE(UserInterface!$B$51,Q101,Y101,AG101,AO101,AW101,BE101,BM101,BU101,CC101,CK101,CS101,DA101,DI101,DQ101) -> 0 | J101: =CHOOSE(UserInterface!$B$51,R101,Z101,AH101,AP101,AX101,BF101,BN101,BV101,CD101,CL101,CT101,DB101,DJ101,DR101) -> 1 | K101: =CHOOSE(UserInterface!$B$51,S101,AA101,AI101,AQ101,AY101,BG101,BO101,BW101,CE101,CM101,CU101,DC101,DK101,DS101) -> 0 | L101: =SUM(F101:K101) -> 1 | M101: SHETL | N101: 0 | O101: 0 | P101: 0 | Q101: 0 | R101: 1 | S101: 0 | T101: 1 | U101: SPTL | V101: ='[4]User input'!F62 -> 0 | W101: ='[4]User input'!G62 -> 0 | X101: ='[4]User input'!H62 -> 0 | Y101: ='[4]User input'!I62 -> 0 | Z101: ='[4]User input'!J62 -> 1 | AA101: ='[4]User input'!K62 -> 0 | AB101: =SUM(V101:AA101) -> 1 | AC101: NGET_TO | AD101: 0 | AE101: 0 | AF101: 0 | AG101: 0 | AH101: 1 | AI101: 0 | AJ101: =SUM(AD101:AI101) -> 1 | AK101: NGET_SO | AL101: 0 | AM101: 0 | AN101: 0 | AO101: 0 | AP101: 1 | AQ101: 0 | AR101: =SUM(AL101:AQ101) -> 1 | AS101: NGGT_TO | AT101: 0 | AU101: 0 | AV101: 0 | AW101: 0 | AX101: 1 | AY101: 0 | AZ101: =SUM(AT101:AY101) -> 1 | BA101: NGGT_SO | BB101: 0 | BC101: 0 | BD101: 0 | BE101: 0 | BF101: 1 | BG101: 0 | BH101: =SUM(BB101:BG101) -> 1 | BI101: East | BJ101: 0 | BK101: 0 | BL101: 0 | BM101: 0.01271264486 | BN101: 0.9872873551 | BO101: 0 | BP101: =SUM(BJ101:BO101) -> 1 | BQ101: London | BR101: 0 | BS101: 0 | BT101: 0 | BU101: 0.008780259571 | BV101: 0.9912197404 | BW101: 0 | BX101: =SUM(BR101:BW101) -> 1 | BY101: North_West | BZ101: 0 | CA101: 0 | CB101: 0 | CC101: 0.01305252147 | CD101: 0.9869474785 | CE101: 0 | CF101: =SUM(BZ101:CE101) -> 1 | CG101: West_Midlands | CH101: 0 | CI101: 0 | CJ101: 0 | CK101: 0.007974689337 | CL101: 0.9920253107 | CM101: 0 | CN101: =SUM(CH101:CM101) -> 1 | CO101: Northern | CP101: 0 | CQ101: 0 | CR101: 0 | CS101: 0 | CT101: 1 | CU101: 0 | CV101: =SUM(CP101:CU101) -> 1 | CW101: Scotland | CX101: 0 | CY101: 0 | CZ101: 0 | DA101: 0 | DB101: 1 | DC101: 0 | DD101: =SUM(CX101:DC101) -> 1 | DE101: Southern | DF101: 0 | DG101: 0 | DH101: 0 | DI101: 0 | DJ101: 1 | DK101: 0 | DL101: =SUM(DF101:DK101) -> 1 | DM101: Wales_&_West | DN101: 0 | DO101: 0 | DP101: 0 | DQ101: 0 | DR101: 1 | DS101: 0 | DT101: =SUM(DN101:DS101) -> 1
B102: Non Operational Capex | F102: =CHOOSE(UserInterface!$B$51,N102,V102,AD102,AL102,AT102,BB102,BJ102,BR102,BZ102,CH102,CP102,CX102,DF102,DN102) -> 1 | G102: =CHOOSE(UserInterface!$B$51,O102,W102,AE102,AM102,AU102,BC102,BK102,BS102,CA102,CI102,CQ102,CY102,DG102,DO102) -> 0 | H102: =CHOOSE(UserInterface!$B$51,P102,X102,AF102,AN102,AV102,BD102,BL102,BT102,CB102,CJ102,CR102,CZ102,DH102,DP102) -> 0 | I102: =CHOOSE(UserInterface!$B$51,Q102,Y102,AG102,AO102,AW102,BE102,BM102,BU102,CC102,CK102,CS102,DA102,DI102,DQ102) -> 0 | J102: =CHOOSE(UserInterface!$B$51,R102,Z102,AH102,AP102,AX102,BF102,BN102,BV102,CD102,CL102,CT102,DB102,DJ102,DR102) -> 0 | K102: =CHOOSE(UserInterface!$B$51,S102,AA102,AI102,AQ102,AY102,BG102,BO102,BW102,CE102,CM102,CU102,DC102,DK102,DS102) -> 0 | L102: =SUM(F102:K102) -> 1 | M102: SHETL | N102: 0.9777 | O102: 0 | P102: 0 | Q102: 0 | R102: 0 | S102: 0.0222 | T102: 0.9999 | U102: SPTL | V102: ='[4]User input'!F63 -> 1 | W102: ='[4]User input'!G63 -> 0 | X102: ='[4]User input'!H63 -> 0 | Y102: ='[4]User input'!I63 -> 0 | Z102: ='[4]User input'!J63 -> 0 | AA102: ='[4]User input'!K63 -> 0 | AB102: =SUM(V102:AA102) -> 1 | AC102: NGET_TO | AD102: ='[5]Capital Allowances Calc'!E27 -> 0.411 | AE102: ='[5]Capital Allowances Calc'!F27 -> 0.1527 | AF102: ='[5]Capital Allowances Calc'!G27 -> 0 | AG102: ='[5]Capital Allowances Calc'!H27 -> 0.4362 | AH102: ='[5]Capital Allowances Calc'!I27 -> 0 | AI102: ='[5]Capital Allowances Calc'!J27 -> 0.0001 | AJ102: =SUM(AD102:AI102) -> 1 | AK102: NGET_SO | AL102: ='[5]ESO Tax'!$AB$11 -> 0.43 | AM102: ='[5]ESO Tax'!$AB$10 -> 0.57 | AN102: ='[5]ESO Tax'!$AB$12 -> 0 | AO102: ='[5]ESO Tax'!$AB$9 -> 0 | AP102: 0 | AQ102: ='[5]ESO Tax'!$AB$13 -> 0 | AR102: =SUM(AL102:AQ102) -> 1 | AS102: NGGT_TO | AT102: ='[6]Capital Allowances'!Y16 -> 0.6411 | AU102: ='[6]Capital Allowances'!Z16 -> 0.3321 | AV102: ='[6]Capital Allowances'!AA16 -> 0 | AW102: ='[6]Capital Allowances'!AB16 -> 0 | AX102: ='[6]Capital Allowances'!AC16 -> 0.0268 | AY102: ='[6]Capital Allowances'!AD16 -> 0 | AZ102: =SUM(AT102:AY102) -> 1 | BA102: NGGT_SO | BB102: ='[6]GSO Tax'!$AB$11 -> 1 | BC102: ='[6]GSO Tax'!$AB$10 -> 0 | BD102: ='[6]GSO Tax'!$AB$12 -> 0 | BE102: ='[6]GSO Tax'!$AB$9 -> 0 | BF102: 0 | BG102: ='[6]GSO Tax'!$AB$13 -> 0 | BH102: =SUM(BB102:BG102) -> 1 | BI102: East | BJ102: 0 | BK102: 0 | BL102: 0 | BM102: 0 | BN102: 0 | BO102: 0 | BP102: =SUM(BJ102:BO102) -> 0 | BQ102: London | BR102: 0 | BS102: 0 | BT102: 0 | BU102: 0 | BV102: 0 | BW102: 0 | BX102: =SUM(BR102:BW102) -> 0 | BY102: North_West | BZ102: 0 | CA102: 0 | CB102: 0 | CC102: 0 | CD102: 0 | CE102: 0 | CF102: =SUM(BZ102:CE102) -> 0 | CG102: West_Midlands | CH102: 0 | CI102: 0 | CJ102: 0 | CK102: 0 | CL102: 0 | CM102: 0 | CN102: =SUM(CH102:CM102) -> 0 | CO102: Northern | CP102: 0.2128315591 | CQ102: 0.7871684409 | CR102: 0 | CS102: 0 | CT102: 0 | CU102: 0 | CV102: =SUM(CP102:CU102) -> 1 | CW102: Scotland | CX102: 1 | CY102: 0 | CZ102: 0 | DA102: 0 | DB102: 0 | DC102: 0 | DD102: =SUM(CX102:DC102) -> 1 | DE102: Southern | DF102: 1 | DG102: 0 | DH102: 0 | DI102: 0 | DJ102: 0 | DK102: 0 | DL102: =SUM(DF102:DK102) -> 1 | DM102: Wales_&_West | DN102: 0.2925035806 | DO102: 0.6866801064 | DP102: 0.006776655901 | DQ102: 0 | DR102: 0 | DS102: 0.01403965709 | DT102: =SUM(DN102:DS102) -> 1
A103: Things to tweak other
A104: 8 | B104: All | C104: Equity issuance - Variation of trigger level (default £500m)
C105: £m nominal | D105: 500
A106: 9 | B106: All | C106: Dividend % of nominal Equity RAV
D107: 0.05
A108: 10 | B108: All | C108: Pension true ups
C109: See 'Pensions T' and 'Pensions GD' sheets
A125: 10A | B125: TO | C125: SPTL best case gearing | N125: 0.5345799545 | O125: 0.4962729052 | P125: 0.5268267107 | Q125: 0.5386854703 | R125: 0.5441440921 | S125: 0.5481401625 | T125: 0.5491003373 | U125: 0.5315015307
A134: 11 | B134: GD | C134: Smoothing period for recovery of backlog dperciation (years) | J134: 8
A136: 12 | B136: All | C136: Dividends | E136: please input negative numbers
C137: Year ending 31 March | E137: 2005-03-31 | F137: 2006-03-31 | G137: 2007-03-31 | H137: 2008-03-31 | I137: 2009-03-31 | J137: 2010-03-31 | K137: 2011-03-31 | L137: 2012-03-31 | M137: 2013-03-31 | N137: 2014-03-31 | O137: 2015-03-31 | P137: 2016-03-31 | Q137: 2017-03-31 | R137: 2018-03-31 | S137: 2019-03-31 | T137: 2020-03-31 | U137: 2021-03-31 | V137: 2022-03-31 | W137: 2023-03-31 | X137: 2024-03-31 | Y137: 2025-03-31 | Z137: 2026-03-31 | AA137: 2027-03-31 | AB137: 2028-03-31 | AC137: 2029-03-31 | AD137: 2030-03-31 | AE137: 2031-03-31 | AF137: 2032-03-31 | AG137: 2033-03-31 | AH137: 2034-03-31 | AI137: 2035-03-31 | AJ137: 2036-03-31 | AK137: 2037-03-31 | AL137: 2038-03-31 | AM137: 2039-03-31 | AN137: 2040-03-31 | AO137: 2041-03-31 | AP137: 2042-03-31 | AQ137: 2043-03-31 | AR137: 2044-03-31 | AS137: 2045-03-31 | AT137: 2046-03-31 | AU137: 2047-03-31 | AV137: 2048-03-31 | AW137: 2049-03-31 | AX137: 2050-03-31
M138: =CHOOSE(UserInterface!$B$51,M139,M140,M141,M142,M143,M144,M145,M146,M147,M148,M149,M150,M151,M152) -> -198.6214942 | N138: =CHOOSE(UserInterface!$B$51,N139,N140,N141,N142,N143,N144,N145,N146,N147,N148,N149,N150,N151,N152) -> -227.1866891 | O138: =CHOOSE(UserInterface!$B$51,O139,O140,O141,O142,O143,O144,O145,O146,O147,O148,O149,O150,O151,O152) -> -261.948077 | P138: =CHOOSE(UserInterface!$B$51,P139,P140,P141,P142,P143,P144,P145,P146,P147,P148,P149,P150,P151,P152) -> -295.5087623 | Q138: =CHOOSE(UserInterface!$B$51,Q139,Q140,Q141,Q142,Q143,Q144,Q145,Q146,Q147,Q148,Q149,Q150,Q151,Q152) -> -325.5242426 | R138: =CHOOSE(UserInterface!$B$51,R139,R140,R141,R142,R143,R144,R145,R146,R147,R148,R149,R150,R151,R152) -> -353.4328009 | S138: =CHOOSE(UserInterface!$B$51,S139,S140,S141,S142,S143,S144,S145,S146,S147,S148,S149,S150,S151,S152) -> -386.7810339 | T138: =CHOOSE(UserInterface!$B$51,T139,T140,T141,T142,T143,T144,T145,T146,T147,T148,T149,T150,T151,T152) -> -418.961863 | U138: =CHOOSE(UserInterface!$B$51,U139,U140,U141,U142,U143,U144,U145,U146,U147,U148,U149,U150,U151,U152) -> -452.0396264 | V138: =CHOOSE(UserInterface!$B$51,V139,V140,V141,V142,V143,V144,V145,V146,V147,V148,V149,V150,V151,V152) -> -484.2024963 | W138: =CHOOSE(UserInterface!$B$51,W139,W140,W141,W142,W143,W144,W145,W146,W147,W148,W149,W150,W151,W152) -> -515.6816576 | X138: =CHOOSE(UserInterface!$B$51,X139,X140,X141,X142,X143,X144,X145,X146,X147,X148,X149,X150,X151,X152) -> -546.5336766 | Y138: =CHOOSE(UserInterface!$B$51,Y139,Y140,Y141,Y142,Y143,Y144,Y145,Y146,Y147,Y148,Y149,Y150,Y151,Y152) -> -576.8200174 | Z138: =CHOOSE(UserInterface!$B$51,Z139,Z140,Z141,Z142,Z143,Z144,Z145,Z146,Z147,Z148,Z149,Z150,Z151,Z152) -> -606.8611059 | AA138: =CHOOSE(UserInterface!$B$51,AA139,AA140,AA141,AA142,AA143,AA144,AA145,AA146,AA147,AA148,AA149,AA150,AA151,AA152) -> -636.9912456 | AB138: =CHOOSE(UserInterface!$B$51,AB139,AB140,AB141,AB142,AB143,AB144,AB145,AB146,AB147,AB148,AB149,AB150,AB151,AB152) -> -667.1585174 | AC138: =CHOOSE(UserInterface!$B$51,AC139,AC140,AC141,AC142,AC143,AC144,AC145,AC146,AC147,AC148,AC149,AC150,AC151,AC152) -> -697.6315417 | AD138: =CHOOSE(UserInterface!$B$51,AD139,AD140,AD141,AD142,AD143,AD144,AD145,AD146,AD147,AD148,AD149,AD150,AD151,AD152) -> -728.448736 | AE138: =CHOOSE(UserInterface!$B$51,AE139,AE140,AE141,AE142,AE143,AE144,AE145,AE146,AE147,AE148,AE149,AE150,AE151,AE152) -> -759.9724398 | AF138: =CHOOSE(UserInterface!$B$51,AF139,AF140,AF141,AF142,AF143,AF144,AF145,AF146,AF147,AF148,AF149,AF150,AF151,AF152) -> -792.4997817 | AG138: =CHOOSE(UserInterface!$B$51,AG139,AG140,AG141,AG142,AG143,AG144,AG145,AG146,AG147,AG148,AG149,AG150,AG151,AG152) -> -826.0714505 | AH138: =CHOOSE(UserInterface!$B$51,AH139,AH140,AH141,AH142,AH143,AH144,AH145,AH146,AH147,AH148,AH149,AH150,AH151,AH152) -> -861.1125692 | AI138: =CHOOSE(UserInterface!$B$51,AI139,AI140,AI141,AI142,AI143,AI144,AI145,AI146,AI147,AI148,AI149,AI150,AI151,AI152) -> -895.8200006 | AJ138: =CHOOSE(UserInterface!$B$51,AJ139,AJ140,AJ141,AJ142,AJ143,AJ144,AJ145,AJ146,AJ147,AJ148,AJ149,AJ150,AJ151,AJ152) -> -930.1939378 | AK138: =CHOOSE(UserInterface!$B$51,AK139,AK140,AK141,AK142,AK143,AK144,AK145,AK146,AK147,AK148,AK149,AK150,AK151,AK152) -> -964.2297157 | AL138: =CHOOSE(UserInterface!$B$51,AL139,AL140,AL141,AL142,AL143,AL144,AL145,AL146,AL147,AL148,AL149,AL150,AL151,AL152) -> -997.9179091 | AM138: =CHOOSE(UserInterface!$B$51,AM139,AM140,AM141,AM142,AM143,AM144,AM145,AM146,AM147,AM148,AM149,AM150,AM151,AM152) -> -1031.244412 | AN138: =CHOOSE(UserInterface!$B$51,AN139,AN140,AN141,AN142,AN143,AN144,AN145,AN146,AN147,AN148,AN149,AN150,AN151,AN152) -> -1064.190497 | AO138: =CHOOSE(UserInterface!$B$51,AO139,AO140,AO141,AO142,AO143,AO144,AO145,AO146,AO147,AO148,AO149,AO150,AO151,AO152) -> -1096.732859 | AP138: =CHOOSE(UserInterface!$B$51,AP139,AP140,AP141,AP142,AP143,AP144,AP145,AP146,AP147,AP148,AP149,AP150,AP151,AP152) -> -1128.843638 | AQ138: =CHOOSE(UserInterface!$B$51,AQ139,AQ140,AQ141,AQ142,AQ143,AQ144,AQ145,AQ146,AQ147,AQ148,AQ149,AQ150,AQ151,AQ152) -> -1160.490433 | AR138: =CHOOSE(UserInterface!$B$51,AR139,AR140,AR141,AR142,AR143,AR144,AR145,AR146,AR147,AR148,AR149,AR150,AR151,AR152) -> -1191.636289 | AS138: =CHOOSE(UserInterface!$B$51,AS139,AS140,AS141,AS142,AS143,AS144,AS145,AS146,AS147,AS148,AS149,AS150,AS151,AS152) -> -1222.240405 | AT138: =CHOOSE(UserInterface!$B$51,AT139,AT140,AT141,AT142,AT143,AT144,AT145,AT146,AT147,AT148,AT149,AT150,AT151,AT152) -> -1252.257928 | AU138: =CHOOSE(UserInterface!$B$51,AU139,AU140,AU141,AU142,AU143,AU144,AU145,AU146,AU147,AU148,AU149,AU150,AU151,AU152) -> -1281.640874 | AV138: =CHOOSE(UserInterface!$B$51,AV139,AV140,AV141,AV142,AV143,AV144,AV145,AV146,AV147,AV148,AV149,AV150,AV151,AV152) -> -1310.357271 | AW138: =CHOOSE(UserInterface!$B$51,AW139,AW140,AW141,AW142,AW143,AW144,AW145,AW146,AW147,AW148,AW149,AW150,AW151,AW152) -> -1338.323981 | AX138: =CHOOSE(UserInterface!$B$51,AX139,AX140,AX141,AX142,AX143,AX144,AX145,AX146,AX147,AX148,AX149,AX150,AX151,AX152) -> -1365.530102
L139: SHETL | M139: -198.6214942 | N139: -227.1866891 | O139: -261.948077 | P139: -295.5087623 | Q139: -325.5242426 | R139: -353.4328009 | S139: -386.7810339 | T139: -418.961863 | U139: -452.0396264 | V139: -484.2024963 | W139: -515.6816576 | X139: -546.5336766 | Y139: -576.8200174 | Z139: -606.8611059 | AA139: -636.9912456 | AB139: -667.1585174 | AC139: -697.6315417 | AD139: -728.448736 | AE139: -759.9724398 | AF139: -792.4997817 | AG139: -826.0714505 | AH139: -861.1125692 | AI139: -895.8200006 | AJ139: -930.1939378 | AK139: -964.2297157 | AL139: -997.9179091 | AM139: -1031.244412 | AN139: -1064.190497 | AO139: -1096.732859 | AP139: -1128.843638 | AQ139: -1160.490433 | AR139: -1191.636289 | AS139: -1222.240405 | AT139: -1252.257928 | AU139: -1281.640874 | AV139: -1310.357271 | AW139: -1338.323981 | AX139: -1365.530102
L140: SPTL | M140: -198.6214942 | N140: -227.1866891 | O140: -261.948077 | P140: -295.5087623 | Q140: -325.5242426 | R140: -353.4328009 | S140: -386.7810339 | T140: -418.961863 | U140: -452.0396264 | V140: -484.2024963 | W140: -515.6816576 | X140: -546.5336766 | Y140: -576.8200174 | Z140: -606.8611059 | AA140: -636.9912456 | AB140: -667.1585174 | AC140: -697.6315417 | AD140: -728.448736 | AE140: -759.9724398 | AF140: -792.4997817 | AG140: -826.0714505 | AH140: -861.1125692 | AI140: -895.8200006 | AJ140: -930.1939378 | AK140: -964.2297157 | AL140: -997.9179091 | AM140: -1031.244412 | AN140: -1064.190497 | AO140: -1096.732859 | AP140: -1128.843638 | AQ140: -1160.490433 | AR140: -1191.636289 | AS140: -1222.240405 | AT140: -1252.257928 | AU140: -1281.640874 | AV140: -1310.357271 | AW140: -1338.323981 | AX140: -1365.530102
L141: NGET_TO | M141: -198.6214942 | N141: -227.1866891 | O141: -261.948077 | P141: -295.5087623 | Q141: -325.5242426 | R141: -353.4328009 | S141: -386.7810339 | T141: -418.961863 | U141: -452.0396264 | V141: -484.2024963 | W141: -515.6816576 | X141: -546.5336766 | Y141: -576.8200174 | Z141: -606.8611059 | AA141: -636.9912456 | AB141: -667.1585174 | AC141: -697.6315417 | AD141: -728.448736 | AE141: -759.9724398 | AF141: -792.4997817 | AG141: -826.0714505 | AH141: -861.1125692 | AI141: -895.8200006 | AJ141: -930.1939378 | AK141: -964.2297157 | AL141: -997.9179091 | AM141: -1031.244412 | AN141: -1064.190497 | AO141: -1096.732859 | AP141: -1128.843638 | AQ141: -1160.490433 | AR141: -1191.636289 | AS141: -1222.240405 | AT141: -1252.257928 | AU141: -1281.640874 | AV141: -1310.357271 | AW141: -1338.323981 | AX141: -1365.530102
L142: NGET_SO | M142: -198.6214942 | N142: -227.1866891 | O142: -261.948077 | P142: -295.5087623 | Q142: -325.5242426 | R142: -353.4328009 | S142: -386.7810339 | T142: -418.961863 | U142: -452.0396264 | V142: -484.2024963 | W142: -515.6816576 | X142: -546.5336766 | Y142: -576.8200174 | Z142: -606.8611059 | AA142: -636.9912456 | AB142: -667.1585174 | AC142: -697.6315417 | AD142: -728.448736 | AE142: -759.9724398 | AF142: -792.4997817 | AG142: -826.0714505 | AH142: -861.1125692 | AI142: -895.8200006 | AJ142: -930.1939378 | AK142: -964.2297157 | AL142: -997.9179091 | AM142: -1031.244412 | AN142: -1064.190497 | AO142: -1096.732859 | AP142: -1128.843638 | AQ142: -1160.490433 | AR142: -1191.636289 | AS142: -1222.240405 | AT142: -1252.257928 | AU142: -1281.640874 | AV142: -1310.357271 | AW142: -1338.323981 | AX142: -1365.530102
L143: NGGT_TO | M143: -198.6214942 | N143: -227.1866891 | O143: -261.948077 | P143: -295.5087623 | Q143: -325.5242426 | R143: -353.4328009 | S143: -386.7810339 | T143: -418.961863 | U143: -452.0396264 | V143: -484.2024963 | W143: -515.6816576 | X143: -546.5336766 | Y143: -576.8200174 | Z143: -606.8611059 | AA143: -636.9912456 | AB143: -667.1585174 | AC143: -697.6315417 | AD143: -728.448736 | AE143: -759.9724398 | AF143: -792.4997817 | AG143: -826.0714505 | AH143: -861.1125692 | AI143: -895.8200006 | AJ143: -930.1939378 | AK143: -964.2297157 | AL143: -997.9179091 | AM143: -1031.244412 | AN143: -1064.190497 | AO143: -1096.732859 | AP143: -1128.843638 | AQ143: -1160.490433 | AR143: -1191.636289 | AS143: -1222.240405 | AT143: -1252.257928 | AU143: -1281.640874 | AV143: -1310.357271 | AW143: -1338.323981 | AX143: -1365.530102
L144: NGGT_SO | M144: -198.6214942 | N144: -227.1866891 | O144: -261.948077 | P144: -295.5087623 | Q144: -325.5242426 | R144: -353.4328009 | S144: -386.7810339 | T144: -418.961863 | U144: -452.0396264 | V144: -484.2024963 | W144: -515.6816576 | X144: -546.5336766 | Y144: -576.8200174 | Z144: -606.8611059 | AA144: -636.9912456 | AB144: -667.1585174 | AC144: -697.6315417 | AD144: -728.448736 | AE144: -759.9724398 | AF144: -792.4997817 | AG144: -826.0714505 | AH144: -861.1125692 | AI144: -895.8200006 | AJ144: -930.1939378 | AK144: -964.2297157 | AL144: -997.9179091 | AM144: -1031.244412 | AN144: -1064.190497 | AO144: -1096.732859 | AP144: -1128.843638 | AQ144: -1160.490433 | AR144: -1191.636289 | AS144: -1222.240405 | AT144: -1252.257928 | AU144: -1281.640874 | AV144: -1310.357271 | AW144: -1338.323981 | AX144: -1365.530102
L145: East | M145: -69.63419756 | N145: -72.45541239 | O145: -76.08878118 | P145: -79.73957405 | Q145: -83.21985076 | R145: -87.05395944 | S145: -90.85467594 | T145: -94.68672161
L146: London | M146: -45.28444478 | N146: -46.99119781 | O146: -49.50610905 | P146: -52.27998212 | Q146: -55.77124834 | R146: -58.65166464 | S146: -61.92209727 | T146: -65.2541362
L147: North_West | M147: -47.87311962 | N147: -49.75229077 | O147: -52.24035635 | P147: -54.87396975 | Q147: -57.71902024 | R147: -60.38951133 | S147: -63.0105067 | T147: -65.8460726
L148: West_Midlands | M148: -36.38071966 | N148: -37.84811895 | O148: -39.65670343 | P148: -41.52599405 | Q148: -43.43516763 | R148: -45.3758778 | S148: -47.51794306 | T148: -49.70973095
L149: Northern | M149: -35.92115373 | N149: -38.30082314 | O149: -40.41530315 | P149: -42.68134475 | Q149: -44.55591948 | R149: -46.59216478 | S149: -48.49518291 | T149: -50.46064133
L150: Scotland | M150: =+'[7]User input'!$N$117 -> 97.34406979 | N150: =+'[7]User input'!$O$117 -> -33.88589477 | O150: =+'[7]User input'!$P$117 -> -36.15432533 | P150: =+'[7]User input'!$Q$117 -> -36.99513082 | Q150: =+'[7]User input'!$R$117 -> -41.06809033 | R150: =+'[7]User input'!$S$117 -> -44.14619712 | S150: =+'[7]User input'!$T$117 -> -52.05006482 | T150: =+'[7]User input'!$U$117 -> -52.47710207
L151: Southern | M151: 121.4365184 | N151: -80.23666906 | O151: -84.60567104 | P151: -91.67423336 | Q151: -91.44099554 | R151: -86.5259865 | S151: -95.47792681 | T151: -109.7753962
L152: Wales_&_West | M152: -33.14395847 | N152: -36.48530591 | O152: -44.04946833 | P152: -52.69152921 | Q152: -41.64225302 | R152: -44.72790912 | S152: -50.4079749 | T152: -54.71839507
A154: 13 | B154: All | C154: Equity issue
C155: Year ending 31 March | E155: 2005-03-31 | F155: 2006-03-31 | G155: 2007-03-31 | H155: 2008-03-31 | I155: 2009-03-31 | J155: 2010-03-31 | K155: 2011-03-31 | L155: 2012-03-31 | M155: 2013-03-31 | N155: 2014-03-31 | O155: 2015-03-31 | P155: 2016-03-31 | Q155: 2017-03-31 | R155: 2018-03-31 | S155: 2019-03-31 | T155: 2020-03-31 | U155: 2021-03-31 | V155: 2022-03-31 | W155: 2023-03-31 | X155: 2024-03-31 | Y155: 2025-03-31 | Z155: 2026-03-31 | AA155: 2027-03-31 | AB155: 2028-03-31 | AC155: 2029-03-31 | AD155: 2030-03-31 | AE155: 2031-03-31 | AF155: 2032-03-31 | AG155: 2033-03-31 | AH155: 2034-03-31 | AI155: 2035-03-31 | AJ155: 2036-03-31 | AK155: 2037-03-31 | AL155: 2038-03-31 | AM155: 2039-03-31 | AN155: 2040-03-31 | AO155: 2041-03-31 | AP155: 2042-03-31 | AQ155: 2043-03-31 | AR155: 2044-03-31 | AS155: 2045-03-31 | AT155: 2046-03-31 | AU155: 2047-03-31 | AV155: 2048-03-31 | AW155: 2049-03-31 | AX155: 2050-03-31
M156: =CHOOSE(UserInterface!$B$51,M157,M158,M159,M160,M161,0,0,0,0,0,0,0,0,0,0) -> 0 | N156: =CHOOSE(UserInterface!$B$51,N157,N158,N159,N160,N161,0,0,0,0,0,0,0,0,0,0) -> 0 | O156: =CHOOSE(UserInterface!$B$51,O157,O158,O159,O160,O161,0,0,0,0,0,0,0,0,0,0) -> 183.8779657 | P156: =CHOOSE(UserInterface!$B$51,P157,P158,P159,P160,P161,0,0,0,0,0,0,0,0,0,0) -> 0 | Q156: =CHOOSE(UserInterface!$B$51,Q157,Q158,Q159,Q160,Q161,0,0,0,0,0,0,0,0,0,0) -> 0 | R156: =CHOOSE(UserInterface!$B$51,R157,R158,R159,R160,R161,0,0,0,0,0,0,0,0,0,0) -> 0 | S156: =CHOOSE(UserInterface!$B$51,S157,S158,S159,S160,S161,0,0,0,0,0,0,0,0,0,0) -> 0 | T156: =CHOOSE(UserInterface!$B$51,T157,T158,T159,T160,T161,0,0,0,0,0,0,0,0,0,0) -> 0 | U156: =CHOOSE(UserInterface!$B$51,U157,U158,U159,U160,U161,0,0,0,0,0,0,0,0,0,0) -> 0 | V156: =CHOOSE(UserInterface!$B$51,V157,V163,0,0,0,0,0,0,0,0,0,0,0,0,0) -> 0 | W156: =CHOOSE(UserInterface!$B$51,W157,W163,0,0,0,0,0,0,0,0,0,0,0,0,0) -> 0 | X156: =CHOOSE(UserInterface!$B$51,X157,X163,0,0,0,0,0,0,0,0,0,0,0,0,0) -> 0 | Y156: =CHOOSE(UserInterface!$B$51,Y157,Y163,0,0,0,0,0,0,0,0,0,0,0,0,0) -> 0 | Z156: =CHOOSE(UserInterface!$B$51,Z157,Z163,0,0,0,0,0,0,0,0,0,0,0,0,0) -> 0 | AA156: =CHOOSE(UserInterface!$B$51,AA157,AA163,0,0,0,0,0,0,0,0,0,0,0,0,0) -> 0 | AB156: =CHOOSE(UserInterface!$B$51,AB157,AB163,0,0,0,0,0,0,0,0,0,0,0,0,0) -> 0 | AC156: =CHOOSE(UserInterface!$B$51,AC157,AC163,0,0,0,0,0,0,0,0,0,0,0,0,0) -> 0 | AD156: =CHOOSE(UserInterface!$B$51,AD157,AD163,0,0,0,0,0,0,0,0,0,0,0,0,0) -> 0 | AE156: =CHOOSE(UserInterface!$B$51,AE157,AE163,0,0,0,0,0,0,0,0,0,0,0,0,0) -> 0 | AF156: =CHOOSE(UserInterface!$B$51,AF157,AF163,0,0,0,0,0,0,0,0,0,0,0,0,0) -> 0 | AG156: =CHOOSE(UserInterface!$B$51,AG157,AG163,0,0,0,0,0,0,0,0,0,0,0,0,0) -> 0 | AH156: =CHOOSE(UserInterface!$B$51,AH157,AH163,0,0,0,0,0,0,0,0,0,0,0,0,0) -> 0 | AI156: =CHOOSE(UserInterface!$B$51,AI157,AI163,0,0,0,0,0,0,0,0,0,0,0,0,0) -> 0 | AJ156: =CHOOSE(UserInterface!$B$51,AJ157,AJ163,0,0,0,0,0,0,0,0,0,0,0,0,0) -> 0 | AK156: =CHOOSE(UserInterface!$B$51,AK157,AK163,0,0,0,0,0,0,0,0,0,0,0,0,0) -> 0 | AL156: =CHOOSE(UserInterface!$B$51,AL157,AL163,0,0,0,0,0,0,0,0,0,0,0,0,0) -> 0 | AM156: =CHOOSE(UserInterface!$B$51,AM157,AM163,0,0,0,0,0,0,0,0,0,0,0,0,0) -> 0 | AN156: =CHOOSE(UserInterface!$B$51,AN157,AN163,0,0,0,0,0,0,0,0,0,0,0,0,0) -> 0 | AO156: =CHOOSE(UserInterface!$B$51,AO157,AO163,0,0,0,0,0,0,0,0,0,0,0,0,0) -> 0 | AP156: =CHOOSE(UserInterface!$B$51,AP157,AP163,0,0,0,0,0,0,0,0,0,0,0,0,0) -> 0 | AQ156: =CHOOSE(UserInterface!$B$51,AQ157,AQ163,0,0,0,0,0,0,0,0,0,0,0,0,0) -> 0 | AR156: =CHOOSE(UserInterface!$B$51,AR157,AR163,0,0,0,0,0,0,0,0,0,0,0,0,0) -> 0 | AS156: =CHOOSE(UserInterface!$B$51,AS157,AS163,0,0,0,0,0,0,0,0,0,0,0,0,0) -> 0 | AT156: =CHOOSE(UserInterface!$B$51,AT157,AT163,0,0,0,0,0,0,0,0,0,0,0,0,0) -> 0 | AU156: =CHOOSE(UserInterface!$B$51,AU157,AU163,0,0,0,0,0,0,0,0,0,0,0,0,0) -> 0 | AV156: =CHOOSE(UserInterface!$B$51,AV157,AV163,0,0,0,0,0,0,0,0,0,0,0,0,0) -> 0 | AW156: =CHOOSE(UserInterface!$B$51,AW157,AW163,0,0,0,0,0,0,0,0,0,0,0,0,0) -> 0 | AX156: =CHOOSE(UserInterface!$B$51,AX157,AX163,0,0,0,0,0,0,0,0,0,0,0,0,0) -> 0
L157: SHETL | M157: 0 | N157: =IF(Notes!N117>CommonInputs!N26,(Notes!N117-CommonInputs!N26)*Notes!N115,0) -> 0 | O157: =IF(Notes!O117>CommonInputs!O26,(Notes!O117-CommonInputs!O26)*Notes!O115,0) -> 68.42210081 | P157: =IF(Notes!P117>CommonInputs!P26,(Notes!P117-CommonInputs!P26)*Notes!P115,0) -> 0 | Q157: =IF(Notes!Q117>CommonInputs!Q26,(Notes!Q117-CommonInputs!Q26)*Notes!Q115,0) -> 0 | R157: =IF(Notes!R117>CommonInputs!R26,(Notes!R117-CommonInputs!R26)*Notes!R115,0) -> 0 | S157: =IF(Notes!S117>CommonInputs!S26,(Notes!S117-CommonInputs!S26)*Notes!S115,0) -> 0 | T157: =IF(Notes!T117>CommonInputs!T26,(Notes!T117-CommonInputs!T26)*Notes!T115,0) -> 0 | U157: =IF(Notes!U117>CommonInputs!U26,(Notes!U117-CommonInputs!U26)*Notes!U115,0) -> 0
L158: SPTL | M158: 0 | N158: =IF(Notes!N117>N125,(Notes!N117-N125)*Notes!N115,0) -> 0 | O158: =IF(Notes!O117>O125,(Notes!O117-O125)*Notes!O115,0) -> 183.8779657 | P158: =IF(Notes!P117>P125,(Notes!P117-P125)*Notes!P115,0) -> 0 | Q158: =IF(Notes!Q117>Q125,(Notes!Q117-Q125)*Notes!Q115,0) -> 0 | R158: =IF(Notes!R117>R125,(Notes!R117-R125)*Notes!R115,0) -> 0 | S158: =IF(Notes!S117>S125,(Notes!S117-S125)*Notes!S115,0) -> 0 | T158: =IF(Notes!T117>T125,(Notes!T117-T125)*Notes!T115,0) -> 0 | U158: =IF(Notes!U117>U125,(Notes!U117-U125)*Notes!U115,0) -> 0
L159: NGET_TO | M159: ='[5]Cashflow Calc'!AA59-'[5]ESO Net Debt'!AA56 -> 0 | N159: ='[5]Cashflow Calc'!AB59-'[5]ESO Net Debt'!AB56 -> -13.43859485 | O159: ='[5]Cashflow Calc'!AC59-'[5]ESO Net Debt'!AC56 -> 1100 | P159: ='[5]Cashflow Calc'!AD59-'[5]ESO Net Debt'!AD56 -> 0 | Q159: ='[5]Cashflow Calc'!AE59-'[5]ESO Net Debt'!AE56 -> 0 | R159: ='[5]Cashflow Calc'!AF59-'[5]ESO Net Debt'!AF56 -> 1300 | S159: ='[5]Cashflow Calc'!AG59-'[5]ESO Net Debt'!AG56 -> 0 | T159: ='[5]Cashflow Calc'!AH59-'[5]ESO Net Debt'!AH56 -> 0 | U159: ='[5]Cashflow Calc'!AI59-'[5]ESO Net Debt'!AI56 -> 0
L160: NGET_SO | M160: ='[5]ESO Net Debt'!AA56 -> 0 | N160: ='[5]ESO Net Debt'!AB56 -> 35 | O160: ='[5]ESO Net Debt'!AC56 -> 0 | P160: ='[5]ESO Net Debt'!AD56 -> 0 | Q160: ='[5]ESO Net Debt'!AE56 -> 0 | R160: ='[5]ESO Net Debt'!AF56 -> 0 | S160: ='[5]ESO Net Debt'!AG56 -> 0 | T160: ='[5]ESO Net Debt'!AH56 -> 0 | U160: ='[5]ESO Net Debt'!AI56 -> 0
L161: NGGT_TO | M161: ='[6]Cashflow Calc'!AA$67-'[6]GSO Net Debt'!AA$54 -> 0 | N161: ='[6]Cashflow Calc'!AB$67-'[6]GSO Net Debt'!AB$54 -> -84.20715818 | O161: ='[6]Cashflow Calc'!AC$67-'[6]GSO Net Debt'!AC$54 -> 0 | P161: ='[6]Cashflow Calc'!AD$67-'[6]GSO Net Debt'!AD$54 -> 260 | Q161: ='[6]Cashflow Calc'!AE$67-'[6]GSO Net Debt'!AE$54 -> 0 | R161: ='[6]Cashflow Calc'!AF$67-'[6]GSO Net Debt'!AF$54 -> 500 | S161: ='[6]Cashflow Calc'!AG$67-'[6]GSO Net Debt'!AG$54 -> 0 | T161: ='[6]Cashflow Calc'!AH$67-'[6]GSO Net Debt'!AH$54 -> 0 | U161: ='[6]Cashflow Calc'!AI$67-'[6]GSO Net Debt'!AI$54 -> 0
M162: ='[6]GSO Net Debt'!AA$54 -> 0 | N162: ='[6]GSO Net Debt'!AB$54 -> 40 | O162: ='[6]GSO Net Debt'!AC$54 -> 0 | P162: ='[6]GSO Net Debt'!AD$54 -> 40 | Q162: ='[6]GSO Net Debt'!AE$54 -> 0 | R162: ='[6]GSO Net Debt'!AF$54 -> 0 | S162: ='[6]GSO Net Debt'!AG$54 -> 0 | T162: ='[6]GSO Net Debt'!AH$54 -> 0 | U162: ='[6]GSO Net Debt'!AI$54 -> 0
A163: 14 | B163: All | C163: Deferred Revenue Expenditure Writing Down Rate (%)
C164: Year ending 31 March | E164: 2005-03-31 | F164: 2006-03-31 | G164: 2007-03-31 | H164: 2008-03-31 | I164: 2009-03-31 | J164: 2010-03-31 | K164: 2011-03-31 | L164: 2012-03-31 | M164: 2013-03-31 | N164: 2014-03-31 | O164: 2015-03-31 | P164: 2016-03-31 | Q164: 2017-03-31 | R164: 2018-03-31 | S164: 2019-03-31 | T164: 2020-03-31 | U164: 2021-03-31 | V164: 2022-03-31 | W164: 2023-03-31 | X164: 2024-03-31 | Y164: 2025-03-31 | Z164: 2026-03-31 | AA164: 2027-03-31 | AB164: 2028-03-31 | AC164: 2029-03-31 | AD164: 2030-03-31 | AE164: 2031-03-31 | AF164: 2032-03-31 | AG164: 2033-03-31 | AH164: 2034-03-31 | AI164: 2035-03-31 | AJ164: 2036-03-31 | AK164: 2037-03-31 | AL164: 2038-03-31 | AM164: 2039-03-31 | AN164: 2040-03-31 | AO164: 2041-03-31 | AP164: 2042-03-31 | AQ164: 2043-03-31 | AR164: 2044-03-31 | AS164: 2045-03-31 | AT164: 2046-03-31 | AU164: 2047-03-31 | AV164: 2048-03-31 | AW164: 2049-03-31 | AX164: 2050-03-31
E165: 0.03 | F165: 0.03 | G165: 0.03 | H165: 0.03 | I165: 0.03 | J165: 0.03 | K165: 0.03 | L165: 0.03 | M165: 0.03 | N165: 0.03 | O165: 0.03 | P165: 0.03 | Q165: 0.03 | R165: 0.03 | S165: 0.03 | T165: 0.03 | U165: 0.03 | V165: 0.03 | W165: 0.03 | X165: 0.03 | Y165: 0.03 | Z165: 0.03 | AA165: 0.03 | AB165: 0.03 | AC165: 0.03 | AD165: 0.03 | AE165: 0.03 | AF165: 0.03 | AG165: 0.03 | AH165: 0.03 | AI165: 0.03 | AJ165: 0.03 | AK165: 0.03 | AL165: 0.03 | AM165: 0.03 | AN165: 0.03 | AO165: 0.03 | AP165: 0.03 | AQ165: 0.03 | AR165: 0.03 | AS165: 0.03 | AT165: 0.03 | AU165: 0.03 | AV165: 0.03 | AW165: 0.03 | AX165: 0.03
A167: 15 | B167: All | C167: Cost of debt profile
C168: Year ending 31 March | E168: 2005-03-31 | F168: 2006-03-31 | G168: 2007-03-31 | H168: 2008-03-31 | I168: 2009-03-31 | J168: 2010-03-31 | K168: 2011-03-31 | L168: 2012-03-31 | M168: 2013-03-31 | N168: 2014-03-31 | O168: 2015-03-31 | P168: 2016-03-31 | Q168: 2017-03-31 | R168: 2018-03-31 | S168: 2019-03-31 | T168: 2020-03-31 | U168: 2021-03-31 | V168: 2022-03-31 | W168: 2023-03-31 | X168: 2024-03-31 | Y168: 2025-03-31 | Z168: 2026-03-31 | AA168: 2027-03-31 | AB168: 2028-03-31 | AC168: 2029-03-31 | AD168: 2030-03-31 | AE168: 2031-03-31 | AF168: 2032-03-31 | AG168: 2033-03-31 | AH168: 2034-03-31 | AI168: 2035-03-31 | AJ168: 2036-03-31 | AK168: 2037-03-31 | AL168: 2038-03-31 | AM168: 2039-03-31 | AN168: 2040-03-31 | AO168: 2041-03-31 | AP168: 2042-03-31 | AQ168: 2043-03-31 | AR168: 2044-03-31 | AS168: 2045-03-31 | AT168: 2046-03-31 | AU168: 2047-03-31 | AV168: 2048-03-31 | AW168: 2049-03-31 | AX168: 2050-03-31
D169: User scenario 1 | M169: 0.032 | N169: =CHOOSE(UserInterface!$B$51,N172,N173,0.032,0.032,0.032,0.032,N174,N175,N176,N177,N178,N179,N180,N181) -> 0.032 | O169: =CHOOSE(UserInterface!$B$51,O172,O173,0.032,0.032,0.032,0.032,O174,O175,O176,O177,O178,O179,O180,O181) -> 0.032 | P169: =CHOOSE(UserInterface!$B$51,P172,P173,0.032,0.032,0.032,0.032,P174,P175,P176,P177,P178,P179,P180,P181) -> 0.032 | Q169: =CHOOSE(UserInterface!$B$51,Q172,Q173,0.032,0.032,0.032,0.032,Q174,Q175,Q176,Q177,Q178,Q179,Q180,Q181) -> 0.032 | R169: =CHOOSE(UserInterface!$B$51,R172,R173,0.032,0.032,0.032,0.032,R174,R175,R176,R177,R178,R179,R180,R181) -> 0.032 | S169: =CHOOSE(UserInterface!$B$51,S172,S173,0.032,0.032,0.032,0.032,S174,S175,S176,S177,S178,S179,S180,S181) -> 0.032 | T169: =CHOOSE(UserInterface!$B$51,T172,T173,0.032,0.032,0.032,0.032,T174,T175,T176,T177,T178,T179,T180,T181) -> 0.032 | U169: =CHOOSE(UserInterface!$B$51,U172,U173,0.032,0.032,0.032,0.032,U174,U175,U176,U177,U178,U179,U180,U181) -> 0.032 | V169: =U169 -> 0.032 | W169: =V169 -> 0.032 | X169: 0.032 | Y169: 0.032 | Z169: 0.032 | AA169: 0.032 | AB169: 0.032 | AC169: 0.032 | AD169: 0.032 | AE169: 0.032 | AF169: 0.032 | AG169: 0.032 | AH169: 0.032 | AI169: 0.032 | AJ169: 0.032 | AK169: 0.032 | AL169: 0.032 | AM169: 0.032 | AN169: 0.032 | AO169: 0.032 | AP169: 0.032 | AQ169: 0.032 | AR169: 0.032 | AS169: 0.032 | AT169: 0.032 | AU169: 0.032 | AV169: 0.032 | AW169: 0.032 | AX169: 0.032
D170: User scenario 2 | M170: 0.032 | N170: 0.032 | O170: 0.032 | P170: 0.032 | Q170: 0.032 | R170: 0.032 | S170: 0.032 | T170: 0.032 | U170: 0.032 | V170: =U170 -> 0.032 | W170: =V170 -> 0.032 | X170: 0.032 | Y170: 0.032 | Z170: 0.032 | AA170: 0.032 | AB170: 0.032 | AC170: 0.032 | AD170: 0.032 | AE170: 0.032 | AF170: 0.032 | AG170: 0.032 | AH170: 0.032 | AI170: 0.032 | AJ170: 0.032 | AK170: 0.032 | AL170: 0.032 | AM170: 0.032 | AN170: 0.032 | AO170: 0.032 | AP170: 0.032 | AQ170: 0.032 | AR170: 0.032 | AS170: 0.032 | AT170: 0.032 | AU170: 0.032 | AV170: 0.032 | AW170: 0.032 | AX170: 0.032
D171: User scenario 3 | L171: NG | M171: 0.032 | N171: 0.032 | O171: 0.032 | P171: 0.032 | Q171: 0.032 | R171: 0.032 | S171: 0.032 | T171: 0.032 | U171: 0.032 | V171: =U171 -> 0.032 | W171: 0.032 | X171: 0.032 | Y171: 0.032 | Z171: 0.032 | AA171: 0.032 | AB171: 0.032 | AC171: 0.032 | AD171: 0.032 | AE171: 0.032 | AF171: 0.032 | AG171: 0.032 | AH171: 0.032 | AI171: 0.032 | AJ171: 0.032 | AK171: 0.032 | AL171: 0.032 | AM171: 0.032 | AN171: 0.032 | AO171: 0.032 | AP171: 0.032 | AQ171: 0.032 | AR171: 0.032 | AS171: 0.032 | AT171: 0.032 | AU171: 0.032 | AV171: 0.032 | AW171: 0.032 | AX171: 0.032
L172: SHETL | N172: 0.032 | O172: =N172 -> 0.032 | P172: =O172 -> 0.032 | Q172: 0.032 | R172: 0.032 | S172: 0.032 | T172: 0.032 | U172: 0.032 | V172: =U172 -> 0.032 | W172: 0.032 | X172: 0.032 | Y172: 0.032 | Z172: 0.032 | AA172: 0.032 | AB172: 0.032 | AC172: 0.032 | AD172: 0.032 | AE172: 0.032 | AF172: 0.032 | AG172: 0.032 | AH172: 0.032 | AI172: 0.032 | AJ172: 0.032 | AK172: 0.032 | AL172: 0.032 | AM172: 0.032 | AN172: 0.032 | AO172: 0.032 | AP172: 0.032 | AQ172: 0.032 | AR172: 0.032 | AS172: 0.032 | AT172: 0.032 | AU172: 0.032 | AV172: 0.032 | AW172: 0.032 | AX172: 0.032
L173: SPTL | N173: ='[4]User input'!N113 -> 0.032 | O173: ='[4]User input'!O113 -> 0.032 | P173: ='[4]User input'!P113 -> 0.032 | Q173: ='[4]User input'!Q113 -> 0.032 | R173: ='[4]User input'!R113 -> 0.032 | S173: ='[4]User input'!S113 -> 0.032 | T173: ='[4]User input'!T113 -> 0.032 | U173: ='[4]User input'!U113 -> 0.032 | V173: ='[4]User input'!V113 -> 0.032 | W173: ='[4]User input'!W113 -> 0.032 | X173: ='[4]User input'!X113 -> 0.032 | Y173: ='[4]User input'!Y113 -> 0.032 | Z173: ='[4]User input'!Z113 -> 0.032 | AA173: ='[4]User input'!AA113 -> 0.032 | AB173: ='[4]User input'!AB113 -> 0.032 | AC173: ='[4]User input'!AC113 -> 0.032 | AD173: ='[4]User input'!AD113 -> 0.032 | AE173: ='[4]User input'!AE113 -> 0.032 | AF173: ='[4]User input'!AF113 -> 0.032 | AG173: ='[4]User input'!AG113 -> 0.032 | AH173: ='[4]User input'!AH113 -> 0.032 | AI173: ='[4]User input'!AI113 -> 0.032 | AJ173: ='[4]User input'!AJ113 -> 0.032 | AK173: ='[4]User input'!AK113 -> 0.032 | AL173: ='[4]User input'!AL113 -> 0.032 | AM173: ='[4]User input'!AM113 -> 0.032 | AN173: ='[4]User input'!AN113 -> 0.032 | AO173: ='[4]User input'!AO113 -> 0.032 | AP173: ='[4]User input'!AP113 -> 0.032 | AQ173: ='[4]User input'!AQ113 -> 0.032 | AR173: ='[4]User input'!AR113 -> 0.032 | AS173: ='[4]User input'!AS113 -> 0.032 | AT173: ='[4]User input'!AT113 -> 0.032 | AU173: ='[4]User input'!AU113 -> 0.032 | AV173: ='[4]User input'!AV113 -> 0.032 | AW173: ='[4]User input'!AW113 -> 0.032 | AX173: ='[4]User input'!AX113 -> 0.032
L174: East | N174: 0.032 | O174: 0.032 | P174: 0.032 | Q174: 0.032 | R174: 0.032 | S174: 0.032 | T174: 0.032 | U174: 0.032
L175: London | N175: 0.032 | O175: 0.032 | P175: 0.032 | Q175: 0.032 | R175: 0.032 | S175: 0.032 | T175: 0.032 | U175: 0.032
L176: North_West | N176: 0.032 | O176: 0.032 | P176: 0.032 | Q176: 0.032 | R176: 0.032 | S176: 0.032 | T176: 0.032 | U176: 0.032
L177: West_Midlands | N177: 0.032 | O177: 0.032 | P177: 0.032 | Q177: 0.032 | R177: 0.032 | S177: 0.032 | T177: 0.032 | U177: 0.032
L178: Northern | N178: 0.029 | O178: 0.0281 | P178: 0.0279 | Q178: 0.028 | R178: 0.0282 | S178: 0.0283 | T178: 0.0272 | U178: 0.0261
L179: Scotland | N179: 0.035575 | O179: 0.03569375 | P179: 0.03624375 | Q179: 0.03715625 | R179: 0.03771875 | S179: 0.03691875 | T179: 0.0370875 | U179: 0.0382875
L180: Southern | N180: 0.035575 | O180: 0.03569375 | P180: 0.03624375 | Q180: 0.03715625 | R180: 0.03771875 | S180: 0.03691875 | T180: 0.0370875 | U180: 0.0382875
L181: Wales_&_West | N181: 0.032 | O181: 0.032 | P181: 0.032 | Q181: 0.032 | R181: 0.032 | S181: 0.032 | T181: 0.032 | U181: 0.032
A183: 16 | B183: All | C183: Index Linked debt %
C184: Year ending 31 March | E184: 2005-03-31 | F184: 2006-03-31 | G184: 2007-03-31 | H184: 2008-03-31 | I184: 2009-03-31 | J184: 2010-03-31 | K184: 2011-03-31 | L184: 2012-03-31 | M184: 2013-03-31 | N184: 2014-03-31 | O184: 2015-03-31 | P184: 2016-03-31 | Q184: 2017-03-31 | R184: 2018-03-31 | S184: 2019-03-31 | T184: 2020-03-31 | U184: 2021-03-31 | V184: 2022-03-31 | W184: 2023-03-31 | X184: 2024-03-31 | Y184: 2025-03-31 | Z184: 2026-03-31 | AA184: 2027-03-31 | AB184: 2028-03-31 | AC184: 2029-03-31 | AD184: 2030-03-31 | AE184: 2031-03-31 | AF184: 2032-03-31 | AG184: 2033-03-31 | AH184: 2034-03-31 | AI184: 2035-03-31 | AJ184: 2036-03-31 | AK184: 2037-03-31 | AL184: 2038-03-31 | AM184: 2039-03-31 | AN184: 2040-03-31 | AO184: 2041-03-31 | AP184: 2042-03-31 | AQ184: 2043-03-31 | AR184: 2044-03-31 | AS184: 2045-03-31 | AT184: 2046-03-31 | AU184: 2047-03-31 | AV184: 2048-03-31 | AW184: 2049-03-31 | AX184: 2050-03-31
D185: 0 | N185: =$D$185 -> 0 | O185: =$D$185 -> 0 | P185: 0 | Q185: 0 | R185: 0 | S185: 0 | T185: 0 | U185: 0

Sheet CommonInputs
A1: =CHOOSE(UserInterface!$B$51,"SHETL","SPTL","NGET_TO","NGET_SO","NGGT_TO","NGGT_SO","East","London","North_West","West_Midlands","Northern","Scotland","Southern","Wales_&_West") -> SPTL | C1: Year ending 31 March | E1: =EOMONTH($J$5,E2*12) -> 2005-03-31 | F1: 2006-03-31 | G1: 2007-03-31 | H1: 2008-03-31 | I1: 2009-03-31 | J1: 2010-03-31 | K1: 2011-03-31 | L1: =EOMONTH($J$5,L2*12) -> 2012-03-31 | M1: 2013-03-31 | N1: 2014-03-31 | O1: 2015-03-31 | P1: 2016-03-31 | Q1: 2017-03-31 | R1: 2018-03-31 | S1: 2019-03-31 | T1: 2020-03-31 | U1: 2021-03-31 | V1: 2022-03-31 | W1: 2023-03-31 | X1: 2024-03-31 | Y1: 2025-03-31 | Z1: 2026-03-31 | AA1: 2027-03-31 | AB1: 2028-03-31 | AC1: 2029-03-31 | AD1: 2030-03-31 | AE1: 2031-03-31 | AF1: 2032-03-31 | AG1: 2033-03-31 | AH1: 2034-03-31 | AI1: 2035-03-31 | AJ1: 2036-03-31 | AK1: 2037-03-31 | AL1: 2038-03-31 | AM1: 2039-03-31 | AN1: 2040-03-31 | AO1: 2041-03-31 | AP1: 2042-03-31 | AQ1: 2043-03-31 | AR1: 2044-03-31 | AS1: 2045-03-31 | AT1: 2046-03-31 | AU1: 2047-03-31 | AV1: 2048-03-31 | AW1: 2049-03-31 | AX1: 2050-03-31 | AY1: 2051-03-31 | AZ1: 2052-03-31 | BA1: 2053-03-31 | BB1: 2054-03-31 | BC1: 2055-03-31 | BD1: 2056-03-31 | BE1: 2057-03-31 | BF1: 2058-03-31 | BG1: 2059-03-31 | BH1: 2060-03-31
C2: Formula year | E2: =F2-1 -> -5 | F2: =G2-1 -> -4 | G2: =H2-1 -> -3 | H2: =I2-1 -> -2 | I2: =J2-1 -> -1 | J2: 0 | K2: =J2+1 -> 1 | L2: =K2+1 -> 2 | M2: 3 | N2: 4 | O2: 5 | P2: 6 | Q2: 7 | R2: 8 | S2: 9 | T2: 10 | U2: 11 | V2: =U2+1 -> 12 | W2: 13 | X2: 14 | Y2: 15 | Z2: 16 | AA2: 17 | AB2: 18 | AC2: 19 | AD2: 20 | AE2: 21 | AF2: 22 | AG2: 23 | AH2: 24 | AI2: 25 | AJ2: 26 | AK2: 27 | AL2: 28 | AM2: 29 | AN2: 30 | AO2: 31 | AP2: 32 | AQ2: 33 | AR2: 34 | AS2: 35 | AT2: 36 | AU2: 37 | AV2: 38 | AW2: 39 | AX2: 40 | AY2: 41 | AZ2: 42 | BA2: 43 | BB2: 44 | BC2: 45 | BD2: 46 | BE2: 47 | BF2: 48 | BG2: 49 | BH2: 50
H3: TPCR4 | M3: TPCR4 Rollover | N3: RIIO T1/G1
B4: General inputs | E4: historical values of RPI are downloaded from ONS | K4: forecast values of RPI are from Ofgem - trending to the long term assumption of 2.5% per annum
C5: Period start date | I5: StartDate | J5: 2010-03-31 | K5: StartDate
C6: RPI (simple average year to March) | E6: 188.15 | F6: 193.1083333 | G6: 200.3166667 | H6: 208.5916667 | I6: 214.7833333 | J6: 215.7666667 | K6: 226.475 | L6: 236.8535865 | M6: 245.5775775 | N6: 253.6262157 | O6: 261.053395 | P6: 268.1436277 | Q6: 275.1376196 | R6: 282.1818699 | S6: 289.3511422 | T6: 296.6807729 | U6: 304.1878524
C7: Previous year RPI | E7: 182.475 | F7: 188.15 | G7: =F6 -> 193.1083333 | H7: 200.3166667 | I7: 208.5916667 | J7: 214.7833333 | K7: 215.7666667 | L7: 226.475 | M7: 236.8535865 | N7: 245.5775775 | O7: 253.6262157 | P7: 261.053395 | Q7: 268.1436277 | R7: 275.1376196 | S7: 282.1818699 | T7: 289.3511422 | U7: 296.6807729
C8: Base year (end 31 March) RPI (for nominal - real conversions) | J8: 215.7666667 | K8: BaseRPI
C9: Nominal to real conversion factor | J9: =$J$8/J6 -> 1 | K9: =$J$8/K6 -> 0.9527173713 | L9: 0.9109706542 | M9: 0.8786089874 | N9: 0.8507269885 | O9: 0.8265231205 | P9: 0.8046682613 | Q9: 0.7842136127 | R9: 0.7646368874 | S9: 0.7456914288 | T9: 0.7272687899 | U9: 0.7093204577
C10: Forecast inflation, % | E10: =E6/E7-1 -> 0.03110015071 | F10: 0.02635308708 | G10: 0.03732792474 | H10: 0.04130959314 | I10: 0.02968319284 | J10: 0.004578257158 | K10: =K6/K7-1 -> 0.04962922911 | L10: =L6/L7-1 -> 0.04582663222 | M10: 0.03683284282 | N10: 0.03277432044 | O10: 0.02928395756 | P10: 0.02716008608 | Q10: 0.02608300628 | R10: 0.02560264309 | S10: 0.0254065661 | T10: 0.02533126562 | U10: 0.02530355928
C11: Inflation index (annual) | J11: 1 | K11: =K6/K7 -> 1.049629229 | L11: =L6/L7 -> 1.045826632 | M11: 1.036832843 | N11: 1.03277432 | O11: 1.029283958 | P11: 1.027160086 | Q11: 1.026083006 | R11: 1.025602643 | S11: 1.025406566 | T11: 1.025331266 | U11: 1.025303559
C12: Inflation since start year (compound) | J12: 1 | K12: =K6/$J6 -> 1.049629229 | L12: =L6/$J6 -> 1.097730202 | M12: 1.138162726 | N12: 1.175465236 | O12: 1.20988751 | P12: 1.242748159 | Q12: 1.275162767 | R12: 1.307810304 | S12: 1.341037273 | T12: 1.375007444 | U12: 1.409800026
C13: Formula year start for Price control | J13: 3 | K13: PCStart
C14: Length of price control period (years) | J14: 5 | K14: PCPeriod | M14: 1.146780051 | N14: 04/05 to 09/10 conversion factor
C15: Formula year after which Ofgem calcs start | J15: 0 | K15: DateSwitch
C16: FBPQ base price conversion factor (09/10 to Nominal) | J16: 1 | K16: =K6/$J6 -> 1.049629229 | L16: =L6/$J6 -> 1.097730202 | M16: 1.138162726 | N16: 1.175465236 | O16: 1.20988751 | P16: 1.242748159 | Q16: 1.275162767 | R16: 1.307810304 | S16: 1.341037273 | T16: 1.375007444 | U16: 1.409800026
B21: Cost of Capital Data | K21: forecast values are from Ofgem
C23: Cost of debt | E23: =IF(UserInterface!$I$2="GD",0.0465,0.0445) -> 0.0445 | F23: =IF(UserInterface!$I$2="GD",0.0465,0.0445) -> 0.0445 | G23: =IF(UserInterface!$I$2="GD",0.0465,0.0445) -> 0.0445 | H23: =IF(UserInterface!$I$2="GD",0.0465,0.0375) -> 0.0375 | I23: =IF(UserInterface!$I$2="GD",0.0355,0.0375) -> 0.0375 | J23: =IF(UserInterface!$I$2="GD",0.0355,0.0375) -> 0.0375 | K23: =IF(UserInterface!$I$2="GD",0.0355,0.0375) -> 0.0375 | L23: =IF(UserInterface!$I$2="GD",0.0355,0.0375) -> 0.0375 | M23: =IF(UserInterface!$I$2="GD",0.0355,0.0325) -> 0.0325 | N23: =CHOOSE(UserInterface!$B$118,X38,X39,X40,X41,X42) -> 0.0303 | O23: =CHOOSE(UserInterface!$B$118,Y38,Y39,Y40,Y41,Y42) -> 0.0303 | P23: =CHOOSE(UserInterface!$B$118,Z38,Z39,Z40,Z41,Z42) -> 0.0303 | Q23: =CHOOSE(UserInterface!$B$118,AA38,AA39,AA40,AA41,AA42) -> 0.0303 | R23: =CHOOSE(UserInterface!$B$118,AB38,AB39,AB40,AB41,AB42) -> 0.0303 | S23: =CHOOSE(UserInterface!$B$118,AC38,AC39,AC40,AC41,AC42) -> 0.0303 | T23: =CHOOSE(UserInterface!$B$118,AD38,AD39,AD40,AD41,AD42) -> 0.0303 | U23: =CHOOSE(UserInterface!$B$118,AE38,AE39,AE40,AE41,AE42) -> 0.0303
C24: Cost of equity | E24: =IF(UserInterface!$I$2="GD",0.0625,0.0625) -> 0.0625 | F24: =IF(UserInterface!$I$2="GD",0.0625,0.0625) -> 0.0625 | G24: =IF(UserInterface!$I$2="GD",0.0625,0.0625) -> 0.0625 | H24: =IF(UserInterface!$I$2="GD",0.0625,0.07) -> 0.07 | I24: =IF(UserInterface!$I$2="GD",0.0725,0.07) -> 0.07 | J24: =IF(UserInterface!$I$2="GD",0.0725,0.07) -> 0.07 | K24: =IF(UserInterface!$I$2="GD",0.0725,0.07) -> 0.07 | L24: =IF(UserInterface!$I$2="GD",0.0725,0.07) -> 0.07 | M24: =IF(UserInterface!$I$2="GD",0.0725,0.07) -> 0.07 | N24: =IF(UserInterface!$B$71=5,CommonInputs!AH34,CHOOSE(UserInterface!$B$51,$P34,$P35,$P36,$P37,$P38,$P39,$P47,$P47,$P47,$P47,$P47,$P47,$P47,$P47)) -> 0.07 | O24: =IF(UserInterface!$B$71=5,CommonInputs!AI34,CHOOSE(UserInterface!$B$51,$P34,$P35,$P36,$P37,$P38,$P39,$P47,$P47,$P47,$P47,$P47,$P47,$P47,$P47)) -> 0.07 | P24: =IF(UserInterface!$B$71=5,CommonInputs!AJ34,CHOOSE(UserInterface!$B$51,$P34,$P35,$P36,$P37,$P38,$P39,$P47,$P47,$P47,$P47,$P47,$P47,$P47,$P47)) -> 0.07 | Q24: =IF(UserInterface!$B$71=5,CommonInputs!AK34,CHOOSE(UserInterface!$B$51,$P34,$P35,$P36,$P37,$P38,$P39,$P47,$P47,$P47,$P47,$P47,$P47,$P47,$P47)) -> 0.07 | R24: =IF(UserInterface!$B$71=5,CommonInputs!AL34,CHOOSE(UserInterface!$B$51,$P34,$P35,$P36,$P37,$P38,$P39,$P47,$P47,$P47,$P47,$P47,$P47,$P47,$P47)) -> 0.07 | S24: =IF(UserInterface!$B$71=5,CommonInputs!AM34,CHOOSE(UserInterface!$B$51,$P34,$P35,$P36,$P37,$P38,$P39,$P47,$P47,$P47,$P47,$P47,$P47,$P47,$P47)) -> 0.07 | T24: =IF(UserInterface!$B$71=5,CommonInputs!AN34,CHOOSE(UserInterface!$B$51,$P34,$P35,$P36,$P37,$P38,$P39,$P47,$P47,$P47,$P47,$P47,$P47,$P47,$P47)) -> 0.07 | U24: =IF(UserInterface!$B$71=5,CommonInputs!AO34,CHOOSE(UserInterface!$B$51,$P34,$P35,$P36,$P37,$P38,$P39,$P47,$P47,$P47,$P47,$P47,$P47,$P47,$P47)) -> 0.07
C26: Assumed gearing (debt/(debt+equity)), % | E26: =IF(UserInterface!$I$2="GD",0.625,0.6) -> 0.6 | F26: =IF(UserInterface!$I$2="GD",0.625,0.6) -> 0.6 | G26: =IF(UserInterface!$I$2="GD",0.625,0.6) -> 0.6 | H26: =IF(UserInterface!$I$2="GD",0.625,0.6) -> 0.6 | I26: =IF(UserInterface!$I$2="GD",0.625,0.6) -> 0.6 | J26: =IF(UserInterface!$I$2="GD",0.625,0.6) -> 0.6 | K26: =IF(UserInterface!$I$2="GD",0.625,0.6) -> 0.6 | L26: =IF(UserInterface!$I$2="GD",0.625,0.6) -> 0.6 | M26: =IF(UserInterface!$I$2="GD",0.625,0.6) -> 0.6 | N26: =IF(UserInterface!$B$62=9,CommonInputs!AH38,CHOOSE(UserInterface!$B$51,$E34,$E35,$E36,$E37,$E38,$E39,$E40,$E41,$E42,$E43,$E44,$E45,$E46,$E47)) -> 0.55 | O26: =IF(UserInterface!$B$62=9,CommonInputs!AI38,CHOOSE(UserInterface!$B$51,$E34,$E35,$E36,$E37,$E38,$E39,$E40,$E41,$E42,$E43,$E44,$E45,$E46,$E47)) -> 0.55 | P26: =IF(UserInterface!$B$62=9,CommonInputs!AJ38,CHOOSE(UserInterface!$B$51,$E34,$E35,$E36,$E37,$E38,$E39,$E40,$E41,$E42,$E43,$E44,$E45,$E46,$E47)) -> 0.55 | Q26: =IF(UserInterface!$B$62=9,CommonInputs!AK38,CHOOSE(UserInterface!$B$51,$E34,$E35,$E36,$E37,$E38,$E39,$E40,$E41,$E42,$E43,$E44,$E45,$E46,$E47)) -> 0.55 | R26: =IF(UserInterface!$B$62=9,CommonInputs!AL38,CHOOSE(UserInterface!$B$51,$E34,$E35,$E36,$E37,$E38,$E39,$E40,$E41,$E42,$E43,$E44,$E45,$E46,$E47)) -> 0.55 | S26: =IF(UserInterface!$B$62=9,CommonInputs!AM38,CHOOSE(UserInterface!$B$51,$E34,$E35,$E36,$E37,$E38,$E39,$E40,$E41,$E42,$E43,$E44,$E45,$E46,$E47)) -> 0.55 | T26: =IF(UserInterface!$B$62=9,CommonInputs!AN38,CHOOSE(UserInterface!$B$51,$E34,$E35,$E36,$E37,$E38,$E39,$E40,$E41,$E42,$E43,$E44,$E45,$E46,$E47)) -> 0.55 | U26: =IF(UserInterface!$B$62=9,CommonInputs!AO38,CHOOSE(UserInterface!$B$51,$E34,$E35,$E36,$E37,$E38,$E39,$E40,$E41,$E42,$E43,$E44,$E45,$E46,$E47)) -> 0.55
B27: reflects latest budget proposals | C27: Corporation tax rate, % | E27: 0.3 | F27: 0.3 | G27: 0.3 | H27: 0.3 | I27: 0.28 | J27: 0.28 | K27: 0.28 | L27: =K27-0.02 -> 0.26 | M27: 0.24 | N27: =M27-0.01 -> 0.23 | O27: =N27-0.01 -> 0.22 | P27: =O27 -> 0.22 | Q27: 0.22 | R27: 0.22 | S27: 0.22 | T27: 0.22 | U27: 0.22
C28: Pre-tax cost of capital | E28: =E26*E23+(1-E26)*E24/(1-E27) -> 0.06241428571 | F28: 0.06241428571 | G28: 0.06241428571 | H28: 0.0625 | I28: 0.06138888889 | J28: 0.06138888889 | K28: 0.06138888889 | L28: 0.06033783784 | M28: 0.05634210526 | N28: =N26*N23+(1-N26)*N24/(1-N27) -> 0.05757409091 | O28: =O26*O23+(1-O26)*O24/(1-O27) -> 0.05704961538 | P28: 0.05704961538 | Q28: 0.05704961538 | R28: 0.05704961538 | S28: 0.05704961538 | T28: 0.05704961538 | U28: 0.05704961538
C29: Post-tax cost of capital | E29: =E28*(1-E27) -> 0.04369 | F29: =F28*(1-F27) -> 0.04369 | G29: 0.04369 | H29: 0.04375 | I29: 0.0442 | J29: 0.0442 | K29: 0.0442 | L29: 0.04465 | M29: 0.04282 | N29: 0.04433205 | O29: 0.0444987 | P29: 0.0444987 | Q29: 0.0444987 | R29: 0.0444987 | S29: 0.0444987 | T29: 0.0444987 | U29: 0.0444987
C30: Vanilla WACC | E30: =E23*E26+E24*(1-E26) -> 0.0517 | F30: =F23*F26+F24*(1-F26) -> 0.0517 | G30: 0.0517 | H30: 0.0505 | I30: 0.0505 | J30: 0.0505 | K30: 0.0505 | L30: 0.0505 | M30: 0.0475 | N30: 0.048165 | O30: 0.048165 | P30: 0.048165 | Q30: 0.048165 | R30: 0.048165 | S30: 0.048165 | T30: 0.048165 | U30: 0.048165
C31: Minimum equity issuance threshold, (£m Nominal) | J31: 100 | L31: equity issuance costs | N31: 0.05 | Q31: Dividend policy | S31: Ofgem working assumptions | V31: 0.05
E32: live | F32: gearing scenario | P32: live | Q32: cost of equity scenario | W32: cost of debt scenario | AG32: cost of equity annual change scenario
E33: =UserInterface!B62 -> 9 | F33: 1 | G33: 2 | H33: 3 | I33: 4 | J33: 5 | K33: 6 | L33: 7 | M33: 8 | P33: =UserInterface!B71 -> 5 | Q33: 1 | R33: 2 | S33: 3 | T33: 4 | U33: 5 | X33: 2013/14 | Y33: 2014/15 | Z33: 2015/16 | AA33: 2016/17 | AB33: 2017/18 | AC33: 2018/19 | AD33: 2019/20 | AE33: 2020/21 | AH33: 2013/14 | AI33: 2014/15 | AJ33: 2015/16 | AK33: 2016/17 | AL33: 2017/18 | AM33: 2018/19 | AN33: 2019/20 | AO33: 2020/21
C34: SHETL | E34: =OFFSET($E34,0,MATCH($E$33,$F$33:$M$33,0)) ->  | F34: 0.6 | G34: 0.6 | H34: 0.4 | I34: 0.6 | J34: 0.5 | K34: 0.6 | L34: 0.7 | M34: ='User input'!D77 -> 0.6 | P34: =OFFSET($P34,0,MATCH($P$33,$Q$33:$U$33,0)) -> 0.07 | Q34: 0.07 | R34: 0.06 | S34: 0.072 | T34: ='User input'!D51 -> 0.07 | U34: 0.07 | W34: Index Linked debt % | X34: ='User input'!N185 -> 0 | Y34: ='User input'!O185 -> 0 | Z34: ='User input'!P185 -> 0 | AA34: ='User input'!Q185 -> 0 | AB34: ='User input'!R185 -> 0 | AC34: ='User input'!S185 -> 0 | AD34: ='User input'!T185 -> 0 | AE34: ='User input'!U185 -> 0 | AG34: User scenario 1 | AH34: ='User input'!N50 -> 0.07 | AI34: ='User input'!O50 -> 0.07 | AJ34: ='User input'!P50 -> 0.07 | AK34: ='User input'!Q50 -> 0.07 | AL34: ='User input'!R50 -> 0.07 | AM34: ='User input'!S50 -> 0.07 | AN34: ='User input'!T50 -> 0.07 | AO34: ='User input'!U50 -> 0.07
C35: SPTL | E35: =OFFSET($E35,0,MATCH($E$33,$F$33:$M$33,0)) ->  | F35: 0.6 | G35: 0.5 | H35: 0.4 | I35: 0.5 | J35: 0.5 | K35: 0.6 | L35: 0.7 | M35: ='User input'!D78 -> 0.5 | P35: =OFFSET($P35,0,MATCH($P$33,$Q$33:$U$33,0)) -> 0.07 | Q35: 0.07 | R35: 0.06 | S35: 0.072 | T35: ='User input'!D52 -> 0.07 | U35: 0.07 | W35: Nominal cost of debt weighted for IL debt | X35: =X36*(1-X34)+X37*X34 -> 0.06406738235 | Y35: =Y36*(1-Y34)+Y37*Y34 -> 0.06047126148 | Z35: 0.05828303669 | AA35: 0.05717332137 | AB35: 0.05667840318 | AC35: 0.05647638505 | AD35: 0.05639880296 | AE35: 0.05637025713
C36: NGET_TO | F36: 0.6 | G36: 0.7 | H36: 0.7 | I36: 0.7 | J36: 0.5 | K36: 0.6 | L36: 0.7 | M36: 0.55 | P36: 0.07 | Q36: 0.07 | R36: 0.06 | S36: 0.072 | T36: =[5]Scenarios!$E$11 -> 0.075 | U36: 0.07 | W36: Nominal cost of debt | X36: =(1+X37)*(1+N10)-1 -> 0.06406738235 | Y36: =(1+Y37)*(1+O10)-1 -> 0.06047126148 | Z36: 0.05828303669 | AA36: 0.05717332137 | AB36: 0.05667840318 | AC36: 0.05647638505 | AD36: 0.05639880296 | AE36: 0.05637025713 | AG36: gearing annual change scenario
C37: NGET_SO | F37: 0.6 | G37: 0.7 | H37: 0.7 | I37: 0.7 | J37: 0.5 | K37: 0.6 | L37: 0.7 | M37: ='User input'!D80 -> 0.6 | P37: 0.07 | Q37: 0.07 | R37: 0.06 | S37: 0.072 | T37: ='User input'!D54 -> 0.07 | U37: 0.07 | W37: Real cost of debt | X37: =CHOOSE(UserInterface!$B$118,X38,X39,X40,X41,X42) -> 0.0303 | Y37: =CHOOSE(UserInterface!$B$118,Y38,Y39,Y40,Y41,Y42) -> 0.0303 | Z37: =CHOOSE(UserInterface!$B$118,Z38,Z39,Z40,Z41,Z42) -> 0.0303 | AA37: =CHOOSE(UserInterface!$B$118,AA38,AA39,AA40,AA41,AA42) -> 0.0303 | AB37: =CHOOSE(UserInterface!$B$118,AB38,AB39,AB40,AB41,AB42) -> 0.0303 | AC37: =CHOOSE(UserInterface!$B$118,AC38,AC39,AC40,AC41,AC42) -> 0.0303 | AD37: =CHOOSE(UserInterface!$B$118,AD38,AD39,AD40,AD41,AD42) -> 0.0303 | AE37: =CHOOSE(UserInterface!$B$118,AE38,AE39,AE40,AE41,AE42) -> 0.0303 | AH37: 2013/14 | AI37: 2014/15 | AJ37: 2015/16 | AK37: 2016/17 | AL37: 2017/18 | AM37: 2018/19 | AN37: 2019/20 | AO37: 2020/21
C38: NGGT_TO | F38: 0.6 | G38: 0.7 | H38: 0.8 | I38: 0.8 | J38: 0.5 | K38: 0.6 | L38: 0.7 | M38: ='User input'!D81 -> 0.6 | P38: 0.07 | Q38: 0.07 | R38: 0.06 | S38: 0.072 | T38: ='User input'!D55 -> 0.075 | U38: 0.07 | W38: Index latest | X38: 0.0303 | Y38: 0.0303 | Z38: 0.0303 | AA38: 0.0303 | AB38: 0.0303 | AC38: 0.0303 | AD38: 0.0303 | AE38: 0.0303 | AG38: User scenario 1 | AH38: ='User input'!N76 -> 0.55 | AI38: ='User input'!O76 -> 0.55 | AJ38: ='User input'!P76 -> 0.55 | AK38: ='User input'!Q76 -> 0.55 | AL38: ='User input'!R76 -> 0.55 | AM38: ='User input'!S76 -> 0.55 | AN38: ='User input'!T76 -> 0.55 | AO38: ='User input'!U76 -> 0.55
C39: NGGT_SO | F39: 0.6 | G39: 0.7 | H39: 0.8 | I39: 0.8 | J39: 0.5 | K39: 0.6 | L39: 0.7 | M39: ='User input'!D82 -> 0.6 | P39: 0.07 | Q39: 0.07 | R39: 0.06 | S39: 0.072 | T39: ='User input'!D56 -> 0.075 | U39: 0.07 | W39: TPCR4RO/GDPCR | X39: =IF(UserInterface!$I$2="GD",0.0355,0.0375) -> 0.0375 | Y39: =IF(UserInterface!$I$2="GD",0.0355,0.0375) -> 0.0375 | Z39: =IF(UserInterface!$I$2="GD",0.0355,0.0375) -> 0.0375 | AA39: =IF(UserInterface!$I$2="GD",0.0355,0.0375) -> 0.0375 | AB39: =IF(UserInterface!$I$2="GD",0.0355,0.0375) -> 0.0375 | AC39: =IF(UserInterface!$I$2="GD",0.0355,0.0375) -> 0.0375 | AD39: =IF(UserInterface!$I$2="GD",0.0355,0.0375) -> 0.0375 | AE39: =IF(UserInterface!$I$2="GD",0.0355,0.0375) -> 0.0375
C40: East | F40: 0.625 | G40: 0.7 | H40: 0.8 | I40: 0.8 | J40: 0.5 | K40: 0.6 | L40: 0.7 | M40: ='User input'!D83 -> 0.53 | P40: 0.07 | Q40: 0.07 | R40: 0.06 | S40: 0.072 | T40: ='User input'!D57 -> 0.072 | U40: 0.07 | W40: User scenario 1 | X40: ='User input'!N169 -> 0.032 | Y40: ='User input'!O169 -> 0.032 | Z40: ='User input'!P169 -> 0.032 | AA40: ='User input'!Q169 -> 0.032 | AB40: ='User input'!R169 -> 0.032 | AC40: ='User input'!S169 -> 0.032 | AD40: ='User input'!T169 -> 0.032 | AE40: ='User input'!U169 -> 0.032
C41: London | F41: 0.625 | G41: 0.7 | H41: 0.8 | I41: 0.8 | J41: 0.5 | K41: 0.6 | L41: 0.7 | M41: ='User input'!D84 -> 0.53 | P41: 0.07 | Q41: 0.07 | R41: 0.06 | S41: 0.072 | T41: ='User input'!D58 -> 0.072 | U41: 0.07 | W41: User scenario 2 | X41: ='User input'!N170 -> 0.032 | Y41: ='User input'!O170 -> 0.032 | Z41: ='User input'!P170 -> 0.032 | AA41: ='User input'!Q170 -> 0.032 | AB41: ='User input'!R170 -> 0.032 | AC41: ='User input'!S170 -> 0.032 | AD41: ='User input'!T170 -> 0.032 | AE41: ='User input'!U170 -> 0.032
C42: North_West | F42: 0.625 | G42: 0.7 | H42: 0.8 | I42: 0.8 | J42: 0.5 | K42: 0.6 | L42: 0.7 | M42: ='User input'!D85 -> 0.53 | P42: 0.07 | Q42: 0.07 | R42: 0.06 | S42: 0.072 | T42: ='User input'!D59 -> 0.072 | U42: 0.07 | W42: User scenario 3 | X42: ='User input'!N171 -> 0.032 | Y42: ='User input'!O171 -> 0.032 | Z42: ='User input'!P171 -> 0.032 | AA42: ='User input'!Q171 -> 0.032 | AB42: ='User input'!R171 -> 0.032 | AC42: ='User input'!S171 -> 0.032 | AD42: ='User input'!T171 -> 0.032 | AE42: ='User input'!U171 -> 0.032
C43: West_Midlands | F43: 0.625 | G43: 0.7 | H43: 0.8 | I43: 0.8 | J43: 0.5 | K43: 0.6 | L43: 0.7 | M43: ='User input'!D86 -> 0.53 | P43: 0.07 | Q43: 0.07 | R43: 0.06 | S43: 0.072 | T43: ='User input'!D60 -> 0.072 | U43: 0.07
C44: Northern | F44: 0.625 | G44: 0.7 | H44: 0.8 | I44: 0.8 | J44: 0.5 | K44: 0.6 | L44: 0.7 | M44: ='User input'!D87 -> 0.625 | P44: 0.07 | Q44: 0.07 | R44: 0.06 | S44: 0.072 | T44: ='User input'!D61 -> 0.072 | U44: 0.07
C45: Scotland | F45: 0.625 | G45: 0.7 | H45: 0.8 | I45: 0.8 | J45: 0.5 | K45: 0.6 | L45: 0.7 | M45: ='User input'!D88 -> 0.625 | P45: 0.07 | Q45: 0.07 | R45: 0.06 | S45: 0.072 | T45: ='User input'!D62 -> 0.075 | U45: 0.07
C46: Southern | F46: 0.625 | G46: 0.7 | H46: 0.8 | I46: 0.8 | J46: 0.5 | K46: 0.6 | L46: 0.7 | M46: ='User input'!D89 -> 0.625 | P46: 0.07 | Q46: 0.07 | R46: 0.06 | S46: 0.072 | T46: ='User input'!D63 -> 0.075 | U46: 0.07
C47: Wales_&_West | F47: 0.625 | G47: 0.7 | H47: 0.8 | I47: 0.8 | J47: 0.5 | K47: 0.6 | L47: 0.7 | M47: ='User input'!D90 -> 0.625 | P47: 0.0725 | Q47: 0.0725 | R47: 0.06 | S47: 0.072 | T47: ='User input'!D64 -> 0.075 | U47: 0.0725
B49: Writing Down Allowances
B50: reflects latest budget proposals | C50: Industrial Buildings (%) | E50: 0.04 | F50: 0.04 | G50: 0.04 | H50: 0.04 | I50: 0.03 | J50: 0.02 | K50: 0.01 | L50: 0 | M50: 0 | N50: 0 | O50: 0 | P50: 0 | Q50: 0 | R50: 0 | S50: 0 | T50: 0 | U50: 0
C51: Long life assets (%) | E51: 0.06 | F51: 0.06 | G51: 0.06 | H51: 0.06 | I51: 0.1 | J51: 0.1 | K51: 0.1 | L51: 0.1 | M51: 0.08 | N51: 0.08 | O51: 0.08 | P51: 0.08 | Q51: 0.08 | R51: 0.08 | S51: 0.08 | T51: 0.08 | U51: 0.08
B52: source - Grid | C52: Deferred Revenue Expenditure (%) | E52: ='User input'!E165 -> 0.03 | F52: ='User input'!F165 -> 0.03 | G52: ='User input'!G165 -> 0.03 | H52: ='User input'!H165 -> 0.03 | I52: ='User input'!I165 -> 0.03 | J52: ='User input'!J165 -> 0.03 | K52: ='User input'!K165 -> 0.03 | L52: ='User input'!L165 -> 0.03 | M52: ='User input'!M165 -> 0.03 | N52: ='User input'!N165 -> 0.03 | O52: ='User input'!O165 -> 0.03 | P52: ='User input'!P165 -> 0.03 | Q52: ='User input'!Q165 -> 0.03 | R52: ='User input'!R165 -> 0.03 | S52: ='User input'!S165 -> 0.03 | T52: ='User input'!T165 -> 0.03 | U52: ='User input'!U165 -> 0.03
C53: Plant pool (%) | E53: 0.25 | F53: 0.25 | G53: 0.25 | H53: 0.25 | I53: 0.2 | J53: 0.2 | K53: 0.2 | L53: 0.2 | M53: 0.18 | N53: 0.18 | O53: 0.18 | P53: 0.18 | Q53: 0.18 | R53: 0.18 | S53: 0.18 | T53: 0.18 | U53: 0.18
E55: live | F55: Plant pool | G55: Longlife | H55: IBA | I55: Deferred Revenue | J55: Revenue | K55: NQ | L55: total
B56: Allocation of costs to tax pools - master
B57: Load Related | F57: =IF(UserInterface!$B$103=2,'User input'!F98,IF(UserInterface!$I$2="GD",CommonInputs!F69,CommonInputs!F64)) -> 0.00544238963 | G57: =IF(UserInterface!$B$103=2,'User input'!G98,IF(UserInterface!$I$2="GD",CommonInputs!G69,CommonInputs!G64)) -> 0.9813260278 | H57: =IF(UserInterface!$B$103=2,'User input'!H98,IF(UserInterface!$I$2="GD",CommonInputs!H69,CommonInputs!H64)) -> 0.01323158261 | I57: =IF(UserInterface!$B$103=2,'User input'!I98,IF(UserInterface!$I$2="GD",CommonInputs!I69,CommonInputs!I64)) -> 0 | J57: =IF(UserInterface!$B$103=2,'User input'!J98,IF(UserInterface!$I$2="GD",CommonInputs!J69,CommonInputs!J64)) -> 0 | K57: =IF(UserInterface!$B$103=2,'User input'!K98,IF(UserInterface!$I$2="GD",CommonInputs!K69,CommonInputs!K64)) -> 0 | L57: =SUM(F57:K57) -> 1
B58: Non-Load Related - asset replacement | F58: =IF(UserInterface!$B$103=2,'User input'!F99,IF(UserInterface!$I$2="GD",CommonInputs!F70,CommonInputs!F65)) -> 0 | G58: =IF(UserInterface!$B$103=2,'User input'!G99,IF(UserInterface!$I$2="GD",CommonInputs!G70,CommonInputs!G65)) -> 0 | H58: =IF(UserInterface!$B$103=2,'User input'!H99,IF(UserInterface!$I$2="GD",CommonInputs!H70,CommonInputs!H65)) -> 0 | I58: =IF(UserInterface!$B$103=2,'User input'!I99,IF(UserInterface!$I$2="GD",CommonInputs!I70,CommonInputs!I65)) -> 1 | J58: =IF(UserInterface!$B$103=2,'User input'!J99,IF(UserInterface!$I$2="GD",CommonInputs!J70,CommonInputs!J65)) -> 0 | K58: =IF(UserInterface!$B$103=2,'User input'!K99,IF(UserInterface!$I$2="GD",CommonInputs!K70,CommonInputs!K65)) -> 0 | L58: =SUM(F58:K58) -> 1
B59: Non-Load Related - other | F59: =IF(UserInterface!$B$103=2,'User input'!F100,F73) -> 0.1095487594 | G59: =IF(UserInterface!$B$103=2,'User input'!G100,G73) -> 0.8083689891 | H59: =IF(UserInterface!$B$103=2,'User input'!H100,H73) -> 0.07619708799 | I59: =IF(UserInterface!$B$103=2,'User input'!I100,I73) -> 0 | J59: =IF(UserInterface!$B$103=2,'User input'!J100,J73) -> 0 | K59: =IF(UserInterface!$B$103=2,'User input'!K100,K73) -> 0.005885163553 | L59: =SUM(F59:K59) -> 1
B60: Network operating costs | F60: =IF(UserInterface!$B$103=2,'User input'!F101,F74) -> 0 | G60: =IF(UserInterface!$B$103=2,'User input'!G101,G74) -> 0 | H60: =IF(UserInterface!$B$103=2,'User input'!H101,H74) -> 0 | I60: =IF(UserInterface!$B$103=2,'User input'!I101,I74) -> 0 | J60: =IF(UserInterface!$B$103=2,'User input'!J101,J74) -> 1 | K60: =IF(UserInterface!$B$103=2,'User input'!K101,K74) -> 0 | L60: =SUM(F60:K60) -> 1
B61: Non Operational Capex | F61: =IF(UserInterface!$B$103=2,'User input'!F102,F75) -> 1 | G61: =IF(UserInterface!$B$103=2,'User input'!G102,G75) -> 0 | H61: =IF(UserInterface!$B$103=2,'User input'!H102,H75) -> 0 | I61: =IF(UserInterface!$B$103=2,'User input'!I102,I75) -> 0 | J61: =IF(UserInterface!$B$103=2,'User input'!J102,J75) -> 0 | K61: =IF(UserInterface!$B$103=2,'User input'!K102,K75) -> 0 | L61: =SUM(F61:K61) -> 1
B63: Allocation of costs to tax pools - ET, GT | F63: Ofgem working assumptions
B64: Load Related | F64: 0.009383612458 | G64: 0.9126055799 | H64: 0.03894024667 | I64: 0.03146966044 | J64: 0 | K64: 0.007600900523 | L64: =SUM(F64:K64) -> 1
B65: Non-Load Related - asset replacement | F65: 0 | G65: 0.19 | H65: 0.03 | I65: 0.78 | J65: 0 | K65: 0 | L65: =SUM(F65:K65) -> 1
B67: Allocations to tax pools - GD | F67: Ofgem working assumptions
F68: General pool | G68: Longlife | H68: IBA | I68: Deferred Revenue | J68: Revenue | K68: Non Qualifying | L68: Total
B69: Mains, governors connections | F69: 0 | G69: 1 | H69: 0 | I69: 0 | J69: 0 | K69: 0 | L69: =SUM(F69:K69) -> 1
B70: Other capex - plant & buildings | F70: 0.5103668262 | G70: 0.1855396066 | H70: 0 | I70: 0 | J70: 0 | K70: 0.3040935673 | L70: =SUM(F70:K70) -> 1
B72: Allocations to tax pools - all | F72: Ofgem working assumptions
B73: Non-Load Related - other | F73: =0.19638688350501 -> 0.1963868835 | G73: 0.3330201658 | H73: 0.08702930834 | I73: 0.3832007759 | J73: 0 | K73: 0.0003628664579 | L73: =SUM(F73:K73) -> 1
B74: Network operating costs | F74: 0 | G74: 0.03736034072 | H74: 0 | I74: 0.0742867124 | J74: 0.8883529469 | K74: 0 | L74: =SUM(F74:K74) -> 1
B75: Non Operational Capex | F75: 0.901 | G75: 0.02256214311 | H75: 0.007 | I75: 0.001398450947 | J75: 0 | K75: 0.068 | L75: =SUM(F75:K75) -> 0.9999605941
B77: TOI Depreciation lives | M77: ='User input'!M8 -> 20 | N77: ='User input'!N8 -> 23.125 | O77: ='User input'!O8 -> 26.25 | P77: ='User input'!P8 -> 29.375 | Q77: ='User input'!Q8 -> 32.5 | R77: ='User input'!R8 -> 35.625 | S77: ='User input'!S8 -> 38.75 | T77: ='User input'!T8 -> 41.875 | U77: ='User input'!U8 -> 45 | V77: ='User input'!V8 -> 45
B78: Regulatory Depreciation Profiles
B79: live | M79: =IF(UserInterface!$B$84=5,M84,IF(UserInterface!$B$84=4,M83,IF(UserInterface!$B$84=3,M82,IF(UserInterface!$B$84=2,M81,M80)))) -> 20 | N79: =IF(UserInterface!$B$84=5,N84,IF(UserInterface!$B$84=4,N83,IF(UserInterface!$B$84=3,N82,IF(UserInterface!$B$84=2,N81,N80)))) -> 23.125 | O79: =IF(UserInterface!$B$84=5,O84,IF(UserInterface!$B$84=4,O83,IF(UserInterface!$B$84=3,O82,IF(UserInterface!$B$84=2,O81,O80)))) -> 26.25 | P79: =IF(UserInterface!$B$84=5,P84,IF(UserInterface!$B$84=4,P83,IF(UserInterface!$B$84=3,P82,IF(UserInterface!$B$84=2,P81,P80)))) -> 29.375 | Q79: =IF(UserInterface!$B$84=5,Q84,IF(UserInterface!$B$84=4,Q83,IF(UserInterface!$B$84=3,Q82,IF(UserInterface!$B$84=2,Q81,Q80)))) -> 32.5 | R79: =IF(UserInterface!$B$84=5,R84,IF(UserInterface!$B$84=4,R83,IF(UserInterface!$B$84=3,R82,IF(UserInterface!$B$84=2,R81,R80)))) -> 35.625 | S79: =IF(UserInterface!$B$84=5,S84,IF(UserInterface!$B$84=4,S83,IF(UserInterface!$B$84=3,S82,IF(UserInterface!$B$84=2,S81,S80)))) -> 38.75 | T79: =IF(UserInterface!$B$84=5,T84,IF(UserInterface!$B$84=4,T83,IF(UserInterface!$B$84=3,T82,IF(UserInterface!$B$84=2,T81,T80)))) -> 41.875 | U79: =IF(UserInterface!$B$84=5,U84,IF(UserInterface!$B$84=4,U83,IF(UserInterface!$B$84=3,U82,IF(UserInterface!$B$84=2,U81,U80)))) -> 45 | V79: =IF(UserInterface!$B$84=5,V84,IF(UserInterface!$B$84=4,V83,IF(UserInterface!$B$84=3,V82,IF(UserInterface!$B$84=2,V81,V80)))) -> 45 | W79: =IF(UserInterface!$B$84=5,W84,IF(UserInterface!$B$84=4,W83,IF(UserInterface!$B$84=3,W82,IF(UserInterface!$B$84=2,W81,W80)))) -> 45 | X79: =IF(UserInterface!$B$84=5,X84,IF(UserInterface!$B$84=4,X83,IF(UserInterface!$B$84=3,X82,IF(UserInterface!$B$84=2,X81,X80)))) -> 45 | Y79: =IF(UserInterface!$B$84=5,Y84,IF(UserInterface!$B$84=4,Y83,IF(UserInterface!$B$84=3,Y82,IF(UserInterface!$B$84=2,Y81,Y80)))) -> 45 | Z79: =IF(UserInterface!$B$84=5,Z84,IF(UserInterface!$B$84=4,Z83,IF(UserInterface!$B$84=3,Z82,IF(UserInterface!$B$84=2,Z81,Z80)))) -> 45 | AA79: =IF(UserInterface!$B$84=5,AA84,IF(UserInterface!$B$84=4,AA83,IF(UserInterface!$B$84=3,AA82,IF(UserInterface!$B$84=2,AA81,AA80)))) -> 45 | AB79: =IF(UserInterface!$B$84=5,AB84,IF(UserInterface!$B$84=4,AB83,IF(UserInterface!$B$84=3,AB82,IF(UserInterface!$B$84=2,AB81,AB80)))) -> 45 | AC79: =IF(UserInterface!$B$84=5,AC84,IF(UserInterface!$B$84=4,AC83,IF(UserInterface!$B$84=3,AC82,IF(UserInterface!$B$84=2,AC81,AC80)))) -> 45 | AD79: =IF(UserInterface!$B$84=5,AD84,IF(UserInterface!$B$84=4,AD83,IF(UserInterface!$B$84=3,AD82,IF(UserInterface!$B$84=2,AD81,AD80)))) -> 45 | AE79: =IF(UserInterface!$B$84=5,AE84,IF(UserInterface!$B$84=4,AE83,IF(UserInterface!$B$84=3,AE82,IF(UserInterface!$B$84=2,AE81,AE80)))) -> 45 | AF79: =IF(UserInterface!$B$84=5,AF84,IF(UserInterface!$B$84=4,AF83,IF(UserInterface!$B$84=3,AF82,IF(UserInterface!$B$84=2,AF81,AF80)))) -> 45 | AG79: =IF(UserInterface!$B$84=5,AG84,IF(UserInterface!$B$84=4,AG83,IF(UserInterface!$B$84=3,AG82,IF(UserInterface!$B$84=2,AG81,AG80)))) -> 45 | AH79: =IF(UserInterface!$B$84=5,AH84,IF(UserInterface!$B$84=4,AH83,IF(UserInterface!$B$84=3,AH82,IF(UserInterface!$B$84=2,AH81,AH80)))) -> 45 | AI79: =IF(UserInterface!$B$84=5,AI84,IF(UserInterface!$B$84=4,AI83,IF(UserInterface!$B$84=3,AI82,IF(UserInterface!$B$84=2,AI81,AI80)))) -> 45 | AJ79: =IF(UserInterface!$B$84=5,AJ84,IF(UserInterface!$B$84=4,AJ83,IF(UserInterface!$B$84=3,AJ82,IF(UserInterface!$B$84=2,AJ81,AJ80)))) -> 45 | AK79: =IF(UserInterface!$B$84=5,AK84,IF(UserInterface!$B$84=4,AK83,IF(UserInterface!$B$84=3,AK82,IF(UserInterface!$B$84=2,AK81,AK80)))) -> 45 | AL79: =IF(UserInterface!$B$84=5,AL84,IF(UserInterface!$B$84=4,AL83,IF(UserInterface!$B$84=3,AL82,IF(UserInterface!$B$84=2,AL81,AL80)))) -> 45 | AM79: =IF(UserInterface!$B$84=5,AM84,IF(UserInterface!$B$84=4,AM83,IF(UserInterface!$B$84=3,AM82,IF(UserInterface!$B$84=2,AM81,AM80)))) -> 45 | AN79: =IF(UserInterface!$B$84=5,AN84,IF(UserInterface!$B$84=4,AN83,IF(UserInterface!$B$84=3,AN82,IF(UserInterface!$B$84=2,AN81,AN80)))) -> 45 | AO79: =IF(UserInterface!$B$84=5,AO84,IF(UserInterface!$B$84=4,AO83,IF(UserInterface!$B$84=3,AO82,IF(UserInterface!$B$84=2,AO81,AO80)))) -> 45 | AP79: =IF(UserInterface!$B$84=5,AP84,IF(UserInterface!$B$84=4,AP83,IF(UserInterface!$B$84=3,AP82,IF(UserInterface!$B$84=2,AP81,AP80)))) -> 45 | AQ79: =IF(UserInterface!$B$84=5,AQ84,IF(UserInterface!$B$84=4,AQ83,IF(UserInterface!$B$84=3,AQ82,IF(UserInterface!$B$84=2,AQ81,AQ80)))) -> 45 | AR79: =IF(UserInterface!$B$84=5,AR84,IF(UserInterface!$B$84=4,AR83,IF(UserInterface!$B$84=3,AR82,IF(UserInterface!$B$84=2,AR81,AR80)))) -> 45 | AS79: =IF(UserInterface!$B$84=5,AS84,IF(UserInterface!$B$84=4,AS83,IF(UserInterface!$B$84=3,AS82,IF(UserInterface!$B$84=2,AS81,AS80)))) -> 45 | AT79: =IF(UserInterface!$B$84=5,AT84,IF(UserInterface!$B$84=4,AT83,IF(UserInterface!$B$84=3,AT82,IF(UserInterface!$B$84=2,AT81,AT80)))) -> 45 | AU79: =IF(UserInterface!$B$84=5,AU84,IF(UserInterface!$B$84=4,AU83,IF(UserInterface!$B$84=3,AU82,IF(UserInterface!$B$84=2,AU81,AU80)))) -> 45 | AV79: =IF(UserInterface!$B$84=5,AV84,IF(UserInterface!$B$84=4,AV83,IF(UserInterface!$B$84=3,AV82,IF(UserInterface!$B$84=2,AV81,AV80)))) -> 45 | AW79: =IF(UserInterface!$B$84=5,AW84,IF(UserInterface!$B$84=4,AW83,IF(UserInterface!$B$84=3,AW82,IF(UserInterface!$B$84=2,AW81,AW80)))) -> 45 | AX79: =IF(UserInterface!$B$84=5,AX84,IF(UserInterface!$B$84=4,AX83,IF(UserInterface!$B$84=3,AX82,IF(UserInterface!$B$84=2,AX81,AX80)))) -> 45
B80: ET at 20 | M80: 20 | N80: 20 | O80: 20 | P80: 20 | Q80: 20 | R80: 20 | S80: 20 | T80: 20 | U80: 20 | V80: 20 | W80: 20 | X80: 20 | Y80: 20 | Z80: 20 | AA80: 20 | AB80: 20 | AC80: 20 | AD80: 20 | AE80: 20 | AF80: 20 | AG80: 20 | AH80: 20 | AI80: 20 | AJ80: 20 | AK80: 20 | AL80: 20 | AM80: 20 | AN80: 20 | AO80: 20 | AP80: 20 | AQ80: 20 | AR80: 20 | AS80: 20 | AT80: 20 | AU80: 20 | AV80: 20 | AW80: 20 | AX80: 20
B81: ET all at 45 | M81: 20 | N81: 45 | O81: 45 | P81: 45 | Q81: 45 | R81: 45 | S81: 45 | T81: 45 | U81: 45 | V81: 45 | W81: 45 | X81: 45 | Y81: 45 | Z81: 45 | AA81: 45 | AB81: 45 | AC81: 45 | AD81: 45 | AE81: 45 | AF81: 45 | AG81: 45 | AH81: 45 | AI81: 45 | AJ81: 45 | AK81: 45 | AL81: 45 | AM81: 45 | AN81: 45 | AO81: 45 | AP81: 45 | AQ81: 45 | AR81: 45 | AS81: 45 | AT81: 45 | AU81: 45 | AV81: 45 | AW81: 45 | AX81: 45
B82: ET new at 45 | M82: 20 | N82: 45 | O82: 45 | P82: 45 | Q82: 45 | R82: 45 | S82: 45 | T82: 45 | U82: 45 | V82: 45 | W82: 45 | X82: 45 | Y82: 45 | Z82: 45 | AA82: 45 | AB82: 45 | AC82: 45 | AD82: 45 | AE82: 45 | AF82: 45 | AG82: 45 | AH82: 45 | AI82: 45 | AJ82: 45 | AK82: 45 | AL82: 45 | AM82: 45 | AN82: 45 | AO82: 45 | AP82: 45 | AQ82: 45 | AR82: 45 | AS82: 45 | AT82: 45 | AU82: 45 | AV82: 45 | AW82: 45 | AX82: 45
B83: SP suggestion - 1 price control, each year keeps its first year depreciation rate throughout its life | M83: 20 | N83: =M83 -> 20 | O83: =N83+3.125 -> 23.125 | P83: 26.25 | Q83: 29.375 | R83: 32.5 | S83: 35.625 | T83: 38.75 | U83: 41.875 | V83: 45 | W83: =V83 -> 45 | X83: 45 | Y83: 45 | Z83: 45 | AA83: 45 | AB83: 45 | AC83: 45 | AD83: 45 | AE83: 45 | AF83: 45 | AG83: 45 | AH83: 45 | AI83: 45 | AJ83: 45 | AK83: 45 | AL83: 45 | AM83: 45 | AN83: 45 | AO83: 45 | AP83: 45 | AQ83: 45 | AR83: 45 | AS83: 45 | AT83: 45 | AU83: 45 | AV83: 45 | AW83: 45 | AX83: 45
B84: user defined | M84: ='User input'!M12 -> 20 | N84: ='User input'!N12 -> 23.125 | O84: ='User input'!O12 -> 26.25 | P84: ='User input'!P12 -> 29.375 | Q84: ='User input'!Q12 -> 32.5 | R84: ='User input'!R12 -> 35.625 | S84: ='User input'!S12 -> 38.75 | T84: ='User input'!T12 -> 41.875 | U84: ='User input'!U12 -> 45 | V84: ='User input'!V12 -> 45 | W84: ='User input'!W12 -> 45 | X84: ='User input'!X12 -> 45 | Y84: ='User input'!Y12 -> 45 | Z84: ='User input'!Z12 -> 45 | AA84: ='User input'!AA12 -> 45 | AB84: ='User input'!AB12 -> 45 | AC84: ='User input'!AC12 -> 45 | AD84: ='User input'!AD12 -> 45 | AE84: ='User input'!AE12 -> 45 | AF84: ='User input'!AF12 -> 45 | AG84: ='User input'!AG12 -> 45 | AH84: ='User input'!AH12 -> 45 | AI84: ='User input'!AI12 -> 45 | AJ84: ='User input'!AJ12 -> 45 | AK84: ='User input'!AK12 -> 45 | AL84: ='User input'!AL12 -> 45 | AM84: ='User input'!AM12 -> 45 | AN84: ='User input'!AN12 -> 45 | AO84: ='User input'!AO12 -> 45 | AP84: ='User input'!AP12 -> 45 | AQ84: ='User input'!AQ12 -> 45 | AR84: ='User input'!AR12 -> 45 | AS84: ='User input'!AS12 -> 45 | AT84: ='User input'!AT12 -> 45 | AU84: ='User input'!AU12 -> 45 | AV84: ='User input'!AV12 -> 45 | AW84: ='User input'!AW12 -> 45 | AX84: ='User input'!AX12 -> 45
B87: Repex profile - % capex
B88: live | E88: =CHOOSE(UserInterface!$B$76,E89,E90,E91) -> 0.5 | F88: =CHOOSE(UserInterface!$B$76,F89,F90,F91) -> 0.5 | G88: =CHOOSE(UserInterface!$B$76,G89,G90,G91) -> 0.5 | H88: =CHOOSE(UserInterface!$B$76,H89,H90,H91) -> 0.5 | I88: =CHOOSE(UserInterface!$B$76,I89,I90,I91) -> 0.5 | J88: =CHOOSE(UserInterface!$B$76,J89,J90,J91) -> 0.5 | K88: =CHOOSE(UserInterface!$B$76,K89,K90,K91) -> 0.5 | L88: =CHOOSE(UserInterface!$B$76,L89,L90,L91) -> 0.5 | M88: =CHOOSE(UserInterface!$B$76,M89,M90,M91) -> 0.5 | N88: =CHOOSE(UserInterface!$B$76,N89,N90,N91) -> 1 | O88: =CHOOSE(UserInterface!$B$76,O89,O90,O91) -> 1 | P88: =CHOOSE(UserInterface!$B$76,P89,P90,P91) -> 1 | Q88: =CHOOSE(UserInterface!$B$76,Q89,Q90,Q91) -> 1 | R88: =CHOOSE(UserInterface!$B$76,R89,R90,R91) -> 1 | S88: =CHOOSE(UserInterface!$B$76,S89,S90,S91) -> 1 | T88: =CHOOSE(UserInterface!$B$76,T89,T90,T91) -> 1 | U88: =CHOOSE(UserInterface!$B$76,U89,U90,U91) -> 1 | V88: =CHOOSE(UserInterface!$B$76,V89,V90,V91) -> 1 | W88: =CHOOSE(UserInterface!$B$76,W89,W90,W91) -> 1 | X88: =CHOOSE(UserInterface!$B$76,X89,X90,X91) -> 1 | Y88: =CHOOSE(UserInterface!$B$76,Y89,Y90,Y91) -> 1 | Z88: =CHOOSE(UserInterface!$B$76,Z89,Z90,Z91) -> 1 | AA88: =CHOOSE(UserInterface!$B$76,AA89,AA90,AA91) -> 1 | AB88: =CHOOSE(UserInterface!$B$76,AB89,AB90,AB91) -> 1 | AC88: =CHOOSE(UserInterface!$B$76,AC89,AC90,AC91) -> 1 | AD88: =CHOOSE(UserInterface!$B$76,AD89,AD90,AD91) -> 1 | AE88: =CHOOSE(UserInterface!$B$76,AE89,AE90,AE91) -> 1 | AF88: =CHOOSE(UserInterface!$B$76,AF89,AF90,AF91) -> 1 | AG88: =CHOOSE(UserInterface!$B$76,AG89,AG90,AG91) -> 1 | AH88: =CHOOSE(UserInterface!$B$76,AH89,AH90,AH91) -> 1 | AI88: =CHOOSE(UserInterface!$B$76,AI89,AI90,AI91) -> 1 | AJ88: =CHOOSE(UserInterface!$B$76,AJ89,AJ90,AJ91) -> 1 | AK88: =CHOOSE(UserInterface!$B$76,AK89,AK90,AK91) -> 1 | AL88: =CHOOSE(UserInterface!$B$76,AL89,AL90,AL91) -> 1 | AM88: =CHOOSE(UserInterface!$B$76,AM89,AM90,AM91) -> 1 | AN88: =CHOOSE(UserInterface!$B$76,AN89,AN90,AN91) -> 1 | AO88: =CHOOSE(UserInterface!$B$76,AO89,AO90,AO91) -> 1 | AP88: =CHOOSE(UserInterface!$B$76,AP89,AP90,AP91) -> 1 | AQ88: =CHOOSE(UserInterface!$B$76,AQ89,AQ90,AQ91) -> 1 | AR88: =CHOOSE(UserInterface!$B$76,AR89,AR90,AR91) -> 1 | AS88: =CHOOSE(UserInterface!$B$76,AS89,AS90,AS91) -> 1 | AT88: =CHOOSE(UserInterface!$B$76,AT89,AT90,AT91) -> 1 | AU88: =CHOOSE(UserInterface!$B$76,AU89,AU90,AU91) -> 1 | AV88: =CHOOSE(UserInterface!$B$76,AV89,AV90,AV91) -> 1 | AW88: =CHOOSE(UserInterface!$B$76,AW89,AW90,AW91) -> 1 | AX88: =CHOOSE(UserInterface!$B$76,AX89,AX90,AX91) -> 1
B89: Immediate change-over | E89: 0.5 | F89: 0.5 | G89: 0.5 | H89: 0.5 | I89: 0.5 | J89: 0.5 | K89: 0.5 | L89: 0.5 | M89: 0.5 | N89: 1 | O89: 1 | P89: 1 | Q89: 1 | R89: 1 | S89: 1 | T89: 1 | U89: 1 | V89: 1 | W89: 1 | X89: 1 | Y89: 1 | Z89: 1 | AA89: 1 | AB89: 1 | AC89: 1 | AD89: 1 | AE89: 1 | AF89: 1 | AG89: 1 | AH89: 1 | AI89: 1 | AJ89: 1 | AK89: 1 | AL89: 1 | AM89: 1 | AN89: 1 | AO89: 1 | AP89: 1 | AQ89: 1 | AR89: 1 | AS89: 1 | AT89: 1 | AU89: 1 | AV89: 1 | AW89: 1 | AX89: 1
B90: 1 PC change-over | E90: 0.5 | F90: 0.5 | G90: 0.5 | H90: 0.5 | I90: 0.5 | J90: 0.5 | K90: 0.5 | L90: 0.5 | M90: 0.5 | N90: =M90+0.5/8 -> 0.5625 | O90: =N90+0.5/8 -> 0.625 | P90: 0.6875 | Q90: 0.75 | R90: 0.8125 | S90: 0.875 | T90: 0.9375 | U90: 1 | V90: =U90 -> 1 | W90: =V90 -> 1 | X90: 1 | Y90: 1 | Z90: 1 | AA90: 1 | AB90: 1 | AC90: 1 | AD90: 1 | AE90: 1 | AF90: 1 | AG90: 1 | AH90: 1 | AI90: 1 | AJ90: 1 | AK90: 1 | AL90: 1 | AM90: 1 | AN90: 1 | AO90: 1 | AP90: 1 | AQ90: 1 | AR90: 1 | AS90: 1 | AT90: 1 | AU90: 1 | AV90: 1 | AW90: 1 | AX90: 1
B91: 2 PC change-over | E91: 0.5 | F91: 0.5 | G91: 0.5 | H91: 0.5 | I91: 0.5 | J91: 0.5 | K91: 0.5 | L91: 0.5 | M91: 0.5 | N91: =M91+0.5/16 -> 0.53125 | O91: =N91+0.5/16 -> 0.5625 | P91: 0.59375 | Q91: 0.625 | R91: 0.65625 | S91: 0.6875 | T91: 0.71875 | U91: 0.75 | V91: 0.78125 | W91: 0.8125 | X91: 0.84375 | Y91: 0.875 | Z91: 0.90625 | AA91: 0.9375 | AB91: 0.96875 | AC91: 1 | AD91: 1 | AE91: 1 | AF91: 1 | AG91: 1 | AH91: 1 | AI91: 1 | AJ91: 1 | AK91: 1 | AL91: 1 | AM91: 1 | AN91: 1 | AO91: 1 | AP91: 1 | AQ91: 1 | AR91: 1 | AS91: 1 | AT91: 1 | AU91: 1 | AV91: 1 | AW91: 1 | AX91: 1
B93: Totex profile - % capex
B94: live | E94: =CHOOSE(UserInterface!$B$99,E95,E96) -> 0 | F94: =CHOOSE(UserInterface!$B$99,F95,F96) -> 0 | G94: =CHOOSE(UserInterface!$B$99,G95,G96) -> 0 | H94: =CHOOSE(UserInterface!$B$99,H95,H96) -> 0 | I94: =CHOOSE(UserInterface!$B$99,I95,I96) -> 0 | J94: =CHOOSE(UserInterface!$B$99,J95,J96) -> 0 | K94: =CHOOSE(UserInterface!$B$99,K95,K96) -> 0 | L94: =CHOOSE(UserInterface!$B$99,L95,L96) -> 0 | M94: =CHOOSE(UserInterface!$B$99,M95,M96) -> 0 | N94: =CHOOSE(UserInterface!$B$99,N95,N96) -> 0.9 | O94: =CHOOSE(UserInterface!$B$99,O95,O96) -> 0.9 | P94: =CHOOSE(UserInterface!$B$99,P95,P96) -> 0.9 | Q94: =CHOOSE(UserInterface!$B$99,Q95,Q96) -> 0.9 | R94: =CHOOSE(UserInterface!$B$99,R95,R96) -> 0.9 | S94: =CHOOSE(UserInterface!$B$99,S95,S96) -> 0.9 | T94: =CHOOSE(UserInterface!$B$99,T95,T96) -> 0.9 | U94: =CHOOSE(UserInterface!$B$99,U95,U96) -> 0.9 | V94: =CHOOSE(UserInterface!$B$99,V95,V96) -> 0.9 | W94: =CHOOSE(UserInterface!$B$99,W95,W96) -> 0.9 | X94: =CHOOSE(UserInterface!$B$99,X95,X96) -> 0.9 | Y94: =CHOOSE(UserInterface!$B$99,Y95,Y96) -> 0.9 | Z94: =CHOOSE(UserInterface!$B$99,Z95,Z96) -> 0.9 | AA94: =CHOOSE(UserInterface!$B$99,AA95,AA96) -> 0.9 | AB94: =CHOOSE(UserInterface!$B$99,AB95,AB96) -> 0.9 | AC94: =CHOOSE(UserInterface!$B$99,AC95,AC96) -> 0.9 | AD94: =CHOOSE(UserInterface!$B$99,AD95,AD96) -> 0.9 | AE94: =CHOOSE(UserInterface!$B$99,AE95,AE96) -> 0.9 | AF94: =CHOOSE(UserInterface!$B$99,AF95,AF96) -> 0.9 | AG94: =CHOOSE(UserInterface!$B$99,AG95,AG96) -> 0.9 | AH94: =CHOOSE(UserInterface!$B$99,AH95,AH96) -> 0.9 | AI94: =CHOOSE(UserInterface!$B$99,AI95,AI96) -> 0.9 | AJ94: =CHOOSE(UserInterface!$B$99,AJ95,AJ96) -> 0.9 | AK94: =CHOOSE(UserInterface!$B$99,AK95,AK96) -> 0.9 | AL94: =CHOOSE(UserInterface!$B$99,AL95,AL96) -> 0.9 | AM94: =CHOOSE(UserInterface!$B$99,AM95,AM96) -> 0.9 | AN94: =CHOOSE(UserInterface!$B$99,AN95,AN96) -> 0.9 | AO94: =CHOOSE(UserInterface!$B$99,AO95,AO96) -> 0.9 | AP94: =CHOOSE(UserInterface!$B$99,AP95,AP96) -> 0.9 | AQ94: =CHOOSE(UserInterface!$B$99,AQ95,AQ96) -> 0.9 | AR94: =CHOOSE(UserInterface!$B$99,AR95,AR96) -> 0.9 | AS94: =CHOOSE(UserInterface!$B$99,AS95,AS96) -> 0.9 | AT94: =CHOOSE(UserInterface!$B$99,AT95,AT96) -> 0.9 | AU94: =CHOOSE(UserInterface!$B$99,AU95,AU96) -> 0.9 | AV94: =CHOOSE(UserInterface!$B$99,AV95,AV96) -> 0.9 | AW94: =CHOOSE(UserInterface!$B$99,AW95,AW96) -> 0.9 | AX94: =CHOOSE(UserInterface!$B$99,AX95,AX96) -> 0.9
B95: based on short term forecasts | E95: =IQI!$E$34 -> 0.8016706913 | F95: =IQI!$E$34 -> 0.8016706913 | G95: =IQI!$E$34 -> 0.8016706913 | H95: =IQI!$E$34 -> 0.8016706913 | I95: =IQI!$E$34 -> 0.8016706913 | J95: =IQI!$E$34 -> 0.8016706913 | K95: =IQI!$E$34 -> 0.8016706913 | L95: =IQI!$E$34 -> 0.8016706913 | M95: =IQI!$E$34 -> 0.8016706913 | N95: =IQI!$E$34 -> 0.8016706913 | O95: =IQI!$E$34 -> 0.8016706913 | P95: =IQI!$E$34 -> 0.8016706913 | Q95: =IQI!$E$34 -> 0.8016706913 | R95: =IQI!$E$34 -> 0.8016706913 | S95: =IQI!$E$34 -> 0.8016706913 | T95: =IQI!$E$34 -> 0.8016706913 | U95: =IQI!$E$34 -> 0.8016706913 | V95: =IQI!$E$34 -> 0.8016706913 | W95: =IQI!$E$34 -> 0.8016706913 | X95: =IQI!$E$34 -> 0.8016706913 | Y95: =IQI!$E$34 -> 0.8016706913 | Z95: =IQI!$E$34 -> 0.8016706913 | AA95: =IQI!$E$34 -> 0.8016706913 | AB95: =IQI!$E$34 -> 0.8016706913 | AC95: =IQI!$E$34 -> 0.8016706913 | AD95: =IQI!$E$34 -> 0.8016706913 | AE95: =IQI!$E$34 -> 0.8016706913 | AF95: =IQI!$E$34 -> 0.8016706913 | AG95: =IQI!$E$34 -> 0.8016706913 | AH95: =IQI!$E$34 -> 0.8016706913 | AI95: =IQI!$E$34 -> 0.8016706913 | AJ95: =IQI!$E$34 -> 0.8016706913 | AK95: =IQI!$E$34 -> 0.8016706913 | AL95: =IQI!$E$34 -> 0.8016706913 | AM95: =IQI!$E$34 -> 0.8016706913 | AN95: =IQI!$E$34 -> 0.8016706913 | AO95: =IQI!$E$34 -> 0.8016706913 | AP95: =IQI!$E$34 -> 0.8016706913 | AQ95: =IQI!$E$34 -> 0.8016706913 | AR95: =IQI!$E$34 -> 0.8016706913 | AS95: =IQI!$E$34 -> 0.8016706913 | AT95: =IQI!$E$34 -> 0.8016706913 | AU95: =IQI!$E$34 -> 0.8016706913 | AV95: =IQI!$E$34 -> 0.8016706913 | AW95: =IQI!$E$34 -> 0.8016706913 | AX95: =IQI!$E$34 -> 0.8016706913
B96: user defined | E96: ='User input'!E30 -> 0 | F96: ='User input'!F30 -> 0 | G96: ='User input'!G30 -> 0 | H96: ='User input'!H30 -> 0 | I96: ='User input'!I30 -> 0 | J96: ='User input'!J30 -> 0 | K96: ='User input'!K30 -> 0 | L96: ='User input'!L30 -> 0 | M96: ='User input'!M30 -> 0 | N96: ='User input'!N30 -> 0.9 | O96: ='User input'!O30 -> 0.9 | P96: ='User input'!P30 -> 0.9 | Q96: ='User input'!Q30 -> 0.9 | R96: ='User input'!R30 -> 0.9 | S96: ='User input'!S30 -> 0.9 | T96: ='User input'!T30 -> 0.9 | U96: ='User input'!U30 -> 0.9 | V96: ='User input'!V30 -> 0.9 | W96: ='User input'!W30 -> 0.9 | X96: ='User input'!X30 -> 0.9 | Y96: ='User input'!Y30 -> 0.9 | Z96: ='User input'!Z30 -> 0.9 | AA96: ='User input'!AA30 -> 0.9 | AB96: ='User input'!AB30 -> 0.9 | AC96: ='User input'!AC30 -> 0.9 | AD96: ='User input'!AD30 -> 0.9 | AE96: ='User input'!AE30 -> 0.9 | AF96: ='User input'!AF30 -> 0.9 | AG96: ='User input'!AG30 -> 0.9 | AH96: ='User input'!AH30 -> 0.9 | AI96: ='User input'!AI30 -> 0.9 | AJ96: ='User input'!AJ30 -> 0.9 | AK96: ='User input'!AK30 -> 0.9 | AL96: ='User input'!AL30 -> 0.9 | AM96: ='User input'!AM30 -> 0.9 | AN96: ='User input'!AN30 -> 0.9 | AO96: ='User input'!AO30 -> 0.9 | AP96: ='User input'!AP30 -> 0.9 | AQ96: ='User input'!AQ30 -> 0.9 | AR96: ='User input'!AR30 -> 0.9 | AS96: ='User input'!AS30 -> 0.9 | AT96: ='User input'!AT30 -> 0.9 | AU96: ='User input'!AU30 -> 0.9 | AV96: ='User input'!AV30 -> 0.9 | AW96: ='User input'!AW30 -> 0.9 | AX96: ='User input'!AX30 -> 0.9

Sheet SHETL
A1: SHETL | C1: Year ending 31 March | E1: =EOMONTH(CommonInputs!$J$5,E2*12) -> 2005-03-31 | F1: =EOMONTH(CommonInputs!$J$5,F2*12) -> 2006-03-31 | G1: =EOMONTH(CommonInputs!$J$5,G2*12) -> 2007-03-31 | H1: =EOMONTH(CommonInputs!$J$5,H2*12) -> 2008-03-31 | I1: =EOMONTH(CommonInputs!$J$5,I2*12) -> 2009-03-31 | J1: =EOMONTH(CommonInputs!$J$5,J2*12) -> 2010-03-31 | K1: =EOMONTH(CommonInputs!$J$5,K2*12) -> 2011-03-31 | L1: =EOMONTH(CommonInputs!$J$5,L2*12) -> 2012-03-31 | M1: =EOMONTH(CommonInputs!$J$5,M2*12) -> 2013-03-31 | N1: =EOMONTH(CommonInputs!$J$5,N2*12) -> 2014-03-31 | O1: =EOMONTH(CommonInputs!$J$5,O2*12) -> 2015-03-31 | P1: =EOMONTH(CommonInputs!$J$5,P2*12) -> 2016-03-31 | Q1: =EOMONTH(CommonInputs!$J$5,Q2*12) -> 2017-03-31 | R1: =EOMONTH(CommonInputs!$J$5,R2*12) -> 2018-03-31 | S1: =EOMONTH(CommonInputs!$J$5,S2*12) -> 2019-03-31 | T1: =EOMONTH(CommonInputs!$J$5,T2*12) -> 2020-03-31 | U1: =EOMONTH(CommonInputs!$J$5,U2*12) -> 2021-03-31 | V1: =EOMONTH(CommonInputs!$J$5,V2*12) -> 2022-03-31 | W1: =EOMONTH(CommonInputs!$J$5,W2*12) -> 2023-03-31 | X1: =EOMONTH(CommonInputs!$J$5,X2*12) -> 2024-03-31 | Y1: =EOMONTH(CommonInputs!$J$5,Y2*12) -> 2025-03-31 | Z1: =EOMONTH(CommonInputs!$J$5,Z2*12) -> 2026-03-31 | AA1: =EOMONTH(CommonInputs!$J$5,AA2*12) -> 2027-03-31 | AB1: =EOMONTH(CommonInputs!$J$5,AB2*12) -> 2028-03-31 | AC1: =EOMONTH(CommonInputs!$J$5,AC2*12) -> 2029-03-31 | AD1: =EOMONTH(CommonInputs!$J$5,AD2*12) -> 2030-03-31 | AE1: =EOMONTH(CommonInputs!$J$5,AE2*12) -> 2031-03-31 | AF1: =EOMONTH(CommonInputs!$J$5,AF2*12) -> 2032-03-31 | AG1: =EOMONTH(CommonInputs!$J$5,AG2*12) -> 2033-03-31 | AH1: =EOMONTH(CommonInputs!$J$5,AH2*12) -> 2034-03-31 | AI1: =EOMONTH(CommonInputs!$J$5,AI2*12) -> 2035-03-31 | AJ1: =EOMONTH(CommonInputs!$J$5,AJ2*12) -> 2036-03-31 | AK1: =EOMONTH(CommonInputs!$J$5,AK2*12) -> 2037-03-31 | AL1: =EOMONTH(CommonInputs!$J$5,AL2*12) -> 2038-03-31 | AM1: =EOMONTH(CommonInputs!$J$5,AM2*12) -> 2039-03-31 | AN1: =EOMONTH(CommonInputs!$J$5,AN2*12) -> 2040-03-31 | AO1: =EOMONTH(CommonInputs!$J$5,AO2*12) -> 2041-03-31 | AP1: =EOMONTH(CommonInputs!$J$5,AP2*12) -> 2042-03-31 | AQ1: =EOMONTH(CommonInputs!$J$5,AQ2*12) -> 2043-03-31 | AR1: =EOMONTH(CommonInputs!$J$5,AR2*12) -> 2044-03-31 | AS1: =EOMONTH(CommonInputs!$J$5,AS2*12) -> 2045-03-31 | AT1: =EOMONTH(CommonInputs!$J$5,AT2*12) -> 2046-03-31 | AU1: =EOMONTH(CommonInputs!$J$5,AU2*12) -> 2047-03-31 | AV1: =EOMONTH(CommonInputs!$J$5,AV2*12) -> 2048-03-31 | AW1: =EOMONTH(CommonInputs!$J$5,AW2*12) -> 2049-03-31 | AX1: =EOMONTH(CommonInputs!$J$5,AX2*12) -> 2050-03-31
E2: =F2-1 -> -5 | F2: =G2-1 -> -4 | G2: =H2-1 -> -3 | H2: =I2-1 -> -2 | I2: =J2-1 -> -1 | J2: 0 | K2: =J2+1 -> 1 | L2: 2 | M2: 3 | N2: 4 | O2: 5 | P2: 6 | Q2: 7 | R2: 8 | S2: 9 | T2: 10 | U2: 11 | V2: 12 | W2: 13 | X2: 14 | Y2: 15 | Z2: 16 | AA2: 17 | AB2: 18 | AC2: 19 | AD2: 20 | AE2: 21 | AF2: 22 | AG2: 23 | AH2: 24 | AI2: 25 | AJ2: 26 | AK2: 27 | AL2: 28 | AM2: 29 | AN2: 30 | AO2: 31 | AP2: 32 | AQ2: 33 | AR2: 34 | AS2: 35 | AT2: 36 | AU2: 37 | AV2: 38 | AW2: 39 | AX2: 40
A3: FBPQ
J4: 'Q:\TPCR4 RO FP\Input files\[RIIOT1_2011_SHETL_FinancialDataTables_vFinal.xlsm]Input to Model'!J7 | L4: sources
J5: ------> | K5: <-------- | L5: ------> | M5: <-------- | N5: 'P&L'!M10
A6: Profit & Loss Account (All figures £m, nominal) | J6: 'Q:\TPCR4 RO FP\[RO updated input files RRP actuals 1011.xlsx]SHETL'
B7: Turnover | J7: ='[8]Input to Model'!J7 -> 63.7 | K7: =+[9]SHETL!K7 -> 79 | L7: =+[9]SHETL!L7 -> 101.9552007 | M7: ='Fin Statements'!M10 -> 236.4937552
B8: Operational costs incurred | J8: ='[8]Input to Model'!J8 -> 16.4 | K8: =+[9]SHETL!K8 -> 17.56048 | L8: =+[9]SHETL!L8 -> 21.90853264 | M8: =-SUM('Fin Statements'!M12:M17) -> 58.19571841
B9: Other operating income (-ve) | J9: ='[8]Input to Model'!J9 -> 0 | K9: =+[9]SHETL!K9 -> 0 | L9: =+[9]SHETL!L9 -> 0 | M9: 0
B10: Depreciation/ amortisation | J10: ='[8]Input to Model'!J10 -> 11.5 | K10: =+[9]SHETL!K10 -> 14.4 | L10: =+[9]SHETL!L10 -> 21.55687065 | M10: =-'Fin Statements'!M18 -> 28.60833333
B11: (Profit)/loss on disposal of fixed assets | J11: ='[8]Input to Model'!J11 -> 0 | K11: =+[9]SHETL!K11 -> 0 | L11: =+[9]SHETL!L11 -> 0 | M11: 0
B12: Exceptional Items | J12: ='[8]Input to Model'!J12 -> 0 | K12: =+[9]SHETL!K12 -> 0 | L12: =+[9]SHETL!L12 -> 0 | M12: 0
B13: Interest Payable | J13: ='[8]Input to Model'!J13 -> 9.2 | K13: =+[9]SHETL!K13 -> 8.1 | L13: =+[9]SHETL!L13 -> 23.99390375 | M13: =-'Fin Statements'!M25 -> 37.37356004
B14: Other finance costs | J14: ='[8]Input to Model'!J14 -> 0 | K14: =+[9]SHETL!K14 -> 0 | L14: =+[9]SHETL!L14 -> 0 | M14: 0
B15: Interest Receivable (-ve) | J15: ='[8]Input to Model'!J15 -> 0 | K15: =+[9]SHETL!K15 -> 0 | L15: =+[9]SHETL!L15 -> 0 | M15: ='Fin Statements'!M24 -> 0
B16: Current tax | J16: ='[8]Input to Model'!J16 -> 4.8897 | K16: =+[9]SHETL!K16 -> 7.497553657 | L16: =+[9]SHETL!L16 -> 2.854789392 | M16: =-'Fin Statements'!M28 -> 11.64676248
B17: Deferred tax | J17: ='[8]Input to Model'!J17 -> 2.5 | K17: =+[9]SHETL!K17 -> 0.573511943 | L17: =+[9]SHETL!L17 -> 4.674809623 | M17: =-'Fin Statements'!M29 -> 13.3525817
B18: Dividends | J18: ='[8]Input to Model'!J18 -> 0 | K18: =+[9]SHETL!K18 -> -30 | L18: =+[9]SHETL!L18 -> -20.5095209 | M18: =-'Fin Statements'!M32 -> 28.96292681
B19: Amortization of customer contributions | J19: ='[8]Input to Model'!J19 -> 0 | K19: =+[9]SHETL!K19 -> -0.5 | L19: =+[9]SHETL!L19 -> -0.5 | M19: 0
B20: Operating profit before Finance costs and tax | J20: ='[8]Input to Model'!J20 -> 35.8 | K20: =+[9]SHETL!K20 -> 47.53952 | L20: =+[9]SHETL!L20 -> 58.98979739 | M20: =M7-M8-M10-M19 -> 149.6897034
B21: Other recognised gains and losses | J21: ='[8]Input to Model'!J21 -> 0 | K21: =+[9]SHETL!K21 -> 0 | L21: =+[9]SHETL!L21 -> 0 | M21: 0
B22: Transfer to reserves | J22: ='[8]Input to Model'!J22 -> 19.2103 | K22: =+[9]SHETL!K22 -> 1.3684544 | L22: =+[9]SHETL!L22 -> 6.956773734 | M22: =M20-M16-M18-M13-M17 -> 58.3538724
A24: Balance sheet (All figures £m, nominal)
A26: Non Current Assets
B27: Tangible assets / Property Plant & Equipment | J27: ='[8]Input to Model'!J27 -> 348.7 | K27: =+[9]SHETL!K27 -> 452.85872 | L27: =+[9]SHETL!L27 -> 671.5179555 | M27: ='Fin Statements'!M39 -> 1517.925996
B28: Other non current | J28: ='[8]Input to Model'!J28 -> 0 | K28: =+[9]SHETL!K28 -> 0 | L28: =+[9]SHETL!L28 -> 0 | M28: 0
A29: Current Assets
B30: Stock | J30: ='[8]Input to Model'!J30 -> 0 | K30: =+[9]SHETL!K30 -> 0 | L30: =+[9]SHETL!L30 -> 0 | M30: 0
B31: Trade Debtors | J31: ='[8]Input to Model'!J31 -> 15.2 | K31: =+[9]SHETL!K31 -> 0.2 | L31: =+[9]SHETL!L31 -> 0.2 | M31: 0.2
B32: Loans from other group companies | J32: ='[8]Input to Model'!J32 -> 0 | K32: =+[9]SHETL!K32 -> 0 | L32: =+[9]SHETL!L32 -> 0 | M32: 0
B33: Other debtors | J33: ='[8]Input to Model'!J33 -> 0 | K33: =+[9]SHETL!K33 -> 0 | L33: =+[9]SHETL!L33 -> 0 | M33: 0
B34: Cash at bank | J34: ='[8]Input to Model'!J34 -> 0 | K34: =+[9]SHETL!K34 -> 0 | L34: =+[9]SHETL!L34 -> 0 | M34: 0
B35: Investments | J35: ='[8]Input to Model'!J35 -> 0 | K35: =+[9]SHETL!K35 -> 0 | L35: =+[9]SHETL!L35 -> 0 | M35: 0
B36: Pension surplus | J36: ='[8]Input to Model'!J36 -> 0 | K36: =+[9]SHETL!K36 -> 0 | L36: =+[9]SHETL!L36 -> 0 | M36: 0
B37: Other current assets | J37: ='[8]Input to Model'!J37 -> 0 | K37: =+[9]SHETL!K37 -> 0 | L37: =+[9]SHETL!L37 -> 0 | M37: 0
B38: Current assets: Other | J38: ='[8]Input to Model'!J38 -> 0 | K38: =+[9]SHETL!K38 -> 0 | L38: =+[9]SHETL!L38 -> 0 | M38: 0
A39: Creditors: amounts falling due within one year
B40: - Overdrafts | J40: ='[8]Input to Model'!J40 -> 0 | K40: =+[9]SHETL!K40 -> 46.1 | L40: =+[9]SHETL!L40 -> 46.1 | M40: 0
B41: - External loans | J41: ='[8]Input to Model'!J41 -> 23.2 | K41: =+[9]SHETL!K41 -> 0 | L41: =+[9]SHETL!L41 -> 0 | M41: ='Fin Statements'!M57 -> 0
B42: - Loans due to other Group companies | J42: ='[8]Input to Model'!J42 -> 1.3 | K42: =+[9]SHETL!K42 -> 0 | L42: =+[9]SHETL!L42 -> 0 | M42: ='Fin Statements'!M58 -> 0
B43: - Trade Creditors | J43: ='[8]Input to Model'!J43 -> 20.6 | K43: =+[9]SHETL!K43 -> 0.3 | L43: =+[9]SHETL!L43 -> 0.3 | M43: ='Fin Statements'!M60 -> 24.6
B44: - Other | J44: ='[8]Input to Model'!J44 -> 0 | K44: =+[9]SHETL!K44 -> 41.2 | L44: =+[9]SHETL!L44 -> 41.2 | M44: ='Fin Statements'!M61 -> 56.02338124
A45: Creditors: amounts falling due after more than one year
B46: - External loans | J46: ='[8]Input to Model'!J46 -> 25 | K46: =+[9]SHETL!K46 -> 25 | L46: =+[9]SHETL!L46 -> 25 | M46: ='Fin Statements'!M72 -> 467.5783342
B47: - Loans due to other Group companies | J47: ='[8]Input to Model'!J47 -> 133.1 | K47: =+[9]SHETL!K47 -> 163.1 | L47: =+[9]SHETL!L47 -> 313.1 | M47: ='Fin Statements'!M73 -> 422
B48: - Other creditors | J48: ='[8]Input to Model'!J48 -> 0 | K48: =+[9]SHETL!K48 -> 0 | L48: =+[9]SHETL!L48 -> 0 | M48: ='Fin Statements'!M77 -> 0
B49: Customer contributions | J49: ='[8]Input to Model'!J49 -> 10.9 | K49: =+[9]SHETL!K49 -> 25.1 | L49: =+[9]SHETL!L49 -> 24.6 | M49: ='Fin Statements'!M75 -> 0
B50: Refundable customer deposits | J50: ='[8]Input to Model'!J50 -> 0 | K50: =+[9]SHETL!K50 -> 0 | L50: =+[9]SHETL!L50 -> 0 | M50: =+[9]SHETL!M50 -> 0
B51: Pension Deficit | J51: ='[8]Input to Model'!J51 -> 0 | K51: =+[9]SHETL!K51 -> 0 | L51: =+[9]SHETL!L51 -> 0 | M51: ='Fin Statements'!M85 -> -0.1874494686
B52: Derivative financial liabilities | J52: ='[8]Input to Model'!J52 -> 0 | K52: =+[9]SHETL!K52 -> 0 | L52: =+[9]SHETL!L52 -> 0 | M52: =+[9]SHETL!M52 -> 0
A53: Provisions for liabilities and charges
B54: Deferred tax provision | J54: ='[8]Input to Model'!J54 -> 37.6 | K54: =+[9]SHETL!K54 -> 38.6 | L54: =+[9]SHETL!L54 -> 43.26959785 | M54: ='Fin Statements'!M82 -> 137.7525817
J55: ='[8]Input to Model'!J55 -> 0 | K55: =+[9]SHETL!K55 -> 0 | L55: =+[9]SHETL!L55 -> 0
B56: Restructuring | J56: ='[8]Input to Model'!J56 -> 0 | K56: =+[9]SHETL!K56 -> 0 | L56: =+[9]SHETL!L56 -> 0 | M56: ='Fin Statements'!M84 -> 0
B57: Other provisions | J57: ='[8]Input to Model'!J57 -> 0 | K57: =+[9]SHETL!K57 -> 0 | L57: =+[9]SHETL!L57 -> 0 | M57: ='Fin Statements'!M77 -> 0
J58: ='[8]Input to Model'!J58 -> 0 | K58: =+[9]SHETL!K58 -> 0 | L58: =+[9]SHETL!L58 -> 0
A59: Shareholders funds
B60: Called up ordinary share capital (including share premium) | J60: ='[8]Input to Model'!J60 -> 4.3 | K60: =+[9]SHETL!K60 -> 4.3 | L60: =+[9]SHETL!L60 -> 61.8 | M60: ='Fin Statements'!M92 -> 200
B61: Profit and Loss Account | J61: ='[8]Input to Model'!J61 -> 19.2 | K61: =+[9]SHETL!K61 -> 1.43952 | L61: =+[9]SHETL!L61 -> 6.958996724 | M61: ='Fin Statements'!M95 -> 399.7538724
B62: Other Reserves | J62: ='[8]Input to Model'!J62 -> 88.7 | K62: =+[9]SHETL!K62 -> 107.9192 | L62: =+[9]SHETL!L62 -> 109.33952 | M62: ='Fin Statements'!M98 -> 0
B63: Memo-netdebt | J63: ='[8]Input to Model'!J63 -> 0 | K63: =+[9]SHETL!K63 -> 234.2 | L63: =+[9]SHETL!L63 -> 384.2 | M63: ='[10]SSE summary'!F55 -> 723.8324477
J64: ='[8]Input to Model'!J64 -> 0 | K64: =+[9]SHETL!K64 -> 0 | L64: =+[9]SHETL!L64 -> 0 | M64: =SUM(M27:M38)-SUM(M40:M57)-SUM(M60:M62) -> -189.394724
A65: Cash flow (All figures £m, nominal)
B66: Net cash inflow/(outflow) from operating activities | J66: ='[8]Input to Model'!J66 -> 74.8 | K66: =+[9]SHETL!K66 -> 116.33952 | L66: =+[9]SHETL!L66 -> 80.3787549 | M66: ='Fin Statements'!M114 -> 178.1105873
B67: Interest received | J67: ='[8]Input to Model'!J67 -> 0 | K67: =+[9]SHETL!K67 -> 0 | L67: =+[9]SHETL!L67 -> 0 | M67: ='Fin Statements'!M117 -> 0
B68: Interest paid | J68: ='[8]Input to Model'!J68 -> -9.2 | K68: =+[9]SHETL!K68 -> -9.5 | L68: =+[9]SHETL!L68 -> -23.99390375 | M68: ='Fin Statements'!M118 -> -37.37356004
B69: Issue costs of bank and other debt instruments | J69: ='[8]Input to Model'!J69 -> 0 | K69: =+[9]SHETL!K69 -> 0 | L69: =+[9]SHETL!L69 -> 0
B70: Interest element of finance lease payments | J70: ='[8]Input to Model'!J70 -> 0 | K70: =+[9]SHETL!K70 -> 0 | L70: =+[9]SHETL!L70 -> 0
B71: Dividends paid | J71: ='[8]Input to Model'!J71 -> 0 | K71: =+[9]SHETL!K71 -> 0 | L71: =+[9]SHETL!L71 -> 0
B72: Taxation | J72: ='[8]Input to Model'!J72 -> -7.4 | K72: =+[9]SHETL!K72 -> -5.6 | L72: =+[9]SHETL!L72 -> -2.689865019 | M72: ='Fin Statements'!M122 -> -13.54660283
B73: Purchase of tangible fixed assets | J73: ='[8]Input to Model'!J73 -> -58.2 | K73: =+[9]SHETL!K73 -> -101.2 | L73: =+[9]SHETL!L73 -> -240.2161062 | M73: ='Fin Statements'!M127 -> -286.5344295
B74: Purchase of intangible assets | J74: ='[8]Input to Model'!J74 -> 0 | K74: =+[9]SHETL!K74 -> 0 | L74: =+[9]SHETL!L74 -> 0
B75: Sale of tangible fixed assets | J75: ='[8]Input to Model'!J75 -> 0 | K75: =+[9]SHETL!K75 -> 0 | L75: =+[9]SHETL!L75 -> 0
B76: Customers contributions received | J76: ='[8]Input to Model'!J76 -> 0 | K76: =+[9]SHETL!K76 -> 0 | L76: =+[9]SHETL!L76 -> 0
B77: Other | J77: ='[8]Input to Model'!J77 -> 0 | K77: =+[9]SHETL!K77 -> 0 | L77: =+[9]SHETL!L77 -> 0
B78: Equity dividends paid to shareholders | J78: ='[8]Input to Model'!J78 -> 0 | K78: =+[9]SHETL!K78 -> -29.96048 | L78: =+[9]SHETL!L78 -> -150.0306409 | M78: ='Fin Statements'!M119 -> -28.96292681
B79: Movement in derivative debt (+/-ve) | J79: ='[8]Input to Model'!J79 -> 0 | K79: =+[9]SHETL!K79 -> 0 | L79: =+[9]SHETL!L79 -> 0
B80: Reduction/(increase) in short-term deposits with banks | J80: ='[8]Input to Model'!J80 -> 0 | K80: =+[9]SHETL!K80 -> 0 | L80: =+[9]SHETL!L80 -> 0
B81: Issue of ordinary share capital | J81: ='[8]Input to Model'!J81 -> 0 | K81: =+[9]SHETL!K81 -> 0 | L81: =+[9]SHETL!L81 -> 0 | M81: ='Fin Statements'!M138 -> 0
B82: Other shares/reserve movements | J82: ='[8]Input to Model'!J82 -> 0 | K82: =+[9]SHETL!K82 -> 0 | L82: =+[9]SHETL!L82 -> 0 | M82: ='Fin Statements'!M139 -> 0
B83: Capital element of finance lease payments | J83: ='[8]Input to Model'!J83 -> 0 | K83: =+[9]SHETL!K83 -> 0 | L83: =+[9]SHETL!L83 -> 0
B84: (Decrease)/Increase in amounts due to Group undertakings | J84: ='[8]Input to Model'!J84 -> 0 | K84: =+[9]SHETL!K84 -> 0 | L84: =+[9]SHETL!L84 -> 0
B85: Increase in borrowings | J85: ='[8]Input to Model'!J85 -> 0 | K85: =+[9]SHETL!K85 -> 0 | L85: =+[9]SHETL!L85 -> 0 | M85: =-'Fin Statements'!M144 -> 371.8783342
B86: Net cash at 1 April | J86: ='[8]Input to Model'!J86 -> 0 | K86: =+[9]SHETL!K86 -> -2.131628207e-14 | L86: =+[9]SHETL!L86 -> 0.03952 | M86: =M66+M67+M68+M72+M73+M78+M81+M85 -> 183.5714024
B87: Borrowings net of short-term deposits acquired with subsidiaries | J87: ='[8]Input to Model'!J87 -> 0 | K87: =+[9]SHETL!K87 -> 0 | L87: =+[9]SHETL!L87 -> 0
B88: Movement in deposits | J88: ='[8]Input to Model'!J88 -> 0 | K88: =+[9]SHETL!K88 -> 0 | L88: =+[9]SHETL!L88 -> 0
B89: Movement in borrowings | J89: ='[8]Input to Model'!J89 -> 0 | K89: =+[9]SHETL!K89 -> 30 | L89: =+[9]SHETL!L89 -> 150
B90: Other non-cash changes | J90: ='[8]Input to Model'!J90 -> 0 | K90: =+[9]SHETL!K90 -> 0 | L90: =+[9]SHETL!L90 -> 0
B91: Exchange adjustments | J91: ='[8]Input to Model'!J91 -> 0 | K91: =+[9]SHETL!K91 -> 0 | L91: =+[9]SHETL!L91 -> 0
B92: Net cash inflow/(outflow) from returns on investments and servicing of finance | J92: ='[8]Input to Model'!J92 -> 0 | K92: =+[9]SHETL!K92 -> 0 | L92: =+[9]SHETL!L92 -> 0
B93: Net cash inflow/(outflow) from capital expenditure and financial investment | J93: ='[8]Input to Model'!J93 -> 0 | K93: =+[9]SHETL!K93 -> 0 | L93: =+[9]SHETL!L93 -> 0
B94: Equity dividends paid to shareholders (-ve) | J94: ='[8]Input to Model'!J94 -> 0 | K94: =+[9]SHETL!K94 -> 0 | L94: =+[9]SHETL!L94 -> 0
B95: Net cash inflow/(outflow) from financing | J95: ='[8]Input to Model'!J95 -> 0 | K95: =+[9]SHETL!K95 -> 0 | L95: =+[9]SHETL!L95 -> 0
B96: Net (debt)/cash at 31 March | J96: ='[8]Input to Model'!J96 -> 0 | K96: =+[9]SHETL!K96 -> 0 | L96: =+[9]SHETL!L96 -> 0 | M96: =M63 -> 723.8324477
J109: 'Q:\TPCR4 RO FP\Input files\[RIIOT1_2011_SHETL_FinancialDataTables_vFinal.xlsm]Input to Model'!J7 | L109: sources
A110: Capital allowances | J110: ------> | K110: <-------- | L110: ------> | M110: <-------- | N110: '[20111111 RO T_SHETL_FINAL_Financial_model.xlsm]SHETL'
B111: Plant pool and others | J111: 'Q:\TPCR4 RO FP\[RO updated input files RRP actuals 1011.xlsx]SHETL'
B112: Opening balance b/fwd | J112: 3 | K112: 5.86 | L112: 11.37634699 | M112: 12.89664972 | N112: 22.33313202
B113: Revisions | J113: -0.1 | K113: -3.1 | L113: 0 | M113: 0 | N113: 0
B114: Additions in the year | J114: 5.96 | K114: 13.45446525 | L114: 9.377069638 | M114: 14.33887713 | N114: 35.79144923
B115: Disposals in the year | J115: 0 | K115: -1.994031511 | L115: -3.77 | M115: 0 | N115: 0
B116: WDA | J116: 3 | K116: 2.844086747 | L116: 3.396683325 | M116: 4.902394833 | N116: 10.46242462
B117: Long life assets | J117: 0 | K117: 0 | L117: 0
B118: Opening balance b/fwd | J118: 116.765 | K118: 136.5525 | L118: 183.9761032 | M118: 358.4824572 | N118: 614.670498
B119: Revisions | J119: 0 | K119: 3.2 | L119: 0 | M119: 0 | N119: 101.8
B120: Additions in the year | J120: 34.96 | K120: 77.46917368 | L120: 203.0827973 | M120: 309.6376494 | N120: 712.1157492
B121: Disposals in the year | J121: 0 | K121: -12.80378128 | L121: 0 | M121: 0 | N121: 0
B122: WDA | J122: 15.1725 | K122: 20.44178924 | L122: 38.70589005 | M122: 53.44960852 | N122: 106.1428998
B123: IBAs | J123: 0 | K123: 0 | L123: 0
B124: Opening balance b/fwd | J124: 1.803 | K124: 2.223 | L124: 0 | M124: 13.87280786 | N124: 13.87280786
B125: Revisions | J125: 0 | K125: -0.4 | L125: 0 | M125: 0 | N125: 0
B126: Additions in the year | J126: 0.52 | K126: 0 | L126: 0 | M126: 0 | N126: 0
B127: Disposals in the year | J127: 0 | K127: 0 | L127: 0 | M127: 0 | N127: 0
B128: WDA | J128: 0.1 | K128: 0.01 | L128: 0 | M128: 0 | N128: 0
B129: Deferred revenue expenditure | J129: 0 | K129: 0 | L129: 0
B130: Opening balance b/fwd | J130: 41.272 | K130: 48.492 | L130: 60.53460241 | M130: 74.06690989 | N130: 90.91344999
B131: Revisions | J131: 0 | K131: 1.2 | L131: 0 | M131: 0 | N131: -101.8
B132: Additions in the year | J132: 8.62 | K132: 12.14260241 | L132: 15.13587254 | M132: 18.97211223 | N132: 20.54499749
B133: Disposals in the year | J133: 0 | K133: 0 | L133: 0 | M133: 0 | N133: 0
B134: WDA | J134: 1.4 | K134: 1.3 | L134: 1.60356506 | M134: 1.978279559 | N134: 2.452582365
A137: RAV opening balances | C137: £m09/10
B138: 04/05 opening balance on pre-vesting asset costs | F138: =K438*CommonInputs!J$6/CommonInputs!E$6 -> 261.0071397 | G138: PreVestRAV | I138: updated price base | K138: 227.6
B139: 04/05 opening balance on post-vesting asset costs | F139: =K439*CommonInputs!J$6/CommonInputs!E$6 -> 204.0809779 | G139: PostVestRAV | I139: updated price base | K139: 177.96
B140: 04/05 opening balance on pre-vesting cumulative depreciation | F140: =K440*CommonInputs!J$6/CommonInputs!E$6 -> 166.0599164 | G140: PreVestDepn | I140: updated price base | K140: 144.8053759
B141: 04/05 opening balance on post-vesting cumulative depreciation | F141: =K441*CommonInputs!J$6/CommonInputs!E$6 -> 31.38759637 | G141: PostVestDepn | I141: updated price base | K141: 27.37019739
B142: 04/05 opening balance on post-vesting disposals | F142: 0 | G142: PostVDisp | I142: update by 5 years
B143: 04/05 opening balance on post-vesting disposals depreciation | F143: 0 | G143: PostVDispDepn | I143: update by 5 years
B144: Interconnector value (£m, 05/06 Nominal) | F144: 25.1 | G144: IntRAV | I144: update by 5 years
B145: Pre-BETTA connections value (£m, 05/06 Nominal) | F145: 13.1 | G145: ConRAV | I145: update by 5 years
K212: sources | M212: '[UM 20111125 Draft for publication 20111125a.xlsm]SHETL'
M213: l
J214: 'Q:\TPCR4 RO FP\Input files\[RIIOT1_2011_SHETL_FinancialDataTables_vFinal.xlsm]Input to Model'!J7 | M214: l
J215: ------> | K215: <-------- | L215: ------> | M215: V | N215: <-------- | O215: '[20111111 RO T_SHETL_FINAL_Financial_model.xlsm]SHETL'
J216: 'Q:\TPCR4 RO FP\[RO updated input files RRP actuals 1011.xlsx]SHETL'
A217: Excluded services (£m, 09/10 real) | H217: ='[8]Input to Model'!H217 -> 0 | I217: ='[8]Input to Model'!I217 -> 0 | J217: ='[8]Input to Model'!J217 -> 2.29 | K217: =+[9]SHETL!K217 -> 4.5696 | L217: =+[9]SHETL!L217 -> 5.47 | M217: =[11]SHETL!M217 -> 7.4 | N217: 10.8 | O217: 14.2 | P217: 22.6 | Q217: 26.7 | R217: 27.8 | S217: 30.5 | T217: 31.4 | U217: 32.8 | V217: =[12]SHETL!V217 -> 32.8 | W217: =[12]SHETL!W217 -> 32.8 | X217: =[12]SHETL!X217 -> 32.8 | Y217: =[12]SHETL!Y217 -> 32.8 | Z217: =[12]SHETL!Z217 -> 32.8 | AA217: =[12]SHETL!AA217 -> 32.8 | AB217: =[12]SHETL!AB217 -> 32.8 | AC217: =[12]SHETL!AC217 -> 32.8 | AD217: =[12]SHETL!AD217 -> 32.8 | AE217: =[12]SHETL!AE217 -> 32.8 | AF217: =[12]SHETL!AF217 -> 32.8 | AG217: =[12]SHETL!AG217 -> 32.8 | AH217: =[12]SHETL!AH217 -> 32.8 | AI217: =[12]SHETL!AI217 -> 32.8 | AJ217: =[12]SHETL!AJ217 -> 32.8 | AK217: =[12]SHETL!AK217 -> 32.8 | AL217: =[12]SHETL!AL217 -> 32.8 | AM217: =[12]SHETL!AM217 -> 32.8 | AN217: =[12]SHETL!AN217 -> 32.8 | AO217: =[12]SHETL!AO217 -> 32.8 | AP217: =[12]SHETL!AP217 -> 32.8 | AQ217: =[12]SHETL!AQ217 -> 32.8 | AR217: =[12]SHETL!AR217 -> 32.8 | AS217: =[12]SHETL!AS217 -> 32.8 | AT217: =[12]SHETL!AT217 -> 32.8 | AU217: =[12]SHETL!AU217 -> 32.8 | AV217: =[12]SHETL!AV217 -> 32.8 | AW217: =[12]SHETL!AW217 -> 32.8 | AX217: =[12]SHETL!AX217 -> 32.8
A218: De Minimis | H218: ='[8]Input to Model'!H218 -> 0 | I218: ='[8]Input to Model'!I218 -> 0 | J218: ='[8]Input to Model'!J218 -> 0 | K218: =+[9]SHETL!K218 -> 0.14 | L218: =+[9]SHETL!L218 -> 0.1 | M218: =[11]SHETL!M218 -> 0 | N218: 0.1 | O218: 0.1 | P218: 0.1 | Q218: 0.1 | R218: 0.1 | S218: 0.1 | T218: 0.1 | U218: 0.1 | V218: =[12]SHETL!V218 -> 0.1 | W218: =[12]SHETL!W218 -> 0.1 | X218: =[12]SHETL!X218 -> 0.1 | Y218: =[12]SHETL!Y218 -> 0.1 | Z218: =[12]SHETL!Z218 -> 0.1 | AA218: =[12]SHETL!AA218 -> 0.1 | AB218: =[12]SHETL!AB218 -> 0.1 | AC218: =[12]SHETL!AC218 -> 0.1 | AD218: =[12]SHETL!AD218 -> 0.1 | AE218: =[12]SHETL!AE218 -> 0.1 | AF218: =[12]SHETL!AF218 -> 0.1 | AG218: =[12]SHETL!AG218 -> 0.1 | AH218: =[12]SHETL!AH218 -> 0.1 | AI218: =[12]SHETL!AI218 -> 0.1 | AJ218: =[12]SHETL!AJ218 -> 0.1 | AK218: =[12]SHETL!AK218 -> 0.1 | AL218: =[12]SHETL!AL218 -> 0.1 | AM218: =[12]SHETL!AM218 -> 0.1 | AN218: =[12]SHETL!AN218 -> 0.1 | AO218: =[12]SHETL!AO218 -> 0.1 | AP218: =[12]SHETL!AP218 -> 0.1 | AQ218: =[12]SHETL!AQ218 -> 0.1 | AR218: =[12]SHETL!AR218 -> 0.1 | AS218: =[12]SHETL!AS218 -> 0.1 | AT218: =[12]SHETL!AT218 -> 0.1 | AU218: =[12]SHETL!AU218 -> 0.1 | AV218: =[12]SHETL!AV218 -> 0.1 | AW218: =[12]SHETL!AW218 -> 0.1 | AX218: =[12]SHETL!AX218 -> 0.1
A219: Consented | H219: ='[8]Input to Model'!H219 -> 0 | I219: ='[8]Input to Model'!I219 -> 0 | J219: ='[8]Input to Model'!J219 -> 0 | K219: =+[9]SHETL!K219 -> 0 | L219: =+[9]SHETL!L219 -> 0 | M219: =[11]SHETL!M219 -> 0 | N219: =+[9]SHETL!N219 -> 0 | O219: =+[9]SHETL!O219 -> 0 | P219: =+[9]SHETL!P219 -> 0 | Q219: =+[9]SHETL!Q219 -> 0 | R219: =+[9]SHETL!R219 -> 0 | S219: =+[9]SHETL!S219 -> 0 | T219: =+[9]SHETL!T219 -> 0 | U219: =+[9]SHETL!U219 -> 0 | V219: =+[9]SHETL!V219 -> 0 | W219: =+[9]SHETL!W219 -> 0 | X219: =+[9]SHETL!X219 -> 0 | Y219: =+[9]SHETL!Y219 -> 0 | Z219: =+[9]SHETL!Z219 -> 0 | AA219: =+[9]SHETL!AA219 -> 0 | AB219: =+[9]SHETL!AB219 -> 0 | AC219: =+[9]SHETL!AC219 -> 0 | AD219: =+[9]SHETL!AD219 -> 0 | AE219: =+[9]SHETL!AE219 -> 0 | AF219: =+[9]SHETL!AF219 -> 0 | AG219: =+[9]SHETL!AG219 -> 0 | AH219: =+[9]SHETL!AH219 -> 0 | AI219: =+[9]SHETL!AI219 -> 0 | AJ219: =+[9]SHETL!AJ219 -> 0 | AK219: =+[9]SHETL!AK219 -> 0 | AL219: =+[9]SHETL!AL219 -> 0 | AM219: =+[9]SHETL!AM219 -> 0 | AN219: =+[9]SHETL!AN219 -> 0 | AO219: =+[9]SHETL!AO219 -> 0 | AP219: =+[9]SHETL!AP219 -> 0 | AQ219: =+[9]SHETL!AQ219 -> 0 | AR219: =+[9]SHETL!AR219 -> 0 | AS219: =+[9]SHETL!AS219 -> 0 | AT219: =+[9]SHETL!AT219 -> 0 | AU219: =+[9]SHETL!AU219 -> 0 | AV219: =+[9]SHETL!AV219 -> 0 | AW219: =+[9]SHETL!AW219 -> 0 | AX219: =+[9]SHETL!AX219 -> 0
H220: ='[8]Input to Model'!H220 -> 0 | I220: ='[8]Input to Model'!I220 -> 0 | J220: ='[8]Input to Model'!J220 -> 0 | K220: =+[9]SHETL!K220 -> 0 | L220: =+[9]SHETL!L220 -> 0 | M220: =[11]SHETL!M220 -> 0 | N220: =+[9]SHETL!N220 -> 0 | O220: =+[9]SHETL!O220 -> 0 | P220: =+[9]SHETL!P220 -> 0 | Q220: =+[9]SHETL!Q220 -> 0 | R220: =+[9]SHETL!R220 -> 0 | S220: =+[9]SHETL!S220 -> 0 | T220: =+[9]SHETL!T220 -> 0 | U220: =+[9]SHETL!U220 -> 0 | V220: =+[9]SHETL!V220 -> 0 | W220: =+[9]SHETL!W220 -> 0 | X220: =+[9]SHETL!X220 -> 0 | Y220: =+[9]SHETL!Y220 -> 0 | Z220: =+[9]SHETL!Z220 -> 0 | AA220: =+[9]SHETL!AA220 -> 0 | AB220: =+[9]SHETL!AB220 -> 0 | AC220: =+[9]SHETL!AC220 -> 0 | AD220: =+[9]SHETL!AD220 -> 0 | AE220: =+[9]SHETL!AE220 -> 0 | AF220: =+[9]SHETL!AF220 -> 0 | AG220: =+[9]SHETL!AG220 -> 0 | AH220: =+[9]SHETL!AH220 -> 0 | AI220: =+[9]SHETL!AI220 -> 0 | AJ220: =+[9]SHETL!AJ220 -> 0 | AK220: =+[9]SHETL!AK220 -> 0 | AL220: =+[9]SHETL!AL220 -> 0 | AM220: =+[9]SHETL!AM220 -> 0 | AN220: =+[9]SHETL!AN220 -> 0 | AO220: =+[9]SHETL!AO220 -> 0 | AP220: =+[9]SHETL!AP220 -> 0 | AQ220: =+[9]SHETL!AQ220 -> 0 | AR220: =+[9]SHETL!AR220 -> 0 | AS220: =+[9]SHETL!AS220 -> 0 | AT220: =+[9]SHETL!AT220 -> 0 | AU220: =+[9]SHETL!AU220 -> 0 | AV220: =+[9]SHETL!AV220 -> 0 | AW220: =+[9]SHETL!AW220 -> 0 | AX220: =+[9]SHETL!AX220 -> 0
A221: Inputs as Per TO (2005-2009 in Nominal Prices, 2010-2013 in 2009/10 Prices)
E222: 2005 | F222: 2006 | G222: 2007 | H222: 2008 | I222: 2009 | J222: 2010 | K222: 2011 | L222: 2012 | M222: 2013 | N222: 2014 | O222: 2015 | P222: 2016 | Q222: 2017 | R222: 2018 | S222: 2019 | T222: 2020 | U222: 2021 | Y222: 2014 | Z222: 2015 | AA222: 2016 | AB222: 2017 | AC222: 2018 | AD222: 2019 | AE222: 2020 | AF222: 2021 | AZ222: 2014 | BA222: 2015 | BB222: 2016 | BC222: 2017 | BD222: 2018 | BE222: 2019 | BF222: 2020 | BG222: 2021
N223: best | P223: sources | R223: shetl submission 30/1/2012 | Y223: best less base
A224: Total costs | Y224: 0 | Z224: 0 | AA224: 0 | AB224: 0 | AC224: 0 | AD224: 0 | AE224: 0 | AF224: 0
A225: Load related investment | V225: Load related investment | Y225: 0 | Z225: 0 | AA225: 0 | AB225: 0 | AC225: 0 | AD225: 0 | AE225: 0 | AF225: 0
A226: Generation connection - sole-use | E226: ='[8]Input to Model'!E225 -> 0 | F226: ='[8]Input to Model'!F225 -> 0 | G226: ='[8]Input to Model'!G225 -> 0 | H226: ='[8]Input to Model'!H225 -> 0 | I226: ='[8]Input to Model'!I225 -> 0 | J226: ='[8]Input to Model'!J225 -> 0 | K226: =+[9]SHETL!K226 -> 9.428271901 | L226: =+[9]SHETL!L226 -> 5.889582 | M226: 2.15 | N226: =AZ226-IF(UserInterface!$B$138=1,SHETL!Y226,0) -> 7.6245 | O226: =BA226-IF(UserInterface!$B$138=1,SHETL!Z226,0) -> 25.74565 | P226: =BB226-IF(UserInterface!$B$138=1,SHETL!AA226,0) -> 49.7216 | Q226: =BC226-IF(UserInterface!$B$138=1,SHETL!AB226,0) -> 26.6152 | R226: =BD226-IF(UserInterface!$B$138=1,SHETL!AC226,0) -> 6.9513 | S226: =BE226-IF(UserInterface!$B$138=1,SHETL!AD226,0) -> 6.1285 | T226: =BF226-IF(UserInterface!$B$138=1,SHETL!AE226,0) -> 5.1 | U226: =BG226-IF(UserInterface!$B$138=1,SHETL!AF226,0) -> 4.93 | V226: Local Enabling (Entry - Sole Use) | Y226: 0 | Z226: 0 | AA226: 0 | AB226: 0 | AC226: 0 | AD226: 0 | AE226: 0 | AF226: 0 | AZ226: 7.6245 | BA226: 25.74565 | BB226: 49.7216 | BC226: 26.6152 | BD226: 6.9513 | BE226: 6.1285 | BF226: 5.1 | BG226: 4.93
A227: Demand connection - sole-use | E227: ='[8]Input to Model'!E226 -> 0 | F227: ='[8]Input to Model'!F226 -> 0 | G227: ='[8]Input to Model'!G226 -> 0 | H227: ='[8]Input to Model'!H226 -> 0 | I227: ='[8]Input to Model'!I226 -> 0 | J227: ='[8]Input to Model'!J226 -> 0 | K227: =+[9]SHETL!K227 -> 6.715328999 | L227: =+[9]SHETL!L227 -> 10.332544 | M227: 23.45 | N227: =AZ227-IF(UserInterface!$B$138=1,SHETL!Y227,0) -> 27.60733664 | O227: =BA227-IF(UserInterface!$B$138=1,SHETL!Z227,0) -> 13.85292868 | P227: =BB227-IF(UserInterface!$B$138=1,SHETL!AA227,0) -> 7.176 | Q227: =BC227-IF(UserInterface!$B$138=1,SHETL!AB227,0) -> 7.5 | R227: =BD227-IF(UserInterface!$B$138=1,SHETL!AC227,0) -> 7.5 | S227: =BE227-IF(UserInterface!$B$138=1,SHETL!AD227,0) -> 7.5 | T227: =BF227-IF(UserInterface!$B$138=1,SHETL!AE227,0) -> 7.5 | U227: =BG227-IF(UserInterface!$B$138=1,SHETL!AF227,0) -> 7.5 | V227: Local Enabling (Exit - Sole Use) | Y227: 0 | Z227: 0 | AA227: 0 | AB227: 0 | AC227: 0 | AD227: 0 | AE227: 0 | AF227: 0 | AZ227: 27.60733664 | BA227: 13.85292868 | BB227: 7.176 | BC227: 7.5 | BD227: 7.5 | BE227: 7.5 | BF227: 7.5 | BG227: 7.5
A228: Infrastructure - local enabling (entry triggered) | E228: ='[8]Input to Model'!E227 -> 0 | F228: ='[8]Input to Model'!F227 -> 0 | G228: ='[8]Input to Model'!G227 -> 0 | H228: ='[8]Input to Model'!H227 -> 0 | I228: ='[8]Input to Model'!I227 -> 0 | J228: ='[8]Input to Model'!J227 -> 0 | K228: =+[9]SHETL!K228 -> 9.377753311 | L228: =+[9]SHETL!L228 -> 8.61 | M228: 26.5 | N228: =AZ228-IF(UserInterface!$B$138=1,SHETL!Y228,0) -> 23.75636064 | O228: =BA228-IF(UserInterface!$B$138=1,SHETL!Z228,0) -> 38.89538409 | P228: =BB228-IF(UserInterface!$B$138=1,SHETL!AA228,0) -> 84.79548889 | Q228: =BC228-IF(UserInterface!$B$138=1,SHETL!AB228,0) -> 51.85827438 | R228: =BD228-IF(UserInterface!$B$138=1,SHETL!AC228,0) -> 14.16093818 | S228: =BE228-IF(UserInterface!$B$138=1,SHETL!AD228,0) -> 5.505527273 | T228: =BF228-IF(UserInterface!$B$138=1,SHETL!AE228,0) -> 0 | U228: =BG228-IF(UserInterface!$B$138=1,SHETL!AF228,0) -> 0 | V228: Local Enabling (Entry) | Y228: 30.24063936 | Z228: 24.15761591 | AA228: 24.12451111 | AB228: 28.73772562 | AC228: 17.93906182 | AD228: 16.29447273 | AE228: 21.8 | AF228: 21.8 | AZ228: 53.997 | BA228: 63.053 | BB228: 108.92 | BC228: 80.596 | BD228: 32.1 | BE228: 21.8 | BF228: 21.8 | BG228: 21.8
A229: Infrastructure - local enabling (exit triggered) | E229: ='[8]Input to Model'!E228 -> 0 | F229: ='[8]Input to Model'!F228 -> 0 | G229: ='[8]Input to Model'!G228 -> 0 | H229: ='[8]Input to Model'!H228 -> 0 | I229: ='[8]Input to Model'!I228 -> 0 | J229: ='[8]Input to Model'!J228 -> 0 | K229: =+[9]SHETL!K229 -> 0 | L229: =+[9]SHETL!L229 -> 0 | M229: 1 | N229: =AZ229-IF(UserInterface!$B$138=1,SHETL!Y229,0) -> 5 | O229: =BA229-IF(UserInterface!$B$138=1,SHETL!Z229,0) -> 10 | P229: =BB229-IF(UserInterface!$B$138=1,SHETL!AA229,0) -> 15 | Q229: =BC229-IF(UserInterface!$B$138=1,SHETL!AB229,0) -> 0 | R229: =BD229-IF(UserInterface!$B$138=1,SHETL!AC229,0) -> 0 | S229: =BE229-IF(UserInterface!$B$138=1,SHETL!AD229,0) -> 0 | T229: =BF229-IF(UserInterface!$B$138=1,SHETL!AE229,0) -> 0 | U229: =BG229-IF(UserInterface!$B$138=1,SHETL!AF229,0) -> 0 | V229: Local Enabling (Exit) | Y229: 0 | Z229: 0 | AA229: 0 | AB229: 0 | AC229: 0 | AD229: 0 | AE229: 0 | AF229: 0 | AZ229: 5 | BA229: 10 | BB229: 15 | BC229: 0 | BD229: 0 | BE229: 0 | BF229: 0 | BG229: 0
A230: Infrastructure - wider works - reactive schemes (excl TIRG /TSS) | E230: ='[8]Input to Model'!E229 -> 0 | F230: ='[8]Input to Model'!F229 -> 0 | G230: ='[8]Input to Model'!G229 -> 0 | H230: ='[8]Input to Model'!H229 -> 0 | I230: ='[8]Input to Model'!I229 -> 0 | J230: ='[8]Input to Model'!J229 -> 0 | K230: =+[9]SHETL!K230 -> 4.250504644 | L230: =+[9]SHETL!L230 -> 14.437569 | M230: 109.87 | N230: =AZ230-IF(UserInterface!$B$138=1,SHETL!Y230,0) -> 46.08826572 | O230: =BA230-IF(UserInterface!$B$138=1,SHETL!Z230,0) -> 34.1541829 | P230: =BB230-IF(UserInterface!$B$138=1,SHETL!AA230,0) -> 17.63700668 | Q230: =BC230-IF(UserInterface!$B$138=1,SHETL!AB230,0) -> 13.36106955 | R230: =BD230-IF(UserInterface!$B$138=1,SHETL!AC230,0) -> 9.275 | S230: =BE230-IF(UserInterface!$B$138=1,SHETL!AD230,0) -> 9.491888889 | T230: =BF230-IF(UserInterface!$B$138=1,SHETL!AE230,0) -> 8.136666667 | U230: =BG230-IF(UserInterface!$B$138=1,SHETL!AF230,0) -> 7.825 | V230: Wider Works (Entry) | Y230: 424.8887069 | Z230: 555.2366568 | AA230: 423.3802995 | AB230: 340.3131401 | AC230: 276.9596622 | AD230: 257.8914 | AE230: 244.2288 | AF230: 306.3732 | AZ230: 470.9769726 | BA230: 589.3908397 | BB230: 441.0173062 | BC230: 353.6742097 | BD230: 286.2346622 | BE230: 267.3832889 | BF230: 252.3654667 | BG230: 314.1982
A231: Infrastructure - wider works - non reactive schemes (excl TIRG /TSS) | E231: ='[8]Input to Model'!E230 -> 0 | F231: ='[8]Input to Model'!F230 -> 0 | G231: ='[8]Input to Model'!G230 -> 0 | H231: ='[8]Input to Model'!H230 -> 0 | I231: ='[8]Input to Model'!I230 -> 0 | J231: ='[8]Input to Model'!J230 -> 0 | K231: =+[9]SHETL!K231 -> 3.413068459 | L231: =+[9]SHETL!L231 -> 2.513 | M231: 0 | N231: =AZ231-IF(UserInterface!$B$138=1,SHETL!Y231,0) -> 0 | O231: =BA231-IF(UserInterface!$B$138=1,SHETL!Z231,0) -> 0 | P231: =BB231-IF(UserInterface!$B$138=1,SHETL!AA231,0) -> 0 | Q231: =BC231-IF(UserInterface!$B$138=1,SHETL!AB231,0) -> 0 | R231: =BD231-IF(UserInterface!$B$138=1,SHETL!AC231,0) -> 0 | S231: =BE231-IF(UserInterface!$B$138=1,SHETL!AD231,0) -> 0 | T231: =BF231-IF(UserInterface!$B$138=1,SHETL!AE231,0) -> 0 | U231: =BG231-IF(UserInterface!$B$138=1,SHETL!AF231,0) -> 0 | V231: Wider Works (Exit) | Y231: 0 | Z231: 0 | AA231: 0 | AB231: 0 | AC231: 0 | AD231: 0 | AE231: 0 | AF231: 0 | AZ231: 0 | BA231: 0 | BB231: 0 | BC231: 0 | BD231: 0 | BE231: 0 | BF231: 0 | BG231: 0
A232: Infrastructure - TSS | E232: ='[8]Input to Model'!E231 -> 0 | F232: ='[8]Input to Model'!F231 -> 0 | G232: ='[8]Input to Model'!G231 -> 0 | H232: ='[8]Input to Model'!H231 -> 0 | I232: ='[8]Input to Model'!I231 -> 0 | J232: ='[8]Input to Model'!J231 -> 0 | K232: =+[9]SHETL!K232 -> -0.1225649022 | L232: =+[9]SHETL!L232 -> 0 | M232: 0 | N232: =AZ232-IF(UserInterface!$B$138=1,SHETL!Y232,0) -> 0 | O232: =BA232-IF(UserInterface!$B$138=1,SHETL!Z232,0) -> 0 | P232: =BB232-IF(UserInterface!$B$138=1,SHETL!AA232,0) -> 0 | Q232: =BC232-IF(UserInterface!$B$138=1,SHETL!AB232,0) -> 0 | R232: =BD232-IF(UserInterface!$B$138=1,SHETL!AC232,0) -> 0 | S232: =BE232-IF(UserInterface!$B$138=1,SHETL!AD232,0) -> 0 | T232: =BF232-IF(UserInterface!$B$138=1,SHETL!AE232,0) -> 0 | U232: =BG232-IF(UserInterface!$B$138=1,SHETL!AF232,0) -> 0 | V232: Wider Works (General) | Y232: 0 | Z232: 0 | AA232: 0 | AB232: 0 | AC232: 0 | AD232: 0 | AE232: 0 | AF232: 0 | AZ232: 0 | BA232: 0 | BB232: 0 | BC232: 0 | BD232: 0 | BE232: 0 | BF232: 0 | BG232: 0
E233: ='[8]Input to Model'!E232 -> 0 | F233: ='[8]Input to Model'!F232 -> 0 | G233: ='[8]Input to Model'!G232 -> 0 | H233: ='[8]Input to Model'!H232 -> 0 | I233: ='[8]Input to Model'!I232 -> 0 | J233: ='[8]Input to Model'!J232 -> 0 | K233: =+[9]SHETL!K233 -> 0 | L233: =+[9]SHETL!L233 -> 0 | M233: 2 | N233: =AZ233-IF(UserInterface!$B$138=1,SHETL!Y233,0) -> 2 | O233: =BA233-IF(UserInterface!$B$138=1,SHETL!Z233,0) -> 0 | P233: =BB233-IF(UserInterface!$B$138=1,SHETL!AA233,0) -> 0 | Q233: =BC233-IF(UserInterface!$B$138=1,SHETL!AB233,0) -> 0 | R233: =BD233-IF(UserInterface!$B$138=1,SHETL!AC233,0) -> 0 | S233: =BE233-IF(UserInterface!$B$138=1,SHETL!AD233,0) -> 0 | T233: =BF233-IF(UserInterface!$B$138=1,SHETL!AE233,0) -> 0 | U233: =BG233-IF(UserInterface!$B$138=1,SHETL!AF233,0) -> 0 | V233: Infrastructure - TSS | Y233: 0 | Z233: 0 | AA233: 0 | AB233: 0 | AC233: 0 | AD233: 0 | AE233: 0 | AF233: 0 | AZ233: 2 | BA233: 0 | BB233: 0 | BC233: 0 | BD233: 0 | BE233: 0 | BF233: 0 | BG233: 0
A234: Total Load Related | E234: ='[8]Input to Model'!E233 -> 0 | F234: ='[8]Input to Model'!F233 -> 0 | G234: ='[8]Input to Model'!G233 -> 0 | H234: ='[8]Input to Model'!H233 -> 0 | I234: ='[8]Input to Model'!I233 -> 0 | J234: ='[8]Input to Model'!J233 -> 0 | K234: =+[9]SHETL!K234 -> 33.06236241 | L234: =+[9]SHETL!L234 -> 41.782695 | M234: =SUM(M226:M233) -> 164.97 | N234: =AZ234-IF(UserInterface!$B$138=1,SHETL!Y234,0) -> 112.076463 | O234: =BA234-IF(UserInterface!$B$138=1,SHETL!Z234,0) -> 122.6481457 | P234: =BB234-IF(UserInterface!$B$138=1,SHETL!AA234,0) -> 174.3300956 | Q234: =BC234-IF(UserInterface!$B$138=1,SHETL!AB234,0) -> 99.33454393 | R234: =BD234-IF(UserInterface!$B$138=1,SHETL!AC234,0) -> 37.88723818 | S234: =BE234-IF(UserInterface!$B$138=1,SHETL!AD234,0) -> 28.62591616 | T234: =BF234-IF(UserInterface!$B$138=1,SHETL!AE234,0) -> 20.73666667 | U234: =BG234-IF(UserInterface!$B$138=1,SHETL!AF234,0) -> 20.255 | V234: Total load related | Y234: 455.1293463 | Z234: 579.3942727 | AA234: 447.5048107 | AB234: 369.0508658 | AC234: 294.898724 | AD234: 274.1858727 | AE234: 266.0288 | AF234: 328.1732 | AZ234: =SUM(AZ226:AZ233) -> 567.2058093 | BA234: =SUM(BA226:BA233) -> 702.0424183 | BB234: 621.8349062 | BC234: 468.3854097 | BD234: 332.7859622 | BE234: 302.8117889 | BF234: 286.7654667 | BG234: 348.4282
E235: ='[8]Input to Model'!E234 -> 0 | F235: ='[8]Input to Model'!F234 -> 0 | G235: ='[8]Input to Model'!G234 -> 0 | H235: ='[8]Input to Model'!H234 -> 0 | I235: ='[8]Input to Model'!I234 -> 0 | J235: ='[8]Input to Model'!J234 -> 0 | K235: =+[9]SHETL!K235 -> 0 | L235: =+[9]SHETL!L235 -> 0 | M235: ='[13]Input to Model'!M234 -> 0 | N235: =AZ235-IF(UserInterface!$B$138=1,SHETL!Y235,0) -> 0 | O235: =BA235-IF(UserInterface!$B$138=1,SHETL!Z235,0) -> 0 | P235: =BB235-IF(UserInterface!$B$138=1,SHETL!AA235,0) -> 0 | Q235: =BC235-IF(UserInterface!$B$138=1,SHETL!AB235,0) -> 0 | R235: =BD235-IF(UserInterface!$B$138=1,SHETL!AC235,0) -> 0 | S235: =BE235-IF(UserInterface!$B$138=1,SHETL!AD235,0) -> 0 | T235: =BF235-IF(UserInterface!$B$138=1,SHETL!AE235,0) -> 0 | U235: =BG235-IF(UserInterface!$B$138=1,SHETL!AF235,0) -> 0 | Y235: 0 | Z235: 0 | AA235: 0 | AB235: 0 | AC235: 0 | AD235: 0 | AE235: 0 | AF235: 0
A236: NON-LOAD RELATED EXPENDITURE | E236: ='[8]Input to Model'!E235 -> 0 | F236: ='[8]Input to Model'!F235 -> 0 | G236: ='[8]Input to Model'!G235 -> 0 | H236: ='[8]Input to Model'!H235 -> 0 | I236: ='[8]Input to Model'!I235 -> 0 | J236: ='[8]Input to Model'!J235 -> 0 | K236: =+[9]SHETL!K236 -> 0 | L236: =+[9]SHETL!L236 -> 0 | M236: ='[13]Input to Model'!M235 -> 0 | N236: =AZ236-IF(UserInterface!$B$138=1,SHETL!Y236,0) -> 0 | O236: =BA236-IF(UserInterface!$B$138=1,SHETL!Z236,0) -> 0 | P236: =BB236-IF(UserInterface!$B$138=1,SHETL!AA236,0) -> 0 | Q236: =BC236-IF(UserInterface!$B$138=1,SHETL!AB236,0) -> 0 | R236: =BD236-IF(UserInterface!$B$138=1,SHETL!AC236,0) -> 0 | S236: =BE236-IF(UserInterface!$B$138=1,SHETL!AD236,0) -> 0 | T236: =BF236-IF(UserInterface!$B$138=1,SHETL!AE236,0) -> 0 | U236: =BG236-IF(UserInterface!$B$138=1,SHETL!AF236,0) -> 0 | V236: NON-LOAD RELATED EXPENDITURE | Y236: 0 | Z236: 0 | AA236: 0 | AB236: 0 | AC236: 0 | AD236: 0 | AE236: 0 | AF236: 0
A237: Assets - Replacement and Refurbishment | E237: ='[8]Input to Model'!E236 -> 0 | F237: ='[8]Input to Model'!F236 -> 0 | G237: ='[8]Input to Model'!G236 -> 0 | H237: ='[8]Input to Model'!H236 -> 0 | I237: ='[8]Input to Model'!I236 -> 0 | J237: ='[8]Input to Model'!J236 -> 0 | K237: =+[9]SHETL!K237 -> 0 | L237: =+[9]SHETL!L237 -> 0 | M237: ='[13]Input to Model'!M236 -> 0 | N237: =AZ237-IF(UserInterface!$B$138=1,SHETL!Y237,0) -> 0 | O237: =BA237-IF(UserInterface!$B$138=1,SHETL!Z237,0) -> 0 | P237: =BB237-IF(UserInterface!$B$138=1,SHETL!AA237,0) -> 0 | Q237: =BC237-IF(UserInterface!$B$138=1,SHETL!AB237,0) -> 0 | R237: =BD237-IF(UserInterface!$B$138=1,SHETL!AC237,0) -> 0 | S237: =BE237-IF(UserInterface!$B$138=1,SHETL!AD237,0) -> 0 | T237: =BF237-IF(UserInterface!$B$138=1,SHETL!AE237,0) -> 0 | U237: =BG237-IF(UserInterface!$B$138=1,SHETL!AF237,0) -> 0 | V237: Assets - replacement and refurbishment | Y237: 0 | Z237: 0 | AA237: 0 | AB237: 0 | AC237: 0 | AD237: 0 | AE237: 0 | AF237: 0
A238: Transformers | E238: ='[8]Input to Model'!E237 -> 0 | F238: ='[8]Input to Model'!F237 -> 0 | G238: ='[8]Input to Model'!G237 -> 0 | H238: ='[8]Input to Model'!H237 -> 0 | I238: ='[8]Input to Model'!I237 -> 0 | J238: ='[8]Input to Model'!J237 -> 0 | K238: =+[9]SHETL!K238 -> 6.839554317 | L238: =+[9]SHETL!L238 -> 8.582 | M238: 3.98 | N238: =AZ238-IF(UserInterface!$B$138=1,SHETL!Y238,0) -> 2 | O238: =BA238-IF(UserInterface!$B$138=1,SHETL!Z238,0) -> 2.5 | P238: =BB238-IF(UserInterface!$B$138=1,SHETL!AA238,0) -> 2.5 | Q238: =BC238-IF(UserInterface!$B$138=1,SHETL!AB238,0) -> 5 | R238: =BD238-IF(UserInterface!$B$138=1,SHETL!AC238,0) -> 6 | S238: =BE238-IF(UserInterface!$B$138=1,SHETL!AD238,0) -> 9 | T238: =BF238-IF(UserInterface!$B$138=1,SHETL!AE238,0) -> 7 | U238: =BG238-IF(UserInterface!$B$138=1,SHETL!AF238,0) -> 11 | V238: Transformers | Y238: 0 | Z238: 0 | AA238: 0 | AB238: 0 | AC238: 0 | AD238: 0 | AE238: 0 | AF238: 0 | AZ238: 2 | BA238: 2.5 | BB238: 2.5 | BC238: 5 | BD238: 6 | BE238: 9 | BF238: 7 | BG238: 11
A239: Reactors | E239: ='[8]Input to Model'!E238 -> 0 | F239: ='[8]Input to Model'!F238 -> 0 | G239: ='[8]Input to Model'!G238 -> 0 | H239: ='[8]Input to Model'!H238 -> 0 | I239: ='[8]Input to Model'!I238 -> 0 | J239: ='[8]Input to Model'!J238 -> 0 | K239: =+[9]SHETL!K239 -> 0 | L239: =+[9]SHETL!L239 -> 0 | M239: 0 | N239: =AZ239-IF(UserInterface!$B$138=1,SHETL!Y239,0) -> 0 | O239: =BA239-IF(UserInterface!$B$138=1,SHETL!Z239,0) -> 0 | P239: =BB239-IF(UserInterface!$B$138=1,SHETL!AA239,0) -> 0 | Q239: =BC239-IF(UserInterface!$B$138=1,SHETL!AB239,0) -> 0 | R239: =BD239-IF(UserInterface!$B$138=1,SHETL!AC239,0) -> 0 | S239: =BE239-IF(UserInterface!$B$138=1,SHETL!AD239,0) -> 0 | T239: =BF239-IF(UserInterface!$B$138=1,SHETL!AE239,0) -> 0 | U239: =BG239-IF(UserInterface!$B$138=1,SHETL!AF239,0) -> 0 | V239: Reactors | Y239: 0 | Z239: 0 | AA239: 0 | AB239: 0 | AC239: 0 | AD239: 0 | AE239: 0 | AF239: 0 | AZ239: 0 | BA239: 0 | BB239: 0 | BC239: 0 | BD239: 0 | BE239: 0 | BF239: 0 | BG239: 0
A240: Switchgear | E240: ='[8]Input to Model'!E239 -> 0 | F240: ='[8]Input to Model'!F239 -> 0 | G240: ='[8]Input to Model'!G239 -> 0 | H240: ='[8]Input to Model'!H239 -> 0 | I240: ='[8]Input to Model'!I239 -> 0 | J240: ='[8]Input to Model'!J239 -> 0 | K240: =+[9]SHETL!K240 -> 1.78637829 | L240: =+[9]SHETL!L240 -> 2.034415 | M240: 4.21 | N240: =AZ240-IF(UserInterface!$B$138=1,SHETL!Y240,0) -> 3 | O240: =BA240-IF(UserInterface!$B$138=1,SHETL!Z240,0) -> 3.5 | P240: =BB240-IF(UserInterface!$B$138=1,SHETL!AA240,0) -> 1.1 | Q240: =BC240-IF(UserInterface!$B$138=1,SHETL!AB240,0) -> 2 | R240: =BD240-IF(UserInterface!$B$138=1,SHETL!AC240,0) -> 1 | S240: =BE240-IF(UserInterface!$B$138=1,SHETL!AD240,0) -> 1.25 | T240: =BF240-IF(UserInterface!$B$138=1,SHETL!AE240,0) -> 2 | U240: =BG240-IF(UserInterface!$B$138=1,SHETL!AF240,0) -> 0 | V240: Switchgear | Y240: 0 | Z240: 0 | AA240: 0 | AB240: 0 | AC240: 0 | AD240: 0 | AE240: 0 | AF240: 0 | AZ240: 3 | BA240: 3.5 | BB240: 1.1 | BC240: 2 | BD240: 1 | BE240: 1.25 | BF240: 2 | BG240: 0
A241: Metering | E241: ='[8]Input to Model'!E240 -> 0 | F241: ='[8]Input to Model'!F240 -> 0 | G241: ='[8]Input to Model'!G240 -> 0 | H241: ='[8]Input to Model'!H240 -> 0 | I241: ='[8]Input to Model'!I240 -> 0 | J241: ='[8]Input to Model'!J240 -> 0 | K241: =+[9]SHETL!K241 -> 1.054961035 | L241: =+[9]SHETL!L241 -> 2.5846 | M241: 0 | N241: =AZ241-IF(UserInterface!$B$138=1,SHETL!Y241,0) -> 0 | O241: =BA241-IF(UserInterface!$B$138=1,SHETL!Z241,0) -> 0 | P241: =BB241-IF(UserInterface!$B$138=1,SHETL!AA241,0) -> 0 | Q241: =BC241-IF(UserInterface!$B$138=1,SHETL!AB241,0) -> 0 | R241: =BD241-IF(UserInterface!$B$138=1,SHETL!AC241,0) -> 0 | S241: =BE241-IF(UserInterface!$B$138=1,SHETL!AD241,0) -> 0 | T241: =BF241-IF(UserInterface!$B$138=1,SHETL!AE241,0) -> 0 | U241: =BG241-IF(UserInterface!$B$138=1,SHETL!AF241,0) -> 0 | V241: Metering | Y241: 0 | Z241: 0 | AA241: 0 | AB241: 0 | AC241: 0 | AD241: 0 | AE241: 0 | AF241: 0 | AZ241: 0 | BA241: 0 | BB241: 0 | BC241: 0 | BD241: 0 | BE241: 0 | BF241: 0 | BG241: 0
A242: Protection & control | E242: ='[8]Input to Model'!E241 -> 0 | F242: ='[8]Input to Model'!F241 -> 0 | G242: ='[8]Input to Model'!G241 -> 0 | H242: ='[8]Input to Model'!H241 -> 0 | I242: ='[8]Input to Model'!I241 -> 0 | J242: ='[8]Input to Model'!J241 -> 0 | K242: =+[9]SHETL!K242 -> 0.2119148175 | L242: =+[9]SHETL!L242 -> 0.422 | M242: 0.7 | N242: =AZ242-IF(UserInterface!$B$138=1,SHETL!Y242,0) -> 0.7 | O242: =BA242-IF(UserInterface!$B$138=1,SHETL!Z242,0) -> 0.7 | P242: =BB242-IF(UserInterface!$B$138=1,SHETL!AA242,0) -> 0.7 | Q242: =BC242-IF(UserInterface!$B$138=1,SHETL!AB242,0) -> 0.7 | R242: =BD242-IF(UserInterface!$B$138=1,SHETL!AC242,0) -> 0.7 | S242: =BE242-IF(UserInterface!$B$138=1,SHETL!AD242,0) -> 0.7 | T242: =BF242-IF(UserInterface!$B$138=1,SHETL!AE242,0) -> 0.7 | U242: =BG242-IF(UserInterface!$B$138=1,SHETL!AF242,0) -> 0.7 | V242: Protection & control | Y242: 0 | Z242: 0 | AA242: 0 | AB242: 0 | AC242: 0 | AD242: 0 | AE242: 0 | AF242: 0 | AZ242: 0.7 | BA242: 0.7 | BB242: 0.7 | BC242: 0.7 | BD242: 0.7 | BE242: 0.7 | BF242: 0.7 | BG242: 0.7
A243: Substation Other | E243: ='[8]Input to Model'!E242 -> 0 | F243: ='[8]Input to Model'!F242 -> 0 | G243: ='[8]Input to Model'!G242 -> 0 | H243: ='[8]Input to Model'!H242 -> 0 | I243: ='[8]Input to Model'!I242 -> 0 | J243: ='[8]Input to Model'!J242 -> 0 | K243: =+[9]SHETL!K243 -> 0 | L243: =+[9]SHETL!L243 -> 0 | M243: 1.81 | N243: =AZ243-IF(UserInterface!$B$138=1,SHETL!Y243,0) -> 1.31 | O243: =BA243-IF(UserInterface!$B$138=1,SHETL!Z243,0) -> 1.31 | P243: =BB243-IF(UserInterface!$B$138=1,SHETL!AA243,0) -> 1.61 | Q243: =BC243-IF(UserInterface!$B$138=1,SHETL!AB243,0) -> 1.65 | R243: =BD243-IF(UserInterface!$B$138=1,SHETL!AC243,0) -> 1.65 | S243: =BE243-IF(UserInterface!$B$138=1,SHETL!AD243,0) -> 1.65 | T243: =BF243-IF(UserInterface!$B$138=1,SHETL!AE243,0) -> 2.6 | U243: =BG243-IF(UserInterface!$B$138=1,SHETL!AF243,0) -> 3.25 | V243: Sub-station other | Y243: 0 | Z243: 0 | AA243: 0 | AB243: 0 | AC243: 0 | AD243: 0 | AE243: 0 | AF243: 0 | AZ243: 1.31 | BA243: 1.31 | BB243: 1.61 | BC243: 1.65 | BD243: 1.65 | BE243: 1.65 | BF243: 2.6 | BG243: 3.25
A244: Overhead Lines | E244: ='[8]Input to Model'!E243 -> 0 | F244: ='[8]Input to Model'!F243 -> 0 | G244: ='[8]Input to Model'!G243 -> 0 | H244: ='[8]Input to Model'!H243 -> 0 | I244: ='[8]Input to Model'!I243 -> 0 | J244: ='[8]Input to Model'!J243 -> 0 | K244: =+[9]SHETL!K244 -> 0.3961442501 | L244: =+[9]SHETL!L244 -> 0.5 | M244: 4.1 | N244: =AZ244-IF(UserInterface!$B$138=1,SHETL!Y244,0) -> 7.75 | O244: =BA244-IF(UserInterface!$B$138=1,SHETL!Z244,0) -> 6.8 | P244: =BB244-IF(UserInterface!$B$138=1,SHETL!AA244,0) -> 8.652 | Q244: =BC244-IF(UserInterface!$B$138=1,SHETL!AB244,0) -> 12.625 | R244: =BD244-IF(UserInterface!$B$138=1,SHETL!AC244,0) -> 14.075 | S244: =BE244-IF(UserInterface!$B$138=1,SHETL!AD244,0) -> 10.825 | T244: =BF244-IF(UserInterface!$B$138=1,SHETL!AE244,0) -> 13.975 | U244: =BG244-IF(UserInterface!$B$138=1,SHETL!AF244,0) -> 8.575 | V244: Overhead Lines | Y244: 0 | Z244: 0 | AA244: 0 | AB244: 0 | AC244: 0 | AD244: 0 | AE244: 0 | AF244: 0 | AZ244: 7.75 | BA244: 6.8 | BB244: 8.652 | BC244: 12.625 | BD244: 14.075 | BE244: 10.825 | BF244: 13.975 | BG244: 8.575
A245: Underground Cables | E245: ='[8]Input to Model'!E244 -> 0 | F245: ='[8]Input to Model'!F244 -> 0 | G245: ='[8]Input to Model'!G244 -> 0 | H245: ='[8]Input to Model'!H244 -> 0 | I245: ='[8]Input to Model'!I244 -> 0 | J245: ='[8]Input to Model'!J244 -> 0 | K245: =+[9]SHETL!K245 -> 0.3781359147 | L245: =+[9]SHETL!L245 -> 0.7 | M245: 3.7 | N245: =AZ245-IF(UserInterface!$B$138=1,SHETL!Y245,0) -> 3.728 | O245: =BA245-IF(UserInterface!$B$138=1,SHETL!Z245,0) -> 1 | P245: =BB245-IF(UserInterface!$B$138=1,SHETL!AA245,0) -> 3.5 | Q245: =BC245-IF(UserInterface!$B$138=1,SHETL!AB245,0) -> 0.65 | R245: =BD245-IF(UserInterface!$B$138=1,SHETL!AC245,0) -> 0 | S245: =BE245-IF(UserInterface!$B$138=1,SHETL!AD245,0) -> 0 | T245: =BF245-IF(UserInterface!$B$138=1,SHETL!AE245,0) -> 0 | U245: =BG245-IF(UserInterface!$B$138=1,SHETL!AF245,0) -> 0 | V245: Underground Cables | Y245: 0 | Z245: 0 | AA245: 0 | AB245: 0 | AC245: 0 | AD245: 0 | AE245: 0 | AF245: 0 | AZ245: 3.728 | BA245: 1 | BB245: 3.5 | BC245: 0.65 | BD245: 0 | BE245: 0 | BF245: 0 | BG245: 0
A246: Reactive Compensation | E246: ='[8]Input to Model'!E245 -> 0 | F246: ='[8]Input to Model'!F245 -> 0 | G246: ='[8]Input to Model'!G245 -> 0 | H246: ='[8]Input to Model'!H245 -> 0 | I246: ='[8]Input to Model'!I245 -> 0 | J246: ='[8]Input to Model'!J245 -> 0 | K246: =+[9]SHETL!K246 -> 0 | L246: =+[9]SHETL!L246 -> 0 | M246: 0 | N246: =AZ246-IF(UserInterface!$B$138=1,SHETL!Y246,0) -> 0 | O246: =BA246-IF(UserInterface!$B$138=1,SHETL!Z246,0) -> 0 | P246: =BB246-IF(UserInterface!$B$138=1,SHETL!AA246,0) -> 0 | Q246: =BC246-IF(UserInterface!$B$138=1,SHETL!AB246,0) -> 0 | R246: =BD246-IF(UserInterface!$B$138=1,SHETL!AC246,0) -> 0 | S246: =BE246-IF(UserInterface!$B$138=1,SHETL!AD246,0) -> 0 | T246: =BF246-IF(UserInterface!$B$138=1,SHETL!AE246,0) -> 0 | U246: =BG246-IF(UserInterface!$B$138=1,SHETL!AF246,0) -> 0 | V246: Reactive Compensation | Y246: 0 | Z246: 0 | AA246: 0 | AB246: 0 | AC246: 0 | AD246: 0 | AE246: 0 | AF246: 0 | AZ246: 0 | BA246: 0 | BB246: 0 | BC246: 0 | BD246: 0 | BE246: 0 | BF246: 0 | BG246: 0
A247: HVDC | E247: ='[8]Input to Model'!E246 -> 0 | F247: ='[8]Input to Model'!F246 -> 0 | G247: ='[8]Input to Model'!G246 -> 0 | H247: ='[8]Input to Model'!H246 -> 0 | I247: ='[8]Input to Model'!I246 -> 0 | J247: ='[8]Input to Model'!J246 -> 0 | K247: =+[9]SHETL!K247 -> 0 | L247: =+[9]SHETL!L247 -> 0.15 | M247: 0 | N247: =AZ247-IF(UserInterface!$B$138=1,SHETL!Y247,0) -> 0 | O247: =BA247-IF(UserInterface!$B$138=1,SHETL!Z247,0) -> 0 | P247: =BB247-IF(UserInterface!$B$138=1,SHETL!AA247,0) -> 0 | Q247: =BC247-IF(UserInterface!$B$138=1,SHETL!AB247,0) -> 0 | R247: =BD247-IF(UserInterface!$B$138=1,SHETL!AC247,0) -> 0 | S247: =BE247-IF(UserInterface!$B$138=1,SHETL!AD247,0) -> 0 | T247: =BF247-IF(UserInterface!$B$138=1,SHETL!AE247,0) -> 0 | U247: =BG247-IF(UserInterface!$B$138=1,SHETL!AF247,0) -> 0 | V247: HVDC | Y247: 0 | Z247: 0 | AA247: 0 | AB247: 0 | AC247: 0 | AD247: 0 | AE247: 0 | AF247: 0 | AZ247: 0 | BA247: 0 | BB247: 0 | BC247: 0 | BD247: 0 | BE247: 0 | BF247: 0 | BG247: 0
A248: Cable Tunnels | E248: ='[8]Input to Model'!E247 -> 0 | F248: ='[8]Input to Model'!F247 -> 0 | G248: ='[8]Input to Model'!G247 -> 0 | H248: ='[8]Input to Model'!H247 -> 0 | I248: ='[8]Input to Model'!I247 -> 0 | J248: ='[8]Input to Model'!J247 -> 0 | K248: =+[9]SHETL!K248 -> 0 | L248: =+[9]SHETL!L248 -> 0 | M248: 0 | N248: =AZ248-IF(UserInterface!$B$138=1,SHETL!Y248,0) -> 0 | O248: =BA248-IF(UserInterface!$B$138=1,SHETL!Z248,0) -> 0 | P248: =BB248-IF(UserInterface!$B$138=1,SHETL!AA248,0) -> 0 | Q248: =BC248-IF(UserInterface!$B$138=1,SHETL!AB248,0) -> 0 | R248: =BD248-IF(UserInterface!$B$138=1,SHETL!AC248,0) -> 0 | S248: =BE248-IF(UserInterface!$B$138=1,SHETL!AD248,0) -> 0 | T248: =BF248-IF(UserInterface!$B$138=1,SHETL!AE248,0) -> 0 | U248: =BG248-IF(UserInterface!$B$138=1,SHETL!AF248,0) -> 0 | V248: Cable Tunnels | Y248: 0 | Z248: 0 | AA248: 0 | AB248: 0 | AC248: 0 | AD248: 0 | AE248: 0 | AF248: 0 | AZ248: 0 | BA248: 0 | BB248: 0 | BC248: 0 | BD248: 0 | BE248: 0 | BF248: 0 | BG248: 0
A249: Other NLRE | E249: ='[8]Input to Model'!E248 -> 0 | F249: ='[8]Input to Model'!F248 -> 0 | G249: ='[8]Input to Model'!G248 -> 0 | H249: ='[8]Input to Model'!H248 -> 0 | I249: ='[8]Input to Model'!I248 -> 0 | J249: ='[8]Input to Model'!J248 -> 0 | K249: =+[9]SHETL!K249 -> 0 | L249: =+[9]SHETL!L249 -> 0 | N249: =AZ249-IF(UserInterface!$B$138=1,SHETL!Y249,0) -> 0 | O249: =BA249-IF(UserInterface!$B$138=1,SHETL!Z249,0) -> 0 | P249: =BB249-IF(UserInterface!$B$138=1,SHETL!AA249,0) -> 0 | Q249: =BC249-IF(UserInterface!$B$138=1,SHETL!AB249,0) -> 0 | R249: =BD249-IF(UserInterface!$B$138=1,SHETL!AC249,0) -> 0 | S249: =BE249-IF(UserInterface!$B$138=1,SHETL!AD249,0) -> 0 | T249: =BF249-IF(UserInterface!$B$138=1,SHETL!AE249,0) -> 0 | U249: =BG249-IF(UserInterface!$B$138=1,SHETL!AF249,0) -> 0 | V249: Other NLRE | Y249: 0 | Z249: 0 | AA249: 0 | AB249: 0 | AC249: 0 | AD249: 0 | AE249: 0 | AF249: 0
A250: NOMS (Not requiring asset replacement) | E250: ='[8]Input to Model'!E249 -> 0 | F250: ='[8]Input to Model'!F249 -> 0 | G250: ='[8]Input to Model'!G249 -> 0 | H250: ='[8]Input to Model'!H249 -> 0 | I250: ='[8]Input to Model'!I249 -> 0 | J250: ='[8]Input to Model'!J249 -> 0 | K250: =+[9]SHETL!K250 -> 0 | L250: =+[9]SHETL!L250 -> 0 | M250: 0 | N250: =AZ250-IF(UserInterface!$B$138=1,SHETL!Y250,0) -> 0 | O250: =BA250-IF(UserInterface!$B$138=1,SHETL!Z250,0) -> 0 | P250: =BB250-IF(UserInterface!$B$138=1,SHETL!AA250,0) -> 0 | Q250: =BC250-IF(UserInterface!$B$138=1,SHETL!AB250,0) -> 0 | R250: =BD250-IF(UserInterface!$B$138=1,SHETL!AC250,0) -> 0 | S250: =BE250-IF(UserInterface!$B$138=1,SHETL!AD250,0) -> 0 | T250: =BF250-IF(UserInterface!$B$138=1,SHETL!AE250,0) -> 0 | U250: =BG250-IF(UserInterface!$B$138=1,SHETL!AF250,0) -> 0 | V250: NOMS (Not requiring asset replacement) | Y250: 0 | Z250: 0 | AA250: 0 | AB250: 0 | AC250: 0 | AD250: 0 | AE250: 0 | AF250: 0 | AZ250: 0 | BA250: 0 | BB250: 0 | BC250: 0 | BD250: 0 | BE250: 0 | BF250: 0 | BG250: 0
A251: Weather Related Resilience | E251: ='[8]Input to Model'!E250 -> 0 | F251: ='[8]Input to Model'!F250 -> 0 | G251: ='[8]Input to Model'!G250 -> 0 | H251: ='[8]Input to Model'!H250 -> 0 | I251: ='[8]Input to Model'!I250 -> 0 | J251: ='[8]Input to Model'!J250 -> 0 | K251: =+[9]SHETL!K251 -> 0 | L251: =+[9]SHETL!L251 -> 0 | M251: 0 | N251: =AZ251-IF(UserInterface!$B$138=1,SHETL!Y251,0) -> 0.78 | O251: =BA251-IF(UserInterface!$B$138=1,SHETL!Z251,0) -> 1.07 | P251: =BB251-IF(UserInterface!$B$138=1,SHETL!AA251,0) -> 0.65 | Q251: =BC251-IF(UserInterface!$B$138=1,SHETL!AB251,0) -> 0 | R251: =BD251-IF(UserInterface!$B$138=1,SHETL!AC251,0) -> 0 | S251: =BE251-IF(UserInterface!$B$138=1,SHETL!AD251,0) -> 0 | T251: =BF251-IF(UserInterface!$B$138=1,SHETL!AE251,0) -> 0 | U251: =BG251-IF(UserInterface!$B$138=1,SHETL!AF251,0) -> 0 | V251: Weather Related Resilience | Y251: 0 | Z251: 0 | AA251: 0 | AB251: 0 | AC251: 0 | AD251: 0 | AE251: 0 | AF251: 0 | AZ251: 0.78 | BA251: 1.07 | BB251: 0.65 | BC251: 0 | BD251: 0 | BE251: 0 | BF251: 0 | BG251: 0
A252: Security Resilience (Excl. BT21CN) | E252: ='[8]Input to Model'!E251 -> 0 | F252: ='[8]Input to Model'!F251 -> 0 | G252: ='[8]Input to Model'!G251 -> 0 | H252: ='[8]Input to Model'!H251 -> 0 | I252: ='[8]Input to Model'!I251 -> 0 | J252: ='[8]Input to Model'!J251 -> 0 | K252: =+[9]SHETL!K252 -> 0 | L252: =+[9]SHETL!L252 -> 0 | M252: 0 | N252: =AZ252-IF(UserInterface!$B$138=1,SHETL!Y252,0) -> 0 | O252: =BA252-IF(UserInterface!$B$138=1,SHETL!Z252,0) -> 0 | P252: =BB252-IF(UserInterface!$B$138=1,SHETL!AA252,0) -> 0 | Q252: =BC252-IF(UserInterface!$B$138=1,SHETL!AB252,0) -> 0 | R252: =BD252-IF(UserInterface!$B$138=1,SHETL!AC252,0) -> 0 | S252: =BE252-IF(UserInterface!$B$138=1,SHETL!AD252,0) -> 0 | T252: =BF252-IF(UserInterface!$B$138=1,SHETL!AE252,0) -> 0 | U252: =BG252-IF(UserInterface!$B$138=1,SHETL!AF252,0) -> 0 | V252: Security Resilience (Excl. BT21CN) | Y252: 0 | Z252: 0 | AA252: 0 | AB252: 0 | AC252: 0 | AD252: 0 | AE252: 0 | AF252: 0 | AZ252: 0 | BA252: 0 | BB252: 0 | BC252: 0 | BD252: 0 | BE252: 0 | BF252: 0 | BG252: 0
A253: BT21CN | E253: ='[8]Input to Model'!E252 -> 0 | F253: ='[8]Input to Model'!F252 -> 0 | G253: ='[8]Input to Model'!G252 -> 0 | H253: ='[8]Input to Model'!H252 -> 0 | I253: ='[8]Input to Model'!I252 -> 0 | J253: ='[8]Input to Model'!J252 -> 0 | K253: =+[9]SHETL!K253 -> 0 | L253: =+[9]SHETL!L253 -> 0 | M253: 0 | N253: =AZ253-IF(UserInterface!$B$138=1,SHETL!Y253,0) -> 1.25 | O253: =BA253-IF(UserInterface!$B$138=1,SHETL!Z253,0) -> 1.5 | P253: =BB253-IF(UserInterface!$B$138=1,SHETL!AA253,0) -> 2.2 | Q253: =BC253-IF(UserInterface!$B$138=1,SHETL!AB253,0) -> 2.2 | R253: =BD253-IF(UserInterface!$B$138=1,SHETL!AC253,0) -> 2.2 | S253: =BE253-IF(UserInterface!$B$138=1,SHETL!AD253,0) -> 2.2 | T253: =BF253-IF(UserInterface!$B$138=1,SHETL!AE253,0) -> 1.2 | U253: =BG253-IF(UserInterface!$B$138=1,SHETL!AF253,0) -> 0.275 | V253: BT21CN | Y253: 0 | Z253: 0 | AA253: 0 | AB253: 0 | AC253: 0 | AD253: 0 | AE253: 0 | AF253: 0 | AZ253: 1.25 | BA253: 1.5 | BB253: 2.2 | BC253: 2.2 | BD253: 2.2 | BE253: 2.2 | BF253: 1.2 | BG253: 0.275
A254: Cyber Resilience | E254: ='[8]Input to Model'!E253 -> 0 | F254: ='[8]Input to Model'!F253 -> 0 | G254: ='[8]Input to Model'!G253 -> 0 | H254: ='[8]Input to Model'!H253 -> 0 | I254: ='[8]Input to Model'!I253 -> 0 | J254: ='[8]Input to Model'!J253 -> 0 | K254: =+[9]SHETL!K254 -> 0 | L254: =+[9]SHETL!L254 -> 0 | M254: 0 | N254: =AZ254-IF(UserInterface!$B$138=1,SHETL!Y254,0) -> 0 | O254: =BA254-IF(UserInterface!$B$138=1,SHETL!Z254,0) -> 0 | P254: =BB254-IF(UserInterface!$B$138=1,SHETL!AA254,0) -> 0 | Q254: =BC254-IF(UserInterface!$B$138=1,SHETL!AB254,0) -> 0 | R254: =BD254-IF(UserInterface!$B$138=1,SHETL!AC254,0) -> 0 | S254: =BE254-IF(UserInterface!$B$138=1,SHETL!AD254,0) -> 0 | T254: =BF254-IF(UserInterface!$B$138=1,SHETL!AE254,0) -> 0 | U254: =BG254-IF(UserInterface!$B$138=1,SHETL!AF254,0) -> 0 | V254: Cyber Resilience | Y254: 0 | Z254: 0 | AA254: 0 | AB254: 0 | AC254: 0 | AD254: 0 | AE254: 0 | AF254: 0 | AZ254: 0 | BA254: 0 | BB254: 0 | BC254: 0 | BD254: 0 | BE254: 0 | BF254: 0 | BG254: 0
A255: Proximity Resilience | E255: ='[8]Input to Model'!E254 -> 0 | F255: ='[8]Input to Model'!F254 -> 0 | G255: ='[8]Input to Model'!G254 -> 0 | H255: ='[8]Input to Model'!H254 -> 0 | I255: ='[8]Input to Model'!I254 -> 0 | J255: ='[8]Input to Model'!J254 -> 0 | K255: =+[9]SHETL!K255 -> 0 | L255: =+[9]SHETL!L255 -> 0 | M255: 0 | N255: =AZ255-IF(UserInterface!$B$138=1,SHETL!Y255,0) -> 0 | O255: =BA255-IF(UserInterface!$B$138=1,SHETL!Z255,0) -> 0 | P255: =BB255-IF(UserInterface!$B$138=1,SHETL!AA255,0) -> 0 | Q255: =BC255-IF(UserInterface!$B$138=1,SHETL!AB255,0) -> 0 | R255: =BD255-IF(UserInterface!$B$138=1,SHETL!AC255,0) -> 0 | S255: =BE255-IF(UserInterface!$B$138=1,SHETL!AD255,0) -> 0 | T255: =BF255-IF(UserInterface!$B$138=1,SHETL!AE255,0) -> 0 | U255: =BG255-IF(UserInterface!$B$138=1,SHETL!AF255,0) -> 0 | V255: Proximity Resilience | Y255: 0 | Z255: 0 | AA255: 0 | AB255: 0 | AC255: 0 | AD255: 0 | AE255: 0 | AF255: 0 | AZ255: 0 | BA255: 0 | BB255: 0 | BC255: 0 | BD255: 0 | BE255: 0 | BF255: 0 | BG255: 0
A256: Cable Tunnels (Not requiring asset replacement) | E256: ='[8]Input to Model'!E255 -> 0 | F256: ='[8]Input to Model'!F255 -> 0 | G256: ='[8]Input to Model'!G255 -> 0 | H256: ='[8]Input to Model'!H255 -> 0 | I256: ='[8]Input to Model'!I255 -> 0 | J256: ='[8]Input to Model'!J255 -> 0 | K256: =+[9]SHETL!K256 -> 0 | L256: =+[9]SHETL!L256 -> 0 | M256: 0 | N256: =AZ256-IF(UserInterface!$B$138=1,SHETL!Y256,0) -> 0 | O256: =BA256-IF(UserInterface!$B$138=1,SHETL!Z256,0) -> 0 | P256: =BB256-IF(UserInterface!$B$138=1,SHETL!AA256,0) -> 0 | Q256: =BC256-IF(UserInterface!$B$138=1,SHETL!AB256,0) -> 0 | R256: =BD256-IF(UserInterface!$B$138=1,SHETL!AC256,0) -> 0 | S256: =BE256-IF(UserInterface!$B$138=1,SHETL!AD256,0) -> 0 | T256: =BF256-IF(UserInterface!$B$138=1,SHETL!AE256,0) -> 0 | U256: =BG256-IF(UserInterface!$B$138=1,SHETL!AF256,0) -> 0 | V256: Cable Tunnels (Not requiring asset replacement) | Y256: 0 | Z256: 0 | AA256: 0 | AB256: 0 | AC256: 0 | AD256: 0 | AE256: 0 | AF256: 0 | AZ256: 0 | BA256: 0 | BB256: 0 | BC256: 0 | BD256: 0 | BE256: 0 | BF256: 0 | BG256: 0
A257: Substation Other (Not requiring asset replacement) | E257: ='[8]Input to Model'!E256 -> 0 | F257: ='[8]Input to Model'!F256 -> 0 | G257: ='[8]Input to Model'!G256 -> 0 | H257: ='[8]Input to Model'!H256 -> 0 | I257: ='[8]Input to Model'!I256 -> 0 | J257: ='[8]Input to Model'!J256 -> 0 | K257: =+[9]SHETL!K257 -> 0 | L257: =+[9]SHETL!L257 -> 0 | M257: 0 | N257: =AZ257-IF(UserInterface!$B$138=1,SHETL!Y257,0) -> 0 | O257: =BA257-IF(UserInterface!$B$138=1,SHETL!Z257,0) -> 0 | P257: =BB257-IF(UserInterface!$B$138=1,SHETL!AA257,0) -> 0 | Q257: =BC257-IF(UserInterface!$B$138=1,SHETL!AB257,0) -> 0 | R257: =BD257-IF(UserInterface!$B$138=1,SHETL!AC257,0) -> 0 | S257: =BE257-IF(UserInterface!$B$138=1,SHETL!AD257,0) -> 0 | T257: =BF257-IF(UserInterface!$B$138=1,SHETL!AE257,0) -> 0 | U257: =BG257-IF(UserInterface!$B$138=1,SHETL!AF257,0) -> 0 | V257: Substation Other (Not requiring asset replacement) | Y257: 0 | Z257: 0 | AA257: 0 | AB257: 0 | AC257: 0 | AD257: 0 | AE257: 0 | AF257: 0 | AZ257: 0 | BA257: 0 | BB257: 0 | BC257: 0 | BD257: 0 | BE257: 0 | BF257: 0 | BG257: 0
A258: Other TO | E258: ='[8]Input to Model'!E257 -> 0 | F258: ='[8]Input to Model'!F257 -> 0 | G258: ='[8]Input to Model'!G257 -> 0 | H258: ='[8]Input to Model'!H257 -> 0 | I258: ='[8]Input to Model'!I257 -> 0 | J258: ='[8]Input to Model'!J257 -> 0 | K258: 0 | L258: 0 | M258: 0 | N258: =AZ258-IF(UserInterface!$B$138=1,SHETL!Y258,0) -> 1.25 | O258: =BA258-IF(UserInterface!$B$138=1,SHETL!Z258,0) -> 1.6 | P258: =BB258-IF(UserInterface!$B$138=1,SHETL!AA258,0) -> 1.85 | Q258: =BC258-IF(UserInterface!$B$138=1,SHETL!AB258,0) -> 1.85 | R258: =BD258-IF(UserInterface!$B$138=1,SHETL!AC258,0) -> 1.85 | S258: =BE258-IF(UserInterface!$B$138=1,SHETL!AD258,0) -> 1.85 | T258: =BF258-IF(UserInterface!$B$138=1,SHETL!AE258,0) -> 1.85 | U258: =BG258-IF(UserInterface!$B$138=1,SHETL!AF258,0) -> 1.85 | V258: Other TO | Y258: 0 | Z258: 0 | AA258: 0 | AB258: 0 | AC258: 0 | AD258: 0 | AE258: 0 | AF258: 0 | AZ258: 1.25 | BA258: 1.6 | BB258: 1.85 | BC258: 1.85 | BD258: 1.85 | BE258: 1.85 | BF258: 1.85 | BG258: 1.85
A259: Total non-load related | E259: ='[8]Input to Model'!E258 -> 0 | F259: ='[8]Input to Model'!F258 -> 0 | G259: ='[8]Input to Model'!G258 -> 0 | H259: ='[8]Input to Model'!H258 -> 0 | I259: ='[8]Input to Model'!I258 -> 0 | J259: ='[8]Input to Model'!J258 -> 0 | K259: =+[9]SHETL!K259 -> 10.66708862 | L259: =+[9]SHETL!L259 -> 14.973015 | M259: =SUM(M238:M258) -> 18.5 | N259: =AZ259-IF(UserInterface!$B$138=1,SHETL!Y259,0) -> 21.768 | O259: =BA259-IF(UserInterface!$B$138=1,SHETL!Z259,0) -> 19.98 | P259: =BB259-IF(UserInterface!$B$138=1,SHETL!AA259,0) -> 22.762 | Q259: =BC259-IF(UserInterface!$B$138=1,SHETL!AB259,0) -> 26.675 | R259: =BD259-IF(UserInterface!$B$138=1,SHETL!AC259,0) -> 27.475 | S259: =BE259-IF(UserInterface!$B$138=1,SHETL!AD259,0) -> 27.475 | T259: =BF259-IF(UserInterface!$B$138=1,SHETL!AE259,0) -> 29.325 | U259: =BG259-IF(UserInterface!$B$138=1,SHETL!AF259,0) -> 25.65 | V259: Total non-load related | Y259: 0 | Z259: 0 | AA259: 0 | AB259: 0 | AC259: 0 | AD259: 0 | AE259: 0 | AF259: 0 | AZ259: =SUM(AZ238:AZ258) -> 21.768 | BA259: =SUM(BA238:BA258) -> 19.98 | BB259: 22.762 | BC259: 26.675 | BD259: 27.475 | BE259: 27.475 | BF259: 29.325 | BG259: 25.65
E260: ='[8]Input to Model'!E259 -> 0 | F260: ='[8]Input to Model'!F259 -> 0 | G260: ='[8]Input to Model'!G259 -> 0 | H260: ='[8]Input to Model'!H259 -> 0 | I260: ='[8]Input to Model'!I259 -> 0 | J260: ='[8]Input to Model'!J259 -> 0 | K260: =+[9]SHETL!K260 -> 0 | L260: =+[9]SHETL!L260 -> 0 | M260: =+[9]SHETL!M260 -> 0 | N260: =AZ260-IF(UserInterface!$B$138=1,SHETL!Y260,0) -> 0 | O260: =BA260-IF(UserInterface!$B$138=1,SHETL!Z260,0) -> 0 | P260: =BB260-IF(UserInterface!$B$138=1,SHETL!AA260,0) -> 0 | Q260: =BC260-IF(UserInterface!$B$138=1,SHETL!AB260,0) -> 0 | R260: =BD260-IF(UserInterface!$B$138=1,SHETL!AC260,0) -> 0 | S260: =BE260-IF(UserInterface!$B$138=1,SHETL!AD260,0) -> 0 | T260: =BF260-IF(UserInterface!$B$138=1,SHETL!AE260,0) -> 0 | U260: =BG260-IF(UserInterface!$B$138=1,SHETL!AF260,0) -> 0 | Y260: 0 | Z260: 0 | AA260: 0 | AB260: 0 | AC260: 0 | AD260: 0 | AE260: 0 | AF260: 0
A261: Contributions (-ve) | E261: ='[8]Input to Model'!E260 -> 0 | F261: ='[8]Input to Model'!F260 -> 0 | G261: ='[8]Input to Model'!G260 -> 0 | H261: ='[8]Input to Model'!H260 -> 0 | I261: ='[8]Input to Model'!I260 -> 0 | J261: ='[8]Input to Model'!J260 -> 0 | K261: =+[9]SHETL!K261 -> 0 | L261: =+[9]SHETL!L261 -> 0 | M261: ='[13]Input to Model'!M260 -> 0 | N261: =AZ261-IF(UserInterface!$B$138=1,SHETL!Y261,0) -> 0 | O261: =BA261-IF(UserInterface!$B$138=1,SHETL!Z261,0) -> 0 | P261: =BB261-IF(UserInterface!$B$138=1,SHETL!AA261,0) -> 0 | Q261: =BC261-IF(UserInterface!$B$138=1,SHETL!AB261,0) -> 0 | R261: =BD261-IF(UserInterface!$B$138=1,SHETL!AC261,0) -> 0 | S261: =BE261-IF(UserInterface!$B$138=1,SHETL!AD261,0) -> 0 | T261: =BF261-IF(UserInterface!$B$138=1,SHETL!AE261,0) -> 0 | U261: =BG261-IF(UserInterface!$B$138=1,SHETL!AF261,0) -> 0 | V261: Contributions (-ve) | Y261: 0 | Z261: 0 | AA261: 0 | AB261: 0 | AC261: 0 | AD261: 0 | AE261: 0 | AF261: 0
A262: Load related | E262: ='[8]Input to Model'!E261 -> 0 | F262: ='[8]Input to Model'!F261 -> 0 | G262: ='[8]Input to Model'!G261 -> 0 | H262: ='[8]Input to Model'!H261 -> 0 | I262: ='[8]Input to Model'!I261 -> 0 | J262: ='[8]Input to Model'!J261 -> 0 | K262: =+[9]SHETL!K262 -> 0 | L262: =+[9]SHETL!L262 -> 0 | M262: ='[13]Input to Model'!M261 -> 0 | N262: =AZ262-IF(UserInterface!$B$138=1,SHETL!Y262,0) -> 0 | O262: =BA262-IF(UserInterface!$B$138=1,SHETL!Z262,0) -> 0 | P262: =BB262-IF(UserInterface!$B$138=1,SHETL!AA262,0) -> 0 | Q262: =BC262-IF(UserInterface!$B$138=1,SHETL!AB262,0) -> 0 | R262: =BD262-IF(UserInterface!$B$138=1,SHETL!AC262,0) -> 0 | S262: =BE262-IF(UserInterface!$B$138=1,SHETL!AD262,0) -> 0 | T262: =BF262-IF(UserInterface!$B$138=1,SHETL!AE262,0) -> 0 | U262: =BG262-IF(UserInterface!$B$138=1,SHETL!AF262,0) -> 0 | V262: Load related | Y262: 0 | Z262: 0 | AA262: 0 | AB262: 0 | AC262: 0 | AD262: 0 | AE262: 0 | AF262: 0
A263: - Generation connection sole-use capital contributions | E263: ='[8]Input to Model'!E262 -> 0 | F263: ='[8]Input to Model'!F262 -> 0 | G263: ='[8]Input to Model'!G262 -> 0 | H263: ='[8]Input to Model'!H262 -> 0 | I263: ='[8]Input to Model'!I262 -> 0 | J263: ='[8]Input to Model'!J262 -> 0 | K263: =+[9]SHETL!K263 -> -13.04296387 | L263: =+[9]SHETL!L263 -> -3.770836 | M263: -2.1 | N263: =AZ263-IF(UserInterface!$B$138=1,SHETL!Y263,0) -> 0 | O263: =BA263-IF(UserInterface!$B$138=1,SHETL!Z263,0) -> 0 | P263: =BB263-IF(UserInterface!$B$138=1,SHETL!AA263,0) -> 0 | Q263: =BC263-IF(UserInterface!$B$138=1,SHETL!AB263,0) -> 0 | R263: =BD263-IF(UserInterface!$B$138=1,SHETL!AC263,0) -> 0 | S263: =BE263-IF(UserInterface!$B$138=1,SHETL!AD263,0) -> 0 | T263: =BF263-IF(UserInterface!$B$138=1,SHETL!AE263,0) -> 0 | U263: =BG263-IF(UserInterface!$B$138=1,SHETL!AF263,0) -> 0 | V263: - Generation connection sole-use capital contributions | Y263: 0 | Z263: 0 | AA263: 0 | AB263: 0 | AC263: 0 | AD263: 0 | AE263: 0 | AF263: 0 | AZ263: 0 | BA263: 0 | BB263: 0 | BC263: 0 | BD263: 0 | BE263: 0 | BF263: 0 | BG263: 0
A264: - Demand connection sole-use capital contributions | E264: ='[8]Input to Model'!E263 -> 0 | F264: ='[8]Input to Model'!F263 -> 0 | G264: ='[8]Input to Model'!G263 -> 0 | H264: ='[8]Input to Model'!H263 -> 0 | I264: ='[8]Input to Model'!I263 -> 0 | J264: ='[8]Input to Model'!J263 -> 0 | K264: =+[9]SHETL!K264 -> -1.017459437 | L264: =+[9]SHETL!L264 -> 0 | M264: -3.2 | N264: =AZ264-IF(UserInterface!$B$138=1,SHETL!Y264,0) -> 0 | O264: =BA264-IF(UserInterface!$B$138=1,SHETL!Z264,0) -> 0 | P264: =BB264-IF(UserInterface!$B$138=1,SHETL!AA264,0) -> 0 | Q264: =BC264-IF(UserInterface!$B$138=1,SHETL!AB264,0) -> 0 | R264: =BD264-IF(UserInterface!$B$138=1,SHETL!AC264,0) -> 0 | S264: =BE264-IF(UserInterface!$B$138=1,SHETL!AD264,0) -> 0 | T264: =BF264-IF(UserInterface!$B$138=1,SHETL!AE264,0) -> 0 | U264: =BG264-IF(UserInterface!$B$138=1,SHETL!AF264,0) -> 0 | V264: - Demand connection sole-use capital contributions | Y264: 0 | Z264: 0 | AA264: 0 | AB264: 0 | AC264: 0 | AD264: 0 | AE264: 0 | AF264: 0 | AZ264: 0 | BA264: 0 | BB264: 0 | BC264: 0 | BD264: 0 | BE264: 0 | BF264: 0 | BG264: 0
A265: - Infrastructure - local enabling (entry triggered) capital contributions | E265: ='[8]Input to Model'!E264 -> 0 | F265: ='[8]Input to Model'!F264 -> 0 | G265: ='[8]Input to Model'!G264 -> 0 | H265: ='[8]Input to Model'!H264 -> 0 | I265: ='[8]Input to Model'!I264 -> 0 | J265: ='[8]Input to Model'!J264 -> 0 | K265: =+[9]SHETL!K265 -> 0 | L265: =+[9]SHETL!L265 -> 0 | M265: 0 | N265: =AZ265-IF(UserInterface!$B$138=1,SHETL!Y265,0) -> 0 | O265: =BA265-IF(UserInterface!$B$138=1,SHETL!Z265,0) -> 0 | P265: =BB265-IF(UserInterface!$B$138=1,SHETL!AA265,0) -> 0 | Q265: =BC265-IF(UserInterface!$B$138=1,SHETL!AB265,0) -> 0 | R265: =BD265-IF(UserInterface!$B$138=1,SHETL!AC265,0) -> 0 | S265: =BE265-IF(UserInterface!$B$138=1,SHETL!AD265,0) -> 0 | T265: =BF265-IF(UserInterface!$B$138=1,SHETL!AE265,0) -> 0 | U265: =BG265-IF(UserInterface!$B$138=1,SHETL!AF265,0) -> 0 | V265: - Infrastructure - local enabling (entry triggered) capital contributions | Y265: 0 | Z265: 0 | AA265: 0 | AB265: 0 | AC265: 0 | AD265: 0 | AE265: 0 | AF265: 0 | AZ265: 0 | BA265: 0 | BB265: 0 | BC265: 0 | BD265: 0 | BE265: 0 | BF265: 0 | BG265: 0
A266: - Infrastructure - local enabling (exit triggered) capital contributions | E266: ='[8]Input to Model'!E265 -> 0 | F266: ='[8]Input to Model'!F265 -> 0 | G266: ='[8]Input to Model'!G265 -> 0 | H266: ='[8]Input to Model'!H265 -> 0 | I266: ='[8]Input to Model'!I265 -> 0 | J266: ='[8]Input to Model'!J265 -> 0 | K266: =+[9]SHETL!K266 -> 0 | L266: =+[9]SHETL!L266 -> 0 | M266: 0 | N266: =AZ266-IF(UserInterface!$B$138=1,SHETL!Y266,0) -> 0 | O266: =BA266-IF(UserInterface!$B$138=1,SHETL!Z266,0) -> 0 | P266: =BB266-IF(UserInterface!$B$138=1,SHETL!AA266,0) -> 0 | Q266: =BC266-IF(UserInterface!$B$138=1,SHETL!AB266,0) -> 0 | R266: =BD266-IF(UserInterface!$B$138=1,SHETL!AC266,0) -> 0 | S266: =BE266-IF(UserInterface!$B$138=1,SHETL!AD266,0) -> 0 | T266: =BF266-IF(UserInterface!$B$138=1,SHETL!AE266,0) -> 0 | U266: =BG266-IF(UserInterface!$B$138=1,SHETL!AF266,0) -> 0 | V266: - Infrastructure - local enabling (exit triggered) capital contributions | Y266: 0 | Z266: 0 | AA266: 0 | AB266: 0 | AC266: 0 | AD266: 0 | AE266: 0 | AF266: 0 | AZ266: 0 | BA266: 0 | BB266: 0 | BC266: 0 | BD266: 0 | BE266: 0 | BF266: 0 | BG266: 0
A267: - Infrastructure - wider works - capital contributions | E267: ='[8]Input to Model'!E266 -> 0 | F267: ='[8]Input to Model'!F266 -> 0 | G267: ='[8]Input to Model'!G266 -> 0 | H267: ='[8]Input to Model'!H266 -> 0 | I267: ='[8]Input to Model'!I266 -> 0 | J267: ='[8]Input to Model'!J266 -> 0 | K267: =+[9]SHETL!K267 -> 0 | L267: =+[9]SHETL!L267 -> 0 | M267: 0 | N267: =AZ267-IF(UserInterface!$B$138=1,SHETL!Y267,0) -> 0 | O267: =BA267-IF(UserInterface!$B$138=1,SHETL!Z267,0) -> 0 | P267: =BB267-IF(UserInterface!$B$138=1,SHETL!AA267,0) -> 0 | Q267: =BC267-IF(UserInterface!$B$138=1,SHETL!AB267,0) -> 0 | R267: =BD267-IF(UserInterface!$B$138=1,SHETL!AC267,0) -> 0 | S267: =BE267-IF(UserInterface!$B$138=1,SHETL!AD267,0) -> 0 | T267: =BF267-IF(UserInterface!$B$138=1,SHETL!AE267,0) -> 0 | U267: =BG267-IF(UserInterface!$B$138=1,SHETL!AF267,0) -> 0 | V267: - Infrastructure - wider works - capital contributions | Y267: 0 | Z267: 0 | AA267: 0 | AB267: 0 | AC267: 0 | AD267: 0 | AE267: 0 | AF267: 0 | AZ267: 0 | BA267: 0 | BB267: 0 | BC267: 0 | BD267: 0 | BE267: 0 | BF267: 0 | BG267: 0
A268: Non Load Related | E268: ='[8]Input to Model'!E267 -> 0 | F268: ='[8]Input to Model'!F267 -> 0 | G268: ='[8]Input to Model'!G267 -> 0 | H268: ='[8]Input to Model'!H267 -> 0 | I268: ='[8]Input to Model'!I267 -> 0 | J268: ='[8]Input to Model'!J267 -> 0 | K268: =+[9]SHETL!K268 -> 0 | L268: =+[9]SHETL!L268 -> 0 | M268: 0 | N268: =AZ268-IF(UserInterface!$B$138=1,SHETL!Y268,0) -> 0 | O268: =BA268-IF(UserInterface!$B$138=1,SHETL!Z268,0) -> 0 | P268: =BB268-IF(UserInterface!$B$138=1,SHETL!AA268,0) -> 0 | Q268: =BC268-IF(UserInterface!$B$138=1,SHETL!AB268,0) -> 0 | R268: =BD268-IF(UserInterface!$B$138=1,SHETL!AC268,0) -> 0 | S268: =BE268-IF(UserInterface!$B$138=1,SHETL!AD268,0) -> 0 | T268: =BF268-IF(UserInterface!$B$138=1,SHETL!AE268,0) -> 0 | U268: =BG268-IF(UserInterface!$B$138=1,SHETL!AF268,0) -> 0 | V268: Non Load related | Y268: 0 | Z268: 0 | AA268: 0 | AB268: 0 | AC268: 0 | AD268: 0 | AE268: 0 | AF268: 0 | AZ268: 0 | BA268: 0 | BB268: 0 | BC268: 0 | BD268: 0 | BE268: 0 | BF268: 0 | BG268: 0
E269: ='[8]Input to Model'!E268 -> 0 | F269: ='[8]Input to Model'!F268 -> 0 | G269: ='[8]Input to Model'!G268 -> 0 | H269: ='[8]Input to Model'!H268 -> 0 | I269: ='[8]Input to Model'!I268 -> 0 | J269: ='[8]Input to Model'!J268 -> 0 | K269: =+[9]SHETL!K269 -> 0 | L269: =+[9]SHETL!L269 -> 0 | M269: ='[13]Input to Model'!M268 -> 0 | N269: =AZ269-IF(UserInterface!$B$138=1,SHETL!Y269,0) -> 0 | O269: =BA269-IF(UserInterface!$B$138=1,SHETL!Z269,0) -> 0 | P269: =BB269-IF(UserInterface!$B$138=1,SHETL!AA269,0) -> 0 | Q269: =BC269-IF(UserInterface!$B$138=1,SHETL!AB269,0) -> 0 | R269: =BD269-IF(UserInterface!$B$138=1,SHETL!AC269,0) -> 0 | S269: =BE269-IF(UserInterface!$B$138=1,SHETL!AD269,0) -> 0 | T269: =BF269-IF(UserInterface!$B$138=1,SHETL!AE269,0) -> 0 | U269: =BG269-IF(UserInterface!$B$138=1,SHETL!AF269,0) -> 0 | Y269: 0 | Z269: 0 | AA269: 0 | AB269: 0 | AC269: 0 | AD269: 0 | AE269: 0 | AF269: 0
A270: Non Operational Capex | E270: ='[8]Input to Model'!E269 -> 0 | F270: ='[8]Input to Model'!F269 -> 0 | G270: ='[8]Input to Model'!G269 -> 0 | H270: ='[8]Input to Model'!H269 -> 0 | I270: ='[8]Input to Model'!I269 -> 0 | J270: ='[8]Input to Model'!J269 -> 0 | K270: =+[9]SHETL!K270 -> 0.3 | L270: =+[9]SHETL!L270 -> 0.4 | M270: 0.1 | N270: =AZ270-IF(UserInterface!$B$138=1,SHETL!Y270,0) -> 0.7 | O270: =BA270-IF(UserInterface!$B$138=1,SHETL!Z270,0) -> 2.8 | P270: =BB270-IF(UserInterface!$B$138=1,SHETL!AA270,0) -> 2.7 | Q270: =BC270-IF(UserInterface!$B$138=1,SHETL!AB270,0) -> 0.2 | R270: =BD270-IF(UserInterface!$B$138=1,SHETL!AC270,0) -> 0.2 | S270: =BE270-IF(UserInterface!$B$138=1,SHETL!AD270,0) -> 0.2 | T270: =BF270-IF(UserInterface!$B$138=1,SHETL!AE270,0) -> 0.2 | U270: =BG270-IF(UserInterface!$B$138=1,SHETL!AF270,0) -> 0.2 | V270: Non Operational capex | Y270: 0 | Z270: 0 | AA270: 0 | AB270: 0 | AC270: 0 | AD270: 0 | AE270: 0 | AF270: 0 | AZ270: 0.7 | BA270: 2.8 | BB270: 2.7 | BC270: 0.2 | BD270: 0.2 | BE270: 0.2 | BF270: 0.2 | BG270: 0.2
E271: ='[8]Input to Model'!E270 -> 0 | F271: ='[8]Input to Model'!F270 -> 0 | G271: ='[8]Input to Model'!G270 -> 0 | H271: ='[8]Input to Model'!H270 -> 0 | I271: ='[8]Input to Model'!I270 -> 0 | J271: ='[8]Input to Model'!J270 -> 0 | K271: =+[9]SHETL!K271 -> 0 | L271: =+[9]SHETL!L271 -> 0 | M271: 0 | N271: =AZ271-IF(UserInterface!$B$138=1,SHETL!Y271,0) -> 0 | O271: =BA271-IF(UserInterface!$B$138=1,SHETL!Z271,0) -> 0 | P271: =BB271-IF(UserInterface!$B$138=1,SHETL!AA271,0) -> 0 | Q271: =BC271-IF(UserInterface!$B$138=1,SHETL!AB271,0) -> 0 | R271: =BD271-IF(UserInterface!$B$138=1,SHETL!AC271,0) -> 0 | S271: =BE271-IF(UserInterface!$B$138=1,SHETL!AD271,0) -> 0 | T271: =BF271-IF(UserInterface!$B$138=1,SHETL!AE271,0) -> 0 | U271: =BG271-IF(UserInterface!$B$138=1,SHETL!AF271,0) -> 0 | Y271: 0 | Z271: 0 | AA271: 0 | AB271: 0 | AC271: 0 | AD271: 0 | AE271: 0 | AF271: 0
A272: RPEs (LR Capex) | E272: ='[8]Input to Model'!E271 -> 0 | F272: ='[8]Input to Model'!F271 -> 0 | G272: ='[8]Input to Model'!G271 -> 0 | H272: ='[8]Input to Model'!H271 -> 0 | I272: ='[8]Input to Model'!I271 -> 0 | J272: ='[8]Input to Model'!J271 -> 0 | K272: =+[9]SHETL!K272 -> 0 | L272: =+[9]SHETL!L272 -> 0 | M272: -1.271657267 | N272: =AZ272-IF(UserInterface!$B$138=1,SHETL!Y272,0) -> 0.2287590714 | O272: =BA272-IF(UserInterface!$B$138=1,SHETL!Z272,0) -> 1.608919831 | P272: =BB272-IF(UserInterface!$B$138=1,SHETL!AA272,0) -> 3.957827121 | Q272: =BC272-IF(UserInterface!$B$138=1,SHETL!AB272,0) -> 3.689549721 | R272: =BD272-IF(UserInterface!$B$138=1,SHETL!AC272,0) -> 1.9436424 | S272: =BE272-IF(UserInterface!$B$138=1,SHETL!AD272,0) -> 1.837860581 | T272: =BF272-IF(UserInterface!$B$138=1,SHETL!AE272,0) -> 1.573496021 | U272: =BG272-IF(UserInterface!$B$138=1,SHETL!AF272,0) -> 1.834554012 | V272: RPEs (LR Capex) | Y272: 2.313074405 | Z272: 9.88585027 | AA272: 12.30566996 | AB272: 15.89506666 | AC272: 17.36512411 | AD272: 20.54941766 | AE272: 24.27779469 | AF272: 35.38626306 | AZ272: 2.541833476 | BA272: 11.4947701 | BB272: 16.26349708 | BC272: 19.58461638 | BD272: 19.30876651 | BE272: 22.38727824 | BF272: 25.85129071 | BG272: 37.22081707
A273: RPEs (NLR Capex) | E273: ='[8]Input to Model'!E272 -> 0 | F273: ='[8]Input to Model'!F272 -> 0 | G273: ='[8]Input to Model'!G272 -> 0 | H273: ='[8]Input to Model'!H272 -> 0 | I273: ='[8]Input to Model'!I272 -> 0 | J273: ='[8]Input to Model'!J272 -> 0 | K273: =+[9]SHETL!K273 -> 0 | L273: =+[9]SHETL!L273 -> 0 | M273: -0.2086259934 | N273: =AZ273-IF(UserInterface!$B$138=1,SHETL!Y273,0) -> -0.04486344954 | O273: =BA273-IF(UserInterface!$B$138=1,SHETL!Z273,0) -> 0.1470504097 | P273: =BB273-IF(UserInterface!$B$138=1,SHETL!AA273,0) -> 0.3468017869 | Q273: =BC273-IF(UserInterface!$B$138=1,SHETL!AB273,0) -> 0.7548963026 | R273: =BD273-IF(UserInterface!$B$138=1,SHETL!AC273,0) -> 1.141566349 | S273: =BE273-IF(UserInterface!$B$138=1,SHETL!AD273,0) -> 1.510777328 | T273: =BF273-IF(UserInterface!$B$138=1,SHETL!AE273,0) -> 2.012189031 | U273: =BG273-IF(UserInterface!$B$138=1,SHETL!AF273,0) -> 2.114603754 | V273: RPEs (NLR Capex) | Y273: 0 | Z273: 0 | AA273: 0 | AB273: 0 | AC273: 0 | AD273: 0 | AE273: 0 | AF273: 0 | AZ273: -0.04486344954 | BA273: 0.1470504097 | BB273: 0.3468017869 | BC273: 0.7548963026 | BD273: 1.141566349 | BE273: 1.510777328 | BF273: 2.012189031 | BG273: 2.114603754
A274: RPEs (Non Op Capex) | E274: ='[8]Input to Model'!E273 -> 0 | F274: ='[8]Input to Model'!F273 -> 0 | G274: ='[8]Input to Model'!G273 -> 0 | H274: ='[8]Input to Model'!H273 -> 0 | I274: ='[8]Input to Model'!I273 -> 0 | J274: ='[8]Input to Model'!J273 -> 0 | K274: =+[9]SHETL!K274 -> 0 | L274: =+[9]SHETL!L274 -> 0 | M274: -0.000307 | N274: =AZ274-IF(UserInterface!$B$138=1,SHETL!Y274,0) -> 0.005527361 | O274: =BA274-IF(UserInterface!$B$138=1,SHETL!Z274,0) -> 0.05315264788 | P274: =BB274-IF(UserInterface!$B$138=1,SHETL!AA274,0) -> 0.07601562808 | Q274: =BC274-IF(UserInterface!$B$138=1,SHETL!AB274,0) -> 0.0083039875 | R274: =BD274-IF(UserInterface!$B$138=1,SHETL!AC274,0) -> 0.01101193934 | S274: =BE274-IF(UserInterface!$B$138=1,SHETL!AD274,0) -> 0.01375509455 | T274: =BF274-IF(UserInterface!$B$138=1,SHETL!AE274,0) -> 0.01653391078 | U274: =BG274-IF(UserInterface!$B$138=1,SHETL!AF274,0) -> 0.01934885162 | V274: RPEs (Non-Op Capex) | Y274: 0 | Z274: 0 | AA274: 0 | AB274: 0 | AC274: 0 | AD274: 0 | AE274: 0 | AF274: 0 | AZ274: 0.005527361 | BA274: 0.05315264788 | BB274: 0.07601562808 | BC274: 0.0083039875 | BD274: 0.01101193934 | BE274: 0.01375509455 | BF274: 0.01653391078 | BG274: 0.01934885162
A275: Total TO Capex | E275: ='[8]Input to Model'!E274 -> 0 | F275: ='[8]Input to Model'!F274 -> 0 | G275: ='[8]Input to Model'!G274 -> 0 | H275: ='[8]Input to Model'!H274 -> 0 | I275: ='[8]Input to Model'!I274 -> 0 | J275: ='[8]Input to Model'!J274 -> 0 | K275: =+[9]SHETL!K275 -> 29.96902773 | L275: =+[9]SHETL!L275 -> 53.384874 | M275: =SUM(M259:M268)+M234+SUM(M269:M274) -> 176.7894097 | N275: =AZ275-IF(UserInterface!$B$138=1,SHETL!Y275,0) -> 134.733886 | O275: =BA275-IF(UserInterface!$B$138=1,SHETL!Z275,0) -> 147.2372686 | P275: =BB275-IF(UserInterface!$B$138=1,SHETL!AA275,0) -> 204.1727401 | Q275: =BC275-IF(UserInterface!$B$138=1,SHETL!AB275,0) -> 130.6622939 | R275: =BD275-IF(UserInterface!$B$138=1,SHETL!AC275,0) -> 68.65845887 | S275: =BE275-IF(UserInterface!$B$138=1,SHETL!AD275,0) -> 59.66330917 | T275: =BF275-IF(UserInterface!$B$138=1,SHETL!AE275,0) -> 53.86388563 | U275: =BG275-IF(UserInterface!$B$138=1,SHETL!AF275,0) -> 50.07350662 | V275: Total TO Capex | Y275: =SUM(Y234:Y274) -> 457.4424207 | Z275: =SUM(Z234:Z274) -> 589.2801229 | AA275: 459.8104806 | AB275: 384.9459324 | AC275: 312.2638481 | AD275: 294.7352904 | AE275: 290.3065947 | AF275: 363.5594631 | AZ275: =SUM(AZ270:AZ274)+AZ259+AZ234 -> 592.1763067 | BA275: =SUM(BA270:BA274)+BA259+BA234 -> 736.5173915 | BB275: 663.9832207 | BC275: 515.6082264 | BD275: 380.922307 | BE275: 354.3985996 | BF275: 344.1704803 | BG275: 413.6329697
E276: ='[8]Input to Model'!E275 -> 0 | F276: ='[8]Input to Model'!F275 -> 0 | G276: ='[8]Input to Model'!G275 -> 0 | H276: ='[8]Input to Model'!H275 -> 0 | I276: ='[8]Input to Model'!I275 -> 0 | J276: ='[8]Input to Model'!J275 -> 0 | K276: =+[9]SHETL!K276 -> 0 | L276: =+[9]SHETL!L276 -> 0 | M276: ='[13]Input to Model'!M275 -> 0 | N276: =AZ276-IF(UserInterface!$B$138=1,SHETL!Y276,0) -> 0 | O276: =BA276-IF(UserInterface!$B$138=1,SHETL!Z276,0) -> 0 | P276: =BB276-IF(UserInterface!$B$138=1,SHETL!AA276,0) -> 0 | Q276: =BC276-IF(UserInterface!$B$138=1,SHETL!AB276,0) -> 0 | R276: =BD276-IF(UserInterface!$B$138=1,SHETL!AC276,0) -> 0 | S276: =BE276-IF(UserInterface!$B$138=1,SHETL!AD276,0) -> 0 | T276: =BF276-IF(UserInterface!$B$138=1,SHETL!AE276,0) -> 0 | U276: =BG276-IF(UserInterface!$B$138=1,SHETL!AF276,0) -> 0
A277: Logged up | E277: ='[8]Input to Model'!E276 -> 0 | F277: ='[8]Input to Model'!F276 -> 0 | G277: ='[8]Input to Model'!G276 -> 0 | H277: ='[8]Input to Model'!H276 -> 0 | I277: ='[8]Input to Model'!I276 -> 0 | J277: ='[8]Input to Model'!J276 -> 0 | K277: =+[9]SHETL!K277 -> 0 | L277: =+[9]SHETL!L277 -> 0 | M277: ='[13]Input to Model'!M276 -> 0 | N277: =AZ277-IF(UserInterface!$B$138=1,SHETL!Y277,0) -> 0 | O277: =BA277-IF(UserInterface!$B$138=1,SHETL!Z277,0) -> 0 | P277: =BB277-IF(UserInterface!$B$138=1,SHETL!AA277,0) -> 0 | Q277: =BC277-IF(UserInterface!$B$138=1,SHETL!AB277,0) -> 0 | R277: =BD277-IF(UserInterface!$B$138=1,SHETL!AC277,0) -> 0 | S277: =BE277-IF(UserInterface!$B$138=1,SHETL!AD277,0) -> 0 | T277: =BF277-IF(UserInterface!$B$138=1,SHETL!AE277,0) -> 0 | U277: =BG277-IF(UserInterface!$B$138=1,SHETL!AF277,0) -> 0
A278: TIRG | E278: ='[8]Input to Model'!E277 -> 0 | F278: ='[8]Input to Model'!F277 -> 0 | G278: ='[8]Input to Model'!G277 -> 0 | H278: ='[8]Input to Model'!H277 -> 0 | I278: ='[8]Input to Model'!I277 -> 0 | J278: ='[8]Input to Model'!J277 -> 0 | K278: =+[9]SHETL!K278 -> 29.17294899 | L278: =+[9]SHETL!L278 -> 113.1 | M278: 146.3 | N278: =AZ278-IF(UserInterface!$B$138=1,SHETL!Y278,0) -> 110.5 | O278: =BA278-IF(UserInterface!$B$138=1,SHETL!Z278,0) -> 76.5 | P278: =BB278-IF(UserInterface!$B$138=1,SHETL!AA278,0) -> 27.9 | Q278: =BC278-IF(UserInterface!$B$138=1,SHETL!AB278,0) -> 0 | R278: =BD278-IF(UserInterface!$B$138=1,SHETL!AC278,0) -> 0 | S278: =BE278-IF(UserInterface!$B$138=1,SHETL!AD278,0) -> 0 | T278: =BF278-IF(UserInterface!$B$138=1,SHETL!AE278,0) -> 0 | U278: =BG278-IF(UserInterface!$B$138=1,SHETL!AF278,0) -> 0 | V278: TIRG | Y278: 0 | Z278: 0 | AA278: 0 | AB278: 0 | AC278: 0 | AD278: 0 | AE278: 0 | AF278: 0 | AZ278: 110.5 | BA278: 76.5 | BB278: 27.9 | BC278: 0 | BD278: 0 | BE278: 0 | BF278: 0 | BG278: 0
A279: TII | E279: ='[8]Input to Model'!E278 -> 0 | F279: ='[8]Input to Model'!F278 -> 0 | G279: ='[8]Input to Model'!G278 -> 0 | H279: ='[8]Input to Model'!H278 -> 0 | I279: ='[8]Input to Model'!I278 -> 0 | J279: ='[8]Input to Model'!J278 -> 0 | K279: =+[9]SHETL!K279 -> 36.89006035 | L279: =+[9]SHETL!L279 -> 54.35089792 | M279: 0 | N279: =AZ279-IF(UserInterface!$B$138=1,SHETL!Y279,0) -> 0 | O279: =BA279-IF(UserInterface!$B$138=1,SHETL!Z279,0) -> 0 | P279: =BB279-IF(UserInterface!$B$138=1,SHETL!AA279,0) -> 0 | Q279: =BC279-IF(UserInterface!$B$138=1,SHETL!AB279,0) -> 0 | R279: =BD279-IF(UserInterface!$B$138=1,SHETL!AC279,0) -> 0 | S279: =BE279-IF(UserInterface!$B$138=1,SHETL!AD279,0) -> 0 | T279: =BF279-IF(UserInterface!$B$138=1,SHETL!AE279,0) -> 0 | U279: =BG279-IF(UserInterface!$B$138=1,SHETL!AF279,0) -> 0 | Y279: 0 | Z279: 0 | AA279: 0 | AB279: 0 | AC279: 0 | AD279: 0 | AE279: 0 | AF279: 0
E280: ='[8]Input to Model'!E279 -> 0 | F280: ='[8]Input to Model'!F279 -> 0 | G280: ='[8]Input to Model'!G279 -> 0 | H280: ='[8]Input to Model'!H279 -> 0 | I280: ='[8]Input to Model'!I279 -> 0 | J280: ='[8]Input to Model'!J279 -> 0 | K280: =+[9]SHETL!K280 -> 0.8978333677 | L280: =+[9]SHETL!L280 -> 0 | M280: ='[13]Input to Model'!M279 -> 0 | N280: =AZ280-IF(UserInterface!$B$138=1,SHETL!Y280,0) -> 0 | O280: =BA280-IF(UserInterface!$B$138=1,SHETL!Z280,0) -> 0 | P280: =BB280-IF(UserInterface!$B$138=1,SHETL!AA280,0) -> 0 | Q280: =BC280-IF(UserInterface!$B$138=1,SHETL!AB280,0) -> 0 | R280: =BD280-IF(UserInterface!$B$138=1,SHETL!AC280,0) -> 0 | S280: =BE280-IF(UserInterface!$B$138=1,SHETL!AD280,0) -> 0 | T280: =BF280-IF(UserInterface!$B$138=1,SHETL!AE280,0) -> 0 | U280: =BG280-IF(UserInterface!$B$138=1,SHETL!AF280,0) -> 0 | Y280: 0 | Z280: 0 | AA280: 0 | AB280: 0 | AC280: 0 | AD280: 0 | AE280: 0 | AF280: 0
E281: ='[8]Input to Model'!E280 -> 0 | F281: ='[8]Input to Model'!F280 -> 0 | G281: ='[8]Input to Model'!G280 -> 0 | H281: ='[8]Input to Model'!H280 -> 0 | I281: ='[8]Input to Model'!I280 -> 0 | J281: ='[8]Input to Model'!J280 -> 0 | K281: =+[9]SHETL!K281 -> 0 | L281: =+[9]SHETL!L281 -> 0 | M281: ='[13]Input to Model'!M280 -> 0 | N281: =AZ281-IF(UserInterface!$B$138=1,SHETL!Y281,0) -> 0 | O281: =BA281-IF(UserInterface!$B$138=1,SHETL!Z281,0) -> 0 | P281: =BB281-IF(UserInterface!$B$138=1,SHETL!AA281,0) -> 0 | Q281: =BC281-IF(UserInterface!$B$138=1,SHETL!AB281,0) -> 0 | R281: =BD281-IF(UserInterface!$B$138=1,SHETL!AC281,0) -> 0 | S281: =BE281-IF(UserInterface!$B$138=1,SHETL!AD281,0) -> 0 | T281: =BF281-IF(UserInterface!$B$138=1,SHETL!AE281,0) -> 0 | U281: =BG281-IF(UserInterface!$B$138=1,SHETL!AF281,0) -> 0 | Y281: 0 | Z281: 0 | AA281: 0 | AB281: 0 | AC281: 0 | AD281: 0 | AE281: 0 | AF281: 0
A282: Direct Opex (Excl. Pensions) | E282: ='[8]Input to Model'!E281 -> 0 | F282: ='[8]Input to Model'!F281 -> 0 | G282: ='[8]Input to Model'!G281 -> 0 | H282: ='[8]Input to Model'!H281 -> 0 | I282: ='[8]Input to Model'!I281 -> 0 | J282: ='[8]Input to Model'!J281 -> 0 | K282: =+[9]SHETL!K282 -> 7.5 | L282: =+[9]SHETL!L282 -> 9.010276 | M282: 2.6 | N282: =AZ282-IF(UserInterface!$B$138=1,SHETL!Y282,0) -> 2.5 | O282: =BA282-IF(UserInterface!$B$138=1,SHETL!Z282,0) -> 3.1 | P282: =BB282-IF(UserInterface!$B$138=1,SHETL!AA282,0) -> 4 | Q282: =BC282-IF(UserInterface!$B$138=1,SHETL!AB282,0) -> 4.3 | R282: =BD282-IF(UserInterface!$B$138=1,SHETL!AC282,0) -> 4.4 | S282: =BE282-IF(UserInterface!$B$138=1,SHETL!AD282,0) -> 4.5 | T282: =BF282-IF(UserInterface!$B$138=1,SHETL!AE282,0) -> 4.4 | U282: =BG282-IF(UserInterface!$B$138=1,SHETL!AF282,0) -> 4.5 | V282: Direct Opex (Incl. Pensions) | Y282: 0.7560159841 | Z282: 0.6039403977 | AA282: 0.6031127776 | AB282: 9.51844314 | AC282: 11.24847655 | AD282: 13.90736182 | AE282: 18.145 | AF282: 18.745 | AZ282: 3.256015984 | BA282: 3.703940398 | BB282: 4.603112778 | BC282: 13.81844314 | BD282: 15.64847655 | BE282: 18.40736182 | BF282: 22.545 | BG282: 23.245
... 286 more rows

Sheet SPTL
A1: SPTL | C1: Year ending 31 March | E1: =EOMONTH(CommonInputs!$J$5,E2*12) -> 2005-03-31 | F1: =EOMONTH(CommonInputs!$J$5,F2*12) -> 2006-03-31 | G1: =EOMONTH(CommonInputs!$J$5,G2*12) -> 2007-03-31 | H1: =EOMONTH(CommonInputs!$J$5,H2*12) -> 2008-03-31 | I1: =EOMONTH(CommonInputs!$J$5,I2*12) -> 2009-03-31 | J1: =EOMONTH(CommonInputs!$J$5,J2*12) -> 2010-03-31 | K1: =EOMONTH(CommonInputs!$J$5,K2*12) -> 2011-03-31 | L1: =EOMONTH(CommonInputs!$J$5,L2*12) -> 2012-03-31 | M1: =EOMONTH(CommonInputs!$J$5,M2*12) -> 2013-03-31 | N1: =EOMONTH(CommonInputs!$J$5,N2*12) -> 2014-03-31 | O1: =EOMONTH(CommonInputs!$J$5,O2*12) -> 2015-03-31 | P1: =EOMONTH(CommonInputs!$J$5,P2*12) -> 2016-03-31 | Q1: =EOMONTH(CommonInputs!$J$5,Q2*12) -> 2017-03-31 | R1: =EOMONTH(CommonInputs!$J$5,R2*12) -> 2018-03-31 | S1: =EOMONTH(CommonInputs!$J$5,S2*12) -> 2019-03-31 | T1: =EOMONTH(CommonInputs!$J$5,T2*12) -> 2020-03-31 | U1: =EOMONTH(CommonInputs!$J$5,U2*12) -> 2021-03-31 | V1: =EOMONTH(CommonInputs!$J$5,V2*12) -> 2022-03-31 | W1: =EOMONTH(CommonInputs!$J$5,W2*12) -> 2023-03-31 | X1: =EOMONTH(CommonInputs!$J$5,X2*12) -> 2024-03-31 | Y1: =EOMONTH(CommonInputs!$J$5,Y2*12) -> 2025-03-31 | Z1: =EOMONTH(CommonInputs!$J$5,Z2*12) -> 2026-03-31 | AA1: =EOMONTH(CommonInputs!$J$5,AA2*12) -> 2027-03-31 | AB1: =EOMONTH(CommonInputs!$J$5,AB2*12) -> 2028-03-31 | AC1: =EOMONTH(CommonInputs!$J$5,AC2*12) -> 2029-03-31 | AD1: =EOMONTH(CommonInputs!$J$5,AD2*12) -> 2030-03-31 | AE1: =EOMONTH(CommonInputs!$J$5,AE2*12) -> 2031-03-31 | AF1: =EOMONTH(CommonInputs!$J$5,AF2*12) -> 2032-03-31 | AG1: =EOMONTH(CommonInputs!$J$5,AG2*12) -> 2033-03-31 | AH1: =EOMONTH(CommonInputs!$J$5,AH2*12) -> 2034-03-31 | AI1: =EOMONTH(CommonInputs!$J$5,AI2*12) -> 2035-03-31 | AJ1: =EOMONTH(CommonInputs!$J$5,AJ2*12) -> 2036-03-31 | AK1: =EOMONTH(CommonInputs!$J$5,AK2*12) -> 2037-03-31 | AL1: =EOMONTH(CommonInputs!$J$5,AL2*12) -> 2038-03-31 | AM1: =EOMONTH(CommonInputs!$J$5,AM2*12) -> 2039-03-31 | AN1: =EOMONTH(CommonInputs!$J$5,AN2*12) -> 2040-03-31 | AO1: =EOMONTH(CommonInputs!$J$5,AO2*12) -> 2041-03-31 | AP1: =EOMONTH(CommonInputs!$J$5,AP2*12) -> 2042-03-31 | AQ1: =EOMONTH(CommonInputs!$J$5,AQ2*12) -> 2043-03-31 | AR1: =EOMONTH(CommonInputs!$J$5,AR2*12) -> 2044-03-31 | AS1: =EOMONTH(CommonInputs!$J$5,AS2*12) -> 2045-03-31 | AT1: =EOMONTH(CommonInputs!$J$5,AT2*12) -> 2046-03-31 | AU1: =EOMONTH(CommonInputs!$J$5,AU2*12) -> 2047-03-31 | AV1: =EOMONTH(CommonInputs!$J$5,AV2*12) -> 2048-03-31 | AW1: =EOMONTH(CommonInputs!$J$5,AW2*12) -> 2049-03-31 | AX1: =EOMONTH(CommonInputs!$J$5,AX2*12) -> 2050-03-31
E2: =F2-1 -> -5 | F2: =G2-1 -> -4 | G2: =H2-1 -> -3 | H2: =I2-1 -> -2 | I2: =J2-1 -> -1 | J2: 0 | K2: =J2+1 -> 1 | L2: 2 | M2: 3 | N2: 4 | O2: 5 | P2: 6 | Q2: 7 | R2: 8 | S2: 9 | T2: 10 | U2: 11 | V2: 12 | W2: 13 | X2: 14 | Y2: 15 | Z2: 16 | AA2: 17 | AB2: 18 | AC2: 19 | AD2: 20 | AE2: 21 | AF2: 22 | AG2: 23 | AH2: 24 | AI2: 25 | AJ2: 26 | AK2: 27 | AL2: 28 | AM2: 29 | AN2: 30 | AO2: 31 | AP2: 32 | AQ2: 33 | AR2: 34 | AS2: 35 | AT2: 36 | AU2: 37 | AV2: 38 | AW2: 39 | AX2: 40
A3: FBPQ
E5: 2004/05 | F5: 2005/06 | G5: 2006/07 | H5: 2007/08 | I5: 2008/09 | J5: 2009/10 | K5: 2010/11 | L5: 2011/12 | M5: 2012/13 | N5: 2013/14 | O5: 2014/15 | P5: 2015/16 | Q5: 2016/17 | R5: 2017/18
A6: Profit & Loss Account (All figures £m, nominal)
B7: Turnover | J7: 196.1 | K7: 219 | L7: 232 | M7: =+[4]SPTL!M7 -> 256.9 | N7: =+[4]SPTL!N7 -> 256.9 | O7: =+[4]SPTL!O7 -> 256.9 | P7: =+[4]SPTL!P7 -> 256.9 | Q7: =+[4]SPTL!Q7 -> 256.9 | R7: =+[4]SPTL!R7 -> 256.9 | S7: =+[4]SPTL!S7 -> 256.9 | T7: =+[4]SPTL!T7 -> 256.9 | U7: =+[4]SPTL!U7 -> 256.9
B8: Operational costs incurred | J8: 29.7 | K8: 41.1 | L8: 53.7 | M8: =+[4]SPTL!M8 -> 46.28491271 | N8: =+[4]SPTL!N8 -> 46.28491271 | O8: =+[4]SPTL!O8 -> 46.28491271 | P8: =+[4]SPTL!P8 -> 46.28491271 | Q8: =+[4]SPTL!Q8 -> 46.28491271 | R8: =+[4]SPTL!R8 -> 46.28491271 | S8: =+[4]SPTL!S8 -> 46.28491271 | T8: =+[4]SPTL!T8 -> 46.28491271 | U8: =+[4]SPTL!U8 -> 46.28491271
B9: Other operating income (-ve) | J9: -1.2 | K9: -2.8 | L9: -1.1 | M9: =+[4]SPTL!M9 -> -0.5392719401 | N9: =+[4]SPTL!N9 -> -0.5392719401 | O9: =+[4]SPTL!O9 -> -0.5392719401 | P9: =+[4]SPTL!P9 -> -0.5392719401 | Q9: =+[4]SPTL!Q9 -> -0.5392719401 | R9: =+[4]SPTL!R9 -> -0.5392719401 | S9: =+[4]SPTL!S9 -> -0.5392719401 | T9: =+[4]SPTL!T9 -> -0.5392719401 | U9: =+[4]SPTL!U9 -> -0.5392719401
B10: Depreciation/ amortisation | J10: 20.7 | K10: 23.1 | L10: 25.5 | M10: =+[4]SPTL!M10 -> 36.24873523 | N10: =+[4]SPTL!N10 -> 36.24873523 | O10: =+[4]SPTL!O10 -> 36.24873523 | P10: =+[4]SPTL!P10 -> 36.24873523 | Q10: =+[4]SPTL!Q10 -> 36.24873523 | R10: =+[4]SPTL!R10 -> 36.24873523 | S10: =+[4]SPTL!S10 -> 36.24873523 | T10: =+[4]SPTL!T10 -> 36.24873523 | U10: =+[4]SPTL!U10 -> 36.24873523
B11: (Profit)/loss on disposal of fixed assets | J11: 0.1 | K11: 0.4 | L11: 0 | M11: =+[4]SPTL!M11 -> 0 | N11: =+[4]SPTL!N11 -> 0 | O11: =+[4]SPTL!O11 -> 0 | P11: =+[4]SPTL!P11 -> 0 | Q11: =+[4]SPTL!Q11 -> 0 | R11: =+[4]SPTL!R11 -> 0 | S11: =+[4]SPTL!S11 -> 0 | T11: =+[4]SPTL!T11 -> 0 | U11: =+[4]SPTL!U11 -> 0
B12: Exceptional Items | J12: 0 | K12: 0 | L12: 0 | M12: =+[4]SPTL!M12 -> 0 | N12: =+[4]SPTL!N12 -> 0 | O12: =+[4]SPTL!O12 -> 0 | P12: =+[4]SPTL!P12 -> 0 | Q12: =+[4]SPTL!Q12 -> 0 | R12: =+[4]SPTL!R12 -> 0 | S12: =+[4]SPTL!S12 -> 0 | T12: =+[4]SPTL!T12 -> 0 | U12: =+[4]SPTL!U12 -> 0
B13: Interest Payable | J13: 18.7 | K13: 13.6 | L13: 35.9 | M13: =+[4]SPTL!M13 -> 29.84358525 | N13: =+[4]SPTL!N13 -> 29.84358525 | O13: =+[4]SPTL!O13 -> 29.84358525 | P13: =+[4]SPTL!P13 -> 29.84358525 | Q13: =+[4]SPTL!Q13 -> 29.84358525 | R13: =+[4]SPTL!R13 -> 29.84358525 | S13: =+[4]SPTL!S13 -> 29.84358525 | T13: =+[4]SPTL!T13 -> 29.84358525 | U13: =+[4]SPTL!U13 -> 29.84358525
B14: Other finance costs | J14: 0 | K14: 0 | L14: 0 | M14: =+[4]SPTL!M14 -> 0 | N14: =+[4]SPTL!N14 -> 0 | O14: =+[4]SPTL!O14 -> 0 | P14: =+[4]SPTL!P14 -> 0 | Q14: =+[4]SPTL!Q14 -> 0 | R14: =+[4]SPTL!R14 -> 0 | S14: =+[4]SPTL!S14 -> 0 | T14: =+[4]SPTL!T14 -> 0 | U14: =+[4]SPTL!U14 -> 0
B15: Interest Receivable (-ve) | J15: -0.3 | K15: 0 | L15: 0 | M15: =+[4]SPTL!M15 -> 0 | N15: =+[4]SPTL!N15 -> 0 | O15: =+[4]SPTL!O15 -> 0 | P15: =+[4]SPTL!P15 -> 0 | Q15: =+[4]SPTL!Q15 -> 0 | R15: =+[4]SPTL!R15 -> 0 | S15: =+[4]SPTL!S15 -> 0 | T15: =+[4]SPTL!T15 -> 0 | U15: =+[4]SPTL!U15 -> 0
B16: Current tax | J16: 22.1 | K16: 25.6 | L16: 15.4 | M16: =+[4]SPTL!M16 -> 36.55877081 | N16: =+[4]SPTL!N16 -> 36.55877081 | O16: =+[4]SPTL!O16 -> 36.55877081 | P16: =+[4]SPTL!P16 -> 36.55877081 | Q16: =+[4]SPTL!Q16 -> 36.55877081 | R16: =+[4]SPTL!R16 -> 36.55877081 | S16: =+[4]SPTL!S16 -> 36.55877081 | T16: =+[4]SPTL!T16 -> 36.55877081 | U16: =+[4]SPTL!U16 -> 36.55877081
B17: Deferred tax | J17: 14.1 | K17: 6.5 | L17: 15.2 | M17: =+[4]SPTL!M17 -> 0 | N17: =+[4]SPTL!N17 -> 0 | O17: =+[4]SPTL!O17 -> 0 | P17: =+[4]SPTL!P17 -> 0 | Q17: =+[4]SPTL!Q17 -> 0 | R17: =+[4]SPTL!R17 -> 0 | S17: =+[4]SPTL!S17 -> 0 | T17: =+[4]SPTL!T17 -> 0 | U17: =+[4]SPTL!U17 -> 0
B18: Dividends | J18: -22 | K18: -35 | L18: -20.5 | M18: =+[4]SPTL!M18 -> -54.75648216 | N18: =+[4]SPTL!N18 -> -54.75648216 | O18: =+[4]SPTL!O18 -> -54.75648216 | P18: =+[4]SPTL!P18 -> -54.75648216 | Q18: =+[4]SPTL!Q18 -> -54.75648216 | R18: =+[4]SPTL!R18 -> -54.75648216 | S18: =+[4]SPTL!S18 -> -54.75648216 | T18: =+[4]SPTL!T18 -> -54.75648216 | U18: =+[4]SPTL!U18 -> -54.75648216
B19: Amortisation of customer contributions | J19: 0 | K19: 0 | L19: 0 | M19: 0 | N19: 0 | O19: 0 | P19: 0 | Q19: 0 | R19: 0 | S19: 0 | T19: 0 | U19: 0
B20: Operating profit before Finance costs and tax | J20: 146.8 | K20: 157.2 | L20: 153.9 | M20: =+[4]SPTL!M20 -> 175.6153204 | N20: =+[4]SPTL!N20 -> 175.6153204 | O20: =+[4]SPTL!O20 -> 175.6153204 | P20: =+[4]SPTL!P20 -> 175.6153204 | Q20: =+[4]SPTL!Q20 -> 175.6153204 | R20: =+[4]SPTL!R20 -> 175.6153204 | S20: =+[4]SPTL!S20 -> 175.6153204 | T20: =+[4]SPTL!T20 -> 175.6153204 | U20: =+[4]SPTL!U20 -> 175.6153204
B21: Other recognised gains and losses | J21: 0 | K21: 0 | L21: 0 | M21: =+[4]SPTL!M21 -> 0 | N21: =+[4]SPTL!N21 -> 0 | O21: =+[4]SPTL!O21 -> 0 | P21: =+[4]SPTL!P21 -> 0 | Q21: =+[4]SPTL!Q21 -> 0 | R21: =+[4]SPTL!R21 -> 0 | S21: =+[4]SPTL!S21 -> 0 | T21: =+[4]SPTL!T21 -> 0 | U21: =+[4]SPTL!U21 -> 0
B22: Transfer to reserves | J22: 70.2 | K22: 76.5 | L22: 66.9 | M22: =+[4]SPTL!M22 -> 54.75648216 | N22: =+[4]SPTL!N22 -> 54.75648216 | O22: =+[4]SPTL!O22 -> 54.75648216 | P22: =+[4]SPTL!P22 -> 54.75648216 | Q22: =+[4]SPTL!Q22 -> 54.75648216 | R22: =+[4]SPTL!R22 -> 54.75648216 | S22: =+[4]SPTL!S22 -> 54.75648216 | T22: =+[4]SPTL!T22 -> 54.75648216 | U22: =+[4]SPTL!U22 -> 54.75648216
J23: 0 | K23: 0 | L23: 0 | M23: =+[4]SPTL!M23 -> 0
A24: Balance sheet (All figures £m, nominal) | J24: 0 | K24: 0 | L24: 0 | M24: =+[4]SPTL!M24 -> 0
J25: 0 | K25: 0 | L25: 0 | M25: =+[4]SPTL!M25 -> 0
A26: Non Current Assets | J26: 0 | K26: 0 | L26: 0 | M26: =+[4]SPTL!M26 -> 0
B27: Tangible assets / Property Plant & Equipment | J27: 987.3 | K27: 1102.8 | L27: 1260 | M27: =+[4]SPTL!M27 -> 1790.634425 | N27: =+[4]SPTL!N27 -> 1790.634425 | O27: =+[4]SPTL!O27 -> 1790.634425 | P27: =+[4]SPTL!P27 -> 1790.634425 | Q27: =+[4]SPTL!Q27 -> 1790.634425 | R27: =+[4]SPTL!R27 -> 1790.634425 | S27: =+[4]SPTL!S27 -> 1790.634425 | T27: =+[4]SPTL!T27 -> 1790.634425 | U27: =+[4]SPTL!U27 -> 1790.634425
B28: Other non current | J28: 0 | K28: 0 | L28: 0 | M28: =+[4]SPTL!M28 -> 0.0001 | N28: =+[4]SPTL!N28 -> 0.0001 | O28: =+[4]SPTL!O28 -> 0.0001 | P28: =+[4]SPTL!P28 -> 0.0001 | Q28: =+[4]SPTL!Q28 -> 0.0001 | R28: =+[4]SPTL!R28 -> 0.0001 | S28: =+[4]SPTL!S28 -> 0.0001 | T28: =+[4]SPTL!T28 -> 0.0001 | U28: =+[4]SPTL!U28 -> 0.0001
A29: Current Assets | J29: 0 | K29: 0 | L29: 0 | M29: =+[4]SPTL!M29 -> 0
B30: Stock | J30: 0.9 | K30: 0 | L30: 0 | M30: 0 | N30: 0 | O30: 0 | P30: 0 | Q30: 0 | R30: 0 | S30: 0 | T30: 0 | U30: 0
B31: Trade Debtors | J31: 1.2 | K31: 1.5 | L31: 1.5 | M31: 1.5 | N31: 1.5 | O31: 1.5 | P31: 1.5 | Q31: 1.5 | R31: 1.5 | S31: 1.5 | T31: 1.5 | U31: 1.5
B32: Loans from other group companies | J32: 0 | K32: 0 | L32: 0 | M32: 0 | N32: 0 | O32: 0 | P32: 0 | Q32: 0 | R32: 0 | S32: 0 | T32: 0 | U32: 0
B33: Other debtors | J33: 0 | K33: 0 | L33: 0 | M33: 0 | N33: 0 | O33: 0 | P33: 0 | Q33: 0 | R33: 0 | S33: 0 | T33: 0 | U33: 0
B34: Cash at bank | J34: 0 | K34: 0 | L34: 0 | M34: 0 | N34: 0 | O34: 0 | P34: 0 | Q34: 0 | R34: 0 | S34: 0 | T34: 0 | U34: 0
B35: Investments | J35: 0 | K35: 0 | L35: 0 | M35: 0 | N35: 0 | O35: 0 | P35: 0 | Q35: 0 | R35: 0 | S35: 0 | T35: 0 | U35: 0
B36: Pension surplus | J36: 0 | K36: 0 | L36: 0 | M36: 0 | N36: 0 | O36: 0 | P36: 0 | Q36: 0 | R36: 0 | S36: 0 | T36: 0 | U36: 0
B37: Other current assets | J37: 0 | K37: 0 | L37: 0 | M37: 0 | N37: 0 | O37: 0 | P37: 0 | Q37: 0 | R37: 0 | S37: 0 | T37: 0 | U37: 0
B38: Current assets: Other | J38: 6.5 | K38: 5.5 | L38: 4.5 | M38: 3.5 | N38: 2.5 | O38: 2.2 | P38: 1.9 | Q38: 1.6 | R38: 1.3 | S38: 1 | T38: 0.7 | U38: 0.7
A39: Creditors: amounts falling due within one year | J39: 0 | K39: 0 | L39: 0 | M39: =+[4]SPTL!M39 -> 0
B40: - Overdrafts | J40: 0 | K40: 0 | L40: 0 | M40: =+[4]SPTL!M40 -> 0 | N40: =+[4]SPTL!N40 -> 0 | O40: =+[4]SPTL!O40 -> 0 | P40: =+[4]SPTL!P40 -> 0 | Q40: =+[4]SPTL!Q40 -> 0 | R40: =+[4]SPTL!R40 -> 0 | S40: =+[4]SPTL!S40 -> 0 | T40: =+[4]SPTL!T40 -> 0 | U40: =+[4]SPTL!U40 -> 0
B41: - External loans | J41: 0 | K41: 0 | L41: 0 | M41: 0 | N41: =+[4]SPTL!N41 -> 0 | O41: =+[4]SPTL!O41 -> 0 | P41: =+[4]SPTL!P41 -> 0 | Q41: =+[4]SPTL!Q41 -> 0 | R41: =+[4]SPTL!R41 -> 0 | S41: =+[4]SPTL!S41 -> 0 | T41: =+[4]SPTL!T41 -> 0 | U41: =+[4]SPTL!U41 -> 0
B42: - Loans due to other Group companies | J42: 121.5 | K42: 0 | L42: 0 | M42: =+[4]SPTL!M42 -> 0 | N42: =+[4]SPTL!N42 -> 0 | O42: =+[4]SPTL!O42 -> 0 | P42: =+[4]SPTL!P42 -> 0 | Q42: =+[4]SPTL!Q42 -> 0 | R42: =+[4]SPTL!R42 -> 0 | S42: =+[4]SPTL!S42 -> 0 | T42: =+[4]SPTL!T42 -> 0 | U42: =+[4]SPTL!U42 -> 0
B43: - Trade Creditors | J43: 26.5 | K43: 34.2 | L43: 24.6 | M43: 35.3 | N43: 44.7 | O43: 50.2 | P43: 44.6 | Q43: 39.2 | R43: 40.6 | S43: 41.6 | T43: 41.3 | U43: 30.3
B44: - Other | J44: 62.2 | K44: 69.9 | L44: 50.2 | M44: 50.5 | N44: 50.8 | O44: 51 | P44: 51.3 | Q44: 51.5 | R44: 51.7 | S44: 52 | T44: 52.2 | U44: 52.5
A45: Creditors: amounts falling due after more than one year | J45: 0 | K45: 0 | L45: 0 | M45: =+[4]SPTL!M45 -> 0
B46: - External loans | H46: 64.3 | J46: 0 | K46: 0 | L46: 97.6 | M46: =+[4]SPTL!M46 -> 0 | N46: =+[4]SPTL!N46 -> 0 | O46: =+[4]SPTL!O46 -> 0 | P46: =+[4]SPTL!P46 -> 0 | Q46: =+[4]SPTL!Q46 -> 0 | R46: =+[4]SPTL!R46 -> 0 | S46: =+[4]SPTL!S46 -> 0 | T46: =+[4]SPTL!T46 -> 0 | U46: =+[4]SPTL!U46 -> 0
B47: - Loans due to other Group companies | J47: 285 | K47: 422 | L47: 422 | M47: 422 | N47: 422 | O47: 422 | P47: 422 | Q47: 422 | R47: 422 | S47: 422 | T47: 422 | U47: 422
B48: - Other creditors | J48: 0 | K48: 0 | L48: 0 | M48: =+[4]SPTL!M48 -> 0 | N48: =+[4]SPTL!N48 -> 0 | O48: =+[4]SPTL!O48 -> 0 | P48: =+[4]SPTL!P48 -> 0 | Q48: =+[4]SPTL!Q48 -> 0 | R48: =+[4]SPTL!R48 -> 0 | S48: =+[4]SPTL!S48 -> 0 | T48: =+[4]SPTL!T48 -> 0 | U48: =+[4]SPTL!U48 -> 0
B49: Customer contributions | J49: 0 | K49: 0 | L49: 0 | M49: =+[4]SPTL!M49 -> 0 | N49: =+[4]SPTL!N49 -> 0 | O49: =+[4]SPTL!O49 -> 0 | P49: =+[4]SPTL!P49 -> 0 | Q49: =+[4]SPTL!Q49 -> 0 | R49: =+[4]SPTL!R49 -> 0 | S49: =+[4]SPTL!S49 -> 0 | T49: =+[4]SPTL!T49 -> 0 | U49: =+[4]SPTL!U49 -> 0
B50: Refundable customer deposits | J50: 0 | K50: 0 | L50: 0 | M50: =+[4]SPTL!M50 -> 0 | N50: =+[4]SPTL!N50 -> 0 | O50: =+[4]SPTL!O50 -> 0 | P50: =+[4]SPTL!P50 -> 0 | Q50: =+[4]SPTL!Q50 -> 0 | R50: =+[4]SPTL!R50 -> 0 | S50: =+[4]SPTL!S50 -> 0 | T50: =+[4]SPTL!T50 -> 0 | U50: =+[4]SPTL!U50 -> 0
B51: Pension Deficit | J51: 0 | K51: 0 | L51: 0 | M51: =+[4]SPTL!M51 -> 0 | N51: =+[4]SPTL!N51 -> 0 | O51: =+[4]SPTL!O51 -> 0 | P51: =+[4]SPTL!P51 -> 0 | Q51: =+[4]SPTL!Q51 -> 0 | R51: =+[4]SPTL!R51 -> 0 | S51: =+[4]SPTL!S51 -> 0 | T51: =+[4]SPTL!T51 -> 0 | U51: =+[4]SPTL!U51 -> 0
B52: Derivative financial liabilities | J52: 0 | K52: 0 | L52: 0 | M52: =+[4]SPTL!M52 -> 0 | N52: =+[4]SPTL!N52 -> 0 | O52: =+[4]SPTL!O52 -> 0 | P52: =+[4]SPTL!P52 -> 0 | Q52: =+[4]SPTL!Q52 -> 0 | R52: =+[4]SPTL!R52 -> 0 | S52: =+[4]SPTL!S52 -> 0 | T52: =+[4]SPTL!T52 -> 0 | U52: =+[4]SPTL!U52 -> 0
A53: Provisions for liabilities and charges | J53: 0 | K53: 0 | L53: 0 | M53: =+[4]SPTL!M53 -> 0
B54: Deferred tax provision | J54: 102.7 | K54: 109.2 | L54: 124.4 | M54: =+[4]SPTL!M54 -> 146.9727911 | N54: =+[4]SPTL!N54 -> 146.9727911 | O54: =+[4]SPTL!O54 -> 146.9727911 | P54: =+[4]SPTL!P54 -> 146.9727911 | Q54: =+[4]SPTL!Q54 -> 146.9727911 | R54: =+[4]SPTL!R54 -> 146.9727911 | S54: =+[4]SPTL!S54 -> 146.9727911 | T54: =+[4]SPTL!T54 -> 146.9727911 | U54: =+[4]SPTL!U54 -> 146.9727911
J55: 0 | K55: 0 | L55: 0 | M55: =+[4]SPTL!M55 -> 0 | N55: =+[4]SPTL!N55 -> 0 | O55: =+[4]SPTL!O55 -> 0 | P55: =+[4]SPTL!P55 -> 0 | Q55: =+[4]SPTL!Q55 -> 0 | R55: =+[4]SPTL!R55 -> 0 | S55: =+[4]SPTL!S55 -> 0 | T55: =+[4]SPTL!T55 -> 0 | U55: =+[4]SPTL!U55 -> 0
B56: Restructuring | J56: 0 | K56: 0 | L56: 0 | M56: =+[4]SPTL!M56 -> 0 | N56: =+[4]SPTL!N56 -> 0 | O56: =+[4]SPTL!O56 -> 0 | P56: =+[4]SPTL!P56 -> 0 | Q56: =+[4]SPTL!Q56 -> 0 | R56: =+[4]SPTL!R56 -> 0 | S56: =+[4]SPTL!S56 -> 0 | T56: =+[4]SPTL!T56 -> 0 | U56: =+[4]SPTL!U56 -> 0
B57: Other provisions | J57: 0 | K57: 0 | L57: 0 | M57: =+[4]SPTL!M57 -> 0 | N57: =+[4]SPTL!N57 -> 0 | O57: =+[4]SPTL!O57 -> 0 | P57: =+[4]SPTL!P57 -> 0 | Q57: =+[4]SPTL!Q57 -> 0 | R57: =+[4]SPTL!R57 -> 0 | S57: =+[4]SPTL!S57 -> 0 | T57: =+[4]SPTL!T57 -> 0 | U57: =+[4]SPTL!U57 -> 0
J58: 0 | K58: 0 | L58: 0 | M58: =+[4]SPTL!M58 -> 0 | N58: =+[4]SPTL!N58 -> 0 | O58: =+[4]SPTL!O58 -> 0 | P58: =+[4]SPTL!P58 -> 0 | Q58: =+[4]SPTL!Q58 -> 0 | R58: =+[4]SPTL!R58 -> 0 | S58: =+[4]SPTL!S58 -> 0 | T58: =+[4]SPTL!T58 -> 0 | U58: =+[4]SPTL!U58 -> 0
A59: Shareholders funds | J59: 0 | K59: 0 | L59: 0 | M59: =+[4]SPTL!M59 -> 0
B60: Called up ordinary share capital (including share premium) | J60: 200 | K60: 200 | L60: 200 | M60: =+[4]SPTL!M60 -> 200 | N60: =+[4]SPTL!N60 -> 200 | O60: =+[4]SPTL!O60 -> 200 | P60: =+[4]SPTL!P60 -> 200 | Q60: =+[4]SPTL!Q60 -> 200 | R60: =+[4]SPTL!R60 -> 200 | S60: =+[4]SPTL!S60 -> 200 | T60: =+[4]SPTL!T60 -> 200 | U60: =+[4]SPTL!U60 -> 200
B61: Profit and Loss Account | J61: 198 | K61: 274.5 | L61: 341.4 | M61: =+[4]SPTL!M61 -> 355.4403001 | N61: =+[4]SPTL!N61 -> 355.4403001 | O61: =+[4]SPTL!O61 -> 355.4403001 | P61: =+[4]SPTL!P61 -> 355.4403001 | Q61: =+[4]SPTL!Q61 -> 355.4403001 | R61: =+[4]SPTL!R61 -> 355.4403001 | S61: =+[4]SPTL!S61 -> 355.4403001 | T61: =+[4]SPTL!T61 -> 355.4403001 | U61: =+[4]SPTL!U61 -> 355.4403001
B62: Other Reserves | J62: 0 | K62: 0 | L62: 0 | M62: =+[4]SPTL!M62 -> 0 | N62: =+[4]SPTL!N62 -> 0 | O62: =+[4]SPTL!O62 -> 0 | P62: =+[4]SPTL!P62 -> 0 | Q62: =+[4]SPTL!Q62 -> 0 | R62: =+[4]SPTL!R62 -> 0 | S62: =+[4]SPTL!S62 -> 0 | T62: =+[4]SPTL!T62 -> 0 | U62: =+[4]SPTL!U62 -> 0
J63: 0 | K63: 0 | L63: 0 | M63: =+[4]SPTL!M63 -> 0 | N63: =+[4]SPTL!N63 -> 0 | O63: =+[4]SPTL!O63 -> 0 | P63: =+[4]SPTL!P63 -> 0 | Q63: =+[4]SPTL!Q63 -> 0 | R63: =+[4]SPTL!R63 -> 0 | S63: =+[4]SPTL!S63 -> 0 | T63: =+[4]SPTL!T63 -> 0 | U63: =+[4]SPTL!U63 -> 0
J64: 0 | K64: 0 | L64: 0 | M64: =+[4]SPTL!M64 -> 0 | N64: =+[4]SPTL!N64 -> 0 | O64: =+[4]SPTL!O64 -> 0 | P64: =+[4]SPTL!P64 -> 0 | Q64: =+[4]SPTL!Q64 -> 0 | R64: =+[4]SPTL!R64 -> 0 | S64: =+[4]SPTL!S64 -> 0 | T64: =+[4]SPTL!T64 -> 0 | U64: =+[4]SPTL!U64 -> 0
A65: Cash flow (All figures £m, nominal) | J65: 0 | K65: 0 | L65: 0 | M65: =+[4]SPTL!M65 -> 0
B66: Net cash inflow/(outflow) from operating activities | J66: 177.9 | K66: 181.5 | L66: 169.3 | M66: =+[4]SPTL!M66 -> 256.7098666 | N66: =+[4]SPTL!N66 -> 256.7098666 | O66: =+[4]SPTL!O66 -> 256.7098666 | P66: =+[4]SPTL!P66 -> 256.7098666 | Q66: =+[4]SPTL!Q66 -> 256.7098666 | R66: =+[4]SPTL!R66 -> 256.7098666 | S66: =+[4]SPTL!S66 -> 256.7098666 | T66: =+[4]SPTL!T66 -> 256.7098666 | U66: =+[4]SPTL!U66 -> 256.7098666
B67: Interest received | J67: 0.3 | K67: 0 | L67: 0 | M67: =+[4]SPTL!M67 -> 0.3 | N67: =+[4]SPTL!N67 -> 0.3 | O67: =+[4]SPTL!O67 -> 0.3 | P67: =+[4]SPTL!P67 -> 0.3 | Q67: =+[4]SPTL!Q67 -> 0.3 | R67: =+[4]SPTL!R67 -> 0.3 | S67: =+[4]SPTL!S67 -> 0.3 | T67: =+[4]SPTL!T67 -> 0.3 | U67: =+[4]SPTL!U67 -> 0.3
B68: Interest paid | J68: -20 | K68: -13.6 | L68: -35.9 | M68: =+[4]SPTL!M68 -> -29.84358525 | N68: =+[4]SPTL!N68 -> -29.84358525 | O68: =+[4]SPTL!O68 -> -29.84358525 | P68: =+[4]SPTL!P68 -> -29.84358525 | Q68: =+[4]SPTL!Q68 -> -29.84358525 | R68: =+[4]SPTL!R68 -> -29.84358525 | S68: =+[4]SPTL!S68 -> -29.84358525 | T68: =+[4]SPTL!T68 -> -29.84358525 | U68: =+[4]SPTL!U68 -> -29.84358525
B69: Issue costs of bank and other debt instruments | J69: 0 | K69: 0 | L69: 0 | M69: =+[4]SPTL!M69 -> 0 | N69: =+[4]SPTL!N69 -> 0 | O69: =+[4]SPTL!O69 -> 0 | P69: =+[4]SPTL!P69 -> 0 | Q69: =+[4]SPTL!Q69 -> 0 | R69: =+[4]SPTL!R69 -> 0 | S69: =+[4]SPTL!S69 -> 0 | T69: =+[4]SPTL!T69 -> 0 | U69: =+[4]SPTL!U69 -> 0
B70: Interest element of finance lease payments | J70: 0 | K70: 0 | L70: 0 | M70: =+[4]SPTL!M70 -> 0 | N70: =+[4]SPTL!N70 -> 0 | O70: =+[4]SPTL!O70 -> 0 | P70: =+[4]SPTL!P70 -> 0 | Q70: =+[4]SPTL!Q70 -> 0 | R70: =+[4]SPTL!R70 -> 0 | S70: =+[4]SPTL!S70 -> 0 | T70: =+[4]SPTL!T70 -> 0 | U70: =+[4]SPTL!U70 -> 0
B71: Dividends paid | J71: 0 | K71: 0 | L71: 0 | M71: =+[4]SPTL!M71 -> 0 | N71: =+[4]SPTL!N71 -> 0 | O71: =+[4]SPTL!O71 -> 0 | P71: =+[4]SPTL!P71 -> 0 | Q71: =+[4]SPTL!Q71 -> 0 | R71: =+[4]SPTL!R71 -> 0 | S71: =+[4]SPTL!S71 -> 0 | T71: =+[4]SPTL!T71 -> 0 | U71: =+[4]SPTL!U71 -> 0
B72: Taxation | J72: -17.4 | K72: -21.8 | L72: -27.7 | M72: =+[4]SPTL!M72 -> -19.26040251 | N72: =+[4]SPTL!N72 -> -19.26040251 | O72: =+[4]SPTL!O72 -> -19.26040251 | P72: =+[4]SPTL!P72 -> -19.26040251 | Q72: =+[4]SPTL!Q72 -> -19.26040251 | R72: =+[4]SPTL!R72 -> -19.26040251 | S72: =+[4]SPTL!S72 -> -19.26040251 | T72: =+[4]SPTL!T72 -> -19.26040251 | U72: =+[4]SPTL!U72 -> -19.26040251
B73: Purchase of tangible fixed assets | J73: -121.4 | K73: -137.4 | L73: -182.7 | M73: =+[4]SPTL!M73 -> -471.1300521 | N73: =+[4]SPTL!N73 -> -471.1300521 | O73: =+[4]SPTL!O73 -> -471.1300521 | P73: =+[4]SPTL!P73 -> -471.1300521 | Q73: =+[4]SPTL!Q73 -> -471.1300521 | R73: =+[4]SPTL!R73 -> -471.1300521 | S73: =+[4]SPTL!S73 -> -471.1300521 | T73: =+[4]SPTL!T73 -> -471.1300521 | U73: =+[4]SPTL!U73 -> -471.1300521
B74: Purchase of intangible assets | J74: 0 | K74: 0 | L74: 0 | M74: =+[4]SPTL!M74 -> 0 | N74: =+[4]SPTL!N74 -> 0 | O74: =+[4]SPTL!O74 -> 0 | P74: =+[4]SPTL!P74 -> 0 | Q74: =+[4]SPTL!Q74 -> 0 | R74: =+[4]SPTL!R74 -> 0 | S74: =+[4]SPTL!S74 -> 0 | T74: =+[4]SPTL!T74 -> 0 | U74: =+[4]SPTL!U74 -> 0
B75: Sale of tangible fixed assets | J75: 0 | K75: 0 | L75: 0 | M75: =+[4]SPTL!M75 -> 0 | N75: =+[4]SPTL!N75 -> 0 | O75: =+[4]SPTL!O75 -> 0 | P75: =+[4]SPTL!P75 -> 0 | Q75: =+[4]SPTL!Q75 -> 0 | R75: =+[4]SPTL!R75 -> 0 | S75: =+[4]SPTL!S75 -> 0 | T75: =+[4]SPTL!T75 -> 0 | U75: =+[4]SPTL!U75 -> 0
B76: Customers contributions received | J76: 9.4 | K76: 10.8 | L76: 0 | M76: =+[4]SPTL!M76 -> 10.00438637 | N76: =+[4]SPTL!N76 -> 10.00438637 | O76: =+[4]SPTL!O76 -> 10.00438637 | P76: =+[4]SPTL!P76 -> 10.00438637 | Q76: =+[4]SPTL!Q76 -> 10.00438637 | R76: =+[4]SPTL!R76 -> 10.00438637 | S76: =+[4]SPTL!S76 -> 10.00438637 | T76: =+[4]SPTL!T76 -> 10.00438637 | U76: =+[4]SPTL!U76 -> 10.00438637
B77: Other | J77: 0 | K77: 0 | L77: 0 | M77: =+[4]SPTL!M77 -> 0 | N77: =+[4]SPTL!N77 -> 0 | O77: =+[4]SPTL!O77 -> 0 | P77: =+[4]SPTL!P77 -> 0 | Q77: =+[4]SPTL!Q77 -> 0 | R77: =+[4]SPTL!R77 -> 0 | S77: =+[4]SPTL!S77 -> 0 | T77: =+[4]SPTL!T77 -> 0 | U77: =+[4]SPTL!U77 -> 0
B78: Equity dividends paid to shareholders | J78: -22 | K78: -35 | L78: -20.5 | M78: =+[4]SPTL!M78 -> -54.75648216 | N78: =+[4]SPTL!N78 -> -54.75648216 | O78: =+[4]SPTL!O78 -> -54.75648216 | P78: =+[4]SPTL!P78 -> -54.75648216 | Q78: =+[4]SPTL!Q78 -> -54.75648216 | R78: =+[4]SPTL!R78 -> -54.75648216 | S78: =+[4]SPTL!S78 -> -54.75648216 | T78: =+[4]SPTL!T78 -> -54.75648216 | U78: =+[4]SPTL!U78 -> -54.75648216
B79: Movement in derivative debt (+/-ve) | J79: 0 | K79: 0 | L79: 0 | M79: =+[4]SPTL!M79 -> 0 | N79: =+[4]SPTL!N79 -> 0 | O79: =+[4]SPTL!O79 -> 0 | P79: =+[4]SPTL!P79 -> 0 | Q79: =+[4]SPTL!Q79 -> 0 | R79: =+[4]SPTL!R79 -> 0 | S79: =+[4]SPTL!S79 -> 0 | T79: =+[4]SPTL!T79 -> 0 | U79: =+[4]SPTL!U79 -> 0
B80: Reduction/(increase) in short-term deposits with banks | J80: 0 | K80: 0 | L80: 0 | M80: =+[4]SPTL!M80 -> 0 | N80: =+[4]SPTL!N80 -> 0 | O80: =+[4]SPTL!O80 -> 0 | P80: =+[4]SPTL!P80 -> 0 | Q80: =+[4]SPTL!Q80 -> 0 | R80: =+[4]SPTL!R80 -> 0 | S80: =+[4]SPTL!S80 -> 0 | T80: =+[4]SPTL!T80 -> 0 | U80: =+[4]SPTL!U80 -> 0
B81: Issue of ordinary share capital | J81: 0 | K81: 0 | L81: 0 | M81: =+[4]SPTL!M81 -> 0 | N81: =+[4]SPTL!N81 -> 0 | O81: =+[4]SPTL!O81 -> 0 | P81: =+[4]SPTL!P81 -> 0 | Q81: =+[4]SPTL!Q81 -> 0 | R81: =+[4]SPTL!R81 -> 0 | S81: =+[4]SPTL!S81 -> 0 | T81: =+[4]SPTL!T81 -> 0 | U81: =+[4]SPTL!U81 -> 0
B82: Other shares/reserve movements | J82: 0 | K82: 0 | L82: 0 | M82: =+[4]SPTL!M82 -> 0 | N82: =+[4]SPTL!N82 -> 0 | O82: =+[4]SPTL!O82 -> 0 | P82: =+[4]SPTL!P82 -> 0 | Q82: =+[4]SPTL!Q82 -> 0 | R82: =+[4]SPTL!R82 -> 0 | S82: =+[4]SPTL!S82 -> 0 | T82: =+[4]SPTL!T82 -> 0 | U82: =+[4]SPTL!U82 -> 0
B83: Capital element of finance lease payments | J83: 0 | K83: 0 | L83: 0 | M83: =+[4]SPTL!M83 -> 0 | N83: =+[4]SPTL!N83 -> 0 | O83: =+[4]SPTL!O83 -> 0 | P83: =+[4]SPTL!P83 -> 0 | Q83: =+[4]SPTL!Q83 -> 0 | R83: =+[4]SPTL!R83 -> 0 | S83: =+[4]SPTL!S83 -> 0 | T83: =+[4]SPTL!T83 -> 0 | U83: =+[4]SPTL!U83 -> 0
B84: (Decrease)/Increase in amounts due to Group undertakings | J84: 0 | K84: 0 | L84: 0 | M84: =+[4]SPTL!M84 -> -307.9762691 | N84: =+[4]SPTL!N84 -> -307.9762691 | O84: =+[4]SPTL!O84 -> -307.9762691 | P84: =+[4]SPTL!P84 -> -307.9762691 | Q84: =+[4]SPTL!Q84 -> -307.9762691 | R84: =+[4]SPTL!R84 -> -307.9762691 | S84: =+[4]SPTL!S84 -> -307.9762691 | T84: =+[4]SPTL!T84 -> -307.9762691 | U84: =+[4]SPTL!U84 -> -307.9762691
B85: Increase in borrowings | J85: -50 | K85: 0 | L85: 0 | M85: =+[4]SPTL!M85 -> 0 | N85: =+[4]SPTL!N85 -> 0 | O85: =+[4]SPTL!O85 -> 0 | P85: =+[4]SPTL!P85 -> 0 | Q85: =+[4]SPTL!Q85 -> 0 | R85: =+[4]SPTL!R85 -> 0 | S85: =+[4]SPTL!S85 -> 0 | T85: =+[4]SPTL!T85 -> 0 | U85: =+[4]SPTL!U85 -> 0
B86: Net cash at 1 April | J86: -406.5 | K86: -422 | L86: -422 | M86: -517.7 | N86: =+[4]SPTL!N86 -> -592.1396663 | O86: =+[4]SPTL!O86 -> -592.1396663 | P86: =+[4]SPTL!P86 -> -592.1396663 | Q86: =+[4]SPTL!Q86 -> -592.1396663 | R86: =+[4]SPTL!R86 -> -592.1396663 | S86: =+[4]SPTL!S86 -> -592.1396663 | T86: =+[4]SPTL!T86 -> -592.1396663 | U86: =+[4]SPTL!U86 -> -592.1396663
B87: Borrowings net of short-term deposits acquired with subsidiaries | J87: 0 | K87: 0 | L87: 0 | M87: =+[4]SPTL!M87 -> 0 | N87: =+[4]SPTL!N87 -> 0 | O87: =+[4]SPTL!O87 -> 0 | P87: =+[4]SPTL!P87 -> 0 | Q87: =+[4]SPTL!Q87 -> 0 | R87: =+[4]SPTL!R87 -> 0 | S87: =+[4]SPTL!S87 -> 0 | T87: =+[4]SPTL!T87 -> 0 | U87: =+[4]SPTL!U87 -> 0
B88: Movement in deposits | J88: 0 | K88: 0 | L88: 0 | M88: =+[4]SPTL!M88 -> 0 | N88: =+[4]SPTL!N88 -> 0 | O88: =+[4]SPTL!O88 -> 0 | P88: =+[4]SPTL!P88 -> 0 | Q88: =+[4]SPTL!Q88 -> 0 | R88: =+[4]SPTL!R88 -> 0 | S88: =+[4]SPTL!S88 -> 0 | T88: =+[4]SPTL!T88 -> 0 | U88: =+[4]SPTL!U88 -> 0
B89: Movement in borrowings | J89: 0 | K89: 0 | L89: 0 | M89: =+[4]SPTL!M89 -> 307.9762691 | N89: =+[4]SPTL!N89 -> 307.9762691 | O89: =+[4]SPTL!O89 -> 307.9762691 | P89: =+[4]SPTL!P89 -> 307.9762691 | Q89: =+[4]SPTL!Q89 -> 307.9762691 | R89: =+[4]SPTL!R89 -> 307.9762691 | S89: =+[4]SPTL!S89 -> 307.9762691 | T89: =+[4]SPTL!T89 -> 307.9762691 | U89: =+[4]SPTL!U89 -> 307.9762691
B90: Other non-cash changes | J90: 0 | K90: 0 | L90: 0 | M90: =+[4]SPTL!M90 -> 0 | N90: =+[4]SPTL!N90 -> 0 | O90: =+[4]SPTL!O90 -> 0 | P90: =+[4]SPTL!P90 -> 0 | Q90: =+[4]SPTL!Q90 -> 0 | R90: =+[4]SPTL!R90 -> 0 | S90: =+[4]SPTL!S90 -> 0 | T90: =+[4]SPTL!T90 -> 0 | U90: =+[4]SPTL!U90 -> 0
B91: Exchange adjustments | J91: 0 | K91: 0 | L91: 0 | M91: =+[4]SPTL!M91 -> 0 | N91: =+[4]SPTL!N91 -> 0 | O91: =+[4]SPTL!O91 -> 0 | P91: =+[4]SPTL!P91 -> 0 | Q91: =+[4]SPTL!Q91 -> 0 | R91: =+[4]SPTL!R91 -> 0 | S91: =+[4]SPTL!S91 -> 0 | T91: =+[4]SPTL!T91 -> 0 | U91: =+[4]SPTL!U91 -> 0
J92: 0 | K92: 0 | L92: 0 | M92: =+[4]SPTL!M92 -> 0 | N92: =+[4]SPTL!N92 -> 0 | O92: =+[4]SPTL!O92 -> 0 | P92: =+[4]SPTL!P92 -> 0 | Q92: =+[4]SPTL!Q92 -> 0 | R92: =+[4]SPTL!R92 -> 0 | S92: =+[4]SPTL!S92 -> 0 | T92: =+[4]SPTL!T92 -> 0 | U92: =+[4]SPTL!U92 -> 0
J93: 0 | K93: 0 | L93: 0 | M93: =+[4]SPTL!M93 -> 0 | N93: =+[4]SPTL!N93 -> 0 | O93: =+[4]SPTL!O93 -> 0 | P93: =+[4]SPTL!P93 -> 0 | Q93: =+[4]SPTL!Q93 -> 0 | R93: =+[4]SPTL!R93 -> 0 | S93: =+[4]SPTL!S93 -> 0 | T93: =+[4]SPTL!T93 -> 0 | U93: =+[4]SPTL!U93 -> 0
J94: 0 | K94: 0 | L94: 0 | M94: =+[4]SPTL!M94 -> 0 | N94: =+[4]SPTL!N94 -> 0 | O94: =+[4]SPTL!O94 -> 0 | P94: =+[4]SPTL!P94 -> 0 | Q94: =+[4]SPTL!Q94 -> 0 | R94: =+[4]SPTL!R94 -> 0 | S94: =+[4]SPTL!S94 -> 0 | T94: =+[4]SPTL!T94 -> 0 | U94: =+[4]SPTL!U94 -> 0
J95: 0 | K95: 0 | L95: 0 | M95: =+[4]SPTL!M95 -> 0 | N95: =+[4]SPTL!N95 -> 0 | O95: =+[4]SPTL!O95 -> 0 | P95: =+[4]SPTL!P95 -> 0 | Q95: =+[4]SPTL!Q95 -> 0 | R95: =+[4]SPTL!R95 -> 0 | S95: =+[4]SPTL!S95 -> 0 | T95: =+[4]SPTL!T95 -> 0 | U95: =+[4]SPTL!U95 -> 0
J96: 0 | K96: 0 | L96: 0 | M96: =+[4]SPTL!M96 -> 0 | N96: =+[4]SPTL!N96 -> 0 | O96: =+[4]SPTL!O96 -> 0 | P96: =+[4]SPTL!P96 -> 0 | Q96: =+[4]SPTL!Q96 -> 0 | R96: =+[4]SPTL!R96 -> 0 | S96: =+[4]SPTL!S96 -> 0 | T96: =+[4]SPTL!T96 -> 0 | U96: =+[4]SPTL!U96 -> 0
M98: -517.7
A110: Capital allowances
B111: Plant pool and others
B112: Opening balance b/fwd | J112: =+[4]SPTL!J112 -> 24.6 | K112: 23.5 | L112: 22.2 | M112: =+[4]SPTL!M112 -> 20.9 | N112: =+[4]SPTL!N112 -> 0 | O112: =+[4]SPTL!O112 -> 0 | P112: =+[4]SPTL!P112 -> 0 | Q112: =+[4]SPTL!Q112 -> 0 | R112: =+[4]SPTL!R112 -> 0 | S112: =+[4]SPTL!S112 -> 0 | T112: =+[4]SPTL!T112 -> 0 | U112: =+[4]SPTL!U112 -> 0
B113: Revisions | J113: =+[4]SPTL!J113 -> 0 | K113: 0 | L113: 0 | M113: =+[4]SPTL!M113 -> 0 | N113: =+[4]SPTL!N113 -> 0 | O113: =+[4]SPTL!O113 -> 0 | P113: =+[4]SPTL!P113 -> 0 | Q113: =+[4]SPTL!Q113 -> 0 | R113: =+[4]SPTL!R113 -> 0 | S113: =+[4]SPTL!S113 -> 0 | T113: =+[4]SPTL!T113 -> 0 | U113: =+[4]SPTL!U113 -> 0
B114: Additions in the year | J114: =+[4]SPTL!J114 -> 6.4 | K114: 4.3 | L114: 10.4 | M114: =+[4]SPTL!M114 -> 9.3 | N114: =+[4]SPTL!N114 -> 0 | O114: =+[4]SPTL!O114 -> 0 | P114: =+[4]SPTL!P114 -> 0 | Q114: =+[4]SPTL!Q114 -> 0 | R114: =+[4]SPTL!R114 -> 0 | S114: =+[4]SPTL!S114 -> 0 | T114: =+[4]SPTL!T114 -> 0 | U114: =+[4]SPTL!U114 -> 0
B115: Disposals in the year | J115: =+[4]SPTL!J115 -> 0 | K115: 0 | L115: 0 | M115: =+[4]SPTL!M115 -> 0 | N115: =+[4]SPTL!N115 -> 0 | O115: =+[4]SPTL!O115 -> 0 | P115: =+[4]SPTL!P115 -> 0 | Q115: =+[4]SPTL!Q115 -> 0 | R115: =+[4]SPTL!R115 -> 0 | S115: =+[4]SPTL!S115 -> 0 | T115: =+[4]SPTL!T115 -> 0 | U115: =+[4]SPTL!U115 -> 0
B116: WDA | J116: =+[4]SPTL!J116 -> 7.5 | K116: 5.6 | L116: 6.5 | M116: =+[4]SPTL!M116 -> 5.4 | N116: =+[4]SPTL!N116 -> 0 | O116: =+[4]SPTL!O116 -> 0 | P116: =+[4]SPTL!P116 -> 0 | Q116: =+[4]SPTL!Q116 -> 0 | R116: =+[4]SPTL!R116 -> 0 | S116: =+[4]SPTL!S116 -> 0 | T116: =+[4]SPTL!T116 -> 0 | U116: =+[4]SPTL!U116 -> 0
B117: Long life assets
B118: Opening balance b/fwd | J118: =+[4]SPTL!J118 -> 517.8 | K118: 557.6 | L118: 611.7 | M118: =+[4]SPTL!M118 -> 777.9 | N118: =+[4]SPTL!N118 -> 0 | O118: =+[4]SPTL!O118 -> 0 | P118: =+[4]SPTL!P118 -> 0 | Q118: =+[4]SPTL!Q118 -> 0 | R118: =+[4]SPTL!R118 -> 0 | S118: =+[4]SPTL!S118 -> 0 | T118: =+[4]SPTL!T118 -> 0 | U118: =+[4]SPTL!U118 -> 0
B119: Revisions | J119: =+[4]SPTL!J119 -> -0.1 | K119: 0 | L119: 0 | M119: =+[4]SPTL!M119 -> 0 | N119: =+[4]SPTL!N119 -> 0 | O119: =+[4]SPTL!O119 -> 0 | P119: =+[4]SPTL!P119 -> 0 | Q119: =+[4]SPTL!Q119 -> 0 | R119: =+[4]SPTL!R119 -> 0 | S119: =+[4]SPTL!S119 -> 0 | T119: =+[4]SPTL!T119 -> 0 | U119: =+[4]SPTL!U119 -> 0
B120: Additions in the year | J120: =+[4]SPTL!J120 -> 102 | K120: 122.1 | L120: 164.3 | M120: =+[4]SPTL!M120 -> 439.4 | N120: =+[4]SPTL!N120 -> 0 | O120: =+[4]SPTL!O120 -> 0 | P120: =+[4]SPTL!P120 -> 0 | Q120: =+[4]SPTL!Q120 -> 0 | R120: =+[4]SPTL!R120 -> 0 | S120: =+[4]SPTL!S120 -> 0 | T120: =+[4]SPTL!T120 -> 0 | U120: =+[4]SPTL!U120 -> 0
B121: Disposals in the year | J121: =+[4]SPTL!J121 -> 0 | K121: 0 | L121: 0 | M121: =+[4]SPTL!M121 -> 0 | N121: =+[4]SPTL!N121 -> 0 | O121: =+[4]SPTL!O121 -> 0 | P121: =+[4]SPTL!P121 -> 0 | Q121: =+[4]SPTL!Q121 -> 0 | R121: =+[4]SPTL!R121 -> 0 | S121: =+[4]SPTL!S121 -> 0 | T121: =+[4]SPTL!T121 -> 0 | U121: =+[4]SPTL!U121 -> 0
B122: WDA | J122: =+[4]SPTL!J122 -> 62 | K122: 68 | L122: 77.6 | M122: =+[4]SPTL!M122 -> 97.4 | N122: =+[4]SPTL!N122 -> 0 | O122: =+[4]SPTL!O122 -> 0 | P122: =+[4]SPTL!P122 -> 0 | Q122: =+[4]SPTL!Q122 -> 0 | R122: =+[4]SPTL!R122 -> 0 | S122: =+[4]SPTL!S122 -> 0 | T122: =+[4]SPTL!T122 -> 0 | U122: =+[4]SPTL!U122 -> 0
B123: IBAs
B124: Opening balance b/fwd | J124: =+[4]SPTL!J124 -> 6.5 | K124: =+[9]SPTL!K124 -> 7 | L124: =+[9]SPTL!L124 -> 6.9 | M124: =+[4]SPTL!M124 -> 14.8 | N124: =+[4]SPTL!N124 -> 0 | O124: =+[4]SPTL!O124 -> 0 | P124: =+[4]SPTL!P124 -> 0 | Q124: =+[4]SPTL!Q124 -> 0 | R124: =+[4]SPTL!R124 -> 0 | S124: =+[4]SPTL!S124 -> 0 | T124: =+[4]SPTL!T124 -> 0 | U124: =+[4]SPTL!U124 -> 0
B125: Revisions | J125: =+[4]SPTL!J125 -> 0 | K125: =+[9]SPTL!K125 -> 0 | L125: =+[9]SPTL!L125 -> 0 | M125: =+[4]SPTL!M125 -> 0 | N125: =+[4]SPTL!N125 -> 0 | O125: =+[4]SPTL!O125 -> 0 | P125: =+[4]SPTL!P125 -> 0 | Q125: =+[4]SPTL!Q125 -> 0 | R125: =+[4]SPTL!R125 -> 0 | S125: =+[4]SPTL!S125 -> 0 | T125: =+[4]SPTL!T125 -> 0 | U125: =+[4]SPTL!U125 -> 0
B126: Additions in the year | J126: =+[4]SPTL!J126 -> 0.8 | K126: =+[9]SPTL!K126 -> 0 | L126: =+[9]SPTL!L126 -> 0 | M126: =+[4]SPTL!M126 -> 9.3 | N126: =+[4]SPTL!N126 -> 0 | O126: =+[4]SPTL!O126 -> 0 | P126: =+[4]SPTL!P126 -> 0 | Q126: =+[4]SPTL!Q126 -> 0 | R126: =+[4]SPTL!R126 -> 0 | S126: =+[4]SPTL!S126 -> 0 | T126: =+[4]SPTL!T126 -> 0 | U126: =+[4]SPTL!U126 -> 0
B127: Disposals in the year | J127: =+[4]SPTL!J127 -> 0 | K127: =+[9]SPTL!K127 -> 0 | L127: =+[9]SPTL!L127 -> 0 | M127: =+[4]SPTL!M127 -> 0 | N127: =+[4]SPTL!N127 -> 0 | O127: =+[4]SPTL!O127 -> 0 | P127: =+[4]SPTL!P127 -> 0 | Q127: =+[4]SPTL!Q127 -> 0 | R127: =+[4]SPTL!R127 -> 0 | S127: =+[4]SPTL!S127 -> 0 | T127: =+[4]SPTL!T127 -> 0 | U127: =+[4]SPTL!U127 -> 0
B128: WDA | J128: =+[4]SPTL!J128 -> 0.3 | K128: =+[9]SPTL!K128 -> 0.1 | L128: =+[9]SPTL!L128 -> 0 | M128: =+[4]SPTL!M128 -> 0 | N128: =+[4]SPTL!N128 -> 0 | O128: =+[4]SPTL!O128 -> 0 | P128: =+[4]SPTL!P128 -> 0 | Q128: =+[4]SPTL!Q128 -> 0 | R128: =+[4]SPTL!R128 -> 0 | S128: =+[4]SPTL!S128 -> 0 | T128: =+[4]SPTL!T128 -> 0 | U128: =+[4]SPTL!U128 -> 0
B129: Deferred revenue expenditure
B130: Opening balance b/fwd | J130: =+[4]SPTL!J130 -> 0 | K130: =+[9]SPTL!K130 -> 0 | L130: =+[9]SPTL!L130 -> 0 | M130: =+[4]SPTL!M130 -> 0 | N130: =+[4]SPTL!N130 -> 0 | O130: =+[4]SPTL!O130 -> 0 | P130: =+[4]SPTL!P130 -> 0 | Q130: =+[4]SPTL!Q130 -> 0 | R130: =+[4]SPTL!R130 -> 0 | S130: =+[4]SPTL!S130 -> 0 | T130: =+[4]SPTL!T130 -> 0 | U130: =+[4]SPTL!U130 -> 0
B131: Revisions | J131: =+[4]SPTL!J131 -> 0 | K131: =+[9]SPTL!K131 -> 0 | L131: =+[9]SPTL!L131 -> 0 | M131: =+[4]SPTL!M131 -> 0 | N131: =+[4]SPTL!N131 -> 0 | O131: =+[4]SPTL!O131 -> 0 | P131: =+[4]SPTL!P131 -> 0 | Q131: =+[4]SPTL!Q131 -> 0 | R131: =+[4]SPTL!R131 -> 0 | S131: =+[4]SPTL!S131 -> 0 | T131: =+[4]SPTL!T131 -> 0 | U131: =+[4]SPTL!U131 -> 0
B132: Additions in the year | J132: =+[4]SPTL!J132 -> 0 | K132: =+[9]SPTL!K132 -> 0 | L132: =+[9]SPTL!L132 -> 0 | M132: =+[4]SPTL!M132 -> 0 | N132: =+[4]SPTL!N132 -> 0 | O132: =+[4]SPTL!O132 -> 0 | P132: =+[4]SPTL!P132 -> 0 | Q132: =+[4]SPTL!Q132 -> 0 | R132: =+[4]SPTL!R132 -> 0 | S132: =+[4]SPTL!S132 -> 0 | T132: =+[4]SPTL!T132 -> 0 | U132: =+[4]SPTL!U132 -> 0
B133: Disposals in the year | J133: =+[4]SPTL!J133 -> 0 | K133: =+[9]SPTL!K133 -> 0 | L133: =+[9]SPTL!L133 -> 0 | M133: =+[4]SPTL!M133 -> 0 | N133: =+[4]SPTL!N133 -> 0 | O133: =+[4]SPTL!O133 -> 0 | P133: =+[4]SPTL!P133 -> 0 | Q133: =+[4]SPTL!Q133 -> 0 | R133: =+[4]SPTL!R133 -> 0 | S133: =+[4]SPTL!S133 -> 0 | T133: =+[4]SPTL!T133 -> 0 | U133: =+[4]SPTL!U133 -> 0
B134: WDA | J134: =+[4]SPTL!J134 -> 0 | K134: =+[9]SPTL!K134 -> 0 | L134: =+[9]SPTL!L134 -> 0 | M134: =+[4]SPTL!M134 -> 0 | N134: =+[4]SPTL!N134 -> 0 | O134: =+[4]SPTL!O134 -> 0 | P134: =+[4]SPTL!P134 -> 0 | Q134: =+[4]SPTL!Q134 -> 0 | R134: =+[4]SPTL!R134 -> 0 | S134: =+[4]SPTL!S134 -> 0 | T134: =+[4]SPTL!T134 -> 0 | U134: =+[4]SPTL!U134 -> 0
A137: RAV opening balances
B138: 09/10 opening balance on pre-vesting asset costs | F138: =+[4]SPTL!F138 -> 1004.883146
B139: 09/10 opening balance on post-vesting asset costs | F139: =+[4]SPTL!F139 -> 429.8013811
B140: 09/10 opening balance on pre-vesting cumulative depreciation | F140: =+[4]SPTL!F140 -> 703.4182023
B141: 09/10 opening balance on post-vesting cumulative depreciation | F141: =+[4]SPTL!F141 -> 65.72865892
B143: Interconnector Asset balance
A217: Excluded services (£m, 09/10 real) | H217: =+[4]SPTL!H217 -> 1.5 | I217: =+[4]SPTL!I217 -> 2.1 | J217: =+[4]SPTL!J217 -> 2.5 | K217: =+[9]SPTL!K217 -> 2.9 | L217: =+[9]SPTL!L217 -> 4.7 | M217: =+[4]SPTL!M217 -> 4.950365901 | N217: =+[4]SPTL!N217 -> 5.367557756 | O217: =+[4]SPTL!O217 -> 5.866025552 | P217: =+[4]SPTL!P217 -> 6.207046221 | Q217: =+[4]SPTL!Q217 -> 6.498535594 | R217: =+[4]SPTL!R217 -> 6.788425335 | S217: =+[4]SPTL!S217 -> 7.19672046 | T217: =+[4]SPTL!T217 -> 7.437995851 | U217: =+[4]SPTL!U217 -> 7.615448702 | V217: =+[4]SPTL!V217 -> 7.615448702 | W217: =+[4]SPTL!W217 -> 7.615448702 | X217: =+[4]SPTL!X217 -> 7.615448702 | Y217: =+[4]SPTL!Y217 -> 7.615448702 | Z217: =+[4]SPTL!Z217 -> 7.615448702 | AA217: =+[4]SPTL!AA217 -> 7.615448702 | AB217: =+[4]SPTL!AB217 -> 7.615448702 | AC217: =+[4]SPTL!AC217 -> 7.615448702 | AD217: =+[4]SPTL!AD217 -> 7.615448702 | AE217: =+[4]SPTL!AE217 -> 7.615448702 | AF217: =+[4]SPTL!AF217 -> 7.615448702 | AG217: =+[4]SPTL!AG217 -> 7.615448702 | AH217: =+[4]SPTL!AH217 -> 7.615448702 | AI217: =+[4]SPTL!AI217 -> 7.615448702 | AJ217: =+[4]SPTL!AJ217 -> 7.615448702 | AK217: =+[4]SPTL!AK217 -> 7.615448702 | AL217: =+[4]SPTL!AL217 -> 7.615448702 | AM217: =+[4]SPTL!AM217 -> 7.615448702 | AN217: =+[4]SPTL!AN217 -> 7.615448702 | AO217: =+[4]SPTL!AO217 -> 7.615448702 | AP217: =+[4]SPTL!AP217 -> 7.615448702 | AQ217: =+[4]SPTL!AQ217 -> 7.615448702 | AR217: =+[4]SPTL!AR217 -> 7.615448702 | AS217: =+[4]SPTL!AS217 -> 7.615448702 | AT217: =+[4]SPTL!AT217 -> 7.615448702 | AU217: =+[4]SPTL!AU217 -> 7.615448702 | AV217: =+[4]SPTL!AV217 -> 7.615448702 | AW217: =+[4]SPTL!AW217 -> 7.615448702 | AX217: =+[4]SPTL!AX217 -> 7.615448702
A218: De Minimis | H218: =+[4]SPTL!H218 -> 0.7 | I218: =+[4]SPTL!I218 -> 0.5 | J218: =+[4]SPTL!J218 -> 1 | K218: =+[9]SPTL!K218 -> 2 | L218: =+[9]SPTL!L218 -> 1 | M218: =+[4]SPTL!M218 -> 0.9365273775 | N218: =+[4]SPTL!N218 -> 0.9365273775 | O218: =+[4]SPTL!O218 -> 0.9365273775 | P218: =+[4]SPTL!P218 -> 0.9365273775 | Q218: =+[4]SPTL!Q218 -> 0.9365273775 | R218: =+[4]SPTL!R218 -> 0.9365273775 | S218: =+[4]SPTL!S218 -> 0.9365273775 | T218: =+[4]SPTL!T218 -> 0.9365273775 | U218: =+[4]SPTL!U218 -> 0.9365273775 | V218: =+[4]SPTL!V218 -> 0.9365273775 | W218: =+[4]SPTL!W218 -> 0.9365273775 | X218: =+[4]SPTL!X218 -> 0.9365273775 | Y218: =+[4]SPTL!Y218 -> 0.9365273775 | Z218: =+[4]SPTL!Z218 -> 0.9365273775 | AA218: =+[4]SPTL!AA218 -> 0.9365273775 | AB218: =+[4]SPTL!AB218 -> 0.9365273775 | AC218: =+[4]SPTL!AC218 -> 0.9365273775 | AD218: =+[4]SPTL!AD218 -> 0.9365273775 | AE218: =+[4]SPTL!AE218 -> 0.9365273775 | AF218: =+[4]SPTL!AF218 -> 0.9365273775 | AG218: =+[4]SPTL!AG218 -> 0.9365273775 | AH218: =+[4]SPTL!AH218 -> 0.9365273775 | AI218: =+[4]SPTL!AI218 -> 0.9365273775 | AJ218: =+[4]SPTL!AJ218 -> 0.9365273775 | AK218: =+[4]SPTL!AK218 -> 0.9365273775 | AL218: =+[4]SPTL!AL218 -> 0.9365273775 | AM218: =+[4]SPTL!AM218 -> 0.9365273775 | AN218: =+[4]SPTL!AN218 -> 0.9365273775 | AO218: =+[4]SPTL!AO218 -> 0.9365273775 | AP218: =+[4]SPTL!AP218 -> 0.9365273775 | AQ218: =+[4]SPTL!AQ218 -> 0.9365273775 | AR218: =+[4]SPTL!AR218 -> 0.9365273775 | AS218: =+[4]SPTL!AS218 -> 0.9365273775 | AT218: =+[4]SPTL!AT218 -> 0.9365273775 | AU218: =+[4]SPTL!AU218 -> 0.9365273775 | AV218: =+[4]SPTL!AV218 -> 0.9365273775 | AW218: =+[4]SPTL!AW218 -> 0.9365273775 | AX218: =+[4]SPTL!AX218 -> 0.9365273775
A219: Consented | H219: =+[4]SPTL!H219 -> 4.5 | I219: =+[4]SPTL!I219 -> 0.5 | J219: =+[4]SPTL!J219 -> 0 | K219: =+[9]SPTL!K219 -> 0 | L219: =+[9]SPTL!L219 -> 0 | M219: =+[4]SPTL!M219 -> 0 | N219: =+[4]SPTL!N219 -> 0 | O219: =+[4]SPTL!O219 -> 0 | P219: =+[4]SPTL!P219 -> 0 | Q219: =+[4]SPTL!Q219 -> 0 | R219: =+[4]SPTL!R219 -> 0 | S219: =+[4]SPTL!S219 -> 0 | T219: =+[4]SPTL!T219 -> 0 | U219: =+[4]SPTL!U219 -> 0 | V219: =+[4]SPTL!V219 -> 0 | W219: =+[4]SPTL!W219 -> 0 | X219: =+[4]SPTL!X219 -> 0 | Y219: =+[4]SPTL!Y219 -> 0 | Z219: =+[4]SPTL!Z219 -> 0 | AA219: =+[4]SPTL!AA219 -> 0 | AB219: =+[4]SPTL!AB219 -> 0 | AC219: =+[4]SPTL!AC219 -> 0 | AD219: =+[4]SPTL!AD219 -> 0 | AE219: =+[4]SPTL!AE219 -> 0 | AF219: =+[4]SPTL!AF219 -> 0 | AG219: =+[4]SPTL!AG219 -> 0 | AH219: =+[4]SPTL!AH219 -> 0 | AI219: =+[4]SPTL!AI219 -> 0 | AJ219: =+[4]SPTL!AJ219 -> 0 | AK219: =+[4]SPTL!AK219 -> 0 | AL219: =+[4]SPTL!AL219 -> 0 | AM219: =+[4]SPTL!AM219 -> 0 | AN219: =+[4]SPTL!AN219 -> 0 | AO219: =+[4]SPTL!AO219 -> 0 | AP219: =+[4]SPTL!AP219 -> 0 | AQ219: =+[4]SPTL!AQ219 -> 0 | AR219: =+[4]SPTL!AR219 -> 0 | AS219: =+[4]SPTL!AS219 -> 0 | AT219: =+[4]SPTL!AT219 -> 0 | AU219: =+[4]SPTL!AU219 -> 0 | AV219: =+[4]SPTL!AV219 -> 0 | AW219: =+[4]SPTL!AW219 -> 0 | AX219: =+[4]SPTL!AX219 -> 0
A221: Inputs as Per TO (2005-2009 in Nominal Prices, 2010-2013 in 2009/10 Prices)
E222: 2005 | F222: 2006 | G222: 2007 | H222: 2008 | I222: 2009 | J222: 2010 | K222: 2011 | L222: 2012 | M222: 2013 | N222: 2014 | O222: 2015 | P222: 2016 | Q222: 2017 | R222: 2018 | S222: 2019 | T222: 2020 | U222: 2021 | Y222: 2014 | Z222: 2015 | AA222: 2016 | AB222: 2017 | AC222: 2018 | AD222: 2019 | AE222: 2020 | AF222: 2021 | AH222: 2014 | AI222: 2015 | AJ222: 2016 | AK222: 2017 | AL222: 2018 | AM222: 2019 | AN222: 2020 | AO222: 2021 | AZ222: 2014 | BA222: 2015 | BB222: 2016 | BC222: 2017 | BD222: 2018 | BE222: 2019 | BF222: 2020 | BG222: 2021
M223: best | P223: sources | R223: 2012_SPTL_Fasttrack FinModel v1 180112.xlsm | Y223: best less base | AB223: best and base files froom C&O 20120117 as amended following discussion with SPTL to avoid double counting | AH223: best less base | AK223: best and base files froom C&O 20120117 as amended following discussion with SPTL to avoid double counting | BB223: sources | BD223: 2012_SPTL_Fasttrack FinModel v1 180112.xlsm
A224: Total costs | V224: Total costs
A225: Load related investment | V225: Load related investment
A226: Generation connection - sole-use | E226: =+[4]SPTL!E226 -> 0 | F226: =+[4]SPTL!F226 -> 0 | G226: =+[4]SPTL!G226 -> 0 | H226: =+[4]SPTL!H226 -> 0 | I226: =+[4]SPTL!I226 -> 0 | J226: =+[4]SPTL!J226 -> 0 | K226: =+[9]SPTL!K226 -> 21.57667 | L226: =+[9]SPTL!L226 -> 11.00174522 | M226: =+[4]SPTL!M226 -> 6.803683802 | N226: =AZ226-IF(UserInterface!$B$138=1,SPTL!Y226,0) -> 11.00276313 | O226: =BA226-IF(UserInterface!$B$138=1,SPTL!Z226,0) -> 12.90460402 | P226: =BB226-IF(UserInterface!$B$138=1,SPTL!AA226,0) -> 12.57286369 | Q226: =BC226-IF(UserInterface!$B$138=1,SPTL!AB226,0) -> 11.26886445 | R226: =BD226-IF(UserInterface!$B$138=1,SPTL!AC226,0) -> 13.84911233 | S226: =BE226-IF(UserInterface!$B$138=1,SPTL!AD226,0) -> 5.934698486 | T226: =BF226-IF(UserInterface!$B$138=1,SPTL!AE226,0) -> 5.266183406 | U226: =BG226-IF(UserInterface!$B$138=1,SPTL!AF226,0) -> 2.3371371 | V226: Local Enabling (Entry - Sole Use) | Y226: =AH226/1.05 -> 0 | Z226: =AI226/1.05 -> 0 | AA226: 0 | AB226: 0 | AC226: 0 | AD226: 0 | AE226: 0 | AF226: 0 | AH226: 0 | AI226: 0 | AJ226: 0 | AK226: 0 | AL226: 0 | AM226: 0 | AN226: 0 | AO226: 0 | AZ226: 11.00276313 | BA226: 12.90460402 | BB226: 12.57286369 | BC226: 11.26886445 | BD226: 13.84911233 | BE226: 5.934698486 | BF226: 5.266183406 | BG226: 2.3371371
A227: Demand connection - sole-use | E227: =+[4]SPTL!E227 -> 0 | F227: =+[4]SPTL!F227 -> 0 | G227: =+[4]SPTL!G227 -> 0 | H227: =+[4]SPTL!H227 -> 0 | I227: =+[4]SPTL!I227 -> 0 | J227: =+[4]SPTL!J227 -> 0 | K227: =+[9]SPTL!K227 -> 3.200777536 | L227: =+[9]SPTL!L227 -> -0.02059297387 | M227: =+[4]SPTL!M227 -> 0 | N227: =AZ227-IF(UserInterface!$B$138=1,SPTL!Y227,0) -> 0 | O227: =BA227-IF(UserInterface!$B$138=1,SPTL!Z227,0) -> 1.277527025 | P227: =BB227-IF(UserInterface!$B$138=1,SPTL!AA227,0) -> 4.813353771 | Q227: =BC227-IF(UserInterface!$B$138=1,SPTL!AB227,0) -> 3.288204539 | R227: =BD227-IF(UserInterface!$B$138=1,SPTL!AC227,0) -> 1.846229615 | S227: =BE227-IF(UserInterface!$B$138=1,SPTL!AD227,0) -> 1.837377178 | T227: =BF227-IF(UserInterface!$B$138=1,SPTL!AE227,0) -> 1.850760598 | U227: =BG227-IF(UserInterface!$B$138=1,SPTL!AF227,0) -> 1.53166271 | V227: Local Enabling (Exit - Sole Use) | Y227: =AH227/1.05 -> 0 | Z227: 0 | AA227: 0 | AB227: 0 | AC227: 0 | AD227: 0 | AE227: 0 | AF227: 0 | AH227: 0 | AI227: 0 | AJ227: 0 | AK227: 0 | AL227: 0 | AM227: 0 | AN227: 0 | AO227: 0 | AZ227: 0 | BA227: 1.277527025 | BB227: 4.813353771 | BC227: 3.288204539 | BD227: 1.846229615 | BE227: 1.837377178 | BF227: 1.850760598 | BG227: 1.53166271
A228: Infrastructure - local enabling (entry triggered) | E228: =+[4]SPTL!E228 -> 0 | F228: =+[4]SPTL!F228 -> 0 | G228: =+[4]SPTL!G228 -> 0 | H228: =+[4]SPTL!H228 -> 0 | I228: =+[4]SPTL!I228 -> 0 | J228: =+[4]SPTL!J228 -> 0 | K228: =+[9]SPTL!K228 -> 11.86955003 | L228: =+[9]SPTL!L228 -> 23.19076245 | M228: =+[4]SPTL!M228 -> 35.42867286 | N228: =AZ228-IF(UserInterface!$B$138=1,SPTL!Y228,0) -> 63.89274403 | O228: =BA228-IF(UserInterface!$B$138=1,SPTL!Z228,0) -> 62.40421153 | P228: =BB228-IF(UserInterface!$B$138=1,SPTL!AA228,0) -> 32.71680946 | Q228: =BC228-IF(UserInterface!$B$138=1,SPTL!AB228,0) -> 2.941879611 | R228: =BD228-IF(UserInterface!$B$138=1,SPTL!AC228,0) -> 4.568761211 | S228: =BE228-IF(UserInterface!$B$138=1,SPTL!AD228,0) -> 5.451606169 | T228: =BF228-IF(UserInterface!$B$138=1,SPTL!AE228,0) -> 5.913724452 | U228: =BG228-IF(UserInterface!$B$138=1,SPTL!AF228,0) -> 2.796635913 | V228: Local Enabling (Entry) | Y228: 0 | Z228: 0 | AA228: 0 | AB228: 0 | AC228: 0 | AD228: 0 | AE228: 0 | AF228: 0 | AH228: 0 | AI228: 0 | AJ228: 0 | AK228: 0 | AL228: 0 | AM228: 0 | AN228: 0 | AO228: 0 | AZ228: 63.89274403 | BA228: 62.40421153 | BB228: 32.71680946 | BC228: 2.941879611 | BD228: 4.568761211 | BE228: 5.451606169 | BF228: 5.913724452 | BG228: 2.796635913
A229: Infrastructure - local enabling (exit triggered) | E229: =+[4]SPTL!E229 -> 0 | F229: =+[4]SPTL!F229 -> 0 | G229: =+[4]SPTL!G229 -> 0 | H229: =+[4]SPTL!H229 -> 0 | I229: =+[4]SPTL!I229 -> 0 | J229: =+[4]SPTL!J229 -> 0 | K229: =+[9]SPTL!K229 -> 0 | L229: =+[9]SPTL!L229 -> 0 | M229: =+[4]SPTL!M229 -> 6.161801371 | N229: =AZ229-IF(UserInterface!$B$138=1,SPTL!Y229,0) -> 6.405908935 | O229: =BA229-IF(UserInterface!$B$138=1,SPTL!Z229,0) -> 10.60473989 | P229: =BB229-IF(UserInterface!$B$138=1,SPTL!AA229,0) -> 9.053798016 | Q229: =BC229-IF(UserInterface!$B$138=1,SPTL!AB229,0) -> 4.197097917 | R229: =BD229-IF(UserInterface!$B$138=1,SPTL!AC229,0) -> 0.1260375316 | S229: =BE229-IF(UserInterface!$B$138=1,SPTL!AD229,0) -> 3.033709233 | T229: =BF229-IF(UserInterface!$B$138=1,SPTL!AE229,0) -> 10.88264717 | U229: =BG229-IF(UserInterface!$B$138=1,SPTL!AF229,0) -> 9.442250118 | V229: Local Enabling (Exit) | Y229: 0 | Z229: 0 | AA229: 0 | AB229: 0 | AC229: 0 | AD229: 0 | AE229: 0 | AF229: 0 | AH229: 0 | AI229: 0 | AJ229: 0 | AK229: 0 | AL229: 0 | AM229: 0 | AN229: 0 | AO229: 0 | AZ229: 6.405908935 | BA229: 10.60473989 | BB229: 9.053798016 | BC229: 4.197097917 | BD229: 0.1260375316 | BE229: 3.033709233 | BF229: 10.88264717 | BG229: 9.442250118
A230: Infrastructure - wider works - reactive schemes (excl TIRG /TSS) | E230: =+[4]SPTL!E230 -> 0 | F230: =+[4]SPTL!F230 -> 0 | G230: =+[4]SPTL!G230 -> 0 | H230: =+[4]SPTL!H230 -> 0 | I230: =+[4]SPTL!I230 -> 0 | J230: =+[4]SPTL!J230 -> 0 | K230: =+[9]SPTL!K230 -> 12.25059498 | L230: =+[9]SPTL!L230 -> 14.19173695 | M230: =+[4]SPTL!M230 -> 0 | N230: =AZ230-IF(UserInterface!$B$138=1,SPTL!Y230,0) -> 0 | O230: =BA230-IF(UserInterface!$B$138=1,SPTL!Z230,0) -> 0 | P230: =BB230-IF(UserInterface!$B$138=1,SPTL!AA230,0) -> 0 | Q230: =BC230-IF(UserInterface!$B$138=1,SPTL!AB230,0) -> 0 | R230: =BD230-IF(UserInterface!$B$138=1,SPTL!AC230,0) -> 0 | S230: =BE230-IF(UserInterface!$B$138=1,SPTL!AD230,0) -> 0 | T230: =BF230-IF(UserInterface!$B$138=1,SPTL!AE230,0) -> 0 | U230: =BG230-IF(UserInterface!$B$138=1,SPTL!AF230,0) -> 0 | V230: Wider Works (Entry) | Y230: 0 | Z230: 0 | AA230: 0 | AB230: 0 | AC230: 0 | AD230: 0 | AE230: 0 | AF230: 0 | AH230: 0 | AI230: 0 | AJ230: 0 | AK230: 0 | AL230: 0 | AM230: 0 | AN230: 0 | AO230: 0 | AZ230: 0 | BA230: 0 | BB230: 0 | BC230: 0 | BD230: 0 | BE230: 0 | BF230: 0 | BG230: 0
A231: Infrastructure - wider works - non reactive schemes (excl TIRG /TSS) | E231: =+[4]SPTL!E231 -> 0 | F231: =+[4]SPTL!F231 -> 0 | G231: =+[4]SPTL!G231 -> 0 | H231: =+[4]SPTL!H231 -> 0 | I231: =+[4]SPTL!I231 -> 0 | J231: =+[4]SPTL!J231 -> 0 | K231: =+[9]SPTL!K231 -> 1.543232026 | L231: =+[9]SPTL!L231 -> 12.38497794 | M231: =+[4]SPTL!M231 -> 0 | N231: =AZ231-IF(UserInterface!$B$138=1,SPTL!Y231,0) -> 166.066597 | O231: =BA231-IF(UserInterface!$B$138=1,SPTL!Z231,0) -> 197.5200408 | P231: =BB231-IF(UserInterface!$B$138=1,SPTL!AA231,0) -> 160.1921381 | Q231: =BC231-IF(UserInterface!$B$138=1,SPTL!AB231,0) -> 116.8248861 | R231: =BD231-IF(UserInterface!$B$138=1,SPTL!AC231,0) -> 99.29897943 | S231: =BE231-IF(UserInterface!$B$138=1,SPTL!AD231,0) -> 92.92797628 | T231: =BF231-IF(UserInterface!$B$138=1,SPTL!AE231,0) -> 70.99063915 | U231: =BG231-IF(UserInterface!$B$138=1,SPTL!AF231,0) -> 1.72188719 | V231: Wider Works (Exit) | Y231: 0 | Z231: 0 | AA231: 0 | AB231: 0 | AC231: 0 | AD231: 0 | AE231: 0 | AF231: 0 | AH231: 0 | AI231: 0 | AJ231: 0 | AK231: 0 | AL231: 0 | AM231: 0 | AN231: 0 | AO231: 0 | AZ231: 166.066597 | BA231: 197.5200408 | BB231: 160.1921381 | BC231: 116.8248861 | BD231: 99.29897943 | BE231: 92.92797628 | BF231: 70.99063915 | BG231: 1.72188719
A232: Infrastructure - TSS | E232: =+[4]SPTL!E232 -> 0 | F232: =+[4]SPTL!F232 -> 0 | G232: =+[4]SPTL!G232 -> 0 | H232: =+[4]SPTL!H232 -> 0 | I232: =+[4]SPTL!I232 -> 0 | J232: =+[4]SPTL!J232 -> 0 | K232: =+[9]SPTL!K232 -> 0.2953098322 | L232: =+[9]SPTL!L232 -> 0.4301049657 | M232: =+[4]SPTL!M232 -> 0 | N232: =AZ232-IF(UserInterface!$B$138=1,SPTL!Y232,0) -> -4.71647256 | O232: =BA232-IF(UserInterface!$B$138=1,SPTL!Z232,0) -> -24.14739832 | P232: =BB232-IF(UserInterface!$B$138=1,SPTL!AA232,0) -> -57.80952381 | Q232: =BC232-IF(UserInterface!$B$138=1,SPTL!AB232,0) -> -94.47619048 | R232: =BD232-IF(UserInterface!$B$138=1,SPTL!AC232,0) -> -97.33333333 | S232: =BE232-IF(UserInterface!$B$138=1,SPTL!AD232,0) -> -86.47619048 | T232: =BF232-IF(UserInterface!$B$138=1,SPTL!AE232,0) -> -65.33333333 | U232: =BG232-IF(UserInterface!$B$138=1,SPTL!AF232,0) -> 0 | V232: Wider Works (General) | Y232: 4.857142857 | Z232: 24.57142857 | AA232: 57.80952381 | AB232: 94.47619048 | AC232: 97.33333333 | AD232: 86.47619048 | AE232: 65.33333333 | AF232: 0 | AH232: 5.1 | AI232: 25.8 | AJ232: 60.7 | AK232: 99.2 | AL232: 102.2 | AM232: 90.8 | AN232: 68.6 | AO232: 0 | AZ232: 0.1406702976 | BA232: 0.4240302465 | BB232: 0 | BC232: 0 | BD232: 0 | BE232: 0 | BF232: 0 | BG232: 0
E233: =+[4]SPTL!E233 -> 0 | F233: =+[4]SPTL!F233 -> 0 | G233: =+[4]SPTL!G233 -> 0 | H233: =+[4]SPTL!H233 -> 0 | I233: =+[4]SPTL!I233 -> 0 | J233: =+[4]SPTL!J233 -> 0 | K233: =+[9]SPTL!K233 -> 0 | L233: =+[9]SPTL!L233 -> 0 | N233: =AZ233-IF(UserInterface!$B$138=1,SPTL!Y233,0) -> 0 | O233: =BA233-IF(UserInterface!$B$138=1,SPTL!Z233,0) -> 0 | P233: =BB233-IF(UserInterface!$B$138=1,SPTL!AA233,0) -> 0 | Q233: =BC233-IF(UserInterface!$B$138=1,SPTL!AB233,0) -> 0 | R233: =BD233-IF(UserInterface!$B$138=1,SPTL!AC233,0) -> 0 | S233: =BE233-IF(UserInterface!$B$138=1,SPTL!AD233,0) -> 0 | T233: =BF233-IF(UserInterface!$B$138=1,SPTL!AE233,0) -> 0 | U233: =BG233-IF(UserInterface!$B$138=1,SPTL!AF233,0) -> 0 | V233: Infrastructure - TSS | Y233: 0 | Z233: 0 | AA233: 0 | AB233: 0 | AC233: 0 | AD233: 0 | AE233: 0 | AF233: 0 | AH233: 0 | AI233: 0 | AJ233: 0 | AK233: 0 | AL233: 0 | AM233: 0 | AN233: 0 | AO233: 0 | AZ233: 0 | BA233: 0 | BB233: 0 | BC233: 0 | BD233: 0 | BE233: 0 | BF233: 0 | BG233: 0
A234: Total Load Related | E234: =+[4]SPTL!E234 -> 0 | F234: =+[4]SPTL!F234 -> 0 | G234: =+[4]SPTL!G234 -> 0 | H234: =+[4]SPTL!H234 -> 0 | I234: =+[4]SPTL!I234 -> 0 | J234: =+[4]SPTL!J234 -> 0 | K234: =+[9]SPTL!K234 -> 50.7361344 | L234: =+[9]SPTL!L234 -> 61.17873455 | M234: =+[4]SPTL!M234 -> 48.39415803 | N234: =AZ234-IF(UserInterface!$B$138=1,SPTL!Y234,0) -> 242.6515406 | O234: =BA234-IF(UserInterface!$B$138=1,SPTL!Z234,0) -> 260.5637249 | P234: =BB234-IF(UserInterface!$B$138=1,SPTL!AA234,0) -> 161.5394392 | Q234: =BC234-IF(UserInterface!$B$138=1,SPTL!AB234,0) -> 44.04474212 | R234: =BD234-IF(UserInterface!$B$138=1,SPTL!AC234,0) -> 22.35578678 | S234: =BE234-IF(UserInterface!$B$138=1,SPTL!AD234,0) -> 22.70917687 | T234: =BF234-IF(UserInterface!$B$138=1,SPTL!AE234,0) -> 29.57062144 | U234: =BG234-IF(UserInterface!$B$138=1,SPTL!AF234,0) -> 17.82957303 | V234: Total load related | Y234: =SUM(Y226:Y233) -> 4.857142857 | Z234: =SUM(Z226:Z233) -> 24.57142857 | AA234: 57.80952381 | AB234: 94.47619048 | AC234: 97.33333333 | AD234: 86.47619048 | AE234: 65.33333333 | AF234: 0 | AH234: =SUM(AH226:AH233) -> 5.1 | AI234: =SUM(AI226:AI233) -> 25.8 | AJ234: 60.7 | AK234: 99.2 | AL234: 102.2 | AM234: 90.8 | AN234: 68.6 | AO234: =SUM(AO226:AO233) -> 0 | AZ234: 247.5086834 | BA234: 285.1351535 | BB234: 219.348963 | BC234: 138.5209326 | BD234: 119.6891201 | BE234: 109.1853673 | BF234: 94.90395478 | BG234: 17.82957303
E235: =+[4]SPTL!E235 -> 0 | F235: =+[4]SPTL!F235 -> 0 | G235: =+[4]SPTL!G235 -> 0 | H235: =+[4]SPTL!H235 -> 0 | I235: =+[4]SPTL!I235 -> 0 | J235: =+[4]SPTL!J235 -> 0 | K235: =+[9]SPTL!K235 -> 0 | L235: =+[9]SPTL!L235 -> 0 | M235: =+[4]SPTL!M235 -> 0 | N235: =AZ235-IF(UserInterface!$B$138=1,SPTL!Y235,0) -> 0 | O235: =BA235-IF(UserInterface!$B$138=1,SPTL!Z235,0) -> 0 | P235: =BB235-IF(UserInterface!$B$138=1,SPTL!AA235,0) -> 0 | Q235: =BC235-IF(UserInterface!$B$138=1,SPTL!AB235,0) -> 0 | R235: =BD235-IF(UserInterface!$B$138=1,SPTL!AC235,0) -> 0 | S235: =BE235-IF(UserInterface!$B$138=1,SPTL!AD235,0) -> 0 | T235: =BF235-IF(UserInterface!$B$138=1,SPTL!AE235,0) -> 0 | U235: =BG235-IF(UserInterface!$B$138=1,SPTL!AF235,0) -> 0 | Y235: 0 | Z235: 0 | AA235: 0 | AB235: 0 | AC235: 0 | AD235: 0 | AE235: 0 | AF235: 0 | AH235: 0 | AI235: 0 | AJ235: 0 | AK235: 0 | AL235: 0 | AM235: 0 | AN235: 0 | AO235: 0 | AZ235: 0 | BA235: 0 | BB235: 0 | BC235: 0 | BD235: 0 | BE235: 0 | BF235: 0 | BG235: 0
A236: NON-LOAD RELATED EXPENDITURE | E236: =+[4]SPTL!E236 -> 0 | F236: =+[4]SPTL!F236 -> 0 | G236: =+[4]SPTL!G236 -> 0 | H236: =+[4]SPTL!H236 -> 0 | I236: =+[4]SPTL!I236 -> 0 | J236: =+[4]SPTL!J236 -> 0 | K236: =+[9]SPTL!K236 -> 0 | L236: =+[9]SPTL!L236 -> 0 | M236: =+[4]SPTL!M236 -> 0 | N236: =AZ236-IF(UserInterface!$B$138=1,SPTL!Y236,0) -> 0 | O236: =BA236-IF(UserInterface!$B$138=1,SPTL!Z236,0) -> 0 | P236: =BB236-IF(UserInterface!$B$138=1,SPTL!AA236,0) -> 0 | Q236: =BC236-IF(UserInterface!$B$138=1,SPTL!AB236,0) -> 0 | R236: =BD236-IF(UserInterface!$B$138=1,SPTL!AC236,0) -> 0 | S236: =BE236-IF(UserInterface!$B$138=1,SPTL!AD236,0) -> 0 | T236: =BF236-IF(UserInterface!$B$138=1,SPTL!AE236,0) -> 0 | U236: =BG236-IF(UserInterface!$B$138=1,SPTL!AF236,0) -> 0 | V236: NON-LOAD RELATED EXPENDITURE | Y236: 0 | Z236: 0 | AA236: 0 | AB236: 0 | AC236: 0 | AD236: 0 | AE236: 0 | AF236: 0 | AH236: 0 | AI236: 0 | AJ236: 0 | AK236: 0 | AL236: 0 | AM236: 0 | AN236: 0 | AO236: 0 | AZ236: 0 | BA236: 0 | BB236: 0 | BC236: 0 | BD236: 0 | BE236: 0 | BF236: 0 | BG236: 0
A237: Assets - Replacement and Refurbishment | E237: =+[4]SPTL!E237 -> 0 | F237: =+[4]SPTL!F237 -> 0 | G237: =+[4]SPTL!G237 -> 0 | H237: =+[4]SPTL!H237 -> 0 | I237: =+[4]SPTL!I237 -> 0 | J237: =+[4]SPTL!J237 -> 0 | K237: =+[9]SPTL!K237 -> 0 | L237: =+[9]SPTL!L237 -> 0 | M237: =+[4]SPTL!M237 -> 0 | N237: =AZ237-IF(UserInterface!$B$138=1,SPTL!Y237,0) -> 0 | O237: =BA237-IF(UserInterface!$B$138=1,SPTL!Z237,0) -> 0 | P237: =BB237-IF(UserInterface!$B$138=1,SPTL!AA237,0) -> 0 | Q237: =BC237-IF(UserInterface!$B$138=1,SPTL!AB237,0) -> 0 | R237: =BD237-IF(UserInterface!$B$138=1,SPTL!AC237,0) -> 0 | S237: =BE237-IF(UserInterface!$B$138=1,SPTL!AD237,0) -> 0 | T237: =BF237-IF(UserInterface!$B$138=1,SPTL!AE237,0) -> 0 | U237: =BG237-IF(UserInterface!$B$138=1,SPTL!AF237,0) -> 0 | V237: Assets - replacement and refurbishment | Y237: 0 | Z237: 0 | AA237: 0 | AB237: 0 | AC237: 0 | AD237: 0 | AE237: 0 | AF237: 0 | AH237: 0 | AI237: 0 | AJ237: 0 | AK237: 0 | AL237: 0 | AM237: 0 | AN237: 0 | AO237: 0 | AZ237: 0 | BA237: 0 | BB237: 0 | BC237: 0 | BD237: 0 | BE237: 0 | BF237: 0 | BG237: 0
A238: Transformers | E238: =+[4]SPTL!E238 -> 0 | F238: =+[4]SPTL!F238 -> 0 | G238: =+[4]SPTL!G238 -> 0 | H238: =+[4]SPTL!H238 -> 0 | I238: =+[4]SPTL!I238 -> 0 | J238: =+[4]SPTL!J238 -> 0 | K238: =+[9]SPTL!K238 -> 13.9557711 | L238: =+[9]SPTL!L238 -> 12.62798768 | M238: =+[4]SPTL!M238 -> 11.74799815 | N238: =AZ238-IF(UserInterface!$B$138=1,SPTL!Y238,0) -> 5.257908043 | O238: =BA238-IF(UserInterface!$B$138=1,SPTL!Z238,0) -> 5.731760162 | P238: =BB238-IF(UserInterface!$B$138=1,SPTL!AA238,0) -> 5.247351292 | Q238: =BC238-IF(UserInterface!$B$138=1,SPTL!AB238,0) -> 8.643434952 | R238: =BD238-IF(UserInterface!$B$138=1,SPTL!AC238,0) -> 7.124230934 | S238: =BE238-IF(UserInterface!$B$138=1,SPTL!AD238,0) -> 2.385628895 | T238: =BF238-IF(UserInterface!$B$138=1,SPTL!AE238,0) -> 7.543287813 | U238: =BG238-IF(UserInterface!$B$138=1,SPTL!AF238,0) -> 9.922718112 | V238: Transformers | Y238: 0 | Z238: 0 | AA238: 0 | AB238: 0 | AC238: 0 | AD238: 0 | AE238: 0 | AF238: 0 | AH238: 0 | AI238: 0 | AJ238: 0 | AK238: 0 | AL238: 0 | AM238: 0 | AN238: 0 | AO238: 0 | AZ238: 5.257908043 | BA238: 5.731760162 | BB238: 5.247351292 | BC238: 8.643434952 | BD238: 7.124230934 | BE238: 2.385628895 | BF238: 7.543287813 | BG238: 9.922718112
A239: Reactors | E239: =+[4]SPTL!E239 -> 0 | F239: =+[4]SPTL!F239 -> 0 | G239: =+[4]SPTL!G239 -> 0 | H239: =+[4]SPTL!H239 -> 0 | I239: =+[4]SPTL!I239 -> 0 | J239: =+[4]SPTL!J239 -> 0 | K239: =+[9]SPTL!K239 -> 0 | L239: =+[9]SPTL!L239 -> 0 | M239: =+[4]SPTL!M239 -> 0 | N239: =AZ239-IF(UserInterface!$B$138=1,SPTL!Y239,0) -> 0 | O239: =BA239-IF(UserInterface!$B$138=1,SPTL!Z239,0) -> 0 | P239: =BB239-IF(UserInterface!$B$138=1,SPTL!AA239,0) -> 0 | Q239: =BC239-IF(UserInterface!$B$138=1,SPTL!AB239,0) -> 0 | R239: =BD239-IF(UserInterface!$B$138=1,SPTL!AC239,0) -> 0 | S239: =BE239-IF(UserInterface!$B$138=1,SPTL!AD239,0) -> 0 | T239: =BF239-IF(UserInterface!$B$138=1,SPTL!AE239,0) -> 0 | U239: =BG239-IF(UserInterface!$B$138=1,SPTL!AF239,0) -> 0 | V239: Reactors | Y239: 0 | Z239: 0 | AA239: 0 | AB239: 0 | AC239: 0 | AD239: 0 | AE239: 0 | AF239: 0 | AH239: 0 | AI239: 0 | AJ239: 0 | AK239: 0 | AL239: 0 | AM239: 0 | AN239: 0 | AO239: 0 | AZ239: 0 | BA239: 0 | BB239: 0 | BC239: 0 | BD239: 0 | BE239: 0 | BF239: 0 | BG239: 0
A240: Switchgear | E240: =+[4]SPTL!E240 -> 0 | F240: =+[4]SPTL!F240 -> 0 | G240: =+[4]SPTL!G240 -> 0 | H240: =+[4]SPTL!H240 -> 0 | I240: =+[4]SPTL!I240 -> 0 | J240: =+[4]SPTL!J240 -> 0 | K240: =+[9]SPTL!K240 -> 10.44063149 | L240: =+[9]SPTL!L240 -> 20.48011317 | M240: =+[4]SPTL!M240 -> 12.99442124 | N240: =AZ240-IF(UserInterface!$B$138=1,SPTL!Y240,0) -> 13.81041539 | O240: =BA240-IF(UserInterface!$B$138=1,SPTL!Z240,0) -> 15.61618291 | P240: =BB240-IF(UserInterface!$B$138=1,SPTL!AA240,0) -> 15.3045597 | Q240: =BC240-IF(UserInterface!$B$138=1,SPTL!AB240,0) -> 12.90018205 | R240: =BD240-IF(UserInterface!$B$138=1,SPTL!AC240,0) -> 12.43865933 | S240: =BE240-IF(UserInterface!$B$138=1,SPTL!AD240,0) -> 17.85358628 | T240: =BF240-IF(UserInterface!$B$138=1,SPTL!AE240,0) -> 16.74255645 | U240: =BG240-IF(UserInterface!$B$138=1,SPTL!AF240,0) -> 8.086662321 | V240: Switchgear | Y240: 0 | Z240: 0 | AA240: 0 | AB240: 0 | AC240: 0 | AD240: 0 | AE240: 0 | AF240: 0 | AH240: 0 | AI240: 0 | AJ240: 0 | AK240: 0 | AL240: 0 | AM240: 0 | AN240: 0 | AO240: 0 | AZ240: 13.81041539 | BA240: 15.61618291 | BB240: 15.3045597 | BC240: 12.90018205 | BD240: 12.43865933 | BE240: 17.85358628 | BF240: 16.74255645 | BG240: 8.086662321
A241: Metering | E241: =+[4]SPTL!E241 -> 0 | F241: =+[4]SPTL!F241 -> 0 | G241: =+[4]SPTL!G241 -> 0 | H241: =+[4]SPTL!H241 -> 0 | I241: =+[4]SPTL!I241 -> 0 | J241: =+[4]SPTL!J241 -> 0 | K241: =+[9]SPTL!K241 -> 9.545175868 | L241: =+[9]SPTL!L241 -> 21.83507061 | M241: =+[4]SPTL!M241 -> 0 | N241: =AZ241-IF(UserInterface!$B$138=1,SPTL!Y241,0) -> 0.04328316848 | O241: =BA241-IF(UserInterface!$B$138=1,SPTL!Z241,0) -> 0.1712429841 | P241: =BB241-IF(UserInterface!$B$138=1,SPTL!AA241,0) -> 0.1650292721 | Q241: =BC241-IF(UserInterface!$B$138=1,SPTL!AB241,0) -> 0.1657918255 | R241: =BD241-IF(UserInterface!$B$138=1,SPTL!AC241,0) -> 0.1221769598 | S241: =BE241-IF(UserInterface!$B$138=1,SPTL!AD241,0) -> 0 | T241: =BF241-IF(UserInterface!$B$138=1,SPTL!AE241,0) -> 0 | U241: =BG241-IF(UserInterface!$B$138=1,SPTL!AF241,0) -> 0 | V241: Metering | Y241: 0 | Z241: 0 | AA241: 0 | AB241: 0 | AC241: 0 | AD241: 0 | AE241: 0 | AF241: 0 | AH241: 0 | AI241: 0 | AJ241: 0 | AK241: 0 | AL241: 0 | AM241: 0 | AN241: 0 | AO241: 0 | AZ241: 0.04328316848 | BA241: 0.1712429841 | BB241: 0.1650292721 | BC241: 0.1657918255 | BD241: 0.1221769598 | BE241: 0 | BF241: 0 | BG241: 0
A242: Protection & control | E242: =+[4]SPTL!E242 -> 0 | F242: =+[4]SPTL!F242 -> 0 | G242: =+[4]SPTL!G242 -> 0 | H242: =+[4]SPTL!H242 -> 0 | I242: =+[4]SPTL!I242 -> 0 | J242: =+[4]SPTL!J242 -> 0 | K242: =+[9]SPTL!K242 -> 13.52709554 | L242: =+[9]SPTL!L242 -> 13.08793653 | M242: =+[4]SPTL!M242 -> 4.3613335 | N242: =AZ242-IF(UserInterface!$B$138=1,SPTL!Y242,0) -> 11.75638486 | O242: =BA242-IF(UserInterface!$B$138=1,SPTL!Z242,0) -> 11.55283318 | P242: =BB242-IF(UserInterface!$B$138=1,SPTL!AA242,0) -> 10.59790481 | Q242: =BC242-IF(UserInterface!$B$138=1,SPTL!AB242,0) -> 10.42146691 | R242: =BD242-IF(UserInterface!$B$138=1,SPTL!AC242,0) -> 11.22748566 | S242: =BE242-IF(UserInterface!$B$138=1,SPTL!AD242,0) -> 6.471181627 | T242: =BF242-IF(UserInterface!$B$138=1,SPTL!AE242,0) -> 7.039592476 | U242: =BG242-IF(UserInterface!$B$138=1,SPTL!AF242,0) -> 7.464115236 | V242: Protection & control | Y242: 0 | Z242: 0 | AA242: 0 | AB242: 0 | AC242: 0 | AD242: 0 | AE242: 0 | AF242: 0 | AH242: 0 | AI242: 0 | AJ242: 0 | AK242: 0 | AL242: 0 | AM242: 0 | AN242: 0 | AO242: 0 | AZ242: 11.75638486 | BA242: 11.55283318 | BB242: 10.59790481 | BC242: 10.42146691 | BD242: 11.22748566 | BE242: 6.471181627 | BF242: 7.039592476 | BG242: 7.464115236
A243: Substation Other | E243: =+[4]SPTL!E243 -> 0 | F243: =+[4]SPTL!F243 -> 0 | G243: =+[4]SPTL!G243 -> 0 | H243: =+[4]SPTL!H243 -> 0 | I243: =+[4]SPTL!I243 -> 0 | J243: =+[4]SPTL!J243 -> 0 | K243: =+[9]SPTL!K243 -> 0 | L243: =+[9]SPTL!L243 -> 0 | M243: =+[4]SPTL!M243 -> 5.734088927 | N243: =AZ243-IF(UserInterface!$B$138=1,SPTL!Y243,0) -> 6.237853772 | O243: =BA243-IF(UserInterface!$B$138=1,SPTL!Z243,0) -> 6.988177309 | P243: =BB243-IF(UserInterface!$B$138=1,SPTL!AA243,0) -> 6.139872111 | Q243: =BC243-IF(UserInterface!$B$138=1,SPTL!AB243,0) -> 6.168242715 | R243: =BD243-IF(UserInterface!$B$138=1,SPTL!AC243,0) -> 5.789245947 | S243: =BE243-IF(UserInterface!$B$138=1,SPTL!AD243,0) -> 4.950879669 | T243: =BF243-IF(UserInterface!$B$138=1,SPTL!AE243,0) -> 4.98694178 | U243: =BG243-IF(UserInterface!$B$138=1,SPTL!AF243,0) -> 5.202501857 | V243: Sub-station other | Y243: 0 | Z243: 0 | AA243: 0 | AB243: 0 | AC243: 0 | AD243: 0 | AE243: 0 | AF243: 0 | AH243: 0 | AI243: 0 | AJ243: 0 | AK243: 0 | AL243: 0 | AM243: 0 | AN243: 0 | AO243: 0 | AZ243: 6.237853772 | BA243: 6.988177309 | BB243: 6.139872111 | BC243: 6.168242715 | BD243: 5.789245947 | BE243: 4.950879669 | BF243: 4.98694178 | BG243: 5.202501857
A244: Overhead Lines | E244: =+[4]SPTL!E244 -> 0 | F244: =+[4]SPTL!F244 -> 0 | G244: =+[4]SPTL!G244 -> 0 | H244: =+[4]SPTL!H244 -> 0 | I244: =+[4]SPTL!I244 -> 0 | J244: =+[4]SPTL!J244 -> 0 | K244: =+[9]SPTL!K244 -> 1.428918543 | L244: =+[9]SPTL!L244 -> 3.470204068 | M244: =+[4]SPTL!M244 -> 26.72556762 | N244: =AZ244-IF(UserInterface!$B$138=1,SPTL!Y244,0) -> 20.771925 | O244: =BA244-IF(UserInterface!$B$138=1,SPTL!Z244,0) -> 19.91243567 | P244: =BB244-IF(UserInterface!$B$138=1,SPTL!AA244,0) -> 20.96605372 | Q244: =BC244-IF(UserInterface!$B$138=1,SPTL!AB244,0) -> 28.10131048 | R244: =BD244-IF(UserInterface!$B$138=1,SPTL!AC244,0) -> 36.33619945 | S244: =BE244-IF(UserInterface!$B$138=1,SPTL!AD244,0) -> 38.8761755 | T244: =BF244-IF(UserInterface!$B$138=1,SPTL!AE244,0) -> 40.3325035 | U244: =BG244-IF(UserInterface!$B$138=1,SPTL!AF244,0) -> 31.41193295 | V244: Overhead Lines | Y244: 2.281081049e-05 | Z244: 0.009979872683 | AA244: 0.142392336 | AB244: 3.147495387 | AC244: 13.44680798 | AD244: 18.13893606 | AE244: 11.51696174 | AF244: 10.9366995 | AH244: 2.395135101e-05 | AI244: 0.01047886632 | AJ244: 0.1495119528 | AK244: 3.304870156 | AL244: 14.11914837 | AM244: 19.04588286 | AN244: 12.09280983 | AO244: 11.48353447 | AZ244: 20.77194781 | BA244: 19.92241554 | BB244: 21.10844606 | BC244: 31.24880587 | BD244: 49.78300742 | BE244: 57.01511156 | BF244: 51.84946524 | BG244: 42.34863245
A245: Underground Cables | E245: =+[4]SPTL!E245 -> 0 | F245: =+[4]SPTL!F245 -> 0 | G245: =+[4]SPTL!G245 -> 0 | H245: =+[4]SPTL!H245 -> 0 | I245: =+[4]SPTL!I245 -> 0 | J245: =+[4]SPTL!J245 -> 0 | K245: =+[9]SPTL!K245 -> 6.801652265 | L245: =+[9]SPTL!L245 -> 3.569441861 | M245: =+[4]SPTL!M245 -> 5.426068792 | N245: =AZ245-IF(UserInterface!$B$138=1,SPTL!Y245,0) -> 1.563604461 | O245: =BA245-IF(UserInterface!$B$138=1,SPTL!Z245,0) -> 0.4599097289 | P245: =BB245-IF(UserInterface!$B$138=1,SPTL!AA245,0) -> 1.423102423 | Q245: =BC245-IF(UserInterface!$B$138=1,SPTL!AB245,0) -> 1.734081177 | R245: =BD245-IF(UserInterface!$B$138=1,SPTL!AC245,0) -> 2.391012154 | S245: =BE245-IF(UserInterface!$B$138=1,SPTL!AD245,0) -> 2.379547554 | T245: =BF245-IF(UserInterface!$B$138=1,SPTL!AE245,0) -> 2.396880132 | U245: =BG245-IF(UserInterface!$B$138=1,SPTL!AF245,0) -> 2.64483112 | V245: Underground Cables | Y245: 0 | Z245: 0 | AA245: 0 | AB245: 0 | AC245: 0 | AD245: 0 | AE245: 0 | AF245: 0 | AH245: 0 | AI245: 0 | AJ245: 0 | AK245: 0 | AL245: 0 | AM245: 0 | AN245: 0 | AO245: 0 | AZ245: 1.563604461 | BA245: 0.4599097289 | BB245: 1.423102423 | BC245: 1.734081177 | BD245: 2.391012154 | BE245: 2.379547554 | BF245: 2.396880132 | BG245: 2.64483112
A246: Reactive Compensation | E246: =+[4]SPTL!E246 -> 0 | F246: =+[4]SPTL!F246 -> 0 | G246: =+[4]SPTL!G246 -> 0 | H246: =+[4]SPTL!H246 -> 0 | I246: =+[4]SPTL!I246 -> 0 | J246: =+[4]SPTL!J246 -> 0 | K246: =+[9]SPTL!K246 -> 0 | L246: =+[9]SPTL!L246 -> 0 | M246: =+[4]SPTL!M246 -> 0 | N246: =AZ246-IF(UserInterface!$B$138=1,SPTL!Y246,0) -> 0 | O246: =BA246-IF(UserInterface!$B$138=1,SPTL!Z246,0) -> 0 | P246: =BB246-IF(UserInterface!$B$138=1,SPTL!AA246,0) -> 0 | Q246: =BC246-IF(UserInterface!$B$138=1,SPTL!AB246,0) -> 0 | R246: =BD246-IF(UserInterface!$B$138=1,SPTL!AC246,0) -> 0 | S246: =BE246-IF(UserInterface!$B$138=1,SPTL!AD246,0) -> 0 | T246: =BF246-IF(UserInterface!$B$138=1,SPTL!AE246,0) -> 0 | U246: =BG246-IF(UserInterface!$B$138=1,SPTL!AF246,0) -> 0 | V246: Reactive Compensation | Y246: 0 | Z246: 0 | AA246: 0 | AB246: 0 | AC246: 0 | AD246: 0 | AE246: 0 | AF246: 0 | AH246: 0 | AI246: 0 | AJ246: 0 | AK246: 0 | AL246: 0 | AM246: 0 | AN246: 0 | AO246: 0 | AZ246: 0 | BA246: 0 | BB246: 0 | BC246: 0 | BD246: 0 | BE246: 0 | BF246: 0 | BG246: 0
A247: HVDC | E247: =+[4]SPTL!E247 -> 0 | F247: =+[4]SPTL!F247 -> 0 | G247: =+[4]SPTL!G247 -> 0 | H247: =+[4]SPTL!H247 -> 0 | I247: =+[4]SPTL!I247 -> 0 | J247: =+[4]SPTL!J247 -> 0 | K247: =+[9]SPTL!K247 -> 0.8764033731 | L247: =+[9]SPTL!L247 -> 3.706822932 | M247: =+[4]SPTL!M247 -> 0 | N247: =AZ247-IF(UserInterface!$B$138=1,SPTL!Y247,0) -> 0 | O247: =BA247-IF(UserInterface!$B$138=1,SPTL!Z247,0) -> 0 | P247: =BB247-IF(UserInterface!$B$138=1,SPTL!AA247,0) -> 0 | Q247: =BC247-IF(UserInterface!$B$138=1,SPTL!AB247,0) -> 0 | R247: =BD247-IF(UserInterface!$B$138=1,SPTL!AC247,0) -> 0 | S247: =BE247-IF(UserInterface!$B$138=1,SPTL!AD247,0) -> 0 | T247: =BF247-IF(UserInterface!$B$138=1,SPTL!AE247,0) -> 0 | U247: =BG247-IF(UserInterface!$B$138=1,SPTL!AF247,0) -> 0 | V247: HVDC | Y247: 0 | Z247: 0 | AA247: 0 | AB247: 0 | AC247: 0 | AD247: 0 | AE247: 0 | AF247: 0 | AH247: 0 | AI247: 0 | AJ247: 0 | AK247: 0 | AL247: 0 | AM247: 0 | AN247: 0 | AO247: 0 | AZ247: 0 | BA247: 0 | BB247: 0 | BC247: 0 | BD247: 0 | BE247: 0 | BF247: 0 | BG247: 0
A248: Cable Tunnels | E248: =+[4]SPTL!E248 -> 0 | F248: =+[4]SPTL!F248 -> 0 | G248: =+[4]SPTL!G248 -> 0 | H248: =+[4]SPTL!H248 -> 0 | I248: =+[4]SPTL!I248 -> 0 | J248: =+[4]SPTL!J248 -> 0 | K248: =+[9]SPTL!K248 -> 0 | L248: =+[9]SPTL!L248 -> 0 | M248: =+[4]SPTL!M248 -> 0 | N248: =AZ248-IF(UserInterface!$B$138=1,SPTL!Y248,0) -> 0 | O248: =BA248-IF(UserInterface!$B$138=1,SPTL!Z248,0) -> 0 | P248: =BB248-IF(UserInterface!$B$138=1,SPTL!AA248,0) -> 0 | Q248: =BC248-IF(UserInterface!$B$138=1,SPTL!AB248,0) -> 0 | R248: =BD248-IF(UserInterface!$B$138=1,SPTL!AC248,0) -> 0 | S248: =BE248-IF(UserInterface!$B$138=1,SPTL!AD248,0) -> 0 | T248: =BF248-IF(UserInterface!$B$138=1,SPTL!AE248,0) -> 0 | U248: =BG248-IF(UserInterface!$B$138=1,SPTL!AF248,0) -> 0 | V248: Cable Tunnels | Y248: 0 | Z248: 0 | AA248: 0 | AB248: 0 | AC248: 0 | AD248: 0 | AE248: 0 | AF248: 0 | AH248: 0 | AI248: 0 | AJ248: 0 | AK248: 0 | AL248: 0 | AM248: 0 | AN248: 0 | AO248: 0 | AZ248: 0 | BA248: 0 | BB248: 0 | BC248: 0 | BD248: 0 | BE248: 0 | BF248: 0 | BG248: 0
A249: Other NLRE | E249: =+[4]SPTL!E249 -> 0 | F249: =+[4]SPTL!F249 -> 0 | G249: =+[4]SPTL!G249 -> 0 | H249: =+[4]SPTL!H249 -> 0 | I249: =+[4]SPTL!I249 -> 0 | J249: =+[4]SPTL!J249 -> 0 | K249: =+[9]SPTL!K249 -> 0 | L249: =+[9]SPTL!L249 -> 0 | M249: =+[4]SPTL!M249 -> 0 | N249: =AZ249-IF(UserInterface!$B$138=1,SPTL!Y249,0) -> 0 | O249: =BA249-IF(UserInterface!$B$138=1,SPTL!Z249,0) -> 0 | P249: =BB249-IF(UserInterface!$B$138=1,SPTL!AA249,0) -> 0 | Q249: =BC249-IF(UserInterface!$B$138=1,SPTL!AB249,0) -> 0 | R249: =BD249-IF(UserInterface!$B$138=1,SPTL!AC249,0) -> 0 | S249: =BE249-IF(UserInterface!$B$138=1,SPTL!AD249,0) -> 0 | T249: =BF249-IF(UserInterface!$B$138=1,SPTL!AE249,0) -> 0 | U249: =BG249-IF(UserInterface!$B$138=1,SPTL!AF249,0) -> 0 | V249: Other NLRE | Y249: 0 | Z249: 0 | AA249: 0 | AB249: 0 | AC249: 0 | AD249: 0 | AE249: 0 | AF249: 0 | AH249: 0 | AI249: 0 | AJ249: 0 | AK249: 0 | AL249: 0 | AM249: 0 | AN249: 0 | AO249: 0 | AZ249: 0 | BA249: 0 | BB249: 0 | BC249: 0 | BD249: 0 | BE249: 0 | BF249: 0 | BG249: 0
A250: NOMS (Not requiring asset replacement) | E250: =+[4]SPTL!E250 -> 0 | F250: =+[4]SPTL!F250 -> 0 | G250: =+[4]SPTL!G250 -> 0 | H250: =+[4]SPTL!H250 -> 0 | I250: =+[4]SPTL!I250 -> 0 | J250: =+[4]SPTL!J250 -> 0 | K250: =+[9]SPTL!K250 -> 0 | L250: =+[9]SPTL!L250 -> 0 | M250: =+[4]SPTL!M250 -> 0 | N250: =AZ250-IF(UserInterface!$B$138=1,SPTL!Y250,0) -> 0 | O250: =BA250-IF(UserInterface!$B$138=1,SPTL!Z250,0) -> 0 | P250: =BB250-IF(UserInterface!$B$138=1,SPTL!AA250,0) -> 0 | Q250: =BC250-IF(UserInterface!$B$138=1,SPTL!AB250,0) -> 0 | R250: =BD250-IF(UserInterface!$B$138=1,SPTL!AC250,0) -> 0 | S250: =BE250-IF(UserInterface!$B$138=1,SPTL!AD250,0) -> 0 | T250: =BF250-IF(UserInterface!$B$138=1,SPTL!AE250,0) -> 0 | U250: =BG250-IF(UserInterface!$B$138=1,SPTL!AF250,0) -> 0 | V250: NOMS (Not requiring asset replacement) | Y250: 0 | Z250: 0 | AA250: 0 | AB250: 0 | AC250: 0 | AD250: 0 | AE250: 0 | AF250: 0 | AH250: 0 | AI250: 0 | AJ250: 0 | AK250: 0 | AL250: 0 | AM250: 0 | AN250: 0 | AO250: 0 | AZ250: 0 | BA250: 0 | BB250: 0 | BC250: 0 | BD250: 0 | BE250: 0 | BF250: 0 | BG250: 0
A251: Weather Related Resilience | E251: =+[4]SPTL!E251 -> 0 | F251: =+[4]SPTL!F251 -> 0 | G251: =+[4]SPTL!G251 -> 0 | H251: =+[4]SPTL!H251 -> 0 | I251: =+[4]SPTL!I251 -> 0 | J251: =+[4]SPTL!J251 -> 0 | K251: =+[9]SPTL!K251 -> 0 | L251: =+[9]SPTL!L251 -> 0 | M251: =+[4]SPTL!M251 -> 0 | N251: =AZ251-IF(UserInterface!$B$138=1,SPTL!Y251,0) -> 0.06762995075 | O251: =BA251-IF(UserInterface!$B$138=1,SPTL!Z251,0) -> 0.2718142606 | P251: =BB251-IF(UserInterface!$B$138=1,SPTL!AA251,0) -> 1.063530219 | Q251: =BC251-IF(UserInterface!$B$138=1,SPTL!AB251,0) -> 4.111061871 | R251: =BD251-IF(UserInterface!$B$138=1,SPTL!AC251,0) -> 6.206945472 | S251: =BE251-IF(UserInterface!$B$138=1,SPTL!AD251,0) -> 7.106680647 | T251: =BF251-IF(UserInterface!$B$138=1,SPTL!AE251,0) -> 7.178088748 | U251: =BG251-IF(UserInterface!$B$138=1,SPTL!AF251,0) -> 3.576882917 | V251: Weather Related Resilience | Y251: 0 | Z251: 0 | AA251: 0 | AB251: 0 | AC251: 0 | AD251: 0 | AE251: 0 | AF251: 0 | AH251: 0 | AI251: 0 | AJ251: 0 | AK251: 0 | AL251: 0 | AM251: 0 | AN251: 0 | AO251: 0 | AZ251: 0.06762995075 | BA251: 0.2718142606 | BB251: 1.063530219 | BC251: 4.111061871 | BD251: 6.206945472 | BE251: 7.106680647 | BF251: 7.178088748 | BG251: 3.576882917
A252: Security Resilience (Excl. BT21CN) | E252: =+[4]SPTL!E252 -> 0 | F252: =+[4]SPTL!F252 -> 0 | G252: =+[4]SPTL!G252 -> 0 | H252: =+[4]SPTL!H252 -> 0 | I252: =+[4]SPTL!I252 -> 0 | J252: =+[4]SPTL!J252 -> 0 | K252: =+[9]SPTL!K252 -> 0 | L252: =+[9]SPTL!L252 -> 0 | M252: =+[4]SPTL!M252 -> 0.8144334405 | N252: =AZ252-IF(UserInterface!$B$138=1,SPTL!Y252,0) -> 1.623118818 | O252: =BA252-IF(UserInterface!$B$138=1,SPTL!Z252,0) -> 1.630885563 | P252: =BB252-IF(UserInterface!$B$138=1,SPTL!AA252,0) -> 1.650292721 | Q252: =BC252-IF(UserInterface!$B$138=1,SPTL!AB252,0) -> 1.657918255 | R252: =BD252-IF(UserInterface!$B$138=1,SPTL!AC252,0) -> 1.629026131 | S252: =BE252-IF(UserInterface!$B$138=1,SPTL!AD252,0) -> 1.351012631 | T252: =BF252-IF(UserInterface!$B$138=1,SPTL!AE252,0) -> 0.5443413524 | U252: =BG252-IF(UserInterface!$B$138=1,SPTL!AF252,0) -> 0.6006520431 | V252: Security Resilience (Excl. BT21CN) | Y252: 0 | Z252: 0 | AA252: 0 | AB252: 0 | AC252: 0 | AD252: 0 | AE252: 0 | AF252: 0 | AH252: 0 | AI252: 0 | AJ252: 0 | AK252: 0 | AL252: 0 | AM252: 0 | AN252: 0 | AO252: 0 | AZ252: 1.623118818 | BA252: 1.630885563 | BB252: 1.650292721 | BC252: 1.657918255 | BD252: 1.629026131 | BE252: 1.351012631 | BF252: 0.5443413524 | BG252: 0.6006520431
A253: BT21CN | E253: =+[4]SPTL!E253 -> 0 | F253: =+[4]SPTL!F253 -> 0 | G253: =+[4]SPTL!G253 -> 0 | H253: =+[4]SPTL!H253 -> 0 | I253: =+[4]SPTL!I253 -> 0 | J253: =+[4]SPTL!J253 -> 0 | K253: =+[9]SPTL!K253 -> 0 | L253: =+[9]SPTL!L253 -> 0 | M253: =+[4]SPTL!M253 -> 5.029614137 | N253: =AZ253-IF(UserInterface!$B$138=1,SPTL!Y253,0) -> 4.19367576 | O253: =BA253-IF(UserInterface!$B$138=1,SPTL!Z253,0) -> 4.218261726 | P253: =BB253-IF(UserInterface!$B$138=1,SPTL!AA253,0) -> 4.98580936 | Q253: =BC253-IF(UserInterface!$B$138=1,SPTL!AB253,0) -> 3.384571037 | R253: =BD253-IF(UserInterface!$B$138=1,SPTL!AC253,0) -> 0.6791002683 | S253: =BE253-IF(UserInterface!$B$138=1,SPTL!AD253,0) -> 0 | T253: =BF253-IF(UserInterface!$B$138=1,SPTL!AE253,0) -> 0 | U253: =BG253-IF(UserInterface!$B$138=1,SPTL!AF253,0) -> 0 | V253: BT21CN | Y253: 0 | Z253: 0 | AA253: 0 | AB253: 0 | AC253: 0 | AD253: 0 | AE253: 0 | AF253: 0 | AH253: 0 | AI253: 0 | AJ253: 0 | AK253: 0 | AL253: 0 | AM253: 0 | AN253: 0 | AO253: 0 | AZ253: 4.19367576 | BA253: 4.218261726 | BB253: 4.98580936 | BC253: 3.384571037 | BD253: 0.6791002683 | BE253: 0 | BF253: 0 | BG253: 0
A254: Cyber Resilience | E254: =+[4]SPTL!E254 -> 0 | F254: =+[4]SPTL!F254 -> 0 | G254: =+[4]SPTL!G254 -> 0 | H254: =+[4]SPTL!H254 -> 0 | I254: =+[4]SPTL!I254 -> 0 | J254: =+[4]SPTL!J254 -> 0 | K254: =+[9]SPTL!K254 -> 0 | L254: =+[9]SPTL!L254 -> 0 | M254: =+[4]SPTL!M254 -> 0 | N254: =AZ254-IF(UserInterface!$B$138=1,SPTL!Y254,0) -> 0 | O254: =BA254-IF(UserInterface!$B$138=1,SPTL!Z254,0) -> 0 | P254: =BB254-IF(UserInterface!$B$138=1,SPTL!AA254,0) -> 0 | Q254: =BC254-IF(UserInterface!$B$138=1,SPTL!AB254,0) -> 0 | R254: =BD254-IF(UserInterface!$B$138=1,SPTL!AC254,0) -> 0 | S254: =BE254-IF(UserInterface!$B$138=1,SPTL!AD254,0) -> 0 | T254: =BF254-IF(UserInterface!$B$138=1,SPTL!AE254,0) -> 0 | U254: =BG254-IF(UserInterface!$B$138=1,SPTL!AF254,0) -> 0 | V254: Cyber Resilience | Y254: 0 | Z254: 0 | AA254: 0 | AB254: 0 | AC254: 0 | AD254: 0 | AE254: 0 | AF254: 0 | AH254: 0 | AI254: 0 | AJ254: 0 | AK254: 0 | AL254: 0 | AM254: 0 | AN254: 0 | AO254: 0 | AZ254: 0 | BA254: 0 | BB254: 0 | BC254: 0 | BD254: 0 | BE254: 0 | BF254: 0 | BG254: 0
A255: Proximity Resilience | E255: =+[4]SPTL!E255 -> 0 | F255: =+[4]SPTL!F255 -> 0 | G255: =+[4]SPTL!G255 -> 0 | H255: =+[4]SPTL!H255 -> 0 | I255: =+[4]SPTL!I255 -> 0 | J255: =+[4]SPTL!J255 -> 0 | K255: =+[9]SPTL!K255 -> 0 | L255: =+[9]SPTL!L255 -> 0 | M255: =+[4]SPTL!M255 -> 0 | N255: =AZ255-IF(UserInterface!$B$138=1,SPTL!Y255,0) -> 0 | O255: =BA255-IF(UserInterface!$B$138=1,SPTL!Z255,0) -> 0 | P255: =BB255-IF(UserInterface!$B$138=1,SPTL!AA255,0) -> 0 | Q255: =BC255-IF(UserInterface!$B$138=1,SPTL!AB255,0) -> 0 | R255: =BD255-IF(UserInterface!$B$138=1,SPTL!AC255,0) -> 0 | S255: =BE255-IF(UserInterface!$B$138=1,SPTL!AD255,0) -> 0 | T255: =BF255-IF(UserInterface!$B$138=1,SPTL!AE255,0) -> 0 | U255: =BG255-IF(UserInterface!$B$138=1,SPTL!AF255,0) -> 0 | V255: Proximity Resilience | Y255: 0 | Z255: 0 | AA255: 0 | AB255: 0 | AC255: 0 | AD255: 0 | AE255: 0 | AF255: 0 | AH255: 0 | AI255: 0 | AJ255: 0 | AK255: 0 | AL255: 0 | AM255: 0 | AN255: 0 | AO255: 0 | AZ255: 0 | BA255: 0 | BB255: 0 | BC255: 0 | BD255: 0 | BE255: 0 | BF255: 0 | BG255: 0
A256: Cable Tunnels (Not requiring asset replacement) | E256: =+[4]SPTL!E256 -> 0 | F256: =+[4]SPTL!F256 -> 0 | G256: =+[4]SPTL!G256 -> 0 | H256: =+[4]SPTL!H256 -> 0 | I256: =+[4]SPTL!I256 -> 0 | J256: =+[4]SPTL!J256 -> 0 | K256: =+[9]SPTL!K256 -> 0 | L256: =+[9]SPTL!L256 -> 0 | M256: =+[4]SPTL!M256 -> 0 | N256: =AZ256-IF(UserInterface!$B$138=1,SPTL!Y256,0) -> 0 | O256: =BA256-IF(UserInterface!$B$138=1,SPTL!Z256,0) -> 0 | P256: =BB256-IF(UserInterface!$B$138=1,SPTL!AA256,0) -> 0 | Q256: =BC256-IF(UserInterface!$B$138=1,SPTL!AB256,0) -> 0 | R256: =BD256-IF(UserInterface!$B$138=1,SPTL!AC256,0) -> 0 | S256: =BE256-IF(UserInterface!$B$138=1,SPTL!AD256,0) -> 0 | T256: =BF256-IF(UserInterface!$B$138=1,SPTL!AE256,0) -> 0 | U256: =BG256-IF(UserInterface!$B$138=1,SPTL!AF256,0) -> 0 | V256: Cable Tunnels (Not requiring asset replacement) | Y256: 0 | Z256: 0 | AA256: 0 | AB256: 0 | AC256: 0 | AD256: 0 | AE256: 0 | AF256: 0 | AH256: 0 | AI256: 0 | AJ256: 0 | AK256: 0 | AL256: 0 | AM256: 0 | AN256: 0 | AO256: 0 | AZ256: 0 | BA256: 0 | BB256: 0 | BC256: 0 | BD256: 0 | BE256: 0 | BF256: 0 | BG256: 0
A257: Substation Other (Not requiring asset replacement) | E257: =+[4]SPTL!E257 -> 0 | F257: =+[4]SPTL!F257 -> 0 | G257: =+[4]SPTL!G257 -> 0 | H257: =+[4]SPTL!H257 -> 0 | I257: =+[4]SPTL!I257 -> 0 | J257: =+[4]SPTL!J257 -> 0 | K257: =+[9]SPTL!K257 -> 0 | L257: =+[9]SPTL!L257 -> 0 | M257: =+[4]SPTL!M257 -> 0 | N257: =AZ257-IF(UserInterface!$B$138=1,SPTL!Y257,0) -> 0 | O257: =BA257-IF(UserInterface!$B$138=1,SPTL!Z257,0) -> 0 | P257: =BB257-IF(UserInterface!$B$138=1,SPTL!AA257,0) -> 0 | Q257: =BC257-IF(UserInterface!$B$138=1,SPTL!AB257,0) -> 0 | R257: =BD257-IF(UserInterface!$B$138=1,SPTL!AC257,0) -> 0 | S257: =BE257-IF(UserInterface!$B$138=1,SPTL!AD257,0) -> 0 | T257: =BF257-IF(UserInterface!$B$138=1,SPTL!AE257,0) -> 0 | U257: =BG257-IF(UserInterface!$B$138=1,SPTL!AF257,0) -> 0 | V257: Substation Other (Not requiring asset replacement) | Y257: 0 | Z257: 0 | AA257: 0 | AB257: 0 | AC257: 0 | AD257: 0 | AE257: 0 | AF257: 0 | AH257: 0 | AI257: 0 | AJ257: 0 | AK257: 0 | AL257: 0 | AM257: 0 | AN257: 0 | AO257: 0 | AZ257: 0 | BA257: 0 | BB257: 0 | BC257: 0 | BD257: 0 | BE257: 0 | BF257: 0 | BG257: 0
A258: Other TO | E258: =+[4]SPTL!E258 -> 0 | F258: =+[4]SPTL!F258 -> 0 | G258: =+[4]SPTL!G258 -> 0 | H258: =+[4]SPTL!H258 -> 0 | I258: =+[4]SPTL!I258 -> 0 | J258: =+[4]SPTL!J258 -> 0 | K258: =+[9]SPTL!K258 -> 0 | L258: =+[9]SPTL!L258 -> 0 | M258: =+[4]SPTL!M258 -> 1.849502047 | N258: =AZ258-IF(UserInterface!$B$138=1,SPTL!Y258,0) -> 1.420202973 | O258: =BA258-IF(UserInterface!$B$138=1,SPTL!Z258,0) -> 1.359045186 | P258: =BB258-IF(UserInterface!$B$138=1,SPTL!AA258,0) -> 1.168930917 | Q258: =BC258-IF(UserInterface!$B$138=1,SPTL!AB258,0) -> 1.087988943 | R258: =BD258-IF(UserInterface!$B$138=1,SPTL!AC258,0) -> 0.8145130654 | S258: =BE258-IF(UserInterface!$B$138=1,SPTL!AD258,0) -> 0.7970974524 | T258: =BF258-IF(UserInterface!$B$138=1,SPTL!AE258,0) -> 0.7620778933 | U258: =BG258-IF(UserInterface!$B$138=1,SPTL!AF258,0) -> 0.8409128604 | V258: Other TO | Y258: 0 | Z258: 0 | AA258: 0 | AB258: 0 | AC258: 0 | AD258: 0 | AE258: 0 | AF258: 0 | AH258: 0 | AI258: 0 | AJ258: 0 | AK258: 0 | AL258: 0 | AM258: 0 | AN258: 0 | AO258: 0 | AZ258: 1.420202973 | BA258: 1.359045186 | BB258: 1.168930917 | BC258: 1.087988943 | BD258: 0.8145130654 | BE258: 0.7970974524 | BF258: 0.7620778933 | BG258: 0.8409128604
A259: Total non-load related | E259: =+[4]SPTL!E259 -> 0 | F259: =+[4]SPTL!F259 -> 0 | G259: =+[4]SPTL!G259 -> 0 | H259: =+[4]SPTL!H259 -> 0 | I259: =+[4]SPTL!I259 -> 0 | J259: =+[4]SPTL!J259 -> 0 | K259: =+[9]SPTL!K259 -> 56.57564818 | L259: =+[9]SPTL!L259 -> 78.77757686 | M259: =+[4]SPTL!M259 -> 74.68302786 | N259: =AZ259-IF(UserInterface!$B$138=1,SPTL!Y259,0) -> 66.74600219 | O259: =BA259-IF(UserInterface!$B$138=1,SPTL!Z259,0) -> 67.91254868 | P259: =BB259-IF(UserInterface!$B$138=1,SPTL!AA259,0) -> 68.71243655 | Q259: =BC259-IF(UserInterface!$B$138=1,SPTL!AB259,0) -> 78.37605022 | R259: =BD259-IF(UserInterface!$B$138=1,SPTL!AC259,0) -> 84.75859537 | S259: =BE259-IF(UserInterface!$B$138=1,SPTL!AD259,0) -> 82.17179026 | T259: =BF259-IF(UserInterface!$B$138=1,SPTL!AE259,0) -> 87.52627015 | U259: =BG259-IF(UserInterface!$B$138=1,SPTL!AF259,0) -> 69.75120942 | V259: Total non-load related | Y259: =SUM(Y235:Y258) -> 2.281081049e-05 | Z259: =SUM(Z235:Z258) -> 0.009979872683 | AA259: 0.142392336 | AB259: 3.147495387 | AC259: 13.44680798 | AD259: 18.13893606 | AE259: 11.51696174 | AF259: 10.9366995 | AH259: =SUM(AH235:AH258) -> 2.395135101e-05 | AI259: 0.01047886632 | AJ259: 0.1495119528 | AK259: 3.304870156 | AL259: 14.11914837 | AM259: 19.04588286 | AN259: 12.09280983 | AO259: 11.48353447 | AZ259: 66.746025 | BA259: 67.92252855 | BB259: 68.85482889 | BC259: 81.52354561 | BD259: 98.20540334 | BE259: 100.3107263 | BF259: 99.04323189 | BG259: 80.68790891
E260: =+[4]SPTL!E260 -> 0 | F260: =+[4]SPTL!F260 -> 0 | G260: =+[4]SPTL!G260 -> 0 | H260: =+[4]SPTL!H260 -> 0 | I260: =+[4]SPTL!I260 -> 0 | J260: =+[4]SPTL!J260 -> 0 | K260: =+[9]SPTL!K260 -> 0 | L260: =+[9]SPTL!L260 -> 0 | M260: =+[4]SPTL!M260 -> 0 | N260: =AZ260-IF(UserInterface!$B$138=1,SPTL!Y260,0) -> 0 | O260: =BA260-IF(UserInterface!$B$138=1,SPTL!Z260,0) -> 0 | P260: =BB260-IF(UserInterface!$B$138=1,SPTL!AA260,0) -> 0 | Q260: =BC260-IF(UserInterface!$B$138=1,SPTL!AB260,0) -> 0 | R260: =BD260-IF(UserInterface!$B$138=1,SPTL!AC260,0) -> 0 | S260: =BE260-IF(UserInterface!$B$138=1,SPTL!AD260,0) -> 0 | T260: =BF260-IF(UserInterface!$B$138=1,SPTL!AE260,0) -> 0 | U260: =BG260-IF(UserInterface!$B$138=1,SPTL!AF260,0) -> 0 | Y260: 0 | Z260: 0 | AA260: 0 | AB260: 0 | AC260: 0 | AD260: 0 | AE260: 0 | AF260: 0 | AH260: 0 | AI260: 0 | AJ260: 0 | AK260: 0 | AL260: 0 | AM260: 0 | AN260: 0 | AO260: 0 | AZ260: 0 | BA260: 0 | BB260: 0 | BC260: 0 | BD260: 0 | BE260: 0 | BF260: 0 | BG260: 0
A261: Contributions (-ve) | E261: =+[4]SPTL!E261 -> 0 | F261: =+[4]SPTL!F261 -> 0 | G261: =+[4]SPTL!G261 -> 0 | H261: =+[4]SPTL!H261 -> 0 | I261: =+[4]SPTL!I261 -> 0 | J261: =+[4]SPTL!J261 -> 0 | K261: =+[9]SPTL!K261 -> 0 | L261: =+[9]SPTL!L261 -> 0 | M261: =+[4]SPTL!M261 -> 0 | N261: =AZ261-IF(UserInterface!$B$138=1,SPTL!Y261,0) -> 0 | O261: =BA261-IF(UserInterface!$B$138=1,SPTL!Z261,0) -> 0 | P261: =BB261-IF(UserInterface!$B$138=1,SPTL!AA261,0) -> 0 | Q261: =BC261-IF(UserInterface!$B$138=1,SPTL!AB261,0) -> 0 | R261: =BD261-IF(UserInterface!$B$138=1,SPTL!AC261,0) -> 0 | S261: =BE261-IF(UserInterface!$B$138=1,SPTL!AD261,0) -> 0 | T261: =BF261-IF(UserInterface!$B$138=1,SPTL!AE261,0) -> 0 | U261: =BG261-IF(UserInterface!$B$138=1,SPTL!AF261,0) -> 0 | V261: Contributions (-ve) | Y261: 0 | Z261: 0 | AA261: 0 | AB261: 0 | AC261: 0 | AD261: 0 | AE261: 0 | AF261: 0 | AH261: 0 | AI261: 0 | AJ261: 0 | AK261: 0 | AL261: 0 | AM261: 0 | AN261: 0 | AO261: 0 | AZ261: 0 | BA261: 0 | BB261: 0 | BC261: 0 | BD261: 0 | BE261: 0 | BF261: 0 | BG261: 0
